Workbook

Sheet Overview
A2: CDCM Annual Review Pack
A4: Company: | B4: ='CDCM Forecast Data'!E3 -> Electricity North West
A5: Date of Issue: | B5: ='CDCM Forecast Data'!E4 -> 2017-12-19T10:22:42.840
A7: ="Although every effort has been made to ensure the accuracy of the information provided in this annual review pack, " & 'CDCM Forecast Data'!E3 & " does not accept any liability for the accuracy of the information contained herein and, in particular, " & 'CDCM Forecast Data'!E3 & " or any of its employees, shall not be held liable for any misstatement or opinion on which the recipient of this statement relies or seeks to rely." -> Although every effort has been made to ensure the accuracy of the information provided in this annual review pack, Electricity North West does not accept any liability for the accuracy of the information contained herein and, in particular, Electricity North West or any of its employees, shall not be held liable for any misstatement or opinion on which the recipient of this statement relies or seeks to rely.
A12: Contents:
A14: Sheet Name | B14: Detail
A15: Commentary | B15: This sheet contains the DNO's commentary on the forecast input CDCM data for the forecast over the 5 year period.
A16: CDCM Forecast Data | B16: This sheet contains historical and forecast data for all CDCM inputs except for volume data (table 1053) and matrix of applicability data (table 1025 - 1028). The RPI forecast is seperated out and listed as a standalone assumption. Any forecasts that relate to RPI will be linked to this row. Comments are provided alongside each forecast explaining any assumptions made by the DNO.
A17: Table 1 | B17: This sheet contains the DNO's table 1 produced in accordance with DCUSA Schedule 15 "cost information table".
A18: Mat of App | B18: This sheet contains the forecast CDCM matrix of applicability data (table 1025 - 1028). The default value is that the same matrix will be used for each of the five years.
A19: CDCM Volume Forecasts | B19: This sheet contains forecast CDCM volume data (table 1053). The matrix at the top can be used to apply different growth rates to groups of customers.
A20: CDCM Timebands | B20: Contains the time bands that the DNO plans to use for the coming year and advance warning of any changes.
A21: CDCM Input Sheet (Y) | B21: This sheet contains the CDCM input sheet for base year 0 (Y) in a format that can be copy and pasted (paste-value) into the CDCM spreadsheet model.
A22: CDCM Input Sheet (Y + 1) | B22: This sheet contains the CDCM input sheet for base year +1 (Y+1) in a format that can be copy and pasted (paste-value) into the CDCM spreadsheet model.
A23: CDCM Input Sheet (Y + 2) | B23: This sheet contains the CDCM input sheet for base year +2 (Y+2) in a format that can be copy and pasted (paste-value) into the CDCM spreadsheet model.
A24: CDCM Input Sheet (Y + 3) | B24: This sheet contains the CDCM input sheet for base year +3 (Y+3) in a format that can be copy and pasted (paste-value) into the CDCM spreadsheet model.
A25: CDCM Input Sheet (Y + 4) | B25: This sheet contains the CDCM input sheet for base year +4 (Y+4) in a format that can be copy and pasted (paste-value) into the CDCM spreadsheet model.
A26: Tariffs ARP | B26: This sheet contains the CDCM tariffs that are produced from the CDCM input data, after the Macro on this sheet has been run. It contains the tariffs for each of the 5 years.
A29: This document, model or dataset has been prepared by or for Reckon LLP on the instructions of the DCUSA Panel or
A30: one of its working groups. Only the DCUSA Panel and its working groups have authority to approve this
A31: material as meeting their requirements. Reckon LLP makes no representation about the suitability of this
A32: material for the purposes of complying with any licence conditions or furthering any relevant objective.

Sheet Commentary
B3: ='CDCM Forecast Data'!E3 -> Electricity North West

Sheet CDCM Forecast Data
D3: Company: | E3: Electricity North West
D4: Date of Issue: | E4: 2017-12-19T10:22:42.840
D5: Status | E5: Final
C9: Historical CDCM Input Data (Actuals) | E9: ="CDCM Values - "&E5 -> CDCM Values - Final | F9: Forecast CDCM Values
B10: Year Ref -> | C10: Y-2 | D10: Y-1 | E10: Y | F10: Y+1 | G10: Y+2 | H10: Y+3 | I10: Y+4
B11: Charging Year -> | C11: 2017/18 | D11: 2018/19 | E11: 2019/20 | F11: 2020/21 | G11: 2021/22 | H11: 2022/23 | I11: 2023/24
B12: DPCR -> | C12: RIIO - ED1 | D12: RIIO - ED1 | E12: RIIO - ED1 | F12: RIIO - ED1 | G12: RIIO - ED1 | H12: RIIO - ED1 | I12: RIIO - ED2 | J12: Assumptions
B13: RPI Forecast: | F13: =+'[2]Table 1'!I$11/'[2]Table 1'!H$11-1 -> 0.03179916318 | G13: =+'[2]Table 1'!J$11/'[2]Table 1'!I$11-1 -> 0.03081914031 | H13: =+'[2]Table 1'!K$11/'[2]Table 1'!J$11-1 -> 0.02989771833 | I13: =+H13 -> 0.02989771833
A14: 1 | B14: 1000 Company name, charging year and model version
A15: 2 | B15: Company | C15: =+$E$3 -> Electricity North West | D15: =+$E$3 -> Electricity North West | E15: Electricity North West | F15: Electricity North West | G15: Electricity North West | H15: Electricity North West | I15: Electricity North West
A16: 3 | B16: Year | C16: =+[3]Input!$C$7 -> 2017/18 | D16: =+[4]Input!$C$7 -> 2018/19 | E16: =+E11 -> 2019/20 | F16: 2020/21 | G16: 2021/22 | H16: 2022/23 | I16: 2023/24
A17: 4 | B17: Version | C17: Final | D17: Final | E17: Final | F17: Forecast | G17: Forecast | H17: Forecast | I17: Forecast
A18: 5 | B18: 1010 Financial and general assumptions
A19: 6 | B19: Rate of return | C19: =+[3]Input!$B$60 -> 0 | D19: =+[4]Input!$B$60 -> 0.0408 | E19: =+[9]Input!$B$60 -> 0.0402 | F19: =+E19 -> 0.0402 | G19: 0.0402 | H19: 0.0402 | I19: 0.0402
A20: 7 | B20: Annualisation period (years) | C20: =+[3]Input!$C$60 -> 0 | D20: =+[4]Input!$C$60 -> 40 | E20: =+[9]Input!$C$60 -> 40 | F20: 40 | G20: 40 | H20: 40 | I20: 40
A21: 8 | B21: Power factor | C21: =+[3]Input!$E$60 -> 0 | D21: =+[4]Input!$E$60 -> 0.95 | E21: =+[9]Input!$E$60 -> 0.95 | F21: 0.95 | G21: 0.95 | H21: 0.95 | I21: 0.95
A22: 9 | B22: Days in the charging period | C22: =+[3]Input!$F$60 -> 0 | D22: =+[4]Input!$F$60 -> 365 | E22: =+[9]Input!$F$60 -> 366 | F22: 365 | G22: 365 | H22: 365 | I22: 366
A23: 10 | B23: 1017 Diversity allowance between top and bottom of network level
A24: 11 | B24: GSPs | C24: =+[3]Input!$B$68 -> 0.07420180118 | D24: =+[4]Input!$B$70 -> 0.055565327 | E24: =+[9]Input!$B$70 -> 0.0634939014 | F24: =+E24 -> 0.0634939014 | G24: =+F24 -> 0.0634939014 | H24: 0.0634939014 | I24: 0.0634939014
A25: 12 | B25: 132kV | C25: =+[3]Input!$B$69 -> 0.04679205393 | D25: =+[4]Input!$B$71 -> 0.05414574209 | E25: =+[9]Input!$B$71 -> 0.06832793776 | F25: =+E25 -> 0.06832793776 | G25: 0.06832793776 | H25: 0.06832793776 | I25: 0.06832793776
A26: 13 | B26: EHV | C26: =+[3]Input!$B$71 -> 0.0868884238 | D26: =+[4]Input!$B$73 -> 0.08258106468 | E26: =+[9]Input!$B$73 -> 0.09140024367 | F26: =+E26 -> 0.09140024367 | G26: 0.09140024367 | H26: 0.09140024367 | I26: 0.09140024367
A27: 14 | B27: HV | C27: =+[3]Input!$B$73 -> 0.3056153455 | D27: =+[4]Input!$B$75 -> 0.1192569891 | E27: =+[9]Input!$B$75 -> 0.2390012962 | F27: =+E27 -> 0.2390012962 | G27: 0.2390012962 | H27: 0.2390012962 | I27: 0.2390012962
A28: 15 | B28: 1018 Proportion of relevant load going through 132kV/HV direct transformation | C28: =+[3]Input!$B$80 -> 0 | D28: =+[4]Input!$B$82 ->  | E28: =+[9]Input!$B$82 -> 0 | F28: =+E28 -> 0 | G28: 0 | H28: 0 | I28: 0
A29: 16 | B29: 1019 Network model GSP demand (MW) | C29: =+[3]Input!$B$85 -> 500 | D29: =+[4]Input!$B$87 -> 500 | E29: =+[9]Input!$B$87 -> 500 | F29: =+E29 -> 500 | G29: 500 | H29: 500 | I29: 500
A30: 17 | B30: 1020 Gross asset cost by network level (£)
A31: 18 | B31: 132kV | C31: =+[3]Input!$B$90 -> 93700604.94 | D31: =+[4]Input!$B$92 -> 96592074.04 | E31: =+[9]Input!$B$92 -> 100301754.5 | F31: =+E31 -> 100301754.5 | G31: 100301754.5 | H31: 100301754.5 | I31: 100301754.5
A32: 19 | B32: 132kV/EHV | C32: =+[3]Input!$B$91 -> 37063778.58 | D32: =+[4]Input!$B$93 -> 38207514.74 | E32: =+[9]Input!$B$93 -> 39674898.83 | F32: =+E32 -> 39674898.83 | G32: 39674898.83 | H32: 39674898.83 | I32: 39674898.83
A33: 20 | B33: EHV | C33: =+[3]Input!$B$92 -> 93588546.74 | D33: =+[4]Input!$B$94 -> 96476557.88 | E33: =+[9]Input!$B$94 -> 100181801.9 | F33: =+E33 -> 100181801.9 | G33: 100181801.9 | H33: 100181801.9 | I33: 100181801.9
A34: 21 | B34: EHV/HV | C34: =+[3]Input!$B$93 -> 59035973.2 | D34: =+[4]Input!$B$95 -> 60857740.44 | E34: =+[9]Input!$B$95 -> 63195020.95 | F34: =+E34 -> 63195020.95 | G34: 63195020.95 | H34: 63195020.95 | I34: 63195020.95
A35: 22 | B35: 132kV/HV | C35: =+[3]Input!$B$94 -> 0 | D35: =+[4]Input!$B$96 -> 0 | E35: =+[9]Input!$B$96 -> 0 | F35: =+E35 -> 0 | G35: 0 | H35: 0 | I35: 0
A36: 23 | B36: HV | C36: =+[3]Input!$B$95 -> 107178668.3 | D36: =+[4]Input!$B$97 -> 110486051.5 | E36: =+[9]Input!$B$97 -> 114729339.1 | F36: =+E36 -> 114729339.1 | G36: 114729339.1 | H36: 114729339.1 | I36: 114729339.1
A37: 24 | B37: HV/LV | C37: =+[3]Input!$B$96 -> 97309699.62 | D37: =+[4]Input!$B$98 -> 100312540.3 | E37: =+[9]Input!$B$98 -> 104165107.7 | F37: =+E37 -> 104165107.7 | G37: 104165107.7 | H37: 104165107.7 | I37: 104165107.7
A38: 25 | B38: LV circuits | C38: =+[3]Input!$B$97 -> 53944771.39 | D38: =+[4]Input!$B$99 -> 55609431.29 | E38: =+[9]Input!$B$99 -> 57745147.13 | F38: =+E38 -> 57745147.13 | G38: 57745147.13 | H38: 57745147.13 | I38: 57745147.13
A39: 26 | B39: 1022 LV service model asset cost (£)
A40: 27 | B40: LV service model 1 | C40: =+[3]Input!$B$102 -> 10240.40148 | D40: =[4]Input!$B$104 -> 10556.40589 | E40: =[9]Input!$B$104 -> 10961.83142 | F40: =+E40 -> 10961.83142 | G40: 10961.83142 | H40: 10961.83142 | I40: 10961.83142
A41: 28 | B41: LV service model 2 | C41: =+[3]Input!$C$102 -> 512.0200738 | D41: =+[4]Input!$C$104 -> 527.8202943 | E41: =+[9]Input!$C$104 -> 548.0915709 | F41: =+E41 -> 548.0915709 | G41: 548.0915709 | H41: 548.0915709 | I41: 548.0915709
A42: 29 | B42: LV service model 3 | C42: =+[3]Input!$D$102 -> 2407.156257 | D42: =+[4]Input!$D$104 -> 2481.437719 | E42: =+[9]Input!$D$104 -> 2576.738925 | F42: =+E42 -> 2576.738925 | G42: 2576.738925 | H42: 2576.738925 | I42: 2576.738925
A43: 30 | B43: LV service model 4 | C43: =+[3]Input!$E$102 -> 7727.258208 | D43: =+[4]Input!$E$104 -> 7965.710546 | E43: =+[9]Input!$E$104 -> 8271.638764 | F43: =+E43 -> 8271.638764 | G43: 8271.638764 | H43: 8271.638764 | I43: 8271.638764
A44: 31 | B44: LV service model 5 | C44: =+[3]Input!$F$102 -> 281.4366146 | D44: =+[4]Input!$F$104 -> 290.1213533 | E44: =+[9]Input!$F$104 -> 301.2636498 | F44: =+E44 -> 301.2636498 | G44: 301.2636498 | H44: 301.2636498 | I44: 301.2636498
A45: 32 | B45: LV service model 6 | C45: =+[3]Input!$G$102 -> 0 | D45: =+[4]Input!$G$104 -> 0 | E45: =+[9]Input!$G$104 -> 0 | F45: =+E45 -> 0 | G45: 0 | H45: 0 | I45: 0
A46: 33 | B46: LV service model 7 | C46: =+[3]Input!$H$102 -> 0 | D46: =+[4]Input!$H$104 -> 0 | E46: =+[9]Input!$H$104 -> 0 | F46: =+E46 -> 0 | G46: 0 | H46: 0 | I46: 0
A47: 34 | B47: LV service model 8 | C47: =+[3]Input!$I$102 -> 0 | D47: =+[4]Input!$I$104 -> 0 | E47: =+[9]Input!$I$104 -> 0 | F47: =+E47 -> 0 | G47: 0 | H47: 0 | I47: 0
A48: 35 | B48: 1023 HV service model asset cost (£)
A49: 36 | B49: HV service model 1 | C49: =+[3]Input!$B$107 -> 19221.96335 | D49: =+[4]Input!$B$109 -> 19815.12615 | E49: =+[9]Input!$B$109 -> 20576.13877 | F49: =+E49 -> 20576.13877 | G49: 20576.13877 | H49: 20576.13877 | I49: 20576.13877
A50: 37 | B50: HV service model 2 | C50: =+[3]Input!$C$107 -> 16991.2105 | D50: =+[4]Input!$C$109 -> 17515.5354 | E50: =+[9]Input!$C$109 -> 18188.23076 | F50: =+E50 -> 18188.23076 | G50: 18188.23076 | H50: 18188.23076 | I50: 18188.23076
A51: 38 | B51: HV service model 3 | C51: =+[3]Input!$D$107 -> 1144.1325 | D51: =+[4]Input!$D$109 -> 1179.438822 | E51: =+[9]Input!$D$109 -> 1224.735926 | F51: =+E51 -> 1224.735926 | G51: 1224.735926 | H51: 1224.735926 | I51: 1224.735926
A52: 39 | B52: HV service model 4 | C52: =+[3]Input!$E$107 -> 0 | D52: =+[4]Input!$E$109 -> 0 | E52: =+[9]Input!$E$109 -> 0 | F52: =+E52 -> 0 | G52: 0 | H52: 0 | I52: 0
A53: 40 | B53: HV service model 5 | C53: =+[3]Input!$F$107 -> 0 | D53: =+[4]Input!$F$109 -> 0 | E53: =+[9]Input!$F$109 -> 0 | F53: =+E53 -> 0 | G53: 0 | H53: 0 | I53: 0
A54: 41 | B54: 1025 Matrix of applicability of LV service models to tariffs with fixed charges
A55: 42 | B55: 1026 Matrix of applicability of LV service models to unmetered tariffs
A56: 43 | B56: 1028 Matrix of applicability of HV service models to tariffs with fixed charges
A57: 44 | B57: 1032 Loss adjustment factors to transmission
A58: 45 | B58: 132kV | C58: =+[3]Input!$B$148 -> 1.010207653 | D58: =+[4]Input!$B$156 -> 1.009927869 | E58: =+[9]Input!$B$156 -> 1.010049582 | F58: =+E58 -> 1.010049582 | G58: 1.010049582 | H58: 1.010049582 | I58: 1.010049582
A59: 46 | B59: 132kV/EHV | C59: =+[3]Input!$C$148 -> 1.015167952 | D59: =+[4]Input!$C$156 -> 1.014841676 | E59: =+[9]Input!$C$156 -> 1.015028715 | F59: =+E59 -> 1.015028715 | G59: 1.015028715 | H59: 1.015028715 | I59: 1.015028715
A60: 47 | B60: EHV | C60: =+[3]Input!$D$148 -> 1.021613121 | D60: =+[4]Input!$D$156 -> 1.021105647 | E60: =+[9]Input!$D$156 -> 1.021423697 | F60: =+E60 -> 1.021423697 | G60: 1.021423697 | H60: 1.021423697 | I60: 1.021423697
A61: 48 | B61: EHV/HV | C61: =+[3]Input!$E$148 -> 1.027143717 | D61: =+[4]Input!$E$156 -> 1.026564598 | E61: =+[9]Input!$E$156 -> 1.026965618 | F61: =+E61 -> 1.026965618 | G61: 1.026965618 | H61: 1.026965618 | I61: 1.026965618
A62: 49 | B62: HV | C62: =+[3]Input!$F$148 -> 1.039482236 | D62: =+[4]Input!$F$156 -> 1.038458943 | E62: =+[9]Input!$F$156 -> 1.039338946 | F62: =+E62 -> 1.039338946 | G62: 1.039338946 | H62: 1.039338946 | I62: 1.039338946
A63: 50 | B63: HV/LV | C63: =+[3]Input!$G$148 -> 1.053113103 | D63: =+[4]Input!$G$156 -> 1.05196178 | E63: =+[9]Input!$G$156 -> 1.053194046 | F63: =+E63 -> 1.053194046 | G63: 1.053194046 | H63: 1.053194046 | I63: 1.053194046
A64: 51 | B64: LV circuits | C64: =+[3]Input!$H$148 -> 1.105523229 | D64: =+[4]Input!$H$156 -> 1.101572037 | E64: =+[9]Input!$H$156 -> 1.107559204 | F64: =+E64 -> 1.107559204 | G64: 1.107559204 | H64: 1.107559204 | I64: 1.107559204
A65: 52 | B65: 1037 Embedded network (LDNO) discounts
A66: 53 | B66: LDNO LV: LV user | C66: =+[3]Input!$C$154 -> 0.3545481139 | D66: =+[4]Input!$C$162 -> 0.3572698012 | E66: =+[9]Input!$C$162 -> 0.357357871 | F66: =+E66 -> 0.357357871 | G66: 0.357357871 | H66: 0.357357871 | I66: 0.357357871
A67: 54 | B67: LDNO HV: LV user | C67: =+[3]Input!$D$154 -> 0.5759919482 | D67: =+[4]Input!$D$162 -> 0.5751812082 | E67: =+[9]Input!$D$162 -> 0.5734116248 | F67: =+E67 -> 0.5734116248 | G67: 0.5734116248 | H67: 0.5734116248 | I67: 0.5734116248
A68: 55 | B68: LDNO HV: LV sub user | C68: =+[3]Input!$E$154 -> 0.3351316791 | D68: =+[4]Input!$E$162 -> 0.3312170542 | E68: =+[9]Input!$E$162 -> 0.327894462 | F68: =+E68 -> 0.327894462 | G68: 0.327894462 | H68: 0.327894462 | I68: 0.327894462
A69: 56 | B69: LDNO HV: HV user | C69: =+[3]Input!$F$154 -> 0.2148277515 | D69: =+[4]Input!$F$162 -> 0.2085144414 | E69: =+[9]Input!$F$162 -> 0.2042455722 | F69: =+E69 -> 0.2042455722 | G69: 0.2042455722 | H69: 0.2042455722 | I69: 0.2042455722
A70: 57 | B70: 1041 Load profile data for demand users: coincidence factor
A71: 58 | B71: Domestic Unrestricted | C71: =+[3]Input!B160 -> 0.8913703454 | D71: =+[4]Input!$B$168 -> 0.9087162881 | E71: =+[9]Input!$B$168 -> 0.9073751246 | F71: =+E71 -> 0.9073751246 | G71: 0.9073751246 | H71: 0.9073751246 | I71: 0.9073751246
A72: 59 | B72: Domestic Two Rate | C72: =+[3]Input!B161 -> 0.2951047042 | D72: =+[4]Input!$B$169 -> 0.3061315444 | E72: =+[9]Input!$B$169 -> 0.3118076763 | F72: =+E72 -> 0.3118076763 | G72: 0.3118076763 | H72: 0.3118076763 | I72: 0.3118076763
A73: 60 | B73: Domestic Off Peak (related MPAN)
A74: 61 | B74: Small Non Domestic Unrestricted | C74: =+[3]Input!B163 -> 0.675023322 | D74: =+[4]Input!$B$171 -> 0.644120962 | E74: =+[9]Input!$B$171 -> 0.6431867848 | F74: =+E74 -> 0.6431867848 | G74: 0.6431867848 | H74: 0.6431867848 | I74: 0.6431867848
A75: 62 | B75: Small Non Domestic Two Rate | C75: =+[3]Input!B164 -> 0.7022639753 | D75: =+[4]Input!$B$172 -> 0.7395746776 | E75: =+[9]Input!$B$172 -> 0.7753946555 | F75: =+E75 -> 0.7753946555 | G75: 0.7753946555 | H75: 0.7753946555 | I75: 0.7753946555
A76: 63 | B76: Small Non Domestic Off Peak (related MPAN)
A77: 64 | B77: LV Medium Non-Domestic | C77: =+[3]Input!B166 -> 0.8299720136 | D77: =+[4]Input!$B$174 -> 0.8067027022 | E77: =+[9]Input!$B$174 -> 0.7212047762 | F77: =+E77 -> 0.7212047762 | G77: 0.7212047762 | H77: 0.7212047762 | I77: 0.7212047762
A78: 65 | B78: LV Sub Medium Non-Domestic | C78: =+[3]Input!B167 -> 0.7822989923 | D78: =+[4]Input!$B$175 -> 0.7662931752 | E78: =+[9]Input!$B$175 -> 0.6982999022 | F78: =+E78 -> 0.6982999022 | G78: 0.6982999022 | H78: 0.6982999022 | I78: 0.6982999022
A79: 66 | B79: HV Medium Non-Domestic | C79: =+[3]Input!B168 -> 0.7647764369 | D79: =+[4]Input!$B$176 -> 0.7420344892 | E79: =+[9]Input!$B$176 -> 0.7702073361 | F79: =+E79 -> 0.7702073361 | G79: 0.7702073361 | H79: 0.7702073361 | I79: 0.7702073361
A80: 67 | B80: LV Network Domestic | C80: =+[3]Input!B169 -> 0.8913703454 | D80: =+[4]Input!$B$177 -> 0.9087162881 | E80: =+[9]Input!$B$177 -> 0.9073751246 | F80: =+E80 -> 0.9073751246 | G80: 0.9073751246 | H80: 0.9073751246 | I80: 0.9073751246
A81: 68 | B81: LV Network Non-Domestic Non-CT | C81: =+[3]Input!B170 -> 0.675023322 | D81: =+[4]Input!$B$178 -> 0.644120962 | E81: =+[9]Input!$B$178 -> 0.6431867848 | F81: =+E81 -> 0.6431867848 | G81: 0.6431867848 | H81: 0.6431867848 | I81: 0.6431867848
A82: 69 | B82: LV HH Metered | C82: =+[3]Input!B171 -> 0.8187070533 | D82: =+[4]Input!$B$179 -> 0.7912001274 | E82: =+[9]Input!$B$179 -> 0.7802624104 | F82: =+E82 -> 0.7802624104 | G82: 0.7802624104 | H82: 0.7802624104 | I82: 0.7802624104
A83: 70 | B83: LV Sub HH Metered | C83: =+[3]Input!B172 -> 0.7867578525 | D83: =+[4]Input!$B$180 -> 0.7630048694 | E83: =+[9]Input!$B$180 -> 0.7636309411 | F83: =+E83 -> 0.7636309411 | G83: 0.7636309411 | H83: 0.7636309411 | I83: 0.7636309411
A84: 71 | B84: HV HH Metered | C84: =+[3]Input!B173 -> 0.8573132903 | D84: =+[4]Input!$B$181 -> 0.8384500082 | E84: =+[9]Input!$B$181 -> 0.835869669 | F84: =+E84 -> 0.835869669 | G84: 0.835869669 | H84: 0.835869669 | I84: 0.835869669
A85: 72 | B85: NHH UMS category A | C85: =+[3]Input!B174 -> 1 | D85: =+[4]Input!$B$182 -> 1 | E85: =+[9]Input!$B$182 -> 1 | F85: =+E85 -> 1 | G85: 1 | H85: 1 | I85: 1
A86: 73 | B86: NHH UMS category B | C86: =+[3]Input!B175 -> 1 | D86: =+[4]Input!$B$183 -> 1 | E86: =+[9]Input!$B$183 -> 1 | F86: =+E86 -> 1 | G86: 1 | H86: 1 | I86: 1
A87: 74 | B87: NHH UMS category C | C87: =+[3]Input!B176 -> 1 | D87: =+[4]Input!$B$184 -> 1 | E87: =+[9]Input!$B$184 -> 1 | F87: =+E87 -> 1 | G87: 1 | H87: 1 | I87: 1
A88: 75 | B88: NHH UMS category D | C88: =+[3]Input!B177 -> 0 | D88: =+[4]Input!$B$185 -> 0 | E88: =+[9]Input!$B$185 -> 0 | F88: =+E88 -> 0 | G88: 0 | H88: 0 | I88: 0
A89: 76 | B89: LV UMS (Pseudo HH Metered) | C89: =+[3]Input!B178 -> 0.9795893947 | D89: =+[4]Input!$B$186 -> 0.9580926534 | E89: =+[9]Input!$B$186 -> 0.9537595116 | F89: =+E89 -> 0.9537595116 | G89: 0.9537595116 | H89: 0.9537595116 | I89: 0.9537595116
A90: 77 | B90: 1041 Load profile data for demand users: load factor
A91: 78 | B91: Domestic Unrestricted | C91: =+[3]Input!C160 -> 0.4462668473 | D91: =+[4]Input!$C$168 -> 0.4461136765 | E91: =+[9]Input!$C$168 -> 0.4460761352 | F91: =+E91 -> 0.4460761352 | G91: 0.4460761352 | H91: 0.4460761352 | I91: 0.4460761352
A92: 79 | B92: Domestic Two Rate | C92: =+[3]Input!C161 -> 0.2467650034 | D92: =+[4]Input!$C$169 -> 0.2483160537 | E92: =+[9]Input!$C$169 -> 0.2461560372 | F92: =+E92 -> 0.2461560372 | G92: 0.2461560372 | H92: 0.2461560372 | I92: 0.2461560372
A93: 80 | B93: Domestic Off Peak (related MPAN) | C93: =+[3]Input!C162 -> 0.1659632593 | D93: =+[4]Input!$C$170 -> 0.166198376 | E93: =+[9]Input!$C$170 -> 0.1661225671 | F93: =+E93 -> 0.1661225671 | G93: 0.1661225671 | H93: 0.1661225671 | I93: 0.1661225671
A94: 81 | B94: Small Non Domestic Unrestricted | C94: =+[3]Input!C163 -> 0.3939683153 | D94: =+[4]Input!$C$171 -> 0.3978931333 | E94: =+[9]Input!$C$171 -> 0.393333355 | F94: =+E94 -> 0.393333355 | G94: 0.393333355 | H94: 0.393333355 | I94: 0.393333355
A95: 82 | B95: Small Non Domestic Two Rate | C95: =+[3]Input!C164 -> 0.5394924636 | D95: =+[4]Input!$C$172 -> 0.5787597388 | E95: =+[9]Input!$C$172 -> 0.5857662777 | F95: =+E95 -> 0.5857662777 | G95: 0.5857662777 | H95: 0.5857662777 | I95: 0.5857662777
A96: 83 | B96: Small Non Domestic Off Peak (related MPAN) | C96: =+[3]Input!C165 -> 0.1655384635 | D96: =+[4]Input!$C$173 -> 0.1669709041 | E96: =+[9]Input!$C$173 -> 0.163884803 | F96: =+E96 -> 0.163884803 | G96: 0.163884803 | H96: 0.163884803 | I96: 0.163884803
A97: 84 | B97: LV Medium Non-Domestic | C97: =+[3]Input!C166 -> 0.5627043404 | D97: =+[4]Input!$C$174 -> 0.557643625 | E97: =+[9]Input!$C$174 -> 0.511247733 | F97: =+E97 -> 0.511247733 | G97: 0.511247733 | H97: 0.511247733 | I97: 0.511247733
A98: 85 | B98: LV Sub Medium Non-Domestic | C98: =+[3]Input!C167 -> 0.5370681653 | D98: =+[4]Input!$C$175 -> 0.5277746835 | E98: =+[9]Input!$C$175 -> 0.4962908256 | F98: =+E98 -> 0.4962908256 | G98: 0.4962908256 | H98: 0.4962908256 | I98: 0.4962908256
A99: 86 | B99: HV Medium Non-Domestic | C99: =+[3]Input!C168 -> 0.5247366167 | D99: =+[4]Input!$C$176 -> 0.5261886232 | E99: =+[9]Input!$C$176 -> 0.5147406723 | F99: =+E99 -> 0.5147406723 | G99: 0.5147406723 | H99: 0.5147406723 | I99: 0.5147406723
A100: 87 | B100: LV Network Domestic | C100: =+[3]Input!C169 -> 0.4462668473 | D100: =+[4]Input!$C$177 -> 0.4461136765 | E100: =+[9]Input!$C$177 -> 0.4460761352 | F100: =+E100 -> 0.4460761352 | G100: 0.4460761352 | H100: 0.4460761352 | I100: 0.4460761352
A101: 88 | B101: LV Network Non-Domestic Non-CT | C101: =+[3]Input!C170 -> 0.3939683153 | D101: =+[4]Input!$C$178 -> 0.3978931333 | E101: =+[9]Input!$C$178 -> 0.393333355 | F101: =+E101 -> 0.393333355 | G101: 0.393333355 | H101: 0.393333355 | I101: 0.393333355
A102: 89 | B102: LV HH Metered | C102: =+[3]Input!C171 -> 0.5579677074 | D102: =+[4]Input!$C$179 -> 0.5565486409 | E102: =+[9]Input!$C$179 -> 0.5367843793 | F102: =+E102 -> 0.5367843793 | G102: 0.5367843793 | H102: 0.5367843793 | I102: 0.5367843793
A103: 90 | B103: LV Sub HH Metered | C103: =+[3]Input!C172 -> 0.5593063082 | D103: =+[4]Input!$C$180 -> 0.5614185837 | E103: =+[9]Input!$C$180 -> 0.5603833232 | F103: =+E103 -> 0.5603833232 | G103: 0.5603833232 | H103: 0.5603833232 | I103: 0.5603833232
A104: 91 | B104: HV HH Metered | C104: =+[3]Input!C173 -> 0.7117228058 | D104: =+[4]Input!$C$181 -> 0.7109929422 | E104: =+[9]Input!$C$181 -> 0.7072433891 | F104: =+E104 -> 0.7072433891 | G104: 0.7072433891 | H104: 0.7072433891 | I104: 0.7072433891
A105: 92 | B105: NHH UMS category A | C105: =+[3]Input!C174 -> 1 | D105: =+[4]Input!$C$182 -> 1 | E105: =+[9]Input!$C$182 -> 1 | F105: =+E105 -> 1 | G105: 1 | H105: 1 | I105: 1
A106: 93 | B106: NHH UMS category B | C106: =+[3]Input!C175 -> 0.4737220928 | D106: =+[4]Input!$C$183 -> 0.4734077562 | E106: =+[9]Input!$C$183 -> 0.4731133764 | F106: =+E106 -> 0.4731133764 | G106: 0.4731133764 | H106: 0.4731133764 | I106: 0.4731133764
A107: 94 | B107: NHH UMS category C | C107: =+[3]Input!C176 -> 0.2580136568 | D107: =+[4]Input!$C$184 -> 0.2579935293 | E107: =+[9]Input!$C$184 -> 0.2578169273 | F107: =+E107 -> 0.2578169273 | G107: 0.2578169273 | H107: 0.2578169273 | I107: 0.2578169273
A108: 95 | B108: NHH UMS category D | C108: =+[3]Input!C177 -> 0.5539154947 | D108: =+[4]Input!$C$185 -> 0.5538562202 | E108: =+[9]Input!$C$185 -> 0.5537901624 | F108: =+E108 -> 0.5537901624 | G108: 0.5537901624 | H108: 0.5537901624 | I108: 0.5537901624
A109: 96 | B109: LV UMS (Pseudo HH Metered) | C109: =+[3]Input!C178 -> 0.4777791708 | D109: =+[4]Input!$C$186 -> 0.4667353464 | E109: =+[9]Input!$C$186 -> 0.4621225818 | F109: =+E109 -> 0.4621225818 | G109: 0.4621225818 | H109: 0.4621225818 | I109: 0.4621225818
A110: 97 | B110: 1053. Volume forecasts for the charging year
A111: 98 | B111: 1055 Transmission exit charges (£/year) | C111: =+[3]Input!$B$288 -> 18525180.79 | D111: =+[4]Input!$B$308 -> 19616468.8 | E111: =+[9]Input!$B$308 -> 21229764.8 | F111: =+E111 -> 21229764.8 | G111: 21229764.8 | H111: 21229764.8 | I111: 21229764.8
A112: 99 | B112: 1059 Other Expenditure (£/year)
A113: 100 | B113: Direct cost (£/year) | C113: =+[3]Input!$B$293 -> 27174344.18 | D113: =+[4]Input!$B$313 -> 29892738.31 | E113: =+[9]Input!$B$313 -> 31791545.46 | F113: =+E113 -> 31791545.46 | G113: 31791545.46 | H113: 31791545.46 | I113: 31791545.46
A114: 101 | B114: Indirect cost (£/year) | C114: =+[3]Input!$C$293 -> 97208506.38 | D114: =+[4]Input!$C$313 -> 105910608.6 | E114: =+[9]Input!$C$313 -> 109223706 | F114: =+E114 -> 109223706 | G114: 109223706 | H114: 109223706 | I114: 109223706
A115: 102 | B115: Indirect cost proportion | C115: =+[3]Input!$D$293 -> 0.6 | D115: =+[4]Input!$D$313 -> 0.6 | E115: =+[9]Input!$D$313 -> 0.6 | F115: =+E115 -> 0.6 | G115: 0.6 | H115: 0.6 | I115: 0.6
A116: 103 | B116: Network rates (£/year) | C116: =+[3]Input!$E$293 -> 28145721.2 | D116: =+[4]Input!$E$313 -> 24343168.51 | E116: =+[9]Input!$E$313 -> 25012605.64 | F116: =+E116 -> 25012605.64 | G116: 25012605.64 | H116: 25012605.64 | I116: 25012605.64
A117: 104 | B117: 1060 Customer contributions under current connection charging policy
A118: 105 | B118: LV network
A119: 106 | B119: Assets 132kV | C119: =+[3]Input!$B$301 -> 0 | D119: =+[4]Input!$B$321 ->  | E119: =+[9]Input!$B$321 -> 0 | F119: =+E119 -> 0 | G119: 0 | H119: 0 | I119: 0
A120: 107 | B120: Assets 132kV/EHV | C120: =+[3]Input!$C$301 -> 0 | D120: =+[4]Input!$C$321 ->  | E120: =+[9]Input!$C$321 -> 0 | F120: =+E120 -> 0 | G120: 0 | H120: 0 | I120: 0
A121: 108 | B121: Assets EHV | C121: =+[3]Input!$D$301 -> 0 | D121: =+[4]Input!$D$321 ->  | E121: =+[9]Input!$D$321 -> 0 | F121: =+E121 -> 0 | G121: 0 | H121: 0 | I121: 0
A122: 109 | B122: Assets EHV/HV | C122: =+[3]Input!$E$301 -> 0 | D122: =+[4]Input!$E$321 ->  | E122: =+[9]Input!$E$321 -> 0 | F122: =+E122 -> 0 | G122: 0 | H122: 0 | I122: 0
A123: 110 | B123: Assets 132kV/HV | C123: =+[3]Input!$F$301 -> 0 | D123: =+[4]Input!$F$321 ->  | E123: =+[9]Input!$F$321 -> 0 | F123: =+E123 -> 0 | G123: 0 | H123: 0 | I123: 0
A124: 111 | B124: Assets HV | C124: =+[3]Input!$G$301 -> 0.3 | D124: =+[4]Input!$G$321 -> 0.3 | E124: =+[9]Input!$G$321 -> 0.3 | F124: =+E124 -> 0.3 | G124: 0.3 | H124: 0.3 | I124: 0.3
A125: 112 | B125: Assets HV/LV | C125: =+[3]Input!$H$301 -> 0.3 | D125: =+[4]Input!$H$321 -> 0.3 | E125: =+[9]Input!$H$321 -> 0.3 | F125: =+E125 -> 0.3 | G125: 0.3 | H125: 0.3 | I125: 0.3
A126: 113 | B126: Assets LV circuits | C126: =+[3]Input!$I$301 -> 0.97 | D126: =+[4]Input!$I$321 -> 0.97 | E126: =+[9]Input!$I$321 -> 0.97 | F126: =+E126 -> 0.97 | G126: 0.97 | H126: 0.97 | I126: 0.97
A127: 114 | B127: LV substation
A128: 115 | B128: Assets 132kV | C128: =+[3]Input!$B$302 -> 0 | D128: =+[4]Input!$B$322 ->  | E128: =+[9]Input!$B$322 -> 0 | F128: =+E128 -> 0 | G128: 0 | H128: 0 | I128: 0
A129: 116 | B129: Assets 132kV/EHV | C129: =+[3]Input!$C$302 -> 0 | D129: =+[4]Input!$C$322 ->  | E129: =+[9]Input!$C$322 -> 0 | F129: =+E129 -> 0 | G129: 0 | H129: 0 | I129: 0
A130: 117 | B130: Assets EHV | C130: =+[3]Input!$D$302 -> 0 | D130: =+[4]Input!$D$322 ->  | E130: =+[9]Input!$D$322 -> 0 | F130: =+E130 -> 0 | G130: 0 | H130: 0 | I130: 0
A131: 118 | B131: Assets EHV/HV | C131: =+[3]Input!$E$302 -> 0 | D131: =+[4]Input!$E$322 ->  | E131: =+[9]Input!$E$322 -> 0 | F131: =+E131 -> 0 | G131: 0 | H131: 0 | I131: 0
A132: 119 | B132: Assets 132kV/HV | C132: =+[3]Input!$F$302 -> 0 | D132: =+[4]Input!$F$322 ->  | E132: =+[9]Input!$F$322 -> 0 | F132: =+E132 -> 0 | G132: 0 | H132: 0 | I132: 0
A133: 120 | B133: Assets HV | C133: =+[3]Input!$G$302 -> 0.3 | D133: =+[4]Input!$G$322 -> 0.3 | E133: =+[9]Input!$G$322 -> 0.3 | F133: =+E133 -> 0.3 | G133: 0.3 | H133: 0.3 | I133: 0.3
A134: 121 | B134: Assets HV/LV | C134: =+[3]Input!$H$302 -> 0.97 | D134: =+[4]Input!$H$322 -> 0.97 | E134: =+[9]Input!$H$322 -> 0.97 | F134: =+E134 -> 0.97 | G134: 0.97 | H134: 0.97 | I134: 0.97
A135: 122 | B135: HV network
A136: 123 | B136: Assets 132kV | C136: =+[3]Input!$B$303 -> 0 | D136: =+[4]Input!$B$323 ->  | E136: =+[9]Input!$B$323 -> 0 | F136: =+E136 -> 0 | G136: 0 | H136: 0 | I136: 0
A137: 124 | B137: Assets 132kV/EHV | C137: =+[3]Input!$C$303 -> 0 | D137: =+[4]Input!$C$323 ->  | E137: =+[9]Input!$C$323 -> 0 | F137: =+E137 -> 0 | G137: 0 | H137: 0 | I137: 0
A138: 125 | B138: Assets EHV | C138: =+[3]Input!$D$303 -> 0 | D138: =+[4]Input!$D$323 ->  | E138: =+[9]Input!$D$323 -> 0 | F138: =+E138 -> 0 | G138: 0 | H138: 0 | I138: 0
A139: 126 | B139: Assets EHV/HV | C139: =+[3]Input!$E$303 -> 0.57 | D139: =+[4]Input!$E$323 -> 0.57 | E139: =+[9]Input!$E$323 -> 0.57 | F139: =+E139 -> 0.57 | G139: 0.57 | H139: 0.57 | I139: 0.57
A140: 127 | B140: Assets 132kV/HV | C140: =+[3]Input!$F$303 -> 0 | D140: =+[4]Input!$F$323 ->  | E140: =+[9]Input!$F$323 -> 0 | F140: =+E140 -> 0 | G140: 0 | H140: 0 | I140: 0
A141: 128 | B141: Assets HV | C141: =+[3]Input!$G$303 -> 0.91 | D141: =+[4]Input!$G$323 -> 0.91 | E141: =+[9]Input!$G$323 -> 0.91 | F141: =+E141 -> 0.91 | G141: 0.91 | H141: 0.91 | I141: 0.91
A142: 129 | B142: HV substation
A143: 130 | B143: Assets 132kV | C143: =+[3]Input!$B$304 -> 0 | D143: =+[4]Input!$B$324 ->  | E143: =+[9]Input!$B$324 -> 0 | F143: =+E143 -> 0 | G143: 0 | H143: 0 | I143: 0
A144: 131 | B144: Assets 132kV/EHV | C144: =+[3]Input!$C$304 -> 0 | D144: =+[4]Input!$C$324 ->  | E144: =+[9]Input!$C$324 -> 0 | F144: =+E144 -> 0 | G144: 0 | H144: 0 | I144: 0
A145: 132 | B145: Assets EHV | C145: =+[3]Input!$D$304 -> 0.57 | D145: =+[4]Input!$D$324 -> 0.57 | E145: =+[9]Input!$D$324 -> 0.57 | F145: =+E145 -> 0.57 | G145: 0.57 | H145: 0.57 | I145: 0.57
A146: 133 | B146: Assets EHV/HV | C146: =+[3]Input!$E$304 -> 0.92 | D146: =+[4]Input!$E$324 -> 0.92 | E146: =+[9]Input!$E$324 -> 0.92 | F146: =+E146 -> 0.92 | G146: 0.92 | H146: 0.92 | I146: 0.92
A147: 134 | B147: 1061 Average split of rate 1 units by distribution time band
A148: 135 | B148: RED
A149: 136 | B149: Domestic Unrestricted | C149: =+[3]Input!B309 -> 0.1267129394 | D149: =+[4]Input!$B$329 -> 0.1267641246 | E149: =+[9]Input!$B$329 -> 0.1261377772 | F149: =+E149 -> 0.1261377772 | G149: 0.1261377772 | H149: 0.1261377772 | I149: 0.1261377772
A150: 137 | B150: Domestic Two Rate | C150: =+[3]Input!B310 -> 0.1354229874 | D150: =+[4]Input!$B$330 -> 0.1373435467 | E150: =+[9]Input!$B$330 -> 0.1382140566 | F150: =+E150 -> 0.1382140566 | G150: 0.1382140566 | H150: 0.1382140566 | I150: 0.1382140566
A151: 138 | B151: Domestic Off Peak (related MPAN) | C151: =+[3]Input!B311 -> 0.005295933963 | D151: =+[4]Input!$B$331 -> 0.005626458544 | E151: =+[9]Input!$B$331 -> 0.005716053516 | F151: =+E151 -> 0.005716053516 | G151: 0.005716053516 | H151: 0.005716053516 | I151: 0.005716053516
A152: 139 | B152: Small Non Domestic Unrestricted | C152: =+[3]Input!B312 -> 0.1092743142 | D152: =+[4]Input!$B$332 -> 0.1095922333 | E152: =+[9]Input!$B$332 -> 0.1094925187 | F152: =+E152 -> 0.1094925187 | G152: 0.1094925187 | H152: 0.1094925187 | I152: 0.1094925187
A153: 140 | B153: Small Non Domestic Two Rate | C153: =+[3]Input!B313 -> 0.1224154854 | D153: =+[4]Input!$B$333 -> 0.1236721638 | E153: =+[9]Input!$B$333 -> 0.1249232971 | F153: =+E153 -> 0.1249232971 | G153: 0.1249232971 | H153: 0.1249232971 | I153: 0.1249232971
A154: 141 | B154: Small Non Domestic Off Peak (related MPAN) | C154: =+[3]Input!B314 -> 0.001575559271 | D154: =+[4]Input!$B$334 -> 0.001715216583 | E154: =+[9]Input!$B$334 -> 0.001757377481 | F154: =+E154 -> 0.001757377481 | G154: 0.001757377481 | H154: 0.001757377481 | I154: 0.001757377481
A155: 142 | B155: LV Medium Non-Domestic | C155: =+[3]Input!B315 -> 0.1359911403 | D155: =+[4]Input!$B$335 -> 0.1364475871 | E155: =+[9]Input!$B$335 -> 0.1355762783 | F155: =+E155 -> 0.1355762783 | G155: 0.1355762783 | H155: 0.1355762783 | I155: 0.1355762783
A156: 143 | B156: LV Sub Medium Non-Domestic | C156: =+[3]Input!B316 -> 0.1337574391 | D156: =+[4]Input!$B$336 -> 0.1341458271 | E156: =+[9]Input!$B$336 -> 0.134193437 | F156: =+E156 -> 0.134193437 | G156: 0.134193437 | H156: 0.134193437 | I156: 0.134193437
A157: 144 | B157: HV Medium Non-Domestic | C157: =+[3]Input!B317 -> 0.1309576271 | D157: =+[4]Input!$B$337 -> 0.1320526001 | E157: =+[9]Input!$B$337 -> 0.1331463389 | F157: =+E157 -> 0.1331463389 | G157: 0.1331463389 | H157: 0.1331463389 | I157: 0.1331463389
A158: 145 | B158: AMBER
A159: 146 | B159: Domestic Unrestricted | C159: =+[3]Input!C309 -> 0.3318115729 | D159: =+[4]Input!$C$329 -> 0.3325960072 | E159: =+[9]Input!$C$329 -> 0.3324584779 | F159: =+E159 -> 0.3324584779 | G159: 0.3324584779 | H159: 0.3324584779 | I159: 0.3324584779
A160: 147 | B160: Domestic Two Rate | C160: =+[3]Input!C310 -> 0.3484118589 | D160: =+[4]Input!$C$330 -> 0.3528574115 | E160: =+[9]Input!$C$330 -> 0.3562791414 | F160: =+E160 -> 0.3562791414 | G160: 0.3562791414 | H160: 0.3562791414 | I160: 0.3562791414
A161: 148 | B161: Domestic Off Peak (related MPAN) | C161: =+[3]Input!C311 -> 0.09414184204 | D161: =+[4]Input!$C$331 -> 0.09420981101 | E161: =+[9]Input!$C$331 -> 0.09486855185 | F161: =+E161 -> 0.09486855185 | G161: 0.09486855185 | H161: 0.09486855185 | I161: 0.09486855185
A162: 149 | B162: Small Non Domestic Unrestricted | C162: =+[3]Input!C312 -> 0.4478278324 | D162: =+[4]Input!$C$332 -> 0.4451371897 | E162: =+[9]Input!$C$332 -> 0.4428818117 | F162: =+E162 -> 0.4428818117 | G162: 0.4428818117 | H162: 0.4428818117 | I162: 0.4428818117
A163: 150 | B163: Small Non Domestic Two Rate | C163: =+[3]Input!C313 -> 0.4608940278 | D163: =+[4]Input!$C$333 -> 0.4608384523 | E163: =+[9]Input!$C$333 -> 0.4598439915 | F163: =+E163 -> 0.4598439915 | G163: 0.4598439915 | H163: 0.4598439915 | I163: 0.4598439915
A164: 151 | B164: Small Non Domestic Off Peak (related MPAN) | C164: =+[3]Input!C314 -> 0.05077890421 | D164: =+[4]Input!$C$334 -> 0.05247602409 | E164: =+[9]Input!$C$334 -> 0.05270802056 | F164: =+E164 -> 0.05270802056 | G164: 0.05270802056 | H164: 0.05270802056 | I164: 0.05270802056
A165: 152 | B165: LV Medium Non-Domestic | C165: =+[3]Input!C315 -> 0.4850036297 | D165: =+[4]Input!$C$335 -> 0.4850184451 | E165: =+[9]Input!$C$335 -> 0.4809157444 | F165: =+E165 -> 0.4809157444 | G165: 0.4809157444 | H165: 0.4809157444 | I165: 0.4809157444
A166: 153 | B166: LV Sub Medium Non-Domestic | C166: =+[3]Input!C316 -> 0.4814344485 | D166: =+[4]Input!$C$336 -> 0.481190869 | E166: =+[9]Input!$C$336 -> 0.4799432441 | F166: =+E166 -> 0.4799432441 | G166: 0.4799432441 | H166: 0.4799432441 | I166: 0.4799432441
A167: 154 | B167: HV Medium Non-Domestic | C167: =+[3]Input!C317 -> 0.4893393738 | D167: =+[4]Input!$C$337 -> 0.4891783347 | E167: =+[9]Input!$C$337 -> 0.4870173491 | F167: =+E167 -> 0.4870173491 | G167: 0.4870173491 | H167: 0.4870173491 | I167: 0.4870173491
A168: 155 | B168: GREEN
A169: 156 | B169: Domestic Unrestricted | C169: =+[3]Input!D309 -> 0.5414754877 | D169: =+[4]Input!$D$329 -> 0.5406398683 | E169: =+[9]Input!$D$329 -> 0.541403745 | F169: =+E169 -> 0.541403745 | G169: 0.541403745 | H169: 0.541403745 | I169: 0.541403745
A170: 157 | B170: Domestic Two Rate | C170: =+[3]Input!D310 -> 0.5161651537 | D170: =+[4]Input!$D$330 -> 0.5097990418 | E170: =+[9]Input!$D$330 -> 0.505506802 | F170: =+E170 -> 0.505506802 | G170: 0.505506802 | H170: 0.505506802 | I170: 0.505506802
A171: 158 | B171: Domestic Off Peak (related MPAN) | C171: =+[3]Input!D311 -> 0.900562224 | D171: =+[4]Input!$D$331 -> 0.9001637304 | E171: =+[9]Input!$D$331 -> 0.8994153946 | F171: =+E171 -> 0.8994153946 | G171: 0.8994153946 | H171: 0.8994153946 | I171: 0.8994153946
A172: 159 | B172: Small Non Domestic Unrestricted | C172: =+[3]Input!D312 -> 0.4428978534 | D172: =+[4]Input!$D$332 -> 0.4452705769 | E172: =+[9]Input!$D$332 -> 0.4476256696 | F172: =+E172 -> 0.4476256696 | G172: 0.4476256696 | H172: 0.4476256696 | I172: 0.4476256696
A173: 160 | B173: Small Non Domestic Two Rate | C173: =+[3]Input!D313 -> 0.4166904869 | D173: =+[4]Input!$D$333 -> 0.4154893839 | E173: =+[9]Input!$D$333 -> 0.4152327115 | F173: =+E173 -> 0.4152327115 | G173: 0.4152327115 | H173: 0.4152327115 | I173: 0.4152327115
A174: 161 | B174: Small Non Domestic Off Peak (related MPAN) | C174: =+[3]Input!D314 -> 0.9476455365 | D174: =+[4]Input!$D$334 -> 0.9458087593 | E174: =+[9]Input!$D$334 -> 0.945534602 | F174: =+E174 -> 0.945534602 | G174: 0.945534602 | H174: 0.945534602 | I174: 0.945534602
A175: 162 | B175: LV Medium Non-Domestic | C175: =+[3]Input!D315 -> 0.37900523 | D175: =+[4]Input!$D$335 -> 0.3785339678 | E175: =+[9]Input!$D$335 -> 0.3835079773 | F175: =+E175 -> 0.3835079773 | G175: 0.3835079773 | H175: 0.3835079773 | I175: 0.3835079773
A176: 163 | B176: LV Sub Medium Non-Domestic | C176: =+[3]Input!D316 -> 0.3848081123 | D176: =+[4]Input!$D$336 -> 0.3846633039 | E176: =+[9]Input!$D$336 -> 0.3858633189 | F176: =+E176 -> 0.3858633189 | G176: 0.3858633189 | H176: 0.3858633189 | I176: 0.3858633189
A177: 164 | B177: HV Medium Non-Domestic | C177: =+[3]Input!D317 -> 0.3797029991 | D177: =+[4]Input!$D$337 -> 0.3787690652 | E177: =+[9]Input!$D$337 -> 0.379836312 | F177: =+E177 -> 0.379836312 | G177: 0.379836312 | H177: 0.379836312 | I177: 0.379836312
A178: 165 | B178: 1062 Average split of rate 2 units by distribution time band
A179: 166 | B179: RED
A180: 167 | B180: Domestic Two Rate | C180: =+[3]Input!B322 -> 0 | D180: =[4]Input!$B$342 -> 0 | E180: =[9]Input!$B$342 -> 0 | F180: =+E180 -> 0 | G180: 0 | H180: 0 | I180: 0
A181: 168 | B181: Small Non Domestic Two Rate | C181: =+[3]Input!B323 -> 0 | D181: =+[4]Input!$B$343 -> 0 | E181: =+[9]Input!$B$343 -> 0 | F181: =+E181 -> 0 | G181: 0 | H181: 0 | I181: 0
A182: 169 | B182: LV Medium Non-Domestic | C182: =+[3]Input!B324 -> 0 | D182: =+[4]Input!$B$344 -> 0 | E182: =+[9]Input!$B$344 -> 0 | F182: =+E182 -> 0 | G182: 0 | H182: 0 | I182: 0
A183: 170 | B183: LV Sub Medium Non-Domestic | C183: =+[3]Input!B325 -> 0 | D183: =+[4]Input!$B$345 -> 0 | E183: =+[9]Input!$B$345 -> 0 | F183: =+E183 -> 0 | G183: 0 | H183: 0 | I183: 0
A184: 171 | B184: HV Medium Non-Domestic | C184: =+[3]Input!B326 -> 0 | D184: =+[4]Input!$B$346 -> 0 | E184: =+[9]Input!$B$346 -> 0 | F184: =+E184 -> 0 | G184: 0 | H184: 0 | I184: 0
A185: 172 | B185: AMBER
A186: 173 | B186: Domestic Two Rate | C186: =+[3]Input!C322 -> 0 | D186: =+[4]Input!$C$342 -> 0 | E186: =+[9]Input!$C$342 -> 0 | F186: =+E186 -> 0 | G186: 0 | H186: 0 | I186: 0
A187: 174 | B187: Small Non Domestic Two Rate | C187: =+[3]Input!C323 -> 0 | D187: =+[4]Input!$C$343 -> 0 | E187: =+[9]Input!$C$343 -> 0 | F187: =+E187 -> 0 | G187: 0 | H187: 0 | I187: 0
A188: 175 | B188: LV Medium Non-Domestic | C188: =+[3]Input!C324 -> 0 | D188: =+[4]Input!$C$344 -> 0 | E188: =+[9]Input!$C$344 -> 0 | F188: =+E188 -> 0 | G188: 0 | H188: 0 | I188: 0
A189: 176 | B189: LV Sub Medium Non-Domestic | C189: =+[3]Input!C325 -> 0 | D189: =+[4]Input!$C$345 -> 0 | E189: =+[9]Input!$C$345 -> 0 | F189: =+E189 -> 0 | G189: 0 | H189: 0 | I189: 0
A190: 177 | B190: HV Medium Non-Domestic | C190: =+[3]Input!C326 -> 0 | D190: =+[4]Input!$C$346 -> 0 | E190: =+[9]Input!$C$346 -> 0 | F190: =+E190 -> 0 | G190: 0 | H190: 0 | I190: 0
A191: 178 | B191: GREEN
A192: 179 | B192: Domestic Two Rate | C192: =+[3]Input!D322 -> 1 | D192: =+[4]Input!$D$342 -> 1 | E192: =+[9]Input!$D$342 -> 1 | F192: =+E192 -> 1 | G192: 1 | H192: 1 | I192: 1
A193: 180 | B193: Small Non Domestic Two Rate | C193: =+[3]Input!D323 -> 1 | D193: =+[4]Input!$D$343 -> 1 | E193: =+[9]Input!$D$343 -> 1 | F193: =+E193 -> 1 | G193: 1 | H193: 1 | I193: 1
A194: 181 | B194: LV Medium Non-Domestic | C194: =+[3]Input!D324 -> 1 | D194: =+[4]Input!$D$344 -> 1 | E194: =+[9]Input!$D$344 -> 1 | F194: =+E194 -> 1 | G194: 1 | H194: 1 | I194: 1
A195: 182 | B195: LV Sub Medium Non-Domestic | C195: =+[3]Input!D325 -> 1 | D195: =+[4]Input!$D$345 -> 1 | E195: =+[9]Input!$D$345 -> 1 | F195: =+E195 -> 1 | G195: 1 | H195: 1 | I195: 1
A196: 183 | B196: HV Medium Non-Domestic | C196: =+[3]Input!D326 -> 1 | D196: =+[4]Input!$D$346 -> 1 | E196: =+[9]Input!$D$346 -> 1 | F196: =+E196 -> 1 | G196: 1 | H196: 1 | I196: 1
A197: 184 | B197: 1064. Average split of rate 1 units by special distribution time band
A198: 185 | B198: BLACK
A199: 186 | B199: NHH UMS category A | C199: =+[3]Input!B331 -> 0.02945205479 | D199: =+[4]Input!$B$351 -> 0.02933789954 | E199: =+[9]Input!$B$351 -> 0.02919723283 | F199: =+E199 -> 0.02919723283 | G199: 0.02919723283 | H199: 0.02919723283 | I199: 0.02919723283
A200: 187 | B200: NHH UMS category B | C200: =+[3]Input!B332 -> 0.05005787061 | D200: =+[4]Input!$B$352 -> 0.04976617334 | E200: =+[9]Input!$B$352 -> 0.04942570492 | F200: =+E200 -> 0.04942570492 | G200: 0.04942570492 | H200: 0.04942570492 | I200: 0.04942570492
A201: 188 | B201: NHH UMS category C | C201: =+[3]Input!B333 -> 0.09587863667 | D201: =+[4]Input!$B$353 -> 0.09548350592 | E201: =+[9]Input!$B$353 -> 0.09518495847 | F201: =+E201 -> 0.09518495847 | G201: 0.09518495847 | H201: 0.09518495847 | I201: 0.09518495847
A202: 189 | B202: NHH UMS category D | C202: =+[3]Input!B334 -> 0.01671247611 | D202: =+[4]Input!$B$354 -> 0.01666273881 | E202: =+[9]Input!$B$354 -> 0.0165446215 | F202: =+E202 -> 0.0165446215 | G202: 0.0165446215 | H202: 0.0165446215 | I202: 0.0165446215
A203: 190 | B203: YELLOW
A204: 191 | B204: NHH UMS category A | C204: =+[3]Input!C331 -> 0.3488013699 | D204: =+[4]Input!$C$351 -> 0.3489155251 | E204: =+[9]Input!$C$351 -> 0.3491480982 | F204: =+E204 -> 0.3491480982 | G204: 0.3491480982 | H204: 0.3491480982 | I204: 0.3491480982
A205: 192 | B205: NHH UMS category B | C205: =+[3]Input!C332 -> 0.08381804923 | D205: =+[4]Input!$C$352 -> 0.0841097465 | E205: =+[9]Input!$C$352 -> 0.08382082327 | F205: =+E205 -> 0.08382082327 | G205: 0.08382082327 | H205: 0.08382082327 | I205: 0.08382082327
... 66 more rows

Sheet Table 1
A1: Schedule 15 table 1
A2: ="Company Name: "&'CDCM Forecast Data'!E3 -> Company Name: Electricity North West
A3: Date:
A5: Description | B5: Licence Term | C5: CRC | K5: Assumptions
A6: Regulatory Year | D6: t-2 | E6: t-1 | F6: t | G6: t+1 | H6: t+2 | I6: t+3 | J6: t+4
A7: Regulatory Year | D7: ='CDCM Forecast Data'!C11 -> 2017/18 | E7: ='CDCM Forecast Data'!D11 -> 2018/19 | F7: ='CDCM Forecast Data'!E11 -> 2019/20 | G7: ='CDCM Forecast Data'!F11 -> 2020/21 | H7: ='CDCM Forecast Data'!G11 -> 2021/22 | I7: ='CDCM Forecast Data'!H11 -> 2022/23 | J7: ='CDCM Forecast Data'!I11 -> 2023/24
A8: Base Demand Revenue Before Inflation (A1) | B8: PU | C8: CRC2A | D8: =+'[2]Table 1'!F8 -> 360.9 | E8: =+'[2]Table 1'!G8 -> 357.3 | F8: =+'[2]Table 1'!H8 -> 353.8 | G8: =+'[2]Table 1'!I8 -> 350.2 | H8: =+'[2]Table 1'!J8 -> 350.2 | I8: =+'[2]Table 1'!K8 -> 350.2 | J8: =+I8 -> 350.2
A9: Annual Iteration adjustment before inflation (A2) | B9: MOD | C9: CRC2A | D9: =+'[2]Table 1'!F9 -> -4.913821913 | E9: =+'[2]Table 1'!G9 -> -11.5968608 | F9: =+'[2]Table 1'!H9 -> -9.30326903 | G9: =+'[2]Table 1'!I9 -> -5.663266279 | H9: =+'[2]Table 1'!J9 -> -9.159575259 | I9: =+'[2]Table 1'!K9 -> -11.30280895 | J9: =+I9 -> -11.30280895
A10: RPI True-up before inflation (A3) | B10: TRU | C10: CRC2A | D10: =+'[2]Table 1'!F10 -> -8.205079988 | E10: =+'[2]Table 1'!G10 -> -1.48259751 | F10: =+'[2]Table 1'!H10 -> 0.1674334252 | G10: =+'[2]Table 1'!I10 -> -0.0744471125 | H10: =+'[2]Table 1'!J10 -> -0.004615962924 | I10: =+'[2]Table 1'!K10 -> -0.02264506375 | J10: -0.02264506375
A11: Price index adjustment (RPI index) (A4) | B11: RPIF | C11: CRC2A | D11: =+'[2]Table 1'!$F$11 -> 1.121 | E11: =+'[2]Table 1'!$G$11 -> 1.159 | F11: =+'[2]Table 1'!$H$11 -> 1.195 | G11: =(1+'CDCM Forecast Data'!F13)*F11 -> 1.233 | H11: =(1+'CDCM Forecast Data'!G13)*G11 -> 1.271 | I11: =(1+'CDCM Forecast Data'!H13)*H11 -> 1.309 | J11: =(1+'CDCM Forecast Data'!I13)*I11 -> 1.348136113
A12: Base Demand Revenue (A): [A = (A1 + A2 + A3) * A4] | B12: BR | C12: CRC2A | D12: =(D8+D9+D10)*D11 -> 389.862611 | E12: =(E8+E9+E10)*E11 -> 398.9516078 | F12: 411.8736765 | G12: 424.7219994 | H12: 433.456513 | I12: 443.5867807 | J12: 456.8490133 | K12: A = (A1 + A2 + A3) * A4
A13: Pass-Through Licence Fees (B1) | B13: LF | C13: CRC2B | D13: =+'[2]Table 1'!F13 -> 0.3217861235 | E13: =+'[2]Table 1'!G13 -> 0.03649522854 | F13: =+'[2]Table 1'!H13 -> 0.1810488039 | G13: =+'[2]Table 1'!I13 -> 0.2242223727 | H13: =+'[2]Table 1'!J13 -> 0.2804491274 | I13: =+'[2]Table 1'!K13 -> 0.3212014498 | J13: =+I13 -> 0.3212014498
A14: Pass-Through Business Rates (B2) | B14: RB | C14: CRC2B | D14: =+'[2]Table 1'!F14 -> -1.554845619 | E14: =+'[2]Table 1'!G14 -> -2.354351708 | F14: =+'[2]Table 1'!H14 -> -3.957648814 | G14: =+'[2]Table 1'!I14 -> -3.805908432 | H14: =+'[2]Table 1'!J14 -> -3.582361447 | I14: =+'[2]Table 1'!K14 -> -3.527384775 | J14: -3.527384775
A15: Pass-Through Transmission Connection Point Charges (B3) | B15: TB | C15: CRC2B | D15: =+'[2]Table 1'!F15 -> 0.5527235309 | E15: =+'[2]Table 1'!G15 -> -0.4403002844 | F15: =+'[2]Table 1'!H15 -> 0.488754536 | G15: =+'[2]Table 1'!I15 -> 1.280055003 | H15: =+'[2]Table 1'!J15 -> 1.040911959 | I15: =+'[2]Table 1'!K15 -> 1.934390226 | J15: 1.934390226
A16: Pass-through Smart Meter Communication Licence Costs (B4) | B16: SMC | C16: CRC2B | D16: =+'[2]Table 1'!F16 -> -0.1933507775 | E16: =+'[2]Table 1'!G16 -> 0.5256578578 | F16: =+'[2]Table 1'!H16 -> 0.4929344078 | G16: =+'[2]Table 1'!I16 -> 0.5468979347 | H16: =+'[2]Table 1'!J16 -> 0.6143850512 | I16: =+'[2]Table 1'!K16 -> 0.6659586911 | J16: 0.6659586911
A17: Pass-through Smart Meter IT Costs (B5) | B17: SMIT | C17: CRC2B | D17: =+'[2]Table 1'!F17 -> -0.01563126946 | E17: =+'[2]Table 1'!G17 -> 1.385476774 | F17: =+'[2]Table 1'!H17 -> 1.418703132 | G17: =+'[2]Table 1'!I17 -> -0.3782955425 | H17: =+'[2]Table 1'!J17 -> -0.1046693142 | I17: =+'[2]Table 1'!K17 -> 0.04381203887 | J17: 0.04381203887
A18: Pass-through Ring Fence Costs | B18: RF | C18: CRC2B | D18: =+'[2]Table 1'!F18 -> 0 | E18: =+'[2]Table 1'!G18 -> 0 | F18: =+'[2]Table 1'!H18 -> 0 | G18: =+'[2]Table 1'!I18 -> 0 | H18: =+'[2]Table 1'!J18 -> 0 | I18: =+'[2]Table 1'!K18 -> 0 | J18: 0
A19: Pass-Through Others (B5) | B19: HB, SEC, UNC | C19: CRC2B | D19: =+'[2]Table 1'!F19 -> 0 | E19: =+'[2]Table 1'!G19 -> 0 | F19: =+'[2]Table 1'!H19 -> 0 | G19: =+'[2]Table 1'!I19 -> 0 | H19: =+'[2]Table 1'!J19 -> 0 | I19: =+'[2]Table 1'!K19 -> 0 | J19: 0
A20: Allowed Pass-Through Items (B): [B = B1 + B2 + B3 +B4 + B5 + B6 + B7] | B20: PT | C20: CRC2B | D20: =SUM(D13:D19) -> -0.8893180115 | E20: =SUM(E13:E19) -> -0.847022132 | F20: -1.376207934 | G20: -2.133028664 | H20: -1.751284624 | I20: -0.5620223695 | J20: -0.5620223695 | K20: B = B1 + B2 + B3 +B4 + B5 + B6 + B7
A21: Broad Measure of Customer Service incentive (C1) | B21: BM | C21: CRC2C | D21: =+'[2]Table 1'!F21 -> -0.2193650045 | E21: =+'[2]Table 1'!G21 -> 0.7206559983 | F21: =+'[2]Table 1'!H21 -> 3.047073342 | G21: =+'[2]Table 1'!I21 -> 4.364707082 | H21: =+'[2]Table 1'!J21 -> 4.713214109 | I21: =+'[2]Table 1'!K21 -> 4.999713478 | J21: =+I21 -> 4.999713478
A22: Quality of Service incentive (C2) | B22: IQ | C22: CRC2D | D22: =+'[2]Table 1'!F22 -> 15.39361908 | E22: =+'[2]Table 1'!G22 -> 14.72287326 | F22: =+'[2]Table 1'!H22 -> 15.27160164 | G22: =+'[2]Table 1'!I22 -> 14.60628833 | H22: =+'[2]Table 1'!J22 -> 13.31756303 | I22: =+'[2]Table 1'!K22 -> 12.18772646 | J22: 12.18772646
A23: Connections Engagement incentive (C3) | B23: ICE | C23: CRC2E | D23: =+'[2]Table 1'!F23 -> 0 | E23: =+'[2]Table 1'!G23 -> 0 | F23: =+'[2]Table 1'!H23 -> 0 | G23: =+'[2]Table 1'!I23 -> 0 | H23: =+'[2]Table 1'!J23 -> 0 | I23: =+'[2]Table 1'!K23 -> 0 | J23: 0
A24: Time to Connect incentive (C4) | B24: TTC | C24: CRC2F | D24: =+'[2]Table 1'!F24 -> 1.272380096 | E24: =+'[2]Table 1'!G24 -> 1.299644018 | F24: =+'[2]Table 1'!H24 -> 1.294193094 | G24: =+'[2]Table 1'!I24 -> 1.390528611 | H24: =+'[2]Table 1'!J24 -> 0.7870294167 | I24: =+'[2]Table 1'!K24 -> 0.8120176007 | J24: 0.8120176007
A25: Losses Discretionary Reward incentive (C5) | B25: LDR | C25: CRC2G | D25: =+'[2]Table 1'!F25 -> 0.779095 | E25: =+'[2]Table 1'!G25 -> 0 | F25: =+'[2]Table 1'!H25 -> 0 | G25: =+'[2]Table 1'!I25 -> 0 | H25: =+'[2]Table 1'!J25 -> 0 | I25: =+'[2]Table 1'!K25 -> 0 | J25: 0
A26: Network Innovation Allowance (C6) | B26: NIA | C26: CRC2H | D26: =+'[2]Table 1'!F26 -> 2.729038277 | E26: =+'[2]Table 1'!G26 -> 2.792661255 | F26: =+'[2]Table 1'!H26 -> 2.883115735 | G26: =+'[2]Table 1'!I26 -> 2.973053996 | H26: =+'[2]Table 1'!J26 -> 3.034195591 | I26: =+'[2]Table 1'!K26 -> 3.105107465 | J26: 3.105107465
A27: Low Carbon Network Fund - Tier 1 unrecoverable (C7) | B27: LCN1 | C27: CRC2J | D27: =+'[2]Table 1'!F27 -> 0 | E27: =+'[2]Table 1'!G27 -> 0 | F27: =+'[2]Table 1'!H27 -> 0 | G27: =+'[2]Table 1'!I27 -> 0 | H27: =+'[2]Table 1'!J27 -> 0 | I27: =+'[2]Table 1'!K27 -> 0 | J27: 0
A28: Low Carbon Network Fund - Tier 2 & Discretionary Funding (C7) | B28: LCN2 | C28: CRC2J | D28: =+'[2]Table 1'!F28 -> 0.25213538 | E28: =+'[2]Table 1'!G28 -> 0 | F28: =+'[2]Table 1'!H28 -> 0 | G28: =+'[2]Table 1'!I28 -> 0 | H28: =+'[2]Table 1'!J28 -> 0 | I28: =+'[2]Table 1'!K28 -> 0 | J28: 0
A29: Connection Guaranteed Standards Systems & Processes penalty (C8) | B29: AUM, CGSRA | C29: CRC2K-L | D29: =+'[2]Table 1'!F29 -> 0 | E29: =+'[2]Table 1'!G29 -> 0 | F29: =+'[2]Table 1'!H29 -> 0 | G29: =+'[2]Table 1'!I29 -> 0 | H29: =+'[2]Table 1'!J29 -> 0 | I29: =+'[2]Table 1'!K29 -> 0 | J29: 0
A30: Residual Losses and Growth Incentive - Losses (C9) | B30: PPL | C30: CRC2M | D30: =+'[2]Table 1'!F30 -> 0 | E30: =+'[2]Table 1'!G30 -> 0 | F30: =+'[2]Table 1'!H30 -> 0 | G30: =+'[2]Table 1'!I30 -> 0 | H30: =+'[2]Table 1'!J30 -> 0 | I30: =+'[2]Table 1'!K30 -> 0 | J30: 0
A31: Residual Losses and Growth Incentive - Growth (C9) | B31: GTA | C31: CRC2M | D31: =+'[2]Table 1'!F31 -> 0 | E31: =+'[2]Table 1'!G31 -> 0 | F31: =+'[2]Table 1'!H31 -> 0 | G31: =+'[2]Table 1'!I31 -> 0 | H31: =+'[2]Table 1'!J31 -> 0 | I31: =+'[2]Table 1'!K31 -> 0 | J31: 0
A32: Incentive Revenue and Other Adjustments (C): [C = C1 + C2 + C3 + C4 + C5 + C6 + C7 + C8 + C9] | D32: =SUM(D21:D31) -> 20.20690283 | E32: 19.53583453 | F32: 22.49598381 | G32: 23.33457802 | H32: 21.85200215 | I32: 21.10456501 | J32: 21.10456501 | K32: C = C1 + C2 + C3 + C4 + C5 + C6 + C7 + C8 + C9
A33: Correction Factor (D) | B33: -K | C33: CRC2A | D33: =+'[2]Table 1'!F33 -> -11.0891504 | E33: =+'[2]Table 1'!G33 -> -4.155908064 | F33: =+'[2]Table 1'!H33 -> 6.197323728 | G33: =+'[2]Table 1'!I33 -> 0.3681721856 | H33: =+'[2]Table 1'!J33 -> 0 | I33: =+'[2]Table 1'!K33 -> 0 | J33: =+I33 -> 0
A34: Total allowed Revenue (E): [E = A + B + C + D] | B34: AR | C34: CRC2A | D34: =D12+D20+D32+D33 -> 398.0910454 | E34: =E12+E20+E32+E33 -> 413.4845122 | F34: 439.1907761 | G34: 446.2917209 | H34: 453.5572305 | I34: 464.1293233 | J34: 477.391556 | K34: E = A + B + C + D
A35: Other 1. Excluded services - Top-up, standby, and enhanced system security (F1) (see note 1) | B35: DRS4 | C35: CRC5C | D35: =+'[2]Table 1'!F35 -> 0 | E35: =+'[2]Table 1'!G35 -> 0 | F35: =+'[2]Table 1'!H35 -> 0 | G35: =+'[2]Table 1'!I35 -> 0 | H35: =+'[2]Table 1'!J35 -> 0 | I35: =+'[2]Table 1'!K35 -> 0 | J35: =+I35 -> 0
A36: Other 2. Excluded services - Revenue protection services (F2) (see note 1) | B36: DRS5 | C36: CRC5C | D36: =+'[2]Table 1'!F36 -> 0 | E36: =+'[2]Table 1'!G36 -> 0 | F36: =+'[2]Table 1'!H36 -> 0 | G36: =+'[2]Table 1'!I36 -> 0 | H36: =+'[2]Table 1'!J36 -> 0 | I36: =+'[2]Table 1'!K36 -> 0 | J36: 0
A37: Other 3. Excluded services - Miscellaneous (F3) (see note 1) | B37: DRS9 | C37: CRC5C | D37: =+'[2]Table 1'!F37 -> 0 | E37: =+'[2]Table 1'!G37 -> 0 | F37: =+'[2]Table 1'!H37 -> 0 | G37: =+'[2]Table 1'!I37 -> 0 | H37: =+'[2]Table 1'!J37 -> 0 | I37: =+'[2]Table 1'!K37 -> 0 | J37: 0
A38: Other 4. - blank or if required please provide description (F4) | D38: =+'[2]Table 1'!F38 -> 0 | E38: =+'[2]Table 1'!G38 -> 0 | F38: =+'[2]Table 1'!H38 -> 0 | G38: =+'[2]Table 1'!I38 -> 0 | H38: =+'[2]Table 1'!J38 -> 0 | I38: =+'[2]Table 1'!K38 -> 0 | J38: 0
A39: Other 5. - blank or if required please provide description (F5) | D39: =+'[2]Table 1'!F39 -> 0 | E39: =+'[2]Table 1'!G39 -> 0 | F39: =+'[2]Table 1'!H39 -> 0 | G39: =+'[2]Table 1'!I39 -> 0 | H39: =+'[2]Table 1'!J39 -> 0 | I39: =+'[2]Table 1'!K39 -> 0 | J39: 0
A40: Total Other Revenue to be recovered by Use of System Charges (F): [F = F1 + F2 + F3 + F4 +F5] | D40: =SUM(D35:D39) -> 0 | E40: =SUM(E35:E39) -> 0 | F40: 0 | G40: 0 | H40: 0 | I40: 0 | J40: 0 | K40: F = F1 + F2 + F3 + F4 +F5
A41: Total Revenue for Use of System Charges (G): [G=E + F] | D41: =D34+D40 -> 398.0910454 | E41: =E34+E40 -> 413.4845122 | F41: 439.1907761 | G41: 446.2917209 | H41: 453.5572305 | I41: 464.1293233 | J41: 477.391556 | K41: G = E + F
A42: 1. Revenue raised outside CDCM - EDCM and Certain Interconnector Revenue (H1) | D42: =+'[2]Table 1'!F42 -> 14.57289988 | E42: =+'[2]Table 1'!G42 -> 18.94639867 | F42: =+[9]Input!$E$46/1000000 -> 21.39699067 | G42: =+'[2]Table 1'!I42 -> 21.51628981 | H42: =+'[2]Table 1'!J42 -> 21.86656924 | I42: =+'[2]Table 1'!K42 -> 22.37626324 | J42: =+I42 -> 22.37626324
A43: 2. Revenue raised outside CDCM - Voluntary under-recovery (H2) | D43: =+'[2]Table 1'!F43 -> 0 | E43: =+'[2]Table 1'!G43 -> 0 | F43: =+'[2]Table 1'!H43 -> 0 | G43: =+'[2]Table 1'!I43 -> 0 | H43: =+'[2]Table 1'!J43 -> 0 | I43: =+'[2]Table 1'!K43 -> 0 | J43: 0
A44: 3. Revenue raised outside CDCM - blank or if required please provide description (H3) | D44: =+'[2]Table 1'!F44 -> 0 | E44: =+'[2]Table 1'!G44 -> 0 | F44: =+'[2]Table 1'!H44 -> 0 | G44: =+'[2]Table 1'!I44 -> 0 | H44: =+'[2]Table 1'!J44 -> 0 | I44: =+'[2]Table 1'!K44 -> 0 | J44: 0
A45: 4. Revenue raised outside CDCM - blank or if required please provide description (H4) | D45: =+'[2]Table 1'!F45 -> 0 | E45: =+'[2]Table 1'!G45 -> 0 | F45: =+'[2]Table 1'!H45 -> 0 | G45: =+'[2]Table 1'!I45 -> 0 | H45: =+'[2]Table 1'!J45 -> 0 | I45: =+'[2]Table 1'!K45 -> 0 | J45: 0
A46: Total Revenue to be raised outside the CDCM (H): [H = H1 + H2 + H3 + H4] | D46: =D42+D43+D44+D45 -> 14.57289988 | E46: =E42+E43+E44+E45 -> 18.94639867 | F46: 21.39699067 | G46: 21.51628981 | H46: 21.86656924 | I46: 22.37626324 | J46: 22.37626324 | K46: H = H1 + H2 + H3 + H4
A47: Latest forecast of CDCM Revenue (I): [I = G - H] | D47: =D41-D46 -> 383.5181455 | E47: 394.5381135 | F47: 417.7937854 | G47: 424.7754311 | H47: 431.6906612 | I47: 441.7530601 | J47: 455.0152927 | K47: I = G - H
A48: CDCM Revenue Used in Charging Model [Equal to I] | D48: =D47 -> 383.5181455 | E48: =E47 -> 394.5381135 | F48: 417.7937854 | G48: 424.7754311 | H48: 431.6906612 | I48: 441.7530601 | J48: 455.0152927 | K48: Equal to I
A49: Final Collected Revenue Forecast (J) | D49: =+'[2]Table 1'!F49 -> 392.1050642 | E49: =+'[2]Table 1'!G49 -> 413.1288955 | F49: =+'[2]Table 1'!H49 -> 439.1907761 | G49: =+'[2]Table 1'!I49 -> 446.2917209 | H49: =+'[2]Table 1'!J49 -> 453.5572305 | I49: =+'[2]Table 1'!K49 -> 464.1293233 | J49: =+I49 -> 464.1293233
A50: Forecast Over / (Under) Recovery [being (J - F - E + H2] | D50: =D49-D40-D34+D43 -> -5.98598118 | E50: -0.3556166937 | F50: 0 | G50: 0 | H50: 0 | I50: -5.684341886e-14 | J50: -13.26223263 | K50: J - F - E + H2
A51: Forecast overall percentage change to Allowed Revenue (K) | E51: =E34/D34-1 -> 0.03866820656 | F51: =F34/E34-1 -> 0.06216983503 | G51: 0.01616824683 | H51: 0.01627973186 | I51: 0.02330928084 | J51: 0.0285744338
A52: Overall % change to Use of System Charges effective 1st April of Regulatory Year to balance (L) | E52: =E49/D49-1 -> 0.05361785189 | F52: 0.06308413884 | G52: 0.01616824683 | H52: 0.01627973186 | I52: 0.02330928084 | J52: 0
A53: Note 1: Cost categories associated with excluded services should only be populated if the Company recovers the costs of providing these services from Use of System Charges

Sheet Smoothed Input Details
A1: DNO | B1: =+'CDCM Forecast Data'!E3 -> Electricity North West
A2: Charges for (year Y) | B2: =+'CDCM Forecast Data'!E11 -> 2019/20
A4: Year charges are set (year Y - 2) | B4: =+'CDCM Forecast Data'!C11 -> 2017/18
A6: Year to which input data relates
A7: Year Y - 3 | B7: 2016/17
A8: Year Y - 4 | B8: 2015/16
A9: Year Y - 5 | B9: 2014/15
A11: 1041 - load profile for demand users - coincidence factors
A12: Charges for year Y are set in Y-2 using historical data for the previous three years
B14: Y - 5 | C14: Y - 4 | D14: Y - 3 | E14: Information to be used calculating tariffs in year t
A15: Domestic Unrestricted | B15: =+'[5]Domestic Unrestricted'!B6 -> 0.9341204074 | C15: =+'[5]Domestic Unrestricted'!B7 -> 0.9101422754 | D15: =+'[5]Domestic Unrestricted'!B8 -> 0.8778626909 | E15: =AVERAGE(B15:D15) -> 0.9073751246
A16: Domestic Two Rate | B16: =+'[5]Domestic Two Rate'!B6 -> 0.3088002557 | C16: =+'[5]Domestic Two Rate'!B7 -> 0.3040983477 | D16: =+'[5]Domestic Two Rate'!B8 -> 0.3225244254 | E16: =AVERAGE(B16:D16) -> 0.3118076763
A17: Domestic Off Peak (related MPAN)
A18: Small Non Domestic Unrestricted | B18: =+'[5]Small Non Dom Unrestricted'!B6 -> 0.6436411028 | C18: =+'[5]Small Non Dom Unrestricted'!B7 -> 0.6545450009 | D18: =+'[5]Small Non Dom Unrestricted'!B8 -> 0.6313742509 | E18: =AVERAGE(B18:D18) -> 0.6431867848
A19: Small Non Domestic Two Rate | B19: =+'[5]Small Non Dom Two Rate'!B6 -> 0.7180284469 | C19: =+'[5]Small Non Dom Two Rate'!B7 -> 0.7923928576 | D19: =+'[5]Small Non Dom Two Rate'!B8 -> 0.8157626619 | E19: =AVERAGE(B19:D19) -> 0.7753946555
A20: Small Non Domestic Off Peak (related MPAN)
A21: LV Medium Non-Domestic | B21: =+'[5]LV Med Non Dom'!B6 -> 0.8012904266 | C21: =+'[5]LV Med Non Dom'!B7 -> 0.8014794991 | D21: =+'[5]LV Med Non Dom'!B8 -> 0.5608444028 | E21: =AVERAGE(B21:D21) -> 0.7212047762
A22: LV Sub Medium Non-Domestic | B22: =+'[5]LV Sub Med Non Dom'!B6 -> 0.706468634 | C22: =+'[5]LV Sub Med Non Dom'!B7 -> 0.8117298037 | D22: =+'[5]LV Sub Med Non Dom'!B8 -> 0.5767012687 | E22: 0.6982999022
A23: HV Medium Non-Domestic | B23: =+'[5]HV Med Non Dom'!B6 -> 0.7647058824 | C23: =+'[5]HV Med Non Dom'!B7 -> 0.7600364964 | D23: =+'[5]HV Med Non Dom'!B8 -> 0.7858796296 | E23: 0.7702073361
A24: LV Network Domestic | B24: =+B15 -> 0.9341204074 | C24: =+C15 -> 0.9101422754 | D24: 0.8778626909 | E24: 0.9073751246
A25: LV Network Non-Domestic Non-CT | B25: =+B18 -> 0.6436411028 | C25: =+C18 -> 0.6545450009 | D25: 0.6313742509 | E25: 0.6431867848
A26: LV HH Metered | B26: =+'[5]LV HH Metered'!B6 -> 0.7994686789 | C26: =+'[5]LV HH Metered'!B7 -> 0.7785706838 | D26: =+'[5]LV HH Metered'!B8 -> 0.7627478686 | E26: 0.7802624104
A27: LV Sub HH Metered | B27: =+'[5]LV Sub HH Metered'!B6 -> 0.7601203138 | C27: =+'[5]LV Sub HH Metered'!B7 -> 0.7585766168 | D27: =+'[5]LV Sub HH Metered'!B8 -> 0.7721958926 | E27: 0.7636309411
A28: HV HH Metered | B28: =+'[5]HV HH Metered'!B6 -> 0.845117955 | C28: =+'[5]HV HH Metered'!B7 -> 0.829037719 | D28: =+'[5]HV HH Metered'!B8 -> 0.8334533331 | E28: 0.835869669
A29: NHH UMS category A | B29: =+'[5]NHH UMS - CAT A'!B6 -> 1 | C29: =+'[5]NHH UMS - CAT A'!B7 -> 1 | D29: =+'[5]NHH UMS - CAT A'!B8 -> 1 | E29: 1
A30: NHH UMS category B | B30: =+'[5]NHH UMS - CAT B'!B6 -> 1 | C30: =+'[5]NHH UMS - CAT B'!B7 -> 1 | D30: =+'[5]NHH UMS - CAT B'!B8 -> 1 | E30: 1
A31: NHH UMS category C | B31: =+'[5]NHH UMS - CAT C'!B6 -> 1 | C31: =+'[5]NHH UMS - CAT C'!B7 -> 1 | D31: =+'[5]NHH UMS - CAT C'!B8 -> 1 | E31: 1
A32: NHH UMS category D | B32: =+'[5]NHH UMS Cat D'!B6 -> 0 | C32: =+'[5]NHH UMS Cat D'!B7 -> 0 | D32: =+'[5]NHH UMS Cat D'!B8 -> 0 | E32: 0
A33: LV UMS (Pseudo HH Metered) | B33: =+'[5]LV UMS (Pseudo HH Metered)'!B6 -> 0.9728240047 | C33: =+'[5]LV UMS (Pseudo HH Metered)'!B7 -> 0.9282718385 | D33: =+'[5]LV UMS (Pseudo HH Metered)'!B8 -> 0.9601826916 | E33: 0.9537595116
A37: 1041 - load profile for demand users - load factors
A38: Charges for year Y are set in Y-2 using historical data for the previous three years
B41: Y - 5 | C41: Y - 4 | D41: Y - 3 | E41: Information to be used calculating tariffs in year t
A42: Domestic Unrestricted | B42: =+'[5]Domestic Unrestricted'!$E$6 -> 0.4499616783 | C42: =+'[5]Domestic Unrestricted'!$E$7 -> 0.4412856291 | D42: =+'[5]Domestic Unrestricted'!$E$8 -> 0.4469810983 | E42: =AVERAGE(B42:D42) -> 0.4460761352
A43: Domestic Two Rate | B43: =+'[5]Domestic Two Rate'!$E$6 -> 0.2436846281 | C43: =+'[5]Domestic Two Rate'!$E$7 -> 0.239648743 | D43: =+'[5]Domestic Two Rate'!$E$8 -> 0.2551347405 | E43: 0.2461560372
A44: Domestic Off Peak (related MPAN) | B44: =+'[5]Domestic Off Peak (related MPAN'!$E$6 -> 0.1617840863 | C44: =+'[5]Domestic Off Peak (related MPAN'!$E$7 -> 0.1647185869 | D44: =+'[5]Domestic Off Peak (related MPAN'!$E$8 -> 0.1718650282 | E44: 0.1661225671
A45: Small Non Domestic Unrestricted | B45: =+'[5]Small Non Dom Unrestricted'!$E$6 -> 0.3895979838 | C45: =+'[5]Small Non Dom Unrestricted'!$E$7 -> 0.3968993861 | D45: =+'[5]Small Non Dom Unrestricted'!$E$8 -> 0.3935026952 | E45: 0.393333355
A46: Small Non Domestic Two Rate | B46: =+'[5]Small Non Dom Two Rate'!$E$6 -> 0.5557085723 | C46: =+'[5]Small Non Dom Two Rate'!$E$7 -> 0.5988464319 | D46: =+'[5]Small Non Dom Two Rate'!$E$8 -> 0.6027438289 | E46: 0.5857662777
A47: Small Non Domestic Off Peak (related MPAN) | B47: =+'[5]Small non Dom Off Peak (related'!$E$6 -> 0.1594181357 | C47: =+'[5]Small non Dom Off Peak (related'!$E$7 -> 0.1690721595 | D47: =+'[5]Small non Dom Off Peak (related'!$E$8 -> 0.1631641138 | E47: 0.163884803
A48: LV Medium Non-Domestic | B48: =+'[5]LV Med Non Dom'!$E$6 -> 0.547015794 | C48: =+'[5]LV Med Non Dom'!$E$7 -> 0.5445198067 | D48: =+'[5]LV Med Non Dom'!$E$8 -> 0.4422075982 | E48: 0.511247733
A49: LV Sub Medium Non-Domestic | B49: =+'[5]LV Sub Med Non Dom'!$E$6 -> 0.4884931641 | C49: =+'[5]LV Sub Med Non Dom'!$E$7 -> 0.5427928767 | D49: =+'[5]LV Sub Med Non Dom'!$E$8 -> 0.4575864361 | E49: 0.4962908256
A50: HV Medium Non-Domestic | B50: =+'[5]HV Med Non Dom'!$E$6 -> 0.5372189601 | C50: =+'[5]HV Med Non Dom'!$E$7 -> 0.5026145538 | D50: =+'[5]HV Med Non Dom'!$E$8 -> 0.5043885031 | E50: 0.5147406723
A51: LV Network Domestic | B51: =+B42 -> 0.4499616783 | C51: =+C42 -> 0.4412856291 | D51: =+D42 -> 0.4469810983 | E51: =AVERAGE(B51:D51) -> 0.4460761352
A52: LV Network Non-Domestic Non-CT | B52: =+B45 -> 0.3895979838 | C52: =+C45 -> 0.3968993861 | D52: =+D45 -> 0.3935026952 | E52: 0.393333355
A53: LV HH Metered | B53: =+'[5]LV HH Metered'!$E$6 -> 0.5555338865 | C53: =+'[5]LV HH Metered'!$E$7 -> 0.5473075618 | D53: =+'[5]LV HH Metered'!$E$8 -> 0.5075116896 | E53: 0.5367843793
A54: LV Sub HH Metered | B54: =+'[5]LV Sub HH Metered'!$E$6 -> 0.5539762064 | C54: =+'[5]LV Sub HH Metered'!$E$7 -> 0.5635280463 | D54: =+'[5]LV Sub HH Metered'!$E$8 -> 0.5636457169 | E54: 0.5603833232
A55: HV HH Metered | B55: =+'[5]HV HH Metered'!$E$6 -> 0.7082917123 | C55: =+'[5]HV HH Metered'!$E$7 -> 0.7053726497 | D55: =+'[5]HV HH Metered'!$E$8 -> 0.7080658051 | E55: 0.7072433891
A56: NHH UMS category A | B56: =+'[5]NHH UMS - CAT A'!$E$6 -> 1 | C56: =+'[5]NHH UMS - CAT A'!$E$7 -> 1 | D56: =+'[5]NHH UMS - CAT A'!$E$8 -> 1 | E56: 1
A57: NHH UMS category B | B57: =+'[5]NHH UMS - CAT B'!$E$6 -> 0.4731662785 | C57: =+'[5]NHH UMS - CAT B'!$E$7 -> 0.47305699 | D57: =+'[5]NHH UMS - CAT B'!$E$8 -> 0.4731168607 | E57: 0.4731133764
A58: NHH UMS category C | B58: =+'[5]NHH UMS - CAT C'!$E$6 -> 0.2580409703 | C58: =+'[5]NHH UMS - CAT C'!$E$7 -> 0.2579396175 | D58: =+'[5]NHH UMS - CAT C'!$E$8 -> 0.2574701941 | E58: 0.2578169273
A59: NHH UMS category D | B59: =+'[5]NHH UMS Cat D'!$E$6 -> 0.553746484 | C59: =+'[5]NHH UMS Cat D'!$E$7 -> 0.5538221767 | D59: =+'[5]NHH UMS Cat D'!$E$8 -> 0.5538018265 | E59: 0.5537901624
A60: LV UMS (Pseudo HH Metered) | B60: =+'[5]LV UMS (Pseudo HH Metered)'!$E$6 -> 0.4708523333 | C60: =+'[5]LV UMS (Pseudo HH Metered)'!$E$7 -> 0.4544480918 | D60: =+'[5]LV UMS (Pseudo HH Metered)'!$E$8 -> 0.4610673204 | E60: 0.4621225818
A64: 1061 - Average split of rate 1 units by distribution time band
A65: Charges for year Y are set in Y-2 using historical data for the previous three years
B68: Y - 5 | E68: Y - 4 | H68: Y - 3 | K68: Information to be used calculating tariffs in year t
B69: Red | C69: Amber | D69: Green | E69: Red | F69: Amber | G69: Green | H69: Red | I69: Amber | J69: Green | K69: Red | L69: Amber | M69: Green
A70: Domestic Unrestricted | B70: =+[6]Summary!H2 -> 0.1268402106 | C70: =+[6]Summary!I2 -> 0.3329925555 | D70: =+[6]Summary!J2 -> 0.5401672339 | E70: =+[6]Summary!K2 -> 0.1264882133 | F70: =+[6]Summary!L2 -> 0.3330511264 | G70: =+[6]Summary!M2 -> 0.5404606603 | H70: =+[6]Summary!N2 -> 0.1250849077 | I70: =+[6]Summary!O2 -> 0.3313317516 | J70: =+[6]Summary!P2 -> 0.5435833407 | K70: =AVERAGE(B70,E70,H70) -> 0.1261377772 | L70: 0.3324584779 | M70: 0.541403745
A71: Domestic Two Rate | B71: =+[6]Summary!H3 -> 0.1376622475 | C71: =+[6]Summary!I3 -> 0.3547097392 | D71: =+[6]Summary!J3 -> 0.5076280133 | E71: =+[6]Summary!K3 -> 0.1386764538 | F71: =+[6]Summary!L3 -> 0.3565192036 | G71: =+[6]Summary!M3 -> 0.5048043427 | H71: =+[6]Summary!N3 -> 0.1383034685 | I71: =+[6]Summary!O3 -> 0.3576084814 | J71: =+[6]Summary!P3 -> 0.5040880501 | K71: =AVERAGE(B71,E71,H71) -> 0.1382140566 | L71: =AVERAGE(C71,F71,I71) -> 0.3562791414 | M71: =AVERAGE(D71,G71,J71) -> 0.505506802
A72: Domestic Off Peak (related MPAN) | B72: =+[6]Summary!H4 -> 0.005617558764 | C72: =+[6]Summary!I4 -> 0.0942605706 | D72: =+[6]Summary!J4 -> 0.9001218706 | E72: =+[6]Summary!K4 -> 0.005938644666 | F72: =+[6]Summary!L4 -> 0.09403699775 | G72: =+[6]Summary!M4 -> 0.9000243576 | H72: =+[6]Summary!N4 -> 0.005591957117 | I72: =+[6]Summary!O4 -> 0.09630808719 | J72: =+[6]Summary!P4 -> 0.8980999557 | K72: 0.005716053516 | L72: 0.09486855185 | M72: 0.8994153946
A73: Small Non Domestic Unrestricted | B73: =+[6]Summary!H5 -> 0.1091079245 | C73: =+[6]Summary!I5 -> 0.44319537 | D73: =+[6]Summary!J5 -> 0.4476967055 | E73: =+[6]Summary!K5 -> 0.1096762994 | F73: =+[6]Summary!L5 -> 0.4421981697 | G73: =+[6]Summary!M5 -> 0.4481255309 | H73: =+[6]Summary!N5 -> 0.1096933321 | I73: =+[6]Summary!O5 -> 0.4432518955 | J73: =+[6]Summary!P5 -> 0.4470547724 | K73: 0.1094925187 | L73: 0.4428818117 | M73: 0.4476256696
A74: Small Non Domestic Two Rate | B74: =+[6]Summary!H6 -> 0.1236401161 | C74: =+[6]Summary!I6 -> 0.462262235 | D74: =+[6]Summary!J6 -> 0.4140976489 | E74: =+[6]Summary!K6 -> 0.1249411597 | F74: =+[6]Summary!L6 -> 0.4590479705 | G74: =+[6]Summary!M6 -> 0.4160108699 | H74: =+[6]Summary!N6 -> 0.1261886154 | I74: =+[6]Summary!O6 -> 0.458221769 | J74: =+[6]Summary!P6 -> 0.4155896156 | K74: 0.1249232971 | L74: 0.4598439915 | M74: 0.4152327115
A75: Small Non Domestic Off Peak (related MPAN) | B75: =+[6]Summary!H7 -> 0.001681257743 | C75: =+[6]Summary!I7 -> 0.05125167235 | D75: =+[6]Summary!J7 -> 0.9470670699 | E75: =+[6]Summary!K7 -> 0.001796910026 | F75: =+[6]Summary!L7 -> 0.05438021255 | G75: =+[6]Summary!M7 -> 0.9438228774 | H75: =+[6]Summary!N7 -> 0.001793964673 | I75: =+[6]Summary!O7 -> 0.05249217678 | J75: =+[6]Summary!P7 -> 0.9457138585 | K75: 0.001757377481 | L75: 0.05270802056 | M75: 0.945534602
A76: LV Medium Non-Domestic | B76: =+[6]Summary!H8 -> 0.1354320856 | C76: =+[6]Summary!I8 -> 0.4814420062 | D76: =+[6]Summary!J8 -> 0.3831259082 | E76: =+[6]Summary!K8 -> 0.1355860943 | F76: =+[6]Summary!L8 -> 0.4810859357 | G76: =+[6]Summary!M8 -> 0.38332797 | H76: =+[6]Summary!N8 -> 0.135710655 | I76: =+[6]Summary!O8 -> 0.4802192913 | J76: =+[6]Summary!P8 -> 0.3840700537 | K76: 0.1355762783 | L76: 0.4809157444 | M76: 0.3835079773
A77: LV Sub Medium Non-Domestic | B77: =+[6]Summary!H9 -> 0.1332641811 | C77: =+[6]Summary!I9 -> 0.4823354261 | D77: =+[6]Summary!J9 -> 0.3844003928 | E77: =+[6]Summary!K9 -> 0.1346338753 | F77: =+[6]Summary!L9 -> 0.4794406367 | G77: =+[6]Summary!M9 -> 0.385925488 | H77: =+[6]Summary!N9 -> 0.1346822546 | I77: =+[6]Summary!O9 -> 0.4780536694 | J77: =+[6]Summary!P9 -> 0.387264076 | K77: 0.134193437 | L77: 0.4799432441 | M77: 0.3858633189
A78: HV Medium Non-Domestic | B78: =+[6]Summary!H10 -> 0.132778098 | C78: =+[6]Summary!I10 -> 0.4871588779 | D78: =+[6]Summary!J10 -> 0.3800630241 | E78: =+[6]Summary!K10 -> 0.1335231793 | F78: =+[6]Summary!L10 -> 0.4891652535 | G78: =+[6]Summary!M10 -> 0.3773115672 | H78: =+[6]Summary!N10 -> 0.1331377394 | I78: =+[6]Summary!O10 -> 0.484727916 | J78: =+[6]Summary!P10 -> 0.3821343446 | K78: 0.1331463389 | L78: 0.4870173491 | M78: 0.379836312
A82: 1062 - Average split of rate 2 units by distribution time band
A83: Charges for year Y are set in Y-2 using historical data for the previous three years
B86: Y - 5 | E86: Y - 4 | H86: Y - 3 | K86: Information to be used calculating tariffs in year t
B87: Red | C87: Amber | D87: Green | E87: Red | F87: Amber | G87: Green | H87: Red | I87: Amber | J87: Green | K87: Red | L87: Amber | M87: Green
A88: Domestic Two Rate | B88: =+[6]Summary!H14 -> 0 | C88: =+[6]Summary!I14 -> 0 | D88: =+[6]Summary!J14 -> 1 | E88: =+[6]Summary!K14 -> 0 | F88: =+[6]Summary!L14 -> 0 | G88: =+[6]Summary!M14 -> 1 | H88: =+[6]Summary!N14 -> 0 | I88: =+[6]Summary!O14 -> 0 | J88: =+[6]Summary!P14 -> 1 | K88: =AVERAGE(B88,E88,H88) -> 0 | L88: 0 | M88: 1
A89: Small Non Domestic Two Rate | B89: =+[6]Summary!H15 -> 0 | C89: =+[6]Summary!I15 -> 0 | D89: =+[6]Summary!J15 -> 1 | E89: =+[6]Summary!K15 -> 0 | F89: =+[6]Summary!L15 -> 0 | G89: =+[6]Summary!M15 -> 1 | H89: =+[6]Summary!N15 -> 0 | I89: =+[6]Summary!O15 -> 0 | J89: =+[6]Summary!P15 -> 1 | K89: 0 | L89: 0 | M89: 1
A90: LV Medium Non-Domestic | B90: =+[6]Summary!H16 -> 0 | C90: =+[6]Summary!I16 -> 0 | D90: =+[6]Summary!J16 -> 1 | E90: =+[6]Summary!K16 -> 0 | F90: =+[6]Summary!L16 -> 0 | G90: =+[6]Summary!M16 -> 1 | H90: =+[6]Summary!N16 -> 0 | I90: =+[6]Summary!O16 -> 0 | J90: =+[6]Summary!P16 -> 1 | K90: 0 | L90: 0 | M90: 1
A91: LV Sub Medium Non-Domestic | B91: =+[6]Summary!H17 -> 0 | C91: =+[6]Summary!I17 -> 0 | D91: =+[6]Summary!J17 -> 1 | E91: =+[6]Summary!K17 -> 0 | F91: =+[6]Summary!L17 -> 0 | G91: =+[6]Summary!M17 -> 1 | H91: =+[6]Summary!N17 -> 0 | I91: =+[6]Summary!O17 -> 0 | J91: =+[6]Summary!P17 -> 1 | K91: 0 | L91: 0 | M91: 1
A92: HV Medium Non-Domestic | B92: =+[6]Summary!H18 -> 0 | C92: =+[6]Summary!I18 -> 0 | D92: =+[6]Summary!J18 -> 1 | E92: =+[6]Summary!K18 -> 0 | F92: =+[6]Summary!L18 -> 0 | G92: =+[6]Summary!M18 -> 1 | H92: =+[6]Summary!N18 -> 0 | I92: =+[6]Summary!O18 -> 0 | J92: =+[6]Summary!P18 -> 1 | K92: 0 | L92: 0 | M92: 1
A96: 1064. Average split of rate 1 units by special distribution time band
A97: Charges for year Y are set in Y-2 using historical data for the previous three years
B100: Y - 5 | E100: Y - 4 | H100: Y - 3 | K100: Information to be used calculating tariffs in year t
B101: Black | C101: Yellow | D101: Green | E101: Black | F101: Yellow | G101: Green | H101: Black | I101: Yellow | J101: Green | K101: Red | L101: Amber | M101: Green
A102: NHH UMS category A | B102: =+'[7]2014-15'!B5 -> 0.02910958904 | C102: =+'[7]2014-15'!C5 -> 0.3491438356 | D102: =+'[7]2014-15'!D5 -> 0.6217465753 | E102: =+'[7]2015-16'!B5 -> 0.02903005464 | F102: =+'[7]2015-16'!C5 -> 0.3494990893 | G102: =+'[7]2015-16'!D5 -> 0.6214708561 | H102: =+'[7]2016-17'!B5 -> 0.02945205479 | I102: =+'[7]2016-17'!C5 -> 0.3488013699 | J102: =+'[7]2016-17'!D5 -> 0.6217465753 | K102: =AVERAGE(B102,E102,H102) -> 0.02919723283 | L102: =AVERAGE(C102,F102,I102) -> 0.3491480982 | M102: =AVERAGE(D102,G102,J102) -> 0.6216546689
A103: NHH UMS category B | B103: =+'[7]2014-15'!B6 -> 0.04918277882 | C103: =+'[7]2014-15'!C6 -> 0.08469314102 | D103: =+'[7]2014-15'!D6 -> 0.8661240802 | E103: =+'[7]2015-16'!B6 -> 0.04929937498 | F103: =+'[7]2015-16'!C6 -> 0.08443146043 | G103: =+'[7]2015-16'!D6 -> 0.8662691646 | H103: =+'[7]2016-17'!B6 -> 0.04979496097 | I103: =+'[7]2016-17'!C6 -> 0.08233786834 | J103: =+'[7]2016-17'!D6 -> 0.8678671707 | K103: 0.04942570492 | L103: 0.08382082327 | M103: 0.8667534718
A104: NHH UMS category C | B104: =+'[7]2014-15'!B7 -> 0.09469324442 | C104: =+'[7]2014-15'!C7 -> 0.1660201566 | D104: =+'[7]2014-15'!D7 -> 0.739286599 | E104: =+'[7]2015-16'!B7 -> 0.09484435471 | F104: =+'[7]2015-16'!C7 -> 0.1660556085 | G104: =+'[7]2015-16'!D7 -> 0.7391000368 | H104: =+'[7]2016-17'!B7 -> 0.09601727628 | I104: =+'[7]2016-17'!C7 -> 0.1619124774 | J104: =+'[7]2016-17'!D7 -> 0.7420702463 | K104: 0.09518495847 | L104: 0.1646627475 | M104: 0.740152294
A105: NHH UMS category D | B105: =+'[7]2014-15'!B8 -> 0.0165632642 | C105: =+'[7]2014-15'!C8 -> 0.567556548 | D105: =+'[7]2014-15'!D8 -> 0.4158801878 | E105: =+'[7]2015-16'!B8 -> 0.01632252598 | F105: =+'[7]2015-16'!C8 -> 0.5681407399 | G105: =+'[7]2015-16'!D8 -> 0.4155367341 | H105: =+'[7]2016-17'!B8 -> 0.01674807433 | I105: =+'[7]2016-17'!C8 -> 0.5688077267 | J105: =+'[7]2016-17'!D8 -> 0.4144441989 | K105: 0.0165446215 | L105: 0.5681683382 | M105: 0.4152870403
A109: 1069 - Peaking probabilities by network level
A110: Charges for year Y are set in Y-2 using historical data for the previous three years
B113: Y - 5 | F113: Y - 4 | J113: Y - 3 | N113: Information to be used calculating tariffs in year t
B114: Red | C114: Amber | D114: Green | E114: Black | F114: Red | G114: Amber | H114: Green | I114: Black | J114: Red | K114: Amber | L114: Green | M114: Black | N114: Red | O114: Amber | P114: Green | Q114: Black
A115: GSPs | B115: =+[8]average!$B$3 -> 0.8947368421 | C115: =+[8]average!$B$4 -> 0.05263157895 | D115: =+[8]average!$B$5 -> 0.05263157895 | E115: =+[8]average!$H$3 -> 0.9 | F115: =+[8]average!$C$3 -> 0.8421052632 | G115: =+[8]average!$C$4 -> 0.1578947368 | H115: =+[8]average!$C$5 -> 0 | I115: =+[8]average!$I$3 -> 0.7894736842 | J115: =+[8]average!$D$3 -> 0.8666666667 | K115: =+[8]average!$D$4 -> 0.1333333333 | L115: =+[8]average!$D$5 -> 0 | M115: =+[8]average!$J$3 -> 0.8666666667 | N115: =AVERAGE(B115,F115,J115) -> 0.8678362573 | O115: =AVERAGE(C115,G115,K115) -> 0.114619883 | P115: =AVERAGE(D115,H115,L115) -> 0.01754385965 | Q115: =AVERAGE(E115,I115,M115) -> 0.8520467836
A116: 132kV | B116: =+[8]average!$B$8 -> 0.6575342466 | C116: =+[8]average!$B$9 -> 0.2739726027 | D116: =+[8]average!$B$10 -> 0.06849315068 | E116: =+[8]average!$H$8 -> 0.6301369863 | F116: =+[8]average!$C$8 -> 0.6285714286 | G116: =+[8]average!$C$9 -> 0.2571428571 | H116: =+[8]average!$C$10 -> 0.1142857143 | I116: =+[8]average!$I$8 -> 0.5714285714 | J116: =+[8]average!$D$8 -> 0.71875 | K116: =+[8]average!$D$9 -> 0.21875 | L116: =+[8]average!$D$10 -> 0.0625 | M116: =+[8]average!$J$8 -> 0.703125 | N116: 0.668285225 | O116: 0.2499551533 | P116: 0.08175962166 | Q116: 0.6348968526
A117: 132kV/EHV | B117: =+B116 -> 0.6575342466 | C117: =+C116 -> 0.2739726027 | D117: =+D116 -> 0.06849315068 | E117: 0.6301369863 | F117: 0.6285714286 | G117: 0.2571428571 | H117: 0.1142857143 | I117: 0.5714285714 | J117: 0.71875 | K117: 0.21875 | L117: 0.0625 | M117: 0.703125 | N117: 0.668285225 | O117: 0.2499551533 | P117: 0.08175962166 | Q117: 0.6348968526
A118: EHV | B118: =+[8]average!$B$13 -> 0.5799457995 | C118: =+[8]average!$B$14 -> 0.3279132791 | D118: =+[8]average!$B$15 -> 0.09214092141 | E118: =+[8]average!$H$13 -> 0.5365853659 | F118: =+[8]average!$C$13 -> 0.5461956522 | G118: =+[8]average!$C$14 -> 0.3831521739 | H118: =+[8]average!$C$15 -> 0.07065217391 | I118: =+[8]average!$I$13 -> 0.5054347826 | J118: =+[8]average!$D$13 -> 0.5646437995 | K118: =+[8]average!$D$14 -> 0.345646438 | L118: =+[8]average!$D$15 -> 0.08970976253 | M118: =+[8]average!$J$13 -> 0.5408970976 | N118: 0.5635950837 | O118: 0.352237297 | P118: 0.08416761929 | Q118: 0.527639082
A119: EHV/HV | B119: =+B118 -> 0.5799457995 | C119: =+C118 -> 0.3279132791 | D119: 0.09214092141 | E119: 0.5365853659 | F119: 0.5461956522 | G119: 0.3831521739 | H119: 0.07065217391 | I119: 0.5054347826 | J119: 0.5646437995 | K119: 0.345646438 | L119: 0.08970976253 | M119: 0.5408970976 | N119: 0.5635950837 | O119: 0.352237297 | P119: 0.08416761929 | Q119: 0.527639082
A120: 132kV/HV | B120: 0 | C120: 0 | D120: 0 | E120: 0 | F120: 0 | G120: 0 | H120: 0 | I120: 0 | J120: 0 | K120: 0 | L120: 0 | M120: 0 | N120: 0 | O120: 0 | P120: 0 | Q120: 0
A121: HV | B121: =+B119 -> 0.5799457995 | C121: =+C119 -> 0.3279132791 | D121: 0.09214092141 | E121: 0.5365853659 | F121: 0.5461956522 | G121: 0.3831521739 | H121: 0.07065217391 | I121: 0.5054347826 | J121: 0.5646437995 | K121: 0.345646438 | L121: 0.08970976253 | M121: 0.5408970976 | N121: 0.5635950837 | O121: 0.352237297 | P121: 0.08416761929 | Q121: 0.527639082
A122: HV/LV | B122: =+B121 -> 0.5799457995 | C122: =+C121 -> 0.3279132791 | D122: 0.09214092141 | E122: 0.5365853659 | F122: 0.5461956522 | G122: 0.3831521739 | H122: 0.07065217391 | I122: 0.5054347826 | J122: 0.5646437995 | K122: 0.345646438 | L122: 0.08970976253 | M122: 0.5408970976 | N122: 0.5635950837 | O122: 0.352237297 | P122: 0.08416761929 | Q122: 0.527639082
A123: LV circuits | B123: =+B122 -> 0.5799457995 | C123: 0.3279132791 | D123: 0.09214092141 | E123: 0.5365853659 | F123: 0.5461956522 | G123: 0.3831521739 | H123: 0.07065217391 | I123: 0.5054347826 | J123: 0.5646437995 | K123: 0.345646438 | L123: 0.08970976253 | M123: 0.5408970976 | N123: 0.5635950837 | O123: 0.352237297 | P123: 0.08416761929 | Q123: 0.527639082

Sheet Mat of App
B3: 1025. Matrix of applicability of LV service models to tariffs with fixed charges
C5: ='CDCM Forecast Data'!$E$11 -> 2019/20 | K5: ='CDCM Forecast Data'!$F$11 -> 2020/21 | S5: ='CDCM Forecast Data'!$G$11 -> 2021/22 | AA5: ='CDCM Forecast Data'!$H$11 -> 2022/23 | AI5: ='CDCM Forecast Data'!$I$11 -> 2023/24
C6: LV service model 1 | D6: LV service model 2 | E6: LV service model 3 | F6: LV service model 4 | G6: LV service model 5 | H6: LV service model 6 | I6: LV service model 7 | J6: LV service model 8 | K6: LV service model 1 | L6: LV service model 2 | M6: LV service model 3 | N6: LV service model 4 | O6: LV service model 5 | P6: LV service model 6 | Q6: LV service model 7 | R6: LV service model 8 | S6: LV service model 1 | T6: LV service model 2 | U6: LV service model 3 | V6: LV service model 4 | W6: LV service model 5 | X6: LV service model 6 | Y6: LV service model 7 | Z6: LV service model 8 | AA6: LV service model 1 | AB6: LV service model 2 | AC6: LV service model 3 | AD6: LV service model 4 | AE6: LV service model 5 | AF6: LV service model 6 | AG6: LV service model 7 | AH6: LV service model 8 | AI6: LV service model 1 | AJ6: LV service model 2 | AK6: LV service model 3 | AL6: LV service model 4 | AM6: LV service model 5 | AN6: LV service model 6 | AO6: LV service model 7 | AP6: LV service model 8
B7: Domestic Unrestricted | C7: =+[9]Input!B114 -> 0.05 | D7: =+[9]Input!C114 -> 0 | E7: =+[9]Input!D114 -> 0 | F7: =+[9]Input!E114 -> 0 | G7: =+[9]Input!F114 -> 0 | H7: =+[9]Input!G114 -> 0 | I7: =+[9]Input!H114 -> 0 | J7: =+[9]Input!I114 -> 0 | K7: =C7 -> 0.05 | L7: =D7 -> 0 | M7: =E7 -> 0 | N7: =F7 -> 0 | O7: =G7 -> 0 | P7: =H7 -> 0 | Q7: =I7 -> 0 | R7: =J7 -> 0 | S7: =K7 -> 0.05 | T7: =L7 -> 0 | U7: =M7 -> 0 | V7: =N7 -> 0 | W7: =O7 -> 0 | X7: =P7 -> 0 | Y7: =Q7 -> 0 | Z7: =R7 -> 0 | AA7: =S7 -> 0.05 | AB7: =T7 -> 0 | AC7: =U7 -> 0 | AD7: =V7 -> 0 | AE7: =W7 -> 0 | AF7: =X7 -> 0 | AG7: =Y7 -> 0 | AH7: =Z7 -> 0 | AI7: =AA7 -> 0.05 | AJ7: =AB7 -> 0 | AK7: =AC7 -> 0 | AL7: =AD7 -> 0 | AM7: =AE7 -> 0 | AN7: =AF7 -> 0 | AO7: =AG7 -> 0 | AP7: =AH7 -> 0
B8: Domestic Two Rate | C8: =+[9]Input!B115 -> 0.05 | D8: =+[9]Input!C115 -> 0 | E8: =+[9]Input!D115 -> 0 | F8: =+[9]Input!E115 -> 0 | G8: =+[9]Input!F115 -> 0 | H8: =+[9]Input!G115 -> 0 | I8: =+[9]Input!H115 -> 0 | J8: =+[9]Input!I115 -> 0 | K8: =C8 -> 0.05 | L8: =D8 -> 0 | M8: =E8 -> 0 | N8: =F8 -> 0 | O8: =G8 -> 0 | P8: =H8 -> 0 | Q8: =I8 -> 0 | R8: =J8 -> 0 | S8: =K8 -> 0.05 | T8: =L8 -> 0 | U8: =M8 -> 0 | V8: =N8 -> 0 | W8: =O8 -> 0 | X8: =P8 -> 0 | Y8: =Q8 -> 0 | Z8: =R8 -> 0 | AA8: =S8 -> 0.05 | AB8: =T8 -> 0 | AC8: =U8 -> 0 | AD8: =V8 -> 0 | AE8: =W8 -> 0 | AF8: =X8 -> 0 | AG8: =Y8 -> 0 | AH8: =Z8 -> 0 | AI8: =AA8 -> 0.05 | AJ8: =AB8 -> 0 | AK8: =AC8 -> 0 | AL8: =AD8 -> 0 | AM8: =AE8 -> 0 | AN8: =AF8 -> 0 | AO8: =AG8 -> 0 | AP8: =AH8 -> 0
B9: Small Non Domestic Unrestricted | C9: =+[9]Input!B116 -> 0 | D9: =+[9]Input!C116 -> 1 | E9: =+[9]Input!D116 -> 0 | F9: =+[9]Input!E116 -> 0 | G9: =+[9]Input!F116 -> 0 | H9: =+[9]Input!G116 -> 0 | I9: =+[9]Input!H116 -> 0 | J9: =+[9]Input!I116 -> 0 | K9: 0 | L9: 1 | M9: 0 | N9: 0 | O9: 0 | P9: 0 | Q9: 0 | R9: 0 | S9: 0 | T9: 1 | U9: 0 | V9: 0 | W9: 0 | X9: 0 | Y9: 0 | Z9: 0 | AA9: 0 | AB9: 1 | AC9: 0 | AD9: 0 | AE9: 0 | AF9: 0 | AG9: 0 | AH9: 0 | AI9: 0 | AJ9: 1 | AK9: 0 | AL9: 0 | AM9: 0 | AN9: 0 | AO9: 0 | AP9: 0
B10: Small Non Domestic Two Rate | C10: =+[9]Input!B117 -> 0 | D10: =+[9]Input!C117 -> 1 | E10: =+[9]Input!D117 -> 0 | F10: =+[9]Input!E117 -> 0 | G10: =+[9]Input!F117 -> 0 | H10: =+[9]Input!G117 -> 0 | I10: =+[9]Input!H117 -> 0 | J10: =+[9]Input!I117 -> 0 | K10: 0 | L10: 1 | M10: 0 | N10: 0 | O10: 0 | P10: 0 | Q10: 0 | R10: 0 | S10: 0 | T10: 1 | U10: 0 | V10: 0 | W10: 0 | X10: 0 | Y10: 0 | Z10: 0 | AA10: 0 | AB10: 1 | AC10: 0 | AD10: 0 | AE10: 0 | AF10: 0 | AG10: 0 | AH10: 0 | AI10: 0 | AJ10: 1 | AK10: 0 | AL10: 0 | AM10: 0 | AN10: 0 | AO10: 0 | AP10: 0
B11: LV Medium Non-Domestic | C11: =+[9]Input!B118 -> 0 | D11: =+[9]Input!C118 -> 0.2391523713 | E11: =+[9]Input!D118 -> 0.7608476287 | F11: =+[9]Input!E118 -> 0 | G11: =+[9]Input!F118 -> 0 | H11: =+[9]Input!G118 -> 0 | I11: =+[9]Input!H118 -> 0 | J11: =+[9]Input!I118 -> 0 | K11: 0 | L11: 0.2391523713 | M11: 0.7608476287 | N11: 0 | O11: 0 | P11: 0 | Q11: 0 | R11: 0 | S11: 0 | T11: 0.2391523713 | U11: 0.7608476287 | V11: 0 | W11: 0 | X11: 0 | Y11: 0 | Z11: 0 | AA11: 0 | AB11: 0.2391523713 | AC11: 0.7608476287 | AD11: 0 | AE11: 0 | AF11: 0 | AG11: 0 | AH11: 0 | AI11: 0 | AJ11: 0.2391523713 | AK11: 0.7608476287 | AL11: 0 | AM11: 0 | AN11: 0 | AO11: 0 | AP11: 0
B12: LV Sub Medium Non-Domestic | C12: =+[9]Input!B119 -> 0 | D12: =+[9]Input!C119 -> 0 | E12: =+[9]Input!D119 -> 0 | F12: =+[9]Input!E119 -> 1 | G12: =+[9]Input!F119 -> 0 | H12: =+[9]Input!G119 -> 0 | I12: =+[9]Input!H119 -> 0 | J12: =+[9]Input!I119 -> 0 | K12: 0 | L12: 0 | M12: 0 | N12: 1 | O12: 0 | P12: 0 | Q12: 0 | R12: 0 | S12: 0 | T12: 0 | U12: 0 | V12: 1 | W12: 0 | X12: 0 | Y12: 0 | Z12: 0 | AA12: 0 | AB12: 0 | AC12: 0 | AD12: 1 | AE12: 0 | AF12: 0 | AG12: 0 | AH12: 0 | AI12: 0 | AJ12: 0 | AK12: 0 | AL12: 1 | AM12: 0 | AN12: 0 | AO12: 0 | AP12: 0
B13: LV Network Domestic | C13: =+[9]Input!B120 -> 0.05 | D13: =+[9]Input!C120 -> 0 | E13: =+[9]Input!D120 -> 0 | F13: =+[9]Input!E120 -> 0 | G13: =+[9]Input!F120 -> 0 | H13: =+[9]Input!G120 -> 0 | I13: =+[9]Input!H120 -> 0 | J13: =+[9]Input!I120 -> 0 | K13: 0.05 | L13: 0 | M13: 0 | N13: 0 | O13: 0 | P13: 0 | Q13: 0 | R13: 0 | S13: 0.05 | T13: 0 | U13: 0 | V13: 0 | W13: 0 | X13: 0 | Y13: 0 | Z13: 0 | AA13: 0.05 | AB13: 0 | AC13: 0 | AD13: 0 | AE13: 0 | AF13: 0 | AG13: 0 | AH13: 0 | AI13: 0.05 | AJ13: 0 | AK13: 0 | AL13: 0 | AM13: 0 | AN13: 0 | AO13: 0 | AP13: 0
B14: LV Network Non-Domestic Non-CT | C14: =+[9]Input!B121 -> 0 | D14: =+[9]Input!C121 -> 1 | E14: =+[9]Input!D121 -> 0 | F14: =+[9]Input!E121 -> 0 | G14: =+[9]Input!F121 -> 0 | H14: =+[9]Input!G121 -> 0 | I14: =+[9]Input!H121 -> 0 | J14: =+[9]Input!I121 -> 0 | K14: 0 | L14: 1 | M14: 0 | N14: 0 | O14: 0 | P14: 0 | Q14: 0 | R14: 0 | S14: 0 | T14: 1 | U14: 0 | V14: 0 | W14: 0 | X14: 0 | Y14: 0 | Z14: 0 | AA14: 0 | AB14: 1 | AC14: 0 | AD14: 0 | AE14: 0 | AF14: 0 | AG14: 0 | AH14: 0 | AI14: 0 | AJ14: 1 | AK14: 0 | AL14: 0 | AM14: 0 | AN14: 0 | AO14: 0 | AP14: 0
B15: LV HH Metered | C15: =+[9]Input!B122 -> 0 | D15: =+[9]Input!C122 -> 0 | E15: =+[9]Input!D122 -> 1 | F15: =+[9]Input!E122 -> 0 | G15: =+[9]Input!F122 -> 0 | H15: =+[9]Input!G122 -> 0 | I15: =+[9]Input!H122 -> 0 | J15: =+[9]Input!I122 -> 0 | K15: 0 | L15: 0 | M15: 1 | N15: 0 | O15: 0 | P15: 0 | Q15: 0 | R15: 0 | S15: 0 | T15: 0 | U15: 1 | V15: 0 | W15: 0 | X15: 0 | Y15: 0 | Z15: 0 | AA15: 0 | AB15: 0 | AC15: 1 | AD15: 0 | AE15: 0 | AF15: 0 | AG15: 0 | AH15: 0 | AI15: 0 | AJ15: 0 | AK15: 1 | AL15: 0 | AM15: 0 | AN15: 0 | AO15: 0 | AP15: 0
B16: LV Sub HH Metered | C16: =+[9]Input!B123 -> 0 | D16: =+[9]Input!C123 -> 0 | E16: =+[9]Input!D123 -> 0 | F16: =+[9]Input!E123 -> 1 | G16: =+[9]Input!F123 -> 0 | H16: =+[9]Input!G123 -> 0 | I16: =+[9]Input!H123 -> 0 | J16: =+[9]Input!I123 -> 0 | K16: 0 | L16: 0 | M16: 0 | N16: 1 | O16: 0 | P16: 0 | Q16: 0 | R16: 0 | S16: 0 | T16: 0 | U16: 0 | V16: 1 | W16: 0 | X16: 0 | Y16: 0 | Z16: 0 | AA16: 0 | AB16: 0 | AC16: 0 | AD16: 1 | AE16: 0 | AF16: 0 | AG16: 0 | AH16: 0 | AI16: 0 | AJ16: 0 | AK16: 0 | AL16: 1 | AM16: 0 | AN16: 0 | AO16: 0 | AP16: 0
B17: LV Generation NHH or Aggregate HH | C17: =+[9]Input!B124 -> 0 | D17: =+[9]Input!C124 -> 0 | E17: =+[9]Input!D124 -> 0 | F17: =+[9]Input!E124 -> 0 | G17: =+[9]Input!F124 -> 0 | H17: =+[9]Input!G124 -> 0 | I17: =+[9]Input!H124 -> 0 | J17: =+[9]Input!I124 -> 0 | K17: 0 | L17: 0 | M17: 0 | N17: 0 | O17: 0 | P17: 0 | Q17: 0 | R17: 0 | S17: 0 | T17: 0 | U17: 0 | V17: 0 | W17: 0 | X17: 0 | Y17: 0 | Z17: 0 | AA17: 0 | AB17: 0 | AC17: 0 | AD17: 0 | AE17: 0 | AF17: 0 | AG17: 0 | AH17: 0 | AI17: 0 | AJ17: 0 | AK17: 0 | AL17: 0 | AM17: 0 | AN17: 0 | AO17: 0 | AP17: 0
B18: LV Sub Generation NHH | C18: =+[9]Input!B125 -> 0 | D18: =+[9]Input!C125 -> 0 | E18: =+[9]Input!D125 -> 0 | F18: =+[9]Input!E125 -> 0 | G18: =+[9]Input!F125 -> 0 | H18: =+[9]Input!G125 -> 0 | I18: =+[9]Input!H125 -> 0 | J18: =+[9]Input!I125 -> 0 | K18: 0 | L18: 0 | M18: 0 | N18: 0 | O18: 0 | P18: 0 | Q18: 0 | R18: 0 | S18: 0 | T18: 0 | U18: 0 | V18: 0 | W18: 0 | X18: 0 | Y18: 0 | Z18: 0 | AA18: 0 | AB18: 0 | AC18: 0 | AD18: 0 | AE18: 0 | AF18: 0 | AG18: 0 | AH18: 0 | AI18: 0 | AJ18: 0 | AK18: 0 | AL18: 0 | AM18: 0 | AN18: 0 | AO18: 0 | AP18: 0
B19: LV Generation Intermittent | C19: =+[9]Input!B126 -> 0 | D19: =+[9]Input!C126 -> 0 | E19: =+[9]Input!D126 -> 0 | F19: =+[9]Input!E126 -> 0 | G19: =+[9]Input!F126 -> 0 | H19: =+[9]Input!G126 -> 0 | I19: =+[9]Input!H126 -> 0 | J19: =+[9]Input!I126 -> 0 | K19: 0 | L19: 0 | M19: 0 | N19: 0 | O19: 0 | P19: 0 | Q19: 0 | R19: 0 | S19: 0 | T19: 0 | U19: 0 | V19: 0 | W19: 0 | X19: 0 | Y19: 0 | Z19: 0 | AA19: 0 | AB19: 0 | AC19: 0 | AD19: 0 | AE19: 0 | AF19: 0 | AG19: 0 | AH19: 0 | AI19: 0 | AJ19: 0 | AK19: 0 | AL19: 0 | AM19: 0 | AN19: 0 | AO19: 0 | AP19: 0
B20: LV Generation Intermittent no RP charge | C20: =+[9]Input!B127 -> 0 | D20: =+[9]Input!C127 -> 0 | E20: =+[9]Input!D127 -> 0 | F20: =+[9]Input!E127 -> 0 | G20: =+[9]Input!F127 -> 0 | H20: =+[9]Input!G127 -> 0 | I20: =+[9]Input!H127 -> 0 | J20: =+[9]Input!I127 -> 0 | K20: 0 | L20: 0 | M20: 0 | N20: 0 | O20: 0 | P20: 0 | Q20: 0 | R20: 0 | S20: 0 | T20: 0 | U20: 0 | V20: 0 | W20: 0 | X20: 0 | Y20: 0 | Z20: 0 | AA20: 0 | AB20: 0 | AC20: 0 | AD20: 0 | AE20: 0 | AF20: 0 | AG20: 0 | AH20: 0 | AI20: 0 | AJ20: 0 | AK20: 0 | AL20: 0 | AM20: 0 | AN20: 0 | AO20: 0 | AP20: 0
B21: LV Generation Non-Intermittent | C21: =+[9]Input!B128 -> 0 | D21: =+[9]Input!C128 -> 0 | E21: =+[9]Input!D128 -> 0 | F21: =+[9]Input!E128 -> 0 | G21: =+[9]Input!F128 -> 0 | H21: =+[9]Input!G128 -> 0 | I21: =+[9]Input!H128 -> 0 | J21: =+[9]Input!I128 -> 0 | K21: 0 | L21: 0 | M21: 0 | N21: 0 | O21: 0 | P21: 0 | Q21: 0 | R21: 0 | S21: 0 | T21: 0 | U21: 0 | V21: 0 | W21: 0 | X21: 0 | Y21: 0 | Z21: 0 | AA21: 0 | AB21: 0 | AC21: 0 | AD21: 0 | AE21: 0 | AF21: 0 | AG21: 0 | AH21: 0 | AI21: 0 | AJ21: 0 | AK21: 0 | AL21: 0 | AM21: 0 | AN21: 0 | AO21: 0 | AP21: 0
B22: LV Generation Non-Intermittent no RP charge | C22: =+[9]Input!B129 -> 0 | D22: =+[9]Input!C129 -> 0 | E22: =+[9]Input!D129 -> 0 | F22: =+[9]Input!E129 -> 0 | G22: =+[9]Input!F129 -> 0 | H22: =+[9]Input!G129 -> 0 | I22: =+[9]Input!H129 -> 0 | J22: =+[9]Input!I129 -> 0 | K22: 0 | L22: 0 | M22: 0 | N22: 0 | O22: 0 | P22: 0 | Q22: 0 | R22: 0 | S22: 0 | T22: 0 | U22: 0 | V22: 0 | W22: 0 | X22: 0 | Y22: 0 | Z22: 0 | AA22: 0 | AB22: 0 | AC22: 0 | AD22: 0 | AE22: 0 | AF22: 0 | AG22: 0 | AH22: 0 | AI22: 0 | AJ22: 0 | AK22: 0 | AL22: 0 | AM22: 0 | AN22: 0 | AO22: 0 | AP22: 0
B23: LV Sub Generation Intermittent | C23: =+[9]Input!B130 -> 0 | D23: =+[9]Input!C130 -> 0 | E23: =+[9]Input!D130 -> 0 | F23: =+[9]Input!E130 -> 0 | G23: =+[9]Input!F130 -> 0 | H23: =+[9]Input!G130 -> 0 | I23: =+[9]Input!H130 -> 0 | J23: =+[9]Input!I130 -> 0 | K23: 0 | L23: 0 | M23: 0 | N23: 0 | O23: 0 | P23: 0 | Q23: 0 | R23: 0 | S23: 0 | T23: 0 | U23: 0 | V23: 0 | W23: 0 | X23: 0 | Y23: 0 | Z23: 0 | AA23: 0 | AB23: 0 | AC23: 0 | AD23: 0 | AE23: 0 | AF23: 0 | AG23: 0 | AH23: 0 | AI23: 0 | AJ23: 0 | AK23: 0 | AL23: 0 | AM23: 0 | AN23: 0 | AO23: 0 | AP23: 0
B24: LV Sub Generation Intermittent no RP charge | C24: =+[9]Input!B131 -> 0 | D24: =+[9]Input!C131 -> 0 | E24: =+[9]Input!D131 -> 0 | F24: =+[9]Input!E131 -> 0 | G24: =+[9]Input!F131 -> 0 | H24: =+[9]Input!G131 -> 0 | I24: =+[9]Input!H131 -> 0 | J24: =+[9]Input!I131 -> 0 | K24: 0 | L24: 0 | M24: 0 | N24: 0 | O24: 0 | P24: 0 | Q24: 0 | R24: 0 | S24: 0 | T24: 0 | U24: 0 | V24: 0 | W24: 0 | X24: 0 | Y24: 0 | Z24: 0 | AA24: 0 | AB24: 0 | AC24: 0 | AD24: 0 | AE24: 0 | AF24: 0 | AG24: 0 | AH24: 0 | AI24: 0 | AJ24: 0 | AK24: 0 | AL24: 0 | AM24: 0 | AN24: 0 | AO24: 0 | AP24: 0
B25: LV Sub Generation Non-Intermittent | C25: =+[9]Input!B132 -> 0 | D25: =+[9]Input!C132 -> 0 | E25: =+[9]Input!D132 -> 0 | F25: =+[9]Input!E132 -> 0 | G25: =+[9]Input!F132 -> 0 | H25: =+[9]Input!G132 -> 0 | I25: =+[9]Input!H132 -> 0 | J25: =+[9]Input!I132 -> 0 | K25: 0 | L25: 0 | M25: 0 | N25: 0 | O25: 0 | P25: 0 | Q25: 0 | R25: 0 | S25: 0 | T25: 0 | U25: 0 | V25: 0 | W25: 0 | X25: 0 | Y25: 0 | Z25: 0 | AA25: 0 | AB25: 0 | AC25: 0 | AD25: 0 | AE25: 0 | AF25: 0 | AG25: 0 | AH25: 0 | AI25: 0 | AJ25: 0 | AK25: 0 | AL25: 0 | AM25: 0 | AN25: 0 | AO25: 0 | AP25: 0
B26: LV Sub Generation Non-Intermittent no RP charge | C26: =+[9]Input!B133 -> 0 | D26: =+[9]Input!C133 -> 0 | E26: =+[9]Input!D133 -> 0 | F26: =+[9]Input!E133 -> 0 | G26: =+[9]Input!F133 -> 0 | H26: =+[9]Input!G133 -> 0 | I26: =+[9]Input!H133 -> 0 | J26: =+[9]Input!I133 -> 0 | K26: 0 | L26: 0 | M26: 0 | N26: 0 | O26: 0 | P26: 0 | Q26: 0 | R26: 0 | S26: 0 | T26: 0 | U26: 0 | V26: 0 | W26: 0 | X26: 0 | Y26: 0 | Z26: 0 | AA26: 0 | AB26: 0 | AC26: 0 | AD26: 0 | AE26: 0 | AF26: 0 | AG26: 0 | AH26: 0 | AI26: 0 | AJ26: 0 | AK26: 0 | AL26: 0 | AM26: 0 | AN26: 0 | AO26: 0 | AP26: 0
B28: 1026. Matrix of applicability of LV service models to unmetered tariffs
B30: Source: service models
B31: Proportion of service model involved in connecting load of 1 MWh/year | C31: ='CDCM Forecast Data'!$E$11 -> 2019/20 | K31: ='CDCM Forecast Data'!$F$11 -> 2020/21 | S31: ='CDCM Forecast Data'!$G$11 -> 2021/22 | AA31: ='CDCM Forecast Data'!$H$11 -> 2022/23 | AI31: ='CDCM Forecast Data'!$I$11 -> 2023/24
C32: LV service model 1 | D32: LV service model 2 | E32: LV service model 3 | F32: LV service model 4 | G32: LV service model 5 | H32: LV service model 6 | I32: LV service model 7 | J32: LV service model 8 | K32: LV service model 1 | L32: LV service model 2 | M32: LV service model 3 | N32: LV service model 4 | O32: LV service model 5 | P32: LV service model 6 | Q32: LV service model 7 | R32: LV service model 8 | S32: LV service model 1 | T32: LV service model 2 | U32: LV service model 3 | V32: LV service model 4 | W32: LV service model 5 | X32: LV service model 6 | Y32: LV service model 7 | Z32: LV service model 8 | AA32: LV service model 1 | AB32: LV service model 2 | AC32: LV service model 3 | AD32: LV service model 4 | AE32: LV service model 5 | AF32: LV service model 6 | AG32: LV service model 7 | AH32: LV service model 8 | AI32: LV service model 1 | AJ32: LV service model 2 | AK32: LV service model 3 | AL32: LV service model 4 | AM32: LV service model 5 | AN32: LV service model 6 | AO32: LV service model 7 | AP32: LV service model 8
B33: All LV unmetered tariffs | C33: =+[9]Input!B140 -> 0 | D33: =+[9]Input!C140 -> 0 | E33: =+[9]Input!D140 -> 0 | F33: =+[9]Input!E140 -> 0 | G33: =+[9]Input!F140 -> 2.872632768 | H33: =+[9]Input!G140 -> 0 | I33: =+[9]Input!H140 -> 0 | J33: =+[9]Input!I140 -> 0 | K33: =C33 -> 0 | L33: 0 | M33: 0 | N33: 0 | O33: 2.872632768 | P33: 0 | Q33: 0 | R33: 0 | S33: =K33 -> 0 | T33: =L33 -> 0 | U33: =M33 -> 0 | V33: =N33 -> 0 | W33: =O33 -> 2.872632768 | X33: =P33 -> 0 | Y33: =Q33 -> 0 | Z33: =R33 -> 0 | AA33: =S33 -> 0 | AB33: =T33 -> 0 | AC33: =U33 -> 0 | AD33: =V33 -> 0 | AE33: =W33 -> 2.872632768 | AF33: =X33 -> 0 | AG33: =Y33 -> 0 | AH33: =Z33 -> 0 | AI33: =AA33 -> 0 | AJ33: =AB33 -> 0 | AK33: =AC33 -> 0 | AL33: =AD33 -> 0 | AM33: =AE33 -> 2.872632768 | AN33: =AF33 -> 0 | AO33: =AG33 -> 0 | AP33: =AH33 -> 0
B35: 1028. Matrix of applicability of HV service models to tariffs with fixed charges
C36: ='CDCM Forecast Data'!$E$11 -> 2019/20 | H36: =+'CDCM Forecast Data'!F11 -> 2020/21 | M36: =+'CDCM Forecast Data'!G11 -> 2021/22 | R36: =+'CDCM Forecast Data'!H11 -> 2022/23 | W36: =+'CDCM Forecast Data'!I11 -> 2023/24
C37: HV service model 1 | D37: HV service model 2 | E37: HV service model 3 | F37: HV service model 4 | G37: HV service model 5 | H37: HV service model 1 | I37: HV service model 2 | J37: HV service model 3 | K37: HV service model 4 | L37: HV service model 5 | M37: HV service model 1 | N37: HV service model 2 | O37: HV service model 3 | P37: HV service model 4 | Q37: HV service model 5 | R37: HV service model 1 | S37: HV service model 2 | T37: HV service model 3 | U37: HV service model 4 | V37: HV service model 5 | W37: HV service model 1 | X37: HV service model 2 | Y37: HV service model 3 | Z37: HV service model 4 | AA37: HV service model 5
B38: HV Medium Non-Domestic | C38: =+[9]Input!B145 -> 0 | D38: =+[9]Input!C145 -> 1 | E38: =+[9]Input!D145 -> 0 | F38: =+[9]Input!E145 -> 0 | G38: =+[9]Input!F145 -> 0 | H38: =C38 -> 0 | I38: =D38 -> 1 | J38: =E38 -> 0 | K38: =F38 -> 0 | L38: =G38 -> 0 | M38: =H38 -> 0 | N38: =I38 -> 1 | O38: =J38 -> 0 | P38: =K38 -> 0 | Q38: =L38 -> 0 | R38: =M38 -> 0 | S38: =N38 -> 1 | T38: =O38 -> 0 | U38: =P38 -> 0 | V38: =Q38 -> 0 | W38: =R38 -> 0 | X38: =S38 -> 1 | Y38: =T38 -> 0 | Z38: =U38 -> 0 | AA38: =V38 -> 0
B39: HV HH Metered | C39: =+[9]Input!B146 -> 0 | D39: =+[9]Input!C146 -> 1 | E39: =+[9]Input!D146 -> 0 | F39: =+[9]Input!E146 -> 0 | G39: =+[9]Input!F146 -> 0 | H39: =C39 -> 0 | I39: =D39 -> 1 | J39: =E39 -> 0 | K39: =F39 -> 0 | L39: =G39 -> 0 | M39: =H39 -> 0 | N39: =I39 -> 1 | O39: =J39 -> 0 | P39: =K39 -> 0 | Q39: =L39 -> 0 | R39: =M39 -> 0 | S39: =N39 -> 1 | T39: =O39 -> 0 | U39: =P39 -> 0 | V39: =Q39 -> 0 | W39: =R39 -> 0 | X39: =S39 -> 1 | Y39: =T39 -> 0 | Z39: =U39 -> 0 | AA39: =V39 -> 0
B40: HV Generation Intermittent | C40: =+[9]Input!B147 -> 0 | D40: =+[9]Input!C147 -> 0 | E40: =+[9]Input!D147 -> 1 | F40: =+[9]Input!E147 -> 0 | G40: =+[9]Input!F147 -> 0 | H40: 0 | I40: 0 | J40: 1 | K40: 0 | L40: 0 | M40: 0 | N40: 0 | O40: 1 | P40: 0 | Q40: 0 | R40: 0 | S40: 0 | T40: 1 | U40: 0 | V40: 0 | W40: 0 | X40: 0 | Y40: 1 | Z40: 0 | AA40: 0
B41: HV Generation Intermittent no RP charge | C41: =+[9]Input!B148 -> 0 | D41: =+[9]Input!C148 -> 0 | E41: =+[9]Input!D148 -> 1 | F41: =+[9]Input!E148 -> 0 | G41: =+[9]Input!F148 -> 0 | H41: 0 | I41: 0 | J41: 1 | K41: 0 | L41: 0 | M41: 0 | N41: 0 | O41: 1 | P41: 0 | Q41: 0 | R41: 0 | S41: 0 | T41: 1 | U41: 0 | V41: 0 | W41: 0 | X41: 0 | Y41: 1 | Z41: 0 | AA41: 0
B42: HV Generation Non-Intermittent | C42: =+[9]Input!B149 -> 0 | D42: =+[9]Input!C149 -> 0 | E42: =+[9]Input!D149 -> 1 | F42: =+[9]Input!E149 -> 0 | G42: =+[9]Input!F149 -> 0 | H42: 0 | I42: 0 | J42: 1 | K42: 0 | L42: 0 | M42: 0 | N42: 0 | O42: 1 | P42: 0 | Q42: 0 | R42: 0 | S42: 0 | T42: 1 | U42: 0 | V42: 0 | W42: 0 | X42: 0 | Y42: 1 | Z42: 0 | AA42: 0
B43: HV Generation Non-Intermittent no RP charge | C43: =+[9]Input!B150 -> 0 | D43: =+[9]Input!C150 -> 0 | E43: =+[9]Input!D150 -> 1 | F43: =+[9]Input!E150 -> 0 | G43: =+[9]Input!F150 -> 0 | H43: 0 | I43: 0 | J43: 1 | K43: 0 | L43: 0 | M43: 0 | N43: 0 | O43: 1 | P43: 0 | Q43: 0 | R43: 0 | S43: 0 | T43: 1 | U43: 0 | V43: 0 | W43: 0 | X43: 0 | Y43: 1 | Z43: 0 | AA43: 0

Sheet CDCM Volume Forecasts
G3: Growth Rates (%)
G4: VOLUME - RED BAND | L4: VOLUME - AMBER BAND | P4: VOLUME - GREEN BAND | T4: CUSTOMER NUMBERS | X4: IMPORT CAPACITY | AB4: EXCEEDED CAPACITY | AF4: REACTIVE POWER
G5: Y | H5: Y + 1 | I5: Y + 2 | J5: Y + 3 | K5: Y + 4 | L5: Y + 1 | M5: Y + 2 | N5: Y + 3 | O5: Y + 4 | P5: Y + 1 | Q5: Y + 2 | R5: Y + 3 | S5: Y + 4 | T5: Y + 1 | U5: Y + 2 | V5: Y + 3 | W5: Y + 4 | X5: Y + 1 | Y5: Y + 2 | Z5: Y + 3 | AA5: Y + 4 | AB5: Y + 1 | AC5: Y + 2 | AD5: Y + 3 | AE5: Y + 4 | AF5: Y + 1 | AG5: Y + 2 | AH5: Y + 3 | AI5: Y + 4
E6: Customer Category | F6: Description | G6: =+'CDCM Forecast Data'!E11 -> 2019/20 | H6: =+'CDCM Forecast Data'!F11 -> 2020/21 | I6: =+'CDCM Forecast Data'!G11 -> 2021/22 | J6: =+'CDCM Forecast Data'!H11 -> 2022/23 | K6: =+'CDCM Forecast Data'!I11 -> 2023/24 | L6: =+H6 -> 2020/21 | M6: 2021/22 | N6: 2022/23 | O6: 2023/24 | P6: 2020/21 | Q6: 2021/22 | R6: 2022/23 | S6: 2023/24 | T6: 2020/21 | U6: 2021/22 | V6: 2022/23 | W6: 2023/24 | X6: 2020/21 | Y6: 2021/22 | Z6: 2022/23 | AA6: 2023/24 | AB6: =+T6 -> 2020/21 | AC6: 2021/22 | AD6: 2022/23 | AE6: 2023/24 | AF6: 2020/21 | AG6: 2021/22 | AH6: 2022/23 | AI6: 2023/24 | AJ6: Assumptions
E7: 1 | F7: Aggregated demand
E8: 2 | F8: Site-specific demand
E9: 3 | F9: Not used
E10: 4 | F10: Generation
E11: 5 | F11: Not used
E12: 6 | F12: Not used
E13: 7 | F13: Not used
E14: 8 | F14: Not used
E15: 9 | F15: Not used
E16: 10 | F16: Not used
E18: Summary Data | F18: Year | G18: =G6 -> 2019/20 | H18: =H6 -> 2020/21 | I18: =I6 -> 2021/22 | J18: =J6 -> 2022/23 | K18: =K6 -> 2023/24
F19: Total Volume | G19: =SUM(D29:F136) -> 19597191.58 | H19: =SUM(K29:M136) -> 19597191.58 | I19: =SUM(R29:T136) -> 19597191.58 | J19: =SUM(Y29:AA136) -> 19597191.58 | K19: =SUM(AF29:AH136) -> 19597191.58
F20: No. of MPANs | G20: =SUM(G29:G136) -> 2464967.338 | H20: =SUM(N29:N136) -> 2464967.338 | I20: =SUM(U29:U136) -> 2464967.338 | J20: =SUM(AB29:AB136) -> 2464967.338 | K20: =SUM(AI29:AI136) -> 2464967.338
F21: Total Import Capacity | G21: =SUM(H29:H136) -> 3802537.342 | H21: =SUM(O29:O136) -> 3802537.342 | I21: =SUM(V29:V136) -> 3802537.342 | J21: =SUM(AC29:AC136) -> 3802537.342 | K21: =SUM(AJ29:AJ136) -> 3802537.342
F22: Total exceeded capacity | G22: =SUM(I29:I136) -> 38025.37342 | H22: =SUM(P29:P136) -> 38025.37342 | I22: =SUM(W29:W136) -> 38025.37342 | J22: =SUM(AD29:AD136) -> 38025.37342 | K22: =SUM(AK29:AK136) -> 38025.37342
F23: Total Reactive | G23: =SUM(J29:J136) -> 699647.9915 | H23: =SUM(Q29:Q136) -> 699647.9915 | I23: =SUM(X29:X136) -> 699647.9915 | J23: =SUM(AE29:AE136) -> 699647.9915 | K23: =SUM(AL29:AL136) -> 699647.9915
C26: 1053. Volume forecasts for the charging year: | D26: =G6& " - ("&G5&")" -> 2019/20 - (Y) | K26: =H6& " - ("&H5&")" -> 2020/21 - (Y + 1) | R26: =I6& " - ("&I5&")" -> 2021/22 - (Y + 2) | Y26: =J6& " - ("&J5&")" -> 2022/23 - (Y + 3) | AF26: =K6& " - ("&K5&")" -> 2023/24 - (Y + 4)
B27: Customer Category | C27: Tariff | D27: Rate 1 units (MWh) | E27: Rate 2 units (MWh) | F27: Rate 3 units (MWh) | G27: MPANs | H27: Import capacity (kVA) | I27: Exceeded capacity (kVA) | J27: Reactive power units (MVArh) | K27: Rate 1 units (MWh) | L27: Rate 2 units (MWh) | M27: Rate 3 units (MWh) | N27: MPANs | O27: Import capacity (kVA) | P27: Exceeded capacity (kVA) | Q27: Reactive power units (MVArh) | R27: Rate 1 units (MWh) | S27: Rate 2 units (MWh) | T27: Rate 3 units (MWh) | U27: MPANs | V27: Import capacity (kVA) | W27: Exceeded capacity (kVA) | X27: Reactive power units (MVArh) | Y27: Rate 1 units (MWh) | Z27: Rate 2 units (MWh) | AA27: Rate 3 units (MWh) | AB27: MPANs | AC27: Import capacity (kVA) | AD27: Exceeded capacity (kVA) | AE27: Reactive power units (MVArh) | AF27: Rate 1 units (MWh) | AG27: Rate 2 units (MWh) | AH27: Rate 3 units (MWh) | AI27: MPANs | AJ27: Import capacity (kVA) | AK27: Exceeded capacity (kVA) | AL27: Reactive power units (MVArh)
A28: 1 | C28: > Domestic Unrestricted
A29: =A28+1 -> 2 | B29: 1 | C29: Domestic Unrestricted | D29: =[9]Input!B195 -> 6432881.847 | G29: =[9]Input!E195 -> 2027175.516 | K29: =IF(D29,((VLOOKUP($B29,$E$7:$AI$16,4)+1)*D29),) -> 6432881.847 | L29: =IF(E29,((VLOOKUP($B29,$E$7:$AI$16,8)+1)*E29),) -> 0 | M29: =IF(F29,((VLOOKUP($B29,$E$7:$AI$16,12)+1)*F29),) -> 0 | N29: =IF(G29,((VLOOKUP($B29,$E$7:$AI$16,16)+1)*G29),) -> 2027175.516 | O29: =IF(H29,((VLOOKUP($B29,$E$7:$AI$16,20)+1)*H29),) -> 0 | R29: =IF(D29,((VLOOKUP($B29,$E$7:$AI$16,5)+1)*K29),) -> 6432881.847 | S29: =IF(E29,((VLOOKUP($B29,$E$7:$AI$16,5+4)+1)*L29),) -> 0 | T29: =IF(F29,((VLOOKUP($B29,$E$7:$AI$16,5+8)+1)*M29),) -> 0 | U29: =IF(G29,((VLOOKUP($B29,$E$7:$AI$16,5+12)+1)*N29),) -> 2027175.516 | V29: =IF(H29,((VLOOKUP($B29,$E$7:$AI$16,5+16)+1)*O29),) -> 0 | Y29: =IF(D29,((VLOOKUP($B29,$E$7:$AI$16,6)+1)*R29),) -> 6432881.847 | Z29: =IF(E29,((VLOOKUP($B29,$E$7:$AI$16,6+4)+1)*S29),) -> 0 | AA29: =IF(F29,((VLOOKUP($B29,$E$7:$AI$16,6+8)+1)*T29),) -> 0 | AB29: =IF(G29,((VLOOKUP($B29,$E$7:$AI$16,6+12)+1)*U29),) -> 2027175.516 | AC29: =IF(H29,((VLOOKUP($B29,$E$7:$AI$16,6+16)+1)*V29),) -> 0 | AF29: =IF(D29,((VLOOKUP($B29,$E$7:$AI$16,7)+1)*Y29),) -> 6432881.847 | AG29: =IF(E29,((VLOOKUP($B29,$E$7:$AI$16,7+4)+1)*Z29),) -> 0 | AH29: =IF(F29,((VLOOKUP($B29,$E$7:$AI$16,7+8)+1)*AA29),) -> 0 | AI29: =IF(G29,((VLOOKUP($B29,$E$7:$AI$16,7+12)+1)*AB29),) -> 2027175.516 | AJ29: =IF(H29,((VLOOKUP($B29,$E$7:$AI$16,7+16)+1)*AC29),) -> 0
A30: =A29+1 -> 3 | B30: 1 | C30: LDNO LV: Domestic Unrestricted | D30: =[9]Input!B196 -> 113806.0014 | G30: =[9]Input!E196 -> 39023.01639 | K30: =IF(D30,((VLOOKUP($B30,$E$7:$AI$16,4)+1)*D30),) -> 113806.0014 | L30: =IF(E30,((VLOOKUP($B30,$E$7:$AI$16,8)+1)*E30),) -> 0 | M30: =IF(F30,((VLOOKUP($B30,$E$7:$AI$16,12)+1)*F30),) -> 0 | N30: =IF(G30,((VLOOKUP($B30,$E$7:$AI$16,16)+1)*G30),) -> 39023.01639 | O30: =IF(H30,((VLOOKUP($B30,$E$7:$AI$16,20)+1)*H30),) -> 0 | R30: =IF(D30,((VLOOKUP($B30,$E$7:$AI$16,5)+1)*K30),) -> 113806.0014 | S30: =IF(E30,((VLOOKUP($B30,$E$7:$AI$16,5+4)+1)*L30),) -> 0 | T30: =IF(F30,((VLOOKUP($B30,$E$7:$AI$16,5+8)+1)*M30),) -> 0 | U30: =IF(G30,((VLOOKUP($B30,$E$7:$AI$16,5+12)+1)*N30),) -> 39023.01639 | V30: =IF(H30,((VLOOKUP($B30,$E$7:$AI$16,5+16)+1)*O30),) -> 0 | Y30: =IF(D30,((VLOOKUP($B30,$E$7:$AI$16,6)+1)*R30),) -> 113806.0014 | Z30: =IF(E30,((VLOOKUP($B30,$E$7:$AI$16,6+4)+1)*S30),) -> 0 | AA30: =IF(F30,((VLOOKUP($B30,$E$7:$AI$16,6+8)+1)*T30),) -> 0 | AB30: =IF(G30,((VLOOKUP($B30,$E$7:$AI$16,6+12)+1)*U30),) -> 39023.01639 | AC30: =IF(H30,((VLOOKUP($B30,$E$7:$AI$16,6+16)+1)*V30),) -> 0 | AF30: =IF(D30,((VLOOKUP($B30,$E$7:$AI$16,7)+1)*Y30),) -> 113806.0014 | AG30: =IF(E30,((VLOOKUP($B30,$E$7:$AI$16,7+4)+1)*Z30),) -> 0 | AH30: =IF(F30,((VLOOKUP($B30,$E$7:$AI$16,7+8)+1)*AA30),) -> 0 | AI30: =IF(G30,((VLOOKUP($B30,$E$7:$AI$16,7+12)+1)*AB30),) -> 39023.01639 | AJ30: =IF(H30,((VLOOKUP($B30,$E$7:$AI$16,7+16)+1)*AC30),) -> 0
A31: 4 | B31: 1 | C31: LDNO HV: Domestic Unrestricted | D31: =[9]Input!B197 -> 92235.48541 | G31: =[9]Input!E197 -> 30193.85246 | K31: 92235.48541 | L31: 0 | M31: 0 | N31: 30193.85246 | O31: 0 | R31: 92235.48541 | S31: 0 | T31: 0 | U31: 30193.85246 | V31: 0 | Y31: 92235.48541 | Z31: 0 | AA31: 0 | AB31: 30193.85246 | AC31: 0 | AF31: 92235.48541 | AG31: 0 | AH31: 0 | AI31: 30193.85246 | AJ31: 0
A32: 5 | C32: > Domestic Two Rate | K32: 0 | L32: 0 | M32: 0 | N32: 0 | O32: 0 | R32: 0 | S32: 0 | T32: 0 | U32: 0 | V32: 0 | Y32: 0 | Z32: 0 | AA32: 0 | AB32: 0 | AC32: 0 | AF32: 0 | AG32: 0 | AH32: 0 | AI32: 0 | AJ32: 0
A33: 6 | B33: 1 | C33: Domestic Two Rate | D33: =[9]Input!B199 -> 468570.0779 | E33: =[9]Input!C199 -> 465777.1278 | G33: =[9]Input!E199 -> 178282 | K33: 468570.0779 | L33: 465777.1278 | M33: 0 | N33: 178282 | O33: 0 | R33: 468570.0779 | S33: 465777.1278 | T33: 0 | U33: 178282 | V33: 0 | Y33: 468570.0779 | Z33: 465777.1278 | AA33: 0 | AB33: 178282 | AC33: 0 | AF33: 468570.0779 | AG33: 465777.1278 | AH33: 0 | AI33: 178282 | AJ33: 0
A34: 7 | B34: 1 | C34: LDNO LV: Domestic Two Rate | D34: =[9]Input!B200 -> 1262.552664 | E34: =[9]Input!C200 -> 466.5835729 | G34: =[9]Input!E200 -> 440.4918033 | K34: 1262.552664 | L34: 466.5835729 | M34: 0 | N34: 440.4918033 | O34: 0 | R34: 1262.552664 | S34: 466.5835729 | T34: 0 | U34: 440.4918033 | V34: 0 | Y34: 1262.552664 | Z34: 466.5835729 | AA34: 0 | AB34: 440.4918033 | AC34: 0 | AF34: 1262.552664 | AG34: 466.5835729 | AH34: 0 | AI34: 440.4918033 | AJ34: 0
A35: 8 | B35: 1 | C35: LDNO HV: Domestic Two Rate | D35: =[9]Input!B201 -> 5123.491953 | E35: =[9]Input!C201 -> 2851.960297 | G35: =[9]Input!E201 -> 1559.224044 | K35: 5123.491953 | L35: 2851.960297 | M35: 0 | N35: 1559.224044 | O35: 0 | R35: 5123.491953 | S35: 2851.960297 | T35: 0 | U35: 1559.224044 | V35: 0 | Y35: 5123.491953 | Z35: 2851.960297 | AA35: 0 | AB35: 1559.224044 | AC35: 0 | AF35: 5123.491953 | AG35: 2851.960297 | AH35: 0 | AI35: 1559.224044 | AJ35: 0
A36: 9 | C36: > Domestic Off Peak (related MPAN) | K36: 0 | L36: 0 | M36: 0 | N36: 0 | O36: 0 | R36: 0 | S36: 0 | T36: 0 | U36: 0 | V36: 0 | Y36: 0 | Z36: 0 | AA36: 0 | AB36: 0 | AC36: 0 | AF36: 0 | AG36: 0 | AH36: 0 | AI36: 0 | AJ36: 0
A37: 10 | B37: 1 | C37: Domestic Off Peak (related MPAN) | D37: =[9]Input!B203 -> 14279.50209 | G37: =[9]Input!E203 -> 4270 | K37: 14279.50209 | L37: 0 | M37: 0 | N37: 4270 | O37: 0 | R37: 14279.50209 | S37: 0 | T37: 0 | U37: 4270 | V37: 0 | Y37: 14279.50209 | Z37: 0 | AA37: 0 | AB37: 4270 | AC37: 0 | AF37: 14279.50209 | AG37: 0 | AH37: 0 | AI37: 4270 | AJ37: 0
A38: 11 | B38: 1 | C38: LDNO LV: Domestic Off Peak (related MPAN) | D38: =[9]Input!B204 -> 0 | G38: =[9]Input!E204 -> 0 | K38: 0 | L38: 0 | M38: 0 | N38: 0 | O38: 0 | R38: 0 | S38: 0 | T38: 0 | U38: 0 | V38: 0 | Y38: 0 | Z38: 0 | AA38: 0 | AB38: 0 | AC38: 0 | AF38: 0 | AG38: 0 | AH38: 0 | AI38: 0 | AJ38: 0
A39: 12 | B39: 1 | C39: LDNO HV: Domestic Off Peak (related MPAN) | D39: =[9]Input!B205 -> 0 | G39: =[9]Input!E205 -> 0 | K39: 0 | L39: 0 | M39: 0 | N39: 0 | O39: 0 | R39: 0 | S39: 0 | T39: 0 | U39: 0 | V39: 0 | Y39: 0 | Z39: 0 | AA39: 0 | AB39: 0 | AC39: 0 | AF39: 0 | AG39: 0 | AH39: 0 | AI39: 0 | AJ39: 0
A40: 13 | C40: > Small Non Domestic Unrestricted | K40: 0 | L40: 0 | M40: 0 | N40: 0 | O40: 0 | R40: 0 | S40: 0 | T40: 0 | U40: 0 | V40: 0 | Y40: 0 | Z40: 0 | AA40: 0 | AB40: 0 | AC40: 0 | AF40: 0 | AG40: 0 | AH40: 0 | AI40: 0 | AJ40: 0
A41: 14 | B41: 1 | C41: Small Non Domestic Unrestricted | D41: =[9]Input!B207 -> 1494625.641 | G41: =[9]Input!E207 -> 121609.0109 | K41: 1494625.641 | L41: 0 | M41: 0 | N41: 121609.0109 | O41: 0 | R41: 1494625.641 | S41: 0 | T41: 0 | U41: 121609.0109 | V41: 0 | Y41: 1494625.641 | Z41: 0 | AA41: 0 | AB41: 121609.0109 | AC41: 0 | AF41: 1494625.641 | AG41: 0 | AH41: 0 | AI41: 121609.0109 | AJ41: 0
A42: 15 | B42: 1 | C42: LDNO LV: Small Non Domestic Unrestricted | D42: =[9]Input!B208 -> 5111.451049 | G42: =[9]Input!E208 -> 620.4863388 | K42: 5111.451049 | L42: 0 | M42: 0 | N42: 620.4863388 | O42: 0 | R42: 5111.451049 | S42: 0 | T42: 0 | U42: 620.4863388 | V42: 0 | Y42: 5111.451049 | Z42: 0 | AA42: 0 | AB42: 620.4863388 | AC42: 0 | AF42: 5111.451049 | AG42: 0 | AH42: 0 | AI42: 620.4863388 | AJ42: 0
A43: 16 | B43: 1 | C43: LDNO HV: Small Non Domestic Unrestricted | D43: =[9]Input!B209 -> 8421.969121 | G43: =[9]Input!E209 -> 630.4863388 | K43: 8421.969121 | L43: 0 | M43: 0 | N43: 630.4863388 | O43: 0 | R43: 8421.969121 | S43: 0 | T43: 0 | U43: 630.4863388 | V43: 0 | Y43: 8421.969121 | Z43: 0 | AA43: 0 | AB43: 630.4863388 | AC43: 0 | AF43: 8421.969121 | AG43: 0 | AH43: 0 | AI43: 630.4863388 | AJ43: 0
A44: 17 | C44: > Small Non Domestic Two Rate | K44: 0 | L44: 0 | M44: 0 | N44: 0 | O44: 0 | R44: 0 | S44: 0 | T44: 0 | U44: 0 | V44: 0 | Y44: 0 | Z44: 0 | AA44: 0 | AB44: 0 | AC44: 0 | AF44: 0 | AG44: 0 | AH44: 0 | AI44: 0 | AJ44: 0
A45: 18 | B45: 1 | C45: Small Non Domestic Two Rate | D45: =[9]Input!B211 -> 531718.6143 | E45: =[9]Input!C211 -> 195607.5639 | G45: =[9]Input!E211 -> 34183.40096 | K45: 531718.6143 | L45: 195607.5639 | M45: 0 | N45: 34183.40096 | O45: 0 | R45: 531718.6143 | S45: 195607.5639 | T45: 0 | U45: 34183.40096 | V45: 0 | Y45: 531718.6143 | Z45: 195607.5639 | AA45: 0 | AB45: 34183.40096 | AC45: 0 | AF45: 531718.6143 | AG45: 195607.5639 | AH45: 0 | AI45: 34183.40096 | AJ45: 0
A46: 19 | B46: 1 | C46: LDNO LV: Small Non Domestic Two Rate | D46: =[9]Input!B212 -> 12.27657143 | E46: =[9]Input!C212 -> 8.75475 | G46: =[9]Input!E212 -> 6 | K46: 12.27657143 | L46: 8.75475 | M46: 0 | N46: 6 | O46: 0 | R46: 12.27657143 | S46: 8.75475 | T46: 0 | U46: 6 | V46: 0 | Y46: 12.27657143 | Z46: 8.75475 | AA46: 0 | AB46: 6 | AC46: 0 | AF46: 12.27657143 | AG46: 8.75475 | AH46: 0 | AI46: 6 | AJ46: 0
A47: 20 | B47: 1 | C47: LDNO HV: Small Non Domestic Two Rate | D47: =[9]Input!B213 -> 517.7141845 | E47: =[9]Input!C213 -> 271.8904851 | G47: =[9]Input!E213 -> 17 | K47: 517.7141845 | L47: 271.8904851 | M47: 0 | N47: 17 | O47: 0 | R47: 517.7141845 | S47: 271.8904851 | T47: 0 | U47: 17 | V47: 0 | Y47: 517.7141845 | Z47: 271.8904851 | AA47: 0 | AB47: 17 | AC47: 0 | AF47: 517.7141845 | AG47: 271.8904851 | AH47: 0 | AI47: 17 | AJ47: 0
A48: 21 | C48: > Small Non Domestic Off Peak (related MPAN) | K48: 0 | L48: 0 | M48: 0 | N48: 0 | O48: 0 | R48: 0 | S48: 0 | T48: 0 | U48: 0 | V48: 0 | Y48: 0 | Z48: 0 | AA48: 0 | AB48: 0 | AC48: 0 | AF48: 0 | AG48: 0 | AH48: 0 | AI48: 0 | AJ48: 0
A49: 22 | B49: 1 | C49: Small Non Domestic Off Peak (related MPAN) | D49: =[9]Input!B215 -> 20242.62911 | G49: =[9]Input!E215 -> 3655 | K49: 20242.62911 | L49: 0 | M49: 0 | N49: 3655 | O49: 0 | R49: 20242.62911 | S49: 0 | T49: 0 | U49: 3655 | V49: 0 | Y49: 20242.62911 | Z49: 0 | AA49: 0 | AB49: 3655 | AC49: 0 | AF49: 20242.62911 | AG49: 0 | AH49: 0 | AI49: 3655 | AJ49: 0
A50: 23 | B50: 1 | C50: LDNO LV: Small Non Domestic Off Peak (related MPAN) | D50: =[9]Input!B216 -> 0 | G50: =[9]Input!E216 -> 0 | K50: 0 | L50: 0 | M50: 0 | N50: 0 | O50: 0 | R50: 0 | S50: 0 | T50: 0 | U50: 0 | V50: 0 | Y50: 0 | Z50: 0 | AA50: 0 | AB50: 0 | AC50: 0 | AF50: 0 | AG50: 0 | AH50: 0 | AI50: 0 | AJ50: 0
A51: 24 | B51: 1 | C51: LDNO HV: Small Non Domestic Off Peak (related MPAN) | D51: =[9]Input!B217 -> 0 | G51: =[9]Input!E217 -> 0 | K51: 0 | L51: 0 | M51: 0 | N51: 0 | O51: 0 | R51: 0 | S51: 0 | T51: 0 | U51: 0 | V51: 0 | Y51: 0 | Z51: 0 | AA51: 0 | AB51: 0 | AC51: 0 | AF51: 0 | AG51: 0 | AH51: 0 | AI51: 0 | AJ51: 0
A52: 25 | C52: > LV Medium Non-Domestic | K52: 0 | L52: 0 | M52: 0 | N52: 0 | O52: 0 | R52: 0 | S52: 0 | T52: 0 | U52: 0 | V52: 0 | Y52: 0 | Z52: 0 | AA52: 0 | AB52: 0 | AC52: 0 | AF52: 0 | AG52: 0 | AH52: 0 | AI52: 0 | AJ52: 0
A53: 26 | B53: 1 | C53: LV Medium Non-Domestic | D53: =[9]Input!B219 -> 0.9060389581 | E53: =[9]Input!C219 -> 0.09210488882 | G53: =[9]Input!E219 -> 0.001 | K53: 0.9060389581 | L53: 0.09210488882 | M53: 0 | N53: 0.001 | O53: 0 | R53: 0.9060389581 | S53: 0.09210488882 | T53: 0 | U53: 0.001 | V53: 0 | Y53: 0.9060389581 | Z53: 0.09210488882 | AA53: 0 | AB53: 0.001 | AC53: 0 | AF53: 0.9060389581 | AG53: 0.09210488882 | AH53: 0 | AI53: 0.001 | AJ53: 0
A54: 27 | B54: 1 | C54: LDNO LV: LV Medium Non-Domestic | D54: =[9]Input!B220 -> 104.3319476 | E54: =[9]Input!C220 -> 20.734 | G54: =[9]Input!E220 -> 2 | K54: 104.3319476 | L54: 20.734 | M54: 0 | N54: 2 | O54: 0 | R54: 104.3319476 | S54: 20.734 | T54: 0 | U54: 2 | V54: 0 | Y54: 104.3319476 | Z54: 20.734 | AA54: 0 | AB54: 2 | AC54: 0 | AF54: 104.3319476 | AG54: 20.734 | AH54: 0 | AI54: 2 | AJ54: 0
A55: 28 | B55: 1 | C55: LDNO HV: LV Medium Non-Domestic | D55: =[9]Input!B221 -> 0 | E55: =[9]Input!C221 -> 0 | G55: =[9]Input!E221 -> 0 | K55: 0 | L55: 0 | M55: 0 | N55: 0 | O55: 0 | R55: 0 | S55: 0 | T55: 0 | U55: 0 | V55: 0 | Y55: 0 | Z55: 0 | AA55: 0 | AB55: 0 | AC55: 0 | AF55: 0 | AG55: 0 | AH55: 0 | AI55: 0 | AJ55: 0
A56: 29 | C56: > LV Sub Medium Non-Domestic | K56: 0 | L56: 0 | M56: 0 | N56: 0 | O56: 0 | R56: 0 | S56: 0 | T56: 0 | U56: 0 | V56: 0 | Y56: 0 | Z56: 0 | AA56: 0 | AB56: 0 | AC56: 0 | AF56: 0 | AG56: 0 | AH56: 0 | AI56: 0 | AJ56: 0
A57: 30 | B57: 1 | C57: LV Sub Medium Non-Domestic | D57: =[9]Input!B223 -> 0.135963199 | E57: =[9]Input!C223 -> 0.2880364514 | G57: =[9]Input!E223 -> 0.001 | K57: 0.135963199 | L57: 0.2880364514 | M57: 0 | N57: 0.001 | O57: 0 | R57: 0.135963199 | S57: 0.2880364514 | T57: 0 | U57: 0.001 | V57: 0 | Y57: 0.135963199 | Z57: 0.2880364514 | AA57: 0 | AB57: 0.001 | AC57: 0 | AF57: 0.135963199 | AG57: 0.2880364514 | AH57: 0 | AI57: 0.001 | AJ57: 0
A58: 31 | C58: > HV Medium Non-Domestic | K58: 0 | L58: 0 | M58: 0 | N58: 0 | O58: 0 | R58: 0 | S58: 0 | T58: 0 | U58: 0 | V58: 0 | Y58: 0 | Z58: 0 | AA58: 0 | AB58: 0 | AC58: 0 | AF58: 0 | AG58: 0 | AH58: 0 | AI58: 0 | AJ58: 0
A59: 32 | B59: 1 | C59: HV Medium Non-Domestic | D59: =[9]Input!B225 -> 0.453019479 | E59: =[9]Input!C225 -> 1.153716089 | G59: =[9]Input!E225 -> 0.001 | K59: 0.453019479 | L59: 1.153716089 | M59: 0 | N59: 0.001 | O59: 0 | R59: 0.453019479 | S59: 1.153716089 | T59: 0 | U59: 0.001 | V59: 0 | Y59: 0.453019479 | Z59: 1.153716089 | AA59: 0 | AB59: 0.001 | AC59: 0 | AF59: 0.453019479 | AG59: 1.153716089 | AH59: 0 | AI59: 0.001 | AJ59: 0
A60: 33 | C60: > LV Network Domestic | K60: 0 | L60: 0 | M60: 0 | N60: 0 | O60: 0 | R60: 0 | S60: 0 | T60: 0 | U60: 0 | V60: 0 | Y60: 0 | Z60: 0 | AA60: 0 | AB60: 0 | AC60: 0 | AF60: 0 | AG60: 0 | AH60: 0 | AI60: 0 | AJ60: 0
A61: 34 | B61: 1 | C61: LV Network Domestic | D61: =[9]Input!B227 -> 68.86427045 | E61: =[9]Input!C227 -> 206.599709 | F61: =[9]Input!D227 -> 381.0705413 | G61: =[9]Input!E227 -> 339.8032787 | K61: 68.86427045 | L61: 206.599709 | M61: 381.0705413 | N61: 339.8032787 | O61: 0 | R61: 68.86427045 | S61: 206.599709 | T61: 381.0705413 | U61: 339.8032787 | V61: 0 | Y61: 68.86427045 | Z61: 206.599709 | AA61: 381.0705413 | AB61: 339.8032787 | AC61: 0 | AF61: 68.86427045 | AG61: 206.599709 | AH61: 381.0705413 | AI61: 339.8032787 | AJ61: 0
A62: 35 | B62: 1 | C62: LDNO LV: LV Network Domestic | D62: =[9]Input!B228 -> 0 | E62: =[9]Input!C228 -> 0 | F62: =[9]Input!D228 -> 0 | G62: =[9]Input!E228 -> 0 | K62: 0 | L62: 0 | M62: 0 | N62: 0 | O62: 0 | R62: 0 | S62: 0 | T62: 0 | U62: 0 | V62: 0 | Y62: 0 | Z62: 0 | AA62: 0 | AB62: 0 | AC62: 0 | AF62: 0 | AG62: 0 | AH62: 0 | AI62: 0 | AJ62: 0
A63: 36 | B63: 1 | C63: LDNO HV: LV Network Domestic | D63: =[9]Input!B229 -> 0 | E63: =[9]Input!C229 -> 0 | F63: =[9]Input!D229 -> 0 | G63: =[9]Input!E229 -> 0 | K63: 0 | L63: 0 | M63: 0 | N63: 0 | O63: 0 | R63: 0 | S63: 0 | T63: 0 | U63: 0 | V63: 0 | Y63: 0 | Z63: 0 | AA63: 0 | AB63: 0 | AC63: 0 | AF63: 0 | AG63: 0 | AH63: 0 | AI63: 0 | AJ63: 0
A64: 37 | C64: > LV Network Non-Domestic Non-CT | K64: 0 | L64: 0 | M64: 0 | N64: 0 | O64: 0 | R64: 0 | S64: 0 | T64: 0 | U64: 0 | V64: 0 | Y64: 0 | Z64: 0 | AA64: 0 | AB64: 0 | AC64: 0 | AF64: 0 | AG64: 0 | AH64: 0 | AI64: 0 | AJ64: 0
A65: 38 | B65: 1 | C65: LV Network Non-Domestic Non-CT | D65: =[9]Input!B231 -> 22435.96495 | E65: =[9]Input!C231 -> 80597.10447 | F65: =[9]Input!D231 -> 113029.9906 | G65: =[9]Input!E231 -> 3574 | K65: 22435.96495 | L65: 80597.10447 | M65: 113029.9906 | N65: 3574 | O65: 0 | R65: 22435.96495 | S65: 80597.10447 | T65: 113029.9906 | U65: 3574 | V65: 0 | Y65: 22435.96495 | Z65: 80597.10447 | AA65: 113029.9906 | AB65: 3574 | AC65: 0 | AF65: 22435.96495 | AG65: 80597.10447 | AH65: 113029.9906 | AI65: 3574 | AJ65: 0
A66: 39 | B66: 1 | C66: LDNO LV: LV Network Non-Domestic Non-CT | D66: =[9]Input!B232 -> 0 | E66: =[9]Input!C232 -> 0 | F66: =[9]Input!D232 -> 0 | G66: =[9]Input!E232 -> 0 | K66: 0 | L66: 0 | M66: 0 | N66: 0 | O66: 0 | R66: 0 | S66: 0 | T66: 0 | U66: 0 | V66: 0 | Y66: 0 | Z66: 0 | AA66: 0 | AB66: 0 | AC66: 0 | AF66: 0 | AG66: 0 | AH66: 0 | AI66: 0 | AJ66: 0
A67: 40 | B67: 1 | C67: LDNO HV: LV Network Non-Domestic Non-CT | D67: =[9]Input!B233 -> 0 | E67: =[9]Input!C233 -> 0 | F67: =[9]Input!D233 -> 0 | G67: =[9]Input!E233 -> 0 | K67: 0 | L67: 0 | M67: 0 | N67: 0 | O67: 0 | R67: 0 | S67: 0 | T67: 0 | U67: 0 | V67: 0 | Y67: 0 | Z67: 0 | AA67: 0 | AB67: 0 | AC67: 0 | AF67: 0 | AG67: 0 | AH67: 0 | AI67: 0 | AJ67: 0
A68: 41 | C68: > LV HH Metered | K68: 0 | L68: 0 | M68: 0 | N68: 0 | O68: 0 | R68: 0 | S68: 0 | T68: 0 | U68: 0 | V68: 0 | Y68: 0 | Z68: 0 | AA68: 0 | AB68: 0 | AC68: 0 | AF68: 0 | AG68: 0 | AH68: 0 | AI68: 0 | AJ68: 0
A69: 42 | B69: 2 | C69: LV HH Metered | D69: =[9]Input!B235 -> 259213.745 | E69: =[9]Input!C235 -> 926903.165 | F69: =[9]Input!D235 -> 1194700.314 | G69: =[9]Input!E235 -> 12971.0847 | H69: =[9]Input!F235 -> 1247153.2 | I69: =[9]Input!G235 -> 12471.532 | J69: =[9]Input!H235 -> 199567.5775 | K69: 259213.745 | L69: 926903.165 | M69: 1194700.314 | N69: 12971.0847 | O69: 1247153.2 | P69: =IF(I69,((VLOOKUP($B69,$E$7:$AI$16,24)+1)*I69),) -> 12471.532 | Q69: =IF(J69,((VLOOKUP($B69,$E$7:$AI$16,28)+1)*J69),) -> 199567.5775 | R69: 259213.745 | S69: 926903.165 | T69: 1194700.314 | U69: 12971.0847 | V69: 1247153.2 | W69: =IF(I69,((VLOOKUP($B69,$E$7:$AI$16,5+20)+1)*P69),) -> 12471.532 | X69: =IF(J69,((VLOOKUP($B69,$E$7:$AI$16,5+24)+1)*Q69),) -> 199567.5775 | Y69: 259213.745 | Z69: 926903.165 | AA69: 1194700.314 | AB69: 12971.0847 | AC69: 1247153.2 | AD69: =IF(I69,((VLOOKUP($B69,$E$7:$AI$16,6+20)+1)*W69),) -> 12471.532 | AE69: =IF(J69,((VLOOKUP($B69,$E$7:$AI$16,6+24)+1)*X69),) -> 199567.5775 | AF69: 259213.745 | AG69: 926903.165 | AH69: 1194700.314 | AI69: 12971.0847 | AJ69: 1247153.2 | AK69: =IF(I69,((VLOOKUP($B69,$E$7:$AI$16,7+20)+1)*AD69),) -> 12471.532 | AL69: =IF(J69,((VLOOKUP($B69,$E$7:$AI$16,7+24)+1)*AE69),) -> 199567.5775
A70: 43 | B70: 2 | C70: LDNO LV: LV HH Metered | D70: =[9]Input!B236 -> 1902.708646 | E70: =[9]Input!C236 -> 6571.208024 | F70: =[9]Input!D236 -> 8495.436429 | G70: =[9]Input!E236 -> 109.9945355 | H70: =[9]Input!F236 -> 7680.359135 | I70: =[9]Input!G236 -> 76.80359135 | J70: =[9]Input!H236 -> 712.8484 | K70: 1902.708646 | L70: 6571.208024 | M70: 8495.436429 | N70: 109.9945355 | O70: 7680.359135 | P70: =IF(I70,((VLOOKUP($B70,$E$7:$AI$16,24)+1)*I70),) -> 76.80359135 | Q70: =IF(J70,((VLOOKUP($B70,$E$7:$AI$16,28)+1)*J70),) -> 712.8484 | R70: 1902.708646 | S70: 6571.208024 | T70: 8495.436429 | U70: 109.9945355 | V70: 7680.359135 | W70: =IF(I70,((VLOOKUP($B70,$E$7:$AI$16,5+20)+1)*P70),) -> 76.80359135 | X70: =IF(J70,((VLOOKUP($B70,$E$7:$AI$16,5+24)+1)*Q70),) -> 712.8484 | Y70: 1902.708646 | Z70: 6571.208024 | AA70: 8495.436429 | AB70: 109.9945355 | AC70: 7680.359135 | AD70: =IF(I70,((VLOOKUP($B70,$E$7:$AI$16,6+20)+1)*W70),) -> 76.80359135 | AE70: =IF(J70,((VLOOKUP($B70,$E$7:$AI$16,6+24)+1)*X70),) -> 712.8484 | AF70: 1902.708646 | AG70: 6571.208024 | AH70: 8495.436429 | AI70: 109.9945355 | AJ70: 7680.359135 | AK70: =IF(I70,((VLOOKUP($B70,$E$7:$AI$16,7+20)+1)*AD70),) -> 76.80359135 | AL70: =IF(J70,((VLOOKUP($B70,$E$7:$AI$16,7+24)+1)*AE70),) -> 712.8484
A71: 44 | B71: 2 | C71: LDNO HV: LV HH Metered | D71: =[9]Input!B237 -> 13289.54065 | E71: =[9]Input!C237 -> 45417.60972 | F71: =[9]Input!D237 -> 64105.56336 | G71: =[9]Input!E237 -> 334.4863388 | H71: =[9]Input!F237 -> 57203.9097 | I71: =[9]Input!G237 -> 572.039097 | J71: =[9]Input!H237 -> 3078.89686 | K71: 13289.54065 | L71: 45417.60972 | M71: 64105.56336 | N71: 334.4863388 | O71: 57203.9097 | P71: 572.039097 | Q71: 3078.89686 | R71: 13289.54065 | S71: 45417.60972 | T71: 64105.56336 | U71: 334.4863388 | V71: 57203.9097 | W71: 572.039097 | X71: 3078.89686 | Y71: 13289.54065 | Z71: 45417.60972 | AA71: 64105.56336 | AB71: 334.4863388 | AC71: 57203.9097 | AD71: 572.039097 | AE71: 3078.89686 | AF71: 13289.54065 | AG71: 45417.60972 | AH71: 64105.56336 | AI71: 334.4863388 | AJ71: 57203.9097 | AK71: 572.039097 | AL71: 3078.89686
A72: 45 | C72: > LV Sub HH Metered | K72: 0 | L72: 0 | M72: 0 | N72: 0 | O72: 0 | R72: 0 | S72: 0 | T72: 0 | U72: 0 | V72: 0 | Y72: 0 | Z72: 0 | AA72: 0 | AB72: 0 | AC72: 0 | AF72: 0 | AG72: 0 | AH72: 0 | AI72: 0 | AJ72: 0
A73: 46 | B73: 2 | C73: LV Sub HH Metered | D73: =[9]Input!B239 -> 126109.0749 | E73: =[9]Input!C239 -> 462200.7154 | F73: =[9]Input!D239 -> 623163.7147 | G73: =[9]Input!E239 -> 2163.489071 | H73: =[9]Input!F239 -> 650266.427 | I73: =[9]Input!G239 -> 6502.66427 | J73: =[9]Input!H239 -> 97083.8447 | K73: 126109.0749 | L73: 462200.7154 | M73: 623163.7147 | N73: 2163.489071 | O73: 650266.427 | P73: =IF(I73,((VLOOKUP($B73,$E$7:$AI$16,24)+1)*I73),) -> 6502.66427 | Q73: =IF(J73,((VLOOKUP($B73,$E$7:$AI$16,28)+1)*J73),) -> 97083.8447 | R73: 126109.0749 | S73: 462200.7154 | T73: 623163.7147 | U73: 2163.489071 | V73: 650266.427 | W73: =IF(I73,((VLOOKUP($B73,$E$7:$AI$16,5+20)+1)*P73),) -> 6502.66427 | X73: =IF(J73,((VLOOKUP($B73,$E$7:$AI$16,5+24)+1)*Q73),) -> 97083.8447 | Y73: 126109.0749 | Z73: 462200.7154 | AA73: 623163.7147 | AB73: 2163.489071 | AC73: 650266.427 | AD73: =IF(I73,((VLOOKUP($B73,$E$7:$AI$16,6+20)+1)*W73),) -> 6502.66427 | AE73: =IF(J73,((VLOOKUP($B73,$E$7:$AI$16,6+24)+1)*X73),) -> 97083.8447 | AF73: 126109.0749 | AG73: 462200.7154 | AH73: 623163.7147 | AI73: 2163.489071 | AJ73: 650266.427 | AK73: =IF(I73,((VLOOKUP($B73,$E$7:$AI$16,7+20)+1)*AD73),) -> 6502.66427 | AL73: =IF(J73,((VLOOKUP($B73,$E$7:$AI$16,7+24)+1)*AE73),) -> 97083.8447
A74: 47 | B74: 2 | C74: LDNO HV: LV Sub HH Metered | D74: =[9]Input!B240 -> 1351.261253 | E74: =[9]Input!C240 -> 4492.991488 | F74: =[9]Input!D240 -> 7950.547777 | G74: =[9]Input!E240 -> 10 | H74: =[9]Input!F240 -> 6248.57096 | I74: =[9]Input!G240 -> 62.4857096 | J74: =[9]Input!H240 -> 77.417 | K74: 1351.261253 | L74: 4492.991488 | M74: 7950.547777 | N74: 10 | O74: 6248.57096 | P74: 62.4857096 | Q74: 77.417 | R74: 1351.261253 | S74: 4492.991488 | T74: 7950.547777 | U74: 10 | V74: 6248.57096 | W74: 62.4857096 | X74: 77.417 | Y74: 1351.261253 | Z74: 4492.991488 | AA74: 7950.547777 | AB74: 10 | AC74: 6248.57096 | AD74: 62.4857096 | AE74: 77.417 | AF74: 1351.261253 | AG74: 4492.991488 | AH74: 7950.547777 | AI74: 10 | AJ74: 6248.57096 | AK74: =IF(I74,((VLOOKUP($B74,$E$7:$AI$16,7+20)+1)*AD74),) -> 62.4857096 | AL74: =IF(J74,((VLOOKUP($B74,$E$7:$AI$16,7+24)+1)*AE74),) -> 77.417
A75: 48 | C75: > HV HH Metered | K75: 0 | L75: 0 | M75: 0 | N75: 0 | O75: 0 | R75: 0 | S75: 0 | T75: 0 | U75: 0 | V75: 0 | Y75: 0 | Z75: 0 | AA75: 0 | AB75: 0 | AC75: 0 | AF75: 0 | AG75: 0 | AH75: 0 | AI75: 0 | AJ75: 0
A76: 49 | B76: 2 | C76: HV HH Metered | D76: =[9]Input!B242 -> 457655.8379 | E76: =[9]Input!C242 -> 1565462.317 | F76: =[9]Input!D242 -> 2576162.916 | G76: =[9]Input!E242 -> 2232.92623 | H76: =[9]Input!F242 -> 1816038.308 | I76: =[9]Input!G242 -> 18160.38308 | J76: =[9]Input!H242 -> 366046.3577 | K76: 457655.8379 | L76: 1565462.317 | M76: 2576162.916 | N76: 2232.92623 | O76: 1816038.308 | P76: =IF(I76,((VLOOKUP($B76,$E$7:$AI$16,24)+1)*I76),) -> 18160.38308 | Q76: =IF(J76,((VLOOKUP($B76,$E$7:$AI$16,28)+1)*J76),) -> 366046.3577 | R76: 457655.8379 | S76: 1565462.317 | T76: 2576162.916 | U76: 2232.92623 | V76: 1816038.308 | W76: =IF(I76,((VLOOKUP($B76,$E$7:$AI$16,5+20)+1)*P76),) -> 18160.38308 | X76: =IF(J76,((VLOOKUP($B76,$E$7:$AI$16,5+24)+1)*Q76),) -> 366046.3577 | Y76: 457655.8379 | Z76: 1565462.317 | AA76: 2576162.916 | AB76: 2232.92623 | AC76: 1816038.308 | AD76: =IF(I76,((VLOOKUP($B76,$E$7:$AI$16,6+20)+1)*W76),) -> 18160.38308 | AE76: =IF(J76,((VLOOKUP($B76,$E$7:$AI$16,6+24)+1)*X76),) -> 366046.3577 | AF76: 457655.8379 | AG76: 1565462.317 | AH76: 2576162.916 | AI76: 2232.92623 | AJ76: 1816038.308 | AK76: =IF(I76,((VLOOKUP($B76,$E$7:$AI$16,7+20)+1)*AD76),) -> 18160.38308 | AL76: =IF(J76,((VLOOKUP($B76,$E$7:$AI$16,7+24)+1)*AE76),) -> 366046.3577
A77: 50 | B77: 2 | C77: LDNO HV: HV HH Metered | D77: =[9]Input!B243 -> 2580.028981 | E77: =[9]Input!C243 -> 8492.991421 | F77: =[9]Input!D243 -> 16606.32578 | G77: =[9]Input!E243 -> 13 | H77: =[9]Input!F243 -> 17946.56797 | I77: =[9]Input!G243 -> 179.4656797 | J77: =[9]Input!H243 -> 90.4662 | K77: 2580.028981 | L77: 8492.991421 | M77: 16606.32578 | N77: 13 | O77: 17946.56797 | P77: 179.4656797 | Q77: 90.4662 | R77: 2580.028981 | S77: 8492.991421 | T77: 16606.32578 | U77: 13 | V77: 17946.56797 | W77: 179.4656797 | X77: 90.4662 | Y77: 2580.028981 | Z77: 8492.991421 | AA77: 16606.32578 | AB77: 13 | AC77: 17946.56797 | AD77: 179.4656797 | AE77: 90.4662 | AF77: 2580.028981 | AG77: 8492.991421 | AH77: 16606.32578 | AI77: 13 | AJ77: 17946.56797 | AK77: =IF(I77,((VLOOKUP($B77,$E$7:$AI$16,7+20)+1)*AD77),) -> 179.4656797 | AL77: =IF(J77,((VLOOKUP($B77,$E$7:$AI$16,7+24)+1)*AE77),) -> 90.4662
A78: 51 | C78: > NHH UMS category A | K78: 0 | L78: 0 | M78: 0 | N78: 0 | O78: 0 | R78: 0 | S78: 0 | T78: 0 | U78: 0 | V78: 0 | Y78: 0 | Z78: 0 | AA78: 0 | AB78: 0 | AC78: 0 | AF78: 0 | AG78: 0 | AH78: 0 | AI78: 0 | AJ78: 0
A79: 52 | B79: 1 | C79: NHH UMS category A | D79: =[9]Input!B245 -> 17466.39689 | G79: =[9]Input!E245 -> 203.5027322 | K79: 17466.39689 | L79: 0 | M79: 0 | N79: 203.5027322 | O79: 0 | R79: 17466.39689 | S79: 0 | T79: 0 | U79: 203.5027322 | V79: 0 | Y79: 17466.39689 | Z79: 0 | AA79: 0 | AB79: 203.5027322 | AC79: 0 | AF79: 17466.39689 | AG79: 0 | AH79: 0 | AI79: 203.5027322 | AJ79: 0
A80: 53 | B80: 1 | C80: LDNO LV: NHH UMS category A | D80: =[9]Input!B246 -> 0 | G80: =[9]Input!E246 -> 0 | K80: 0 | L80: 0 | M80: 0 | N80: 0 | O80: 0 | R80: 0 | S80: 0 | T80: 0 | U80: 0 | V80: 0 | Y80: 0 | Z80: 0 | AA80: 0 | AB80: 0 | AC80: 0 | AF80: 0 | AG80: 0 | AH80: 0 | AI80: 0 | AJ80: 0
A81: 54 | B81: 1 | C81: LDNO HV: NHH UMS category A | D81: =[9]Input!B247 -> 0 | G81: =[9]Input!E247 -> 0 | K81: 0 | L81: 0 | M81: 0 | N81: 0 | O81: 0 | R81: 0 | S81: 0 | T81: 0 | U81: 0 | V81: 0 | Y81: 0 | Z81: 0 | AA81: 0 | AB81: 0 | AC81: 0 | AF81: 0 | AG81: 0 | AH81: 0 | AI81: 0 | AJ81: 0
A82: 55 | C82: > NHH UMS category B | K82: 0 | L82: 0 | M82: 0 | N82: 0 | O82: 0 | R82: 0 | S82: 0 | T82: 0 | U82: 0 | V82: 0 | Y82: 0 | Z82: 0 | AA82: 0 | AB82: 0 | AC82: 0 | AF82: 0 | AG82: 0 | AH82: 0 | AI82: 0 | AJ82: 0
A83: 56 | B83: 1 | C83: NHH UMS category B | D83: =[9]Input!B249 -> 9156.631168 | G83: =[9]Input!E249 -> 326 | K83: 9156.631168 | L83: 0 | M83: 0 | N83: 326 | O83: 0 | R83: 9156.631168 | S83: 0 | T83: 0 | U83: 326 | V83: 0 | Y83: 9156.631168 | Z83: 0 | AA83: 0 | AB83: 326 | AC83: 0 | AF83: 9156.631168 | AG83: 0 | AH83: 0 | AI83: 326 | AJ83: 0
A84: 57 | B84: 1 | C84: LDNO LV: NHH UMS category B | D84: =[9]Input!B250 -> 217.541384 | G84: =[9]Input!E250 -> 85 | K84: 217.541384 | L84: 0 | M84: 0 | N84: 85 | O84: 0 | R84: 217.541384 | S84: 0 | T84: 0 | U84: 85 | V84: 0 | Y84: 217.541384 | Z84: 0 | AA84: 0 | AB84: 85 | AC84: 0 | AF84: 217.541384 | AG84: 0 | AH84: 0 | AI84: 85 | AJ84: 0
A85: 58 | B85: 1 | C85: LDNO HV: NHH UMS category B | D85: =[9]Input!B251 -> 60.74485714 | G85: =[9]Input!E251 -> 7 | K85: 60.74485714 | L85: 0 | M85: 0 | N85: 7 | O85: 0 | R85: 60.74485714 | S85: 0 | T85: 0 | U85: 7 | V85: 0 | Y85: 60.74485714 | Z85: 0 | AA85: 0 | AB85: 7 | AC85: 0 | AF85: 60.74485714 | AG85: 0 | AH85: 0 | AI85: 7 | AJ85: 0
A86: 59 | C86: > NHH UMS category C | K86: 0 | L86: 0 | M86: 0 | N86: 0 | O86: 0 | R86: 0 | S86: 0 | T86: 0 | U86: 0 | V86: 0 | Y86: 0 | Z86: 0 | AA86: 0 | AB86: 0 | AC86: 0 | AF86: 0 | AG86: 0 | AH86: 0 | AI86: 0 | AJ86: 0
A87: 60 | B87: 1 | C87: NHH UMS category C | D87: =[9]Input!B253 -> 411.2469303 | G87: =[9]Input!E253 -> 8 | K87: 411.2469303 | L87: 0 | M87: 0 | N87: 8 | O87: 0 | R87: 411.2469303 | S87: 0 | T87: 0 | U87: 8 | V87: 0 | Y87: 411.2469303 | Z87: 0 | AA87: 0 | AB87: 8 | AC87: 0 | AF87: 411.2469303 | AG87: 0 | AH87: 0 | AI87: 8 | AJ87: 0
A88: 61 | B88: 1 | C88: LDNO LV: NHH UMS category C | D88: =[9]Input!B254 -> 0 | G88: =[9]Input!E254 -> 0 | K88: 0 | L88: 0 | M88: 0 | N88: 0 | O88: 0 | R88: 0 | S88: 0 | T88: 0 | U88: 0 | V88: 0 | Y88: 0 | Z88: 0 | AA88: 0 | AB88: 0 | AC88: 0 | AF88: 0 | AG88: 0 | AH88: 0 | AI88: 0 | AJ88: 0
A89: 62 | B89: 1 | C89: LDNO HV: NHH UMS category C | D89: =[9]Input!B255 -> 0 | G89: =[9]Input!E255 -> 0 | K89: 0 | L89: 0 | M89: 0 | N89: 0 | O89: 0 | R89: 0 | S89: 0 | T89: 0 | U89: 0 | V89: 0 | Y89: 0 | Z89: 0 | AA89: 0 | AB89: 0 | AC89: 0 | AF89: 0 | AG89: 0 | AH89: 0 | AI89: 0 | AJ89: 0
A90: 63 | C90: > NHH UMS category D | K90: 0 | L90: 0 | M90: 0 | N90: 0 | O90: 0 | R90: 0 | S90: 0 | T90: 0 | U90: 0 | V90: 0 | Y90: 0 | Z90: 0 | AA90: 0 | AB90: 0 | AC90: 0 | AF90: 0 | AG90: 0 | AH90: 0 | AI90: 0 | AJ90: 0
A91: 64 | B91: 1 | C91: NHH UMS category D | D91: =[9]Input!B257 -> 0.05140586629 | G91: =[9]Input!E257 -> 0.001 | K91: 0.05140586629 | L91: 0 | M91: 0 | N91: 0.001 | O91: 0 | R91: 0.05140586629 | S91: 0 | T91: 0 | U91: 0.001 | V91: 0 | Y91: 0.05140586629 | Z91: 0 | AA91: 0 | AB91: 0.001 | AC91: 0 | AF91: 0.05140586629 | AG91: 0 | AH91: 0 | AI91: 0.001 | AJ91: 0
A92: 65 | B92: 1 | C92: LDNO LV: NHH UMS category D | D92: =[9]Input!B258 -> 0 | G92: =[9]Input!E258 -> 0 | K92: 0 | L92: 0 | M92: 0 | N92: 0 | O92: 0 | R92: 0 | S92: 0 | T92: 0 | U92: 0 | V92: 0 | Y92: 0 | Z92: 0 | AA92: 0 | AB92: 0 | AC92: 0 | AF92: 0 | AG92: 0 | AH92: 0 | AI92: 0 | AJ92: 0
A93: 66 | B93: 1 | C93: LDNO HV: NHH UMS category D | D93: =[9]Input!B259 -> 0 | G93: =[9]Input!E259 -> 0 | K93: 0 | L93: 0 | M93: 0 | N93: 0 | O93: 0 | R93: 0 | S93: 0 | T93: 0 | U93: 0 | V93: 0 | Y93: 0 | Z93: 0 | AA93: 0 | AB93: 0 | AC93: 0 | AF93: 0 | AG93: 0 | AH93: 0 | AI93: 0 | AJ93: 0
A94: =A93+1 -> 67 | C94: > LV UMS (Pseudo HH Metered) | K94: =IF(D94,((VLOOKUP($B94,$E$7:$AI$16,4)+1)*D94),) -> 0 | L94: =IF(E94,((VLOOKUP($B94,$E$7:$AI$16,8)+1)*E94),) -> 0 | M94: =IF(F94,((VLOOKUP($B94,$E$7:$AI$16,12)+1)*F94),) -> 0 | N94: =IF(G94,((VLOOKUP($B94,$E$7:$AI$16,16)+1)*G94),) -> 0 | O94: =IF(H94,((VLOOKUP($B94,$E$7:$AI$16,20)+1)*H94),) -> 0 | R94: =IF(D94,((VLOOKUP($B94,$E$7:$AI$16,5)+1)*K94),) -> 0 | S94: =IF(E94,((VLOOKUP($B94,$E$7:$AI$16,5+4)+1)*L94),) -> 0 | T94: =IF(F94,((VLOOKUP($B94,$E$7:$AI$16,5+8)+1)*M94),) -> 0 | U94: =IF(G94,((VLOOKUP($B94,$E$7:$AI$16,5+12)+1)*N94),) -> 0 | V94: =IF(H94,((VLOOKUP($B94,$E$7:$AI$16,5+16)+1)*O94),) -> 0 | Y94: =IF(D94,((VLOOKUP($B94,$E$7:$AI$16,6)+1)*R94),) -> 0 | Z94: =IF(E94,((VLOOKUP($B94,$E$7:$AI$16,6+4)+1)*S94),) -> 0 | AA94: =IF(F94,((VLOOKUP($B94,$E$7:$AI$16,6+8)+1)*T94),) -> 0 | AB94: =IF(G94,((VLOOKUP($B94,$E$7:$AI$16,6+12)+1)*U94),) -> 0 | AC94: =IF(H94,((VLOOKUP($B94,$E$7:$AI$16,6+16)+1)*V94),) -> 0 | AF94: =IF(D94,((VLOOKUP($B94,$E$7:$AI$16,7)+1)*Y94),) -> 0 | AG94: =IF(E94,((VLOOKUP($B94,$E$7:$AI$16,7+4)+1)*Z94),) -> 0 | AH94: =IF(F94,((VLOOKUP($B94,$E$7:$AI$16,7+8)+1)*AA94),) -> 0 | AI94: =IF(G94,((VLOOKUP($B94,$E$7:$AI$16,7+12)+1)*AB94),) -> 0 | AJ94: =IF(H94,((VLOOKUP($B94,$E$7:$AI$16,7+16)+1)*AC94),) -> 0
A95: 68 | B95: 2 | C95: LV UMS (Pseudo HH Metered) | D95: =[9]Input!B261 -> 10560.70647 | E95: =[9]Input!C261 -> 28387.51814 | F95: =[9]Input!D261 -> 176907.0706 | G95: =[9]Input!E261 -> 25 | K95: 10560.70647 | L95: 28387.51814 | M95: 176907.0706 | N95: 25 | O95: 0 | R95: 10560.70647 | S95: 28387.51814 | T95: 176907.0706 | U95: 25 | V95: 0 | Y95: 10560.70647 | Z95: 28387.51814 | AA95: 176907.0706 | AB95: 25 | AC95: 0 | AF95: 10560.70647 | AG95: 28387.51814 | AH95: 176907.0706 | AI95: 25 | AJ95: 0
A96: 69 | B96: 2 | C96: LDNO LV: LV UMS (Pseudo HH Metered) | D96: =[9]Input!B262 -> 0 | E96: =[9]Input!C262 -> 0 | F96: =[9]Input!D262 -> 0 | G96: =[9]Input!E262 -> 0 | K96: 0 | L96: 0 | M96: 0 | N96: 0 | O96: 0 | R96: 0 | S96: 0 | T96: 0 | U96: 0 | V96: 0 | Y96: 0 | Z96: 0 | AA96: 0 | AB96: 0 | AC96: 0 | AF96: 0 | AG96: 0 | AH96: 0 | AI96: 0 | AJ96: 0
A97: 70 | B97: 2 | C97: LDNO HV: LV UMS (Pseudo HH Metered) | D97: =[9]Input!B263 -> 0 | E97: =[9]Input!C263 -> 0 | F97: =[9]Input!D263 -> 0 | G97: =[9]Input!E263 -> 0 | K97: 0 | L97: 0 | M97: 0 | N97: 0 | O97: 0 | R97: 0 | S97: 0 | T97: 0 | U97: 0 | V97: 0 | Y97: 0 | Z97: 0 | AA97: 0 | AB97: 0 | AC97: 0 | AF97: 0 | AG97: 0 | AH97: 0 | AI97: 0 | AJ97: 0
A98: 71 | C98: > LV Generation NHH or Aggregate HH | K98: 0 | L98: 0 | M98: 0 | N98: 0 | O98: 0 | R98: 0 | S98: 0 | T98: 0 | U98: 0 | V98: 0 | Y98: 0 | Z98: 0 | AA98: 0 | AB98: 0 | AC98: 0 | AF98: 0 | AG98: 0 | AH98: 0 | AI98: 0 | AJ98: 0
A99: 72 | B99: 4 | C99: LV Generation NHH or Aggregate HH | D99: =[9]Input!B265 -> 3259.869343 | G99: =[9]Input!E265 -> 270.0655738 | K99: 3259.869343 | L99: 0 | M99: 0 | N99: 270.0655738 | O99: 0 | R99: 3259.869343 | S99: 0 | T99: 0 | U99: 270.0655738 | V99: 0 | Y99: 3259.869343 | Z99: 0 | AA99: 0 | AB99: 270.0655738 | AC99: 0 | AF99: 3259.869343 | AG99: 0 | AH99: 0 | AI99: 270.0655738 | AJ99: 0
A100: 73 | B100: 4 | C100: LDNO LV: LV Generation NHH or Aggregate HH | D100: =[9]Input!B266 -> 0 | G100: =[9]Input!E266 -> 0 | K100: 0 | L100: 0 | M100: 0 | N100: 0 | O100: 0 | R100: 0 | S100: 0 | T100: 0 | U100: 0 | V100: 0 | Y100: 0 | Z100: 0 | AA100: 0 | AB100: 0 | AC100: 0 | AF100: 0 | AG100: 0 | AH100: 0 | AI100: 0 | AJ100: 0
A101: 74 | B101: 4 | C101: LDNO HV: LV Generation NHH or Aggregate HH | D101: =[9]Input!B267 -> 0 | G101: =[9]Input!E267 -> 0 | K101: 0 | L101: 0 | M101: 0 | N101: 0 | O101: 0 | R101: 0 | S101: 0 | T101: 0 | U101: 0 | V101: 0 | Y101: 0 | Z101: 0 | AA101: 0 | AB101: 0 | AC101: 0 | AF101: 0 | AG101: 0 | AH101: 0 | AI101: 0 | AJ101: 0
A102: 75 | C102: > LV Sub Generation NHH | K102: 0 | L102: 0 | M102: 0 | N102: 0 | O102: 0 | R102: 0 | S102: 0 | T102: 0 | U102: 0 | V102: 0 | Y102: 0 | Z102: 0 | AA102: 0 | AB102: 0 | AC102: 0 | AF102: 0 | AG102: 0 | AH102: 0 | AI102: 0 | AJ102: 0
A103: 76 | B103: 4 | C103: LV Sub Generation NHH | D103: =[9]Input!B269 -> 0.9598142732 | G103: =[9]Input!E269 -> 0.01 | K103: 0.9598142732 | L103: 0 | M103: 0 | N103: 0.01 | O103: 0 | R103: 0.9598142732 | S103: 0 | T103: 0 | U103: 0.01 | V103: 0 | Y103: 0.9598142732 | Z103: 0 | AA103: 0 | AB103: 0.01 | AC103: 0 | AF103: 0.9598142732 | AG103: 0 | AH103: 0 | AI103: 0.01 | AJ103: 0
A104: 77 | B104: 4 | C104: LDNO HV: LV Sub Generation NHH | D104: =[9]Input!B270 -> 0 | G104: =[9]Input!E270 -> 0 | K104: 0 | L104: 0 | M104: 0 | N104: 0 | O104: 0 | R104: 0 | S104: 0 | T104: 0 | U104: 0 | V104: 0 | Y104: 0 | Z104: 0 | AA104: 0 | AB104: 0 | AC104: 0 | AF104: 0 | AG104: 0 | AH104: 0 | AI104: 0 | AJ104: 0
A105: 78 | C105: > LV Generation Intermittent | K105: 0 | L105: 0 | M105: 0 | N105: 0 | O105: 0 | R105: 0 | S105: 0 | T105: 0 | U105: 0 | V105: 0 | Y105: 0 | Z105: 0 | AA105: 0 | AB105: 0 | AC105: 0 | AF105: 0 | AG105: 0 | AH105: 0 | AI105: 0 | AJ105: 0
A106: 79 | B106: 4 | C106: LV Generation Intermittent | D106: =[9]Input!B272 -> 20683.73534 | G106: =[9]Input!E272 -> 215.4972678 | J106: =[9]Input!H272 -> 1784.4707 | K106: 20683.73534 | L106: 0 | M106: 0 | N106: 215.4972678 | O106: 0 | Q106: =IF(J106,((VLOOKUP($B106,$E$7:$AI$16,28)+1)*J106),) -> 1784.4707 | R106: 20683.73534 | S106: 0 | T106: 0 | U106: 215.4972678 | V106: 0 | X106: =IF(J106,((VLOOKUP($B106,$E$7:$AI$16,5+24)+1)*Q106),) -> 1784.4707 | Y106: 20683.73534 | Z106: 0 | AA106: 0 | AB106: 215.4972678 | AC106: 0 | AE106: =IF(J106,((VLOOKUP($B106,$E$7:$AI$16,6+24)+1)*X106),) -> 1784.4707 | AF106: 20683.73534 | AG106: 0 | AH106: 0 | AI106: 215.4972678 | AJ106: 0 | AL106: =IF(J106,((VLOOKUP($B106,$E$7:$AI$16,7+24)+1)*AE106),) -> 1784.4707
A107: 80 | B107: 4 | C107: LDNO LV: LV Generation Intermittent | D107: =[9]Input!B273 -> 0 | G107: =[9]Input!E273 -> 0 | J107: =[9]Input!H273 -> 0 | K107: 0 | L107: 0 | M107: 0 | N107: 0 | O107: 0 | Q107: 0 | R107: 0 | S107: 0 | T107: 0 | U107: 0 | V107: 0 | X107: 0 | Y107: 0 | Z107: 0 | AA107: 0 | AB107: 0 | AC107: 0 | AE107: 0 | AF107: 0 | AG107: 0 | AH107: 0 | AI107: 0 | AJ107: 0 | AL107: 0
A108: 81 | B108: 4 | C108: LDNO HV: LV Generation Intermittent | D108: =[9]Input!B274 -> 0 | G108: =[9]Input!E274 -> 0 | J108: =[9]Input!H274 -> 0 | K108: 0 | L108: 0 | M108: 0 | N108: 0 | O108: 0 | Q108: 0 | R108: 0 | S108: 0 | T108: 0 | U108: 0 | V108: 0 | X108: 0 | Y108: 0 | Z108: 0 | AA108: 0 | AB108: 0 | AC108: 0 | AE108: 0 | AF108: 0 | AG108: 0 | AH108: 0 | AI108: 0 | AJ108: 0 | AL108: 0
A109: 82 | C109: > LV Generation Intermittent no RP charge | K109: 0 | L109: 0 | M109: 0 | N109: 0 | O109: 0 | R109: 0 | S109: 0 | T109: 0 | U109: 0 | V109: 0 | Y109: 0 | Z109: 0 | AA109: 0 | AB109: 0 | AC109: 0 | AF109: 0 | AG109: 0 | AH109: 0 | AI109: 0 | AJ109: 0
A110: 83 | B110: 4 | C110: LV Generation Intermittent no RP charge | D110: =[9]Input!B276 -> 0 | G110: =[9]Input!E276 -> 0 | K110: 0 | L110: 0 | M110: 0 | N110: 0 | O110: 0 | R110: 0 | S110: 0 | T110: 0 | U110: 0 | V110: 0 | Y110: 0 | Z110: 0 | AA110: 0 | AB110: 0 | AC110: 0 | AF110: 0 | AG110: 0 | AH110: 0 | AI110: 0 | AJ110: 0
A111: 84 | C111: > LV Generation Non-Intermittent | K111: 0 | L111: 0 | M111: 0 | N111: 0 | O111: 0 | R111: 0 | S111: 0 | T111: 0 | U111: 0 | V111: 0 | Y111: 0 | Z111: 0 | AA111: 0 | AB111: 0 | AC111: 0 | AF111: 0 | AG111: 0 | AH111: 0 | AI111: 0 | AJ111: 0
A112: 85 | B112: 4 | C112: LV Generation Non-Intermittent | D112: =[9]Input!B278 -> 502.1255046 | E112: =[9]Input!C278 -> 1708.434922 | F112: =[9]Input!D278 -> 3787.878171 | G112: =[9]Input!E278 -> 20 | J112: =[9]Input!H278 -> 829.1005 | K112: 502.1255046 | L112: 1708.434922 | M112: 3787.878171 | N112: 20 | O112: 0 | Q112: =IF(J112,((VLOOKUP($B112,$E$7:$AI$16,28)+1)*J112),) -> 829.1005 | R112: 502.1255046 | S112: 1708.434922 | T112: 3787.878171 | U112: 20 | V112: 0 | X112: =IF(J112,((VLOOKUP($B112,$E$7:$AI$16,5+24)+1)*Q112),) -> 829.1005 | Y112: 502.1255046 | Z112: 1708.434922 | AA112: 3787.878171 | AB112: 20 | AC112: 0 | AE112: =IF(J112,((VLOOKUP($B112,$E$7:$AI$16,6+24)+1)*X112),) -> 829.1005 | AF112: 502.1255046 | AG112: 1708.434922 | AH112: 3787.878171 | AI112: 20 | AJ112: 0 | AL112: =IF(J112,((VLOOKUP($B112,$E$7:$AI$16,7+24)+1)*AE112),) -> 829.1005
A113: 86 | B113: 4 | C113: LDNO LV: LV Generation Non-Intermittent | D113: =[9]Input!B279 -> 0 | E113: =[9]Input!C279 -> 0.193 | F113: =[9]Input!D279 -> 1.391107143 | G113: =[9]Input!E279 -> 2 | J113: =[9]Input!H279 -> 0.959 | K113: 0 | L113: 0.193 | M113: 1.391107143 | N113: 2 | O113: 0 | Q113: 0.959 | R113: 0 | S113: 0.193 | T113: 1.391107143 | U113: 2 | V113: 0 | X113: 0.959 | Y113: 0 | Z113: 0.193 | AA113: 1.391107143 | AB113: 2 | AC113: 0 | AE113: 0.959 | AF113: 0 | AG113: 0.193 | AH113: 1.391107143 | AI113: 2 | AJ113: 0 | AL113: 0.959
A114: 87 | B114: 4 | C114: LDNO HV: LV Generation Non-Intermittent | D114: =[9]Input!B280 -> 0 | E114: =[9]Input!C280 -> 0 | F114: =[9]Input!D280 -> 0 | G114: =[9]Input!E280 -> 0 | J114: =[9]Input!H280 -> 0 | K114: 0 | L114: 0 | M114: 0 | N114: 0 | O114: 0 | Q114: 0 | R114: 0 | S114: 0 | T114: 0 | U114: 0 | V114: 0 | X114: 0 | Y114: 0 | Z114: 0 | AA114: 0 | AB114: 0 | AC114: 0 | AE114: 0 | AF114: 0 | AG114: 0 | AH114: 0 | AI114: 0 | AJ114: 0 | AL114: =IF(J114,((VLOOKUP($B114,$E$7:$AI$16,7+24)+1)*AE114),) -> 0
A115: 88 | C115: > LV Generation Non-Intermittent no RP charge | K115: 0 | L115: 0 | M115: 0 | N115: 0 | O115: 0 | R115: 0 | S115: 0 | T115: 0 | U115: 0 | V115: 0 | Y115: 0 | Z115: 0 | AA115: 0 | AB115: 0 | AC115: 0 | AF115: 0 | AG115: 0 | AH115: 0 | AI115: 0 | AJ115: 0
A116: 89 | B116: 4 | C116: LV Generation Non-Intermittent no RP charge | D116: =[9]Input!B282 -> 0 | E116: =[9]Input!C282 -> 0 | F116: =[9]Input!D282 -> 0 | G116: =[9]Input!E282 -> 0 | K116: 0 | L116: 0 | M116: 0 | N116: 0 | O116: 0 | R116: 0 | S116: 0 | T116: 0 | U116: 0 | V116: 0 | Y116: 0 | Z116: 0 | AA116: 0 | AB116: 0 | AC116: 0 | AF116: 0 | AG116: 0 | AH116: 0 | AI116: 0 | AJ116: 0
A117: 90 | C117: > LV Sub Generation Intermittent | K117: 0 | L117: 0 | M117: 0 | N117: 0 | O117: 0 | R117: 0 | S117: 0 | T117: 0 | U117: 0 | V117: 0 | Y117: 0 | Z117: 0 | AA117: 0 | AB117: 0 | AC117: 0 | AF117: 0 | AG117: 0 | AH117: 0 | AI117: 0 | AJ117: 0
A118: 91 | B118: 4 | C118: LV Sub Generation Intermittent | D118: =[9]Input!B284 -> 4182.582395 | G118: =[9]Input!E284 -> 50.49726776 | J118: =[9]Input!H284 -> 228.4576 | K118: 4182.582395 | L118: 0 | M118: 0 | N118: 50.49726776 | O118: 0 | Q118: =IF(J118,((VLOOKUP($B118,$E$7:$AI$16,28)+1)*J118),) -> 228.4576 | R118: 4182.582395 | S118: 0 | T118: 0 | U118: 50.49726776 | V118: 0 | X118: =IF(J118,((VLOOKUP($B118,$E$7:$AI$16,5+24)+1)*Q118),) -> 228.4576 | Y118: 4182.582395 | Z118: 0 | AA118: 0 | AB118: 50.49726776 | AC118: 0 | AE118: =IF(J118,((VLOOKUP($B118,$E$7:$AI$16,6+24)+1)*X118),) -> 228.4576 | AF118: 4182.582395 | AG118: 0 | AH118: 0 | AI118: 50.49726776 | AJ118: 0 | AL118: =IF(J118,((VLOOKUP($B118,$E$7:$AI$16,7+24)+1)*AE118),) -> 228.4576
A119: 92 | B119: 4 | C119: LDNO HV: LV Sub Generation Intermittent | D119: =[9]Input!B285 -> 0 | G119: =[9]Input!E285 -> 0 | J119: =[9]Input!H285 -> 0 | K119: 0 | L119: 0 | M119: 0 | N119: 0 | O119: 0 | Q119: 0 | R119: 0 | S119: 0 | T119: 0 | U119: 0 | V119: 0 | X119: 0 | Y119: 0 | Z119: 0 | AA119: 0 | AB119: 0 | AC119: 0 | AE119: 0 | AF119: 0 | AG119: 0 | AH119: 0 | AI119: 0 | AJ119: 0 | AL119: 0
A120: 93 | C120: > LV Sub Generation Intermittent no RP charge | K120: 0 | L120: 0 | M120: 0 | N120: 0 | O120: 0 | R120: 0 | S120: 0 | T120: 0 | U120: 0 | V120: 0 | Y120: 0 | Z120: 0 | AA120: 0 | AB120: 0 | AC120: 0 | AF120: 0 | AG120: 0 | AH120: 0 | AI120: 0 | AJ120: 0
A121: 94 | B121: 4 | C121: LV Sub Generation Intermittent no RP charge | D121: =[9]Input!B287 -> 0 | G121: =[9]Input!E287 -> 0 | K121: 0 | L121: 0 | M121: 0 | N121: 0 | O121: 0 | R121: 0 | S121: 0 | T121: 0 | U121: 0 | V121: 0 | Y121: 0 | Z121: 0 | AA121: 0 | AB121: 0 | AC121: 0 | AF121: 0 | AG121: 0 | AH121: 0 | AI121: 0 | AJ121: 0
A122: 95 | C122: > LV Sub Generation Non-Intermittent | K122: 0 | L122: 0 | M122: 0 | N122: 0 | O122: 0 | R122: 0 | S122: 0 | T122: 0 | U122: 0 | V122: 0 | Y122: 0 | Z122: 0 | AA122: 0 | AB122: 0 | AC122: 0 | AF122: 0 | AG122: 0 | AH122: 0 | AI122: 0 | AJ122: 0
A123: 96 | B123: 4 | C123: LV Sub Generation Non-Intermittent | D123: =[9]Input!B289 -> 158.8700091 | E123: =[9]Input!C289 -> 430.7037416 | F123: =[9]Input!D289 -> 1007.877004 | G123: =[9]Input!E289 -> 12 | J123: =[9]Input!H289 -> 227.4731 | K123: 158.8700091 | L123: 430.7037416 | M123: 1007.877004 | N123: 12 | O123: 0 | Q123: =IF(J123,((VLOOKUP($B123,$E$7:$AI$16,28)+1)*J123),) -> 227.4731 | R123: 158.8700091 | S123: 430.7037416 | T123: 1007.877004 | U123: 12 | V123: 0 | X123: =IF(J123,((VLOOKUP($B123,$E$7:$AI$16,5+24)+1)*Q123),) -> 227.4731 | Y123: 158.8700091 | Z123: 430.7037416 | AA123: 1007.877004 | AB123: 12 | AC123: 0 | AE123: =IF(J123,((VLOOKUP($B123,$E$7:$AI$16,6+24)+1)*X123),) -> 227.4731 | AF123: 158.8700091 | AG123: 430.7037416 | AH123: 1007.877004 | AI123: 12 | AJ123: 0 | AL123: =IF(J123,((VLOOKUP($B123,$E$7:$AI$16,7+24)+1)*AE123),) -> 227.4731
A124: 97 | B124: 4 | C124: LDNO HV: LV Sub Generation Non-Intermittent | D124: =[9]Input!B290 -> 0 | E124: =[9]Input!C290 -> 0 | F124: =[9]Input!D290 -> 0 | G124: =[9]Input!E290 -> 0 | J124: =[9]Input!H290 -> 0 | K124: 0 | L124: 0 | M124: 0 | N124: 0 | O124: 0 | Q124: 0 | R124: 0 | S124: 0 | T124: 0 | U124: 0 | V124: 0 | X124: 0 | Y124: 0 | Z124: 0 | AA124: 0 | AB124: 0 | AC124: 0 | AE124: 0 | AF124: 0 | AG124: 0 | AH124: 0 | AI124: 0 | AJ124: 0 | AL124: 0
A125: 98 | C125: > LV Sub Generation Non-Intermittent no RP charge | K125: 0 | L125: 0 | M125: 0 | N125: 0 | O125: 0 | R125: 0 | S125: 0 | T125: 0 | U125: 0 | V125: 0 | Y125: 0 | Z125: 0 | AA125: 0 | AB125: 0 | AC125: 0 | AF125: 0 | AG125: 0 | AH125: 0 | AI125: 0 | AJ125: 0
A126: 99 | B126: 4 | C126: LV Sub Generation Non-Intermittent no RP charge | D126: =[9]Input!B292 -> 0 | E126: =[9]Input!C292 -> 0 | F126: =[9]Input!D292 -> 0 | G126: =[9]Input!E292 -> 0 | K126: 0 | L126: 0 | M126: 0 | N126: 0 | O126: 0 | R126: 0 | S126: 0 | T126: 0 | U126: 0 | V126: 0 | Y126: 0 | Z126: 0 | AA126: 0 | AB126: 0 | AC126: 0 | AF126: 0 | AG126: 0 | AH126: 0 | AI126: 0 | AJ126: 0
A127: 100 | C127: > HV Generation Intermittent | K127: 0 | L127: 0 | M127: 0 | N127: 0 | O127: 0 | R127: 0 | S127: 0 | T127: 0 | U127: 0 | V127: 0 | Y127: 0 | Z127: 0 | AA127: 0 | AB127: 0 | AC127: 0 | AF127: 0 | AG127: 0 | AH127: 0 | AI127: 0 | AJ127: 0
A128: 101 | B128: 4 | C128: HV Generation Intermittent | D128: =[9]Input!B294 -> 405655.9582 | G128: =[9]Input!E294 -> 186.9945355 | J128: =[9]Input!H294 -> 9680.922 | K128: 405655.9582 | L128: 0 | M128: 0 | N128: 186.9945355 | O128: 0 | Q128: =IF(J128,((VLOOKUP($B128,$E$7:$AI$16,28)+1)*J128),) -> 9680.922 | R128: 405655.9582 | S128: 0 | T128: 0 | U128: 186.9945355 | V128: 0 | X128: =IF(J128,((VLOOKUP($B128,$E$7:$AI$16,5+24)+1)*Q128),) -> 9680.922 | Y128: 405655.9582 | Z128: 0 | AA128: 0 | AB128: 186.9945355 | AC128: 0 | AE128: =IF(J128,((VLOOKUP($B128,$E$7:$AI$16,6+24)+1)*X128),) -> 9680.922 | AF128: 405655.9582 | AG128: 0 | AH128: 0 | AI128: 186.9945355 | AJ128: 0 | AL128: =IF(J128,((VLOOKUP($B128,$E$7:$AI$16,7+24)+1)*AE128),) -> 9680.922
A129: 102 | B129: 4 | C129: LDNO HV: HV Generation Intermittent | D129: =[9]Input!B295 -> 0 | G129: =[9]Input!E295 -> 0 | J129: =[9]Input!H295 -> 0 | K129: 0 | L129: 0 | M129: 0 | N129: 0 | O129: 0 | Q129: 0 | R129: 0 | S129: 0 | T129: 0 | U129: 0 | V129: 0 | X129: 0 | Y129: 0 | Z129: 0 | AA129: 0 | AB129: 0 | AC129: 0 | AE129: 0 | AF129: 0 | AG129: 0 | AH129: 0 | AI129: 0 | AJ129: 0 | AL129: 0
A130: 103 | C130: > HV Generation Intermittent no RP charge | K130: 0 | L130: 0 | M130: 0 | N130: 0 | O130: 0 | R130: 0 | S130: 0 | T130: 0 | U130: 0 | V130: 0 | Y130: 0 | Z130: 0 | AA130: 0 | AB130: 0 | AC130: 0 | AF130: 0 | AG130: 0 | AH130: 0 | AI130: 0 | AJ130: 0
A131: 104 | B131: 4 | C131: HV Generation Intermittent no RP charge | D131: =[9]Input!B297 -> 0 | G131: =[9]Input!E297 -> 0 | K131: 0 | L131: 0 | M131: 0 | N131: 0 | O131: 0 | R131: 0 | S131: 0 | T131: 0 | U131: 0 | V131: 0 | Y131: 0 | Z131: 0 | AA131: 0 | AB131: 0 | AC131: 0 | AF131: 0 | AG131: 0 | AH131: 0 | AI131: 0 | AJ131: 0
A132: 105 | C132: > HV Generation Non-Intermittent | K132: 0 | L132: 0 | M132: 0 | N132: 0 | O132: 0 | R132: 0 | S132: 0 | T132: 0 | U132: 0 | V132: 0 | Y132: 0 | Z132: 0 | AA132: 0 | AB132: 0 | AC132: 0 | AF132: 0 | AG132: 0 | AH132: 0 | AI132: 0 | AJ132: 0
A133: 106 | B133: 4 | C133: HV Generation Non-Intermittent | D133: =[9]Input!B299 -> 53031.03257 | E133: =[9]Input!C299 -> 138554.4174 | F133: =[9]Input!D299 -> 277588.8049 | G133: =[9]Input!E299 -> 139.4972678 | J133: =[9]Input!H299 -> 20239.2002 | K133: 53031.03257 | L133: 138554.4174 | M133: 277588.8049 | N133: 139.4972678 | O133: 0 | Q133: =IF(J133,((VLOOKUP($B133,$E$7:$AI$16,28)+1)*J133),) -> 20239.2002 | R133: 53031.03257 | S133: 138554.4174 | T133: 277588.8049 | U133: 139.4972678 | V133: 0 | X133: =IF(J133,((VLOOKUP($B133,$E$7:$AI$16,5+24)+1)*Q133),) -> 20239.2002 | Y133: 53031.03257 | Z133: 138554.4174 | AA133: 277588.8049 | AB133: 139.4972678 | AC133: 0 | AE133: =IF(J133,((VLOOKUP($B133,$E$7:$AI$16,6+24)+1)*X133),) -> 20239.2002 | AF133: 53031.03257 | AG133: 138554.4174 | AH133: 277588.8049 | AI133: 139.4972678 | AJ133: 0 | AL133: =IF(J133,((VLOOKUP($B133,$E$7:$AI$16,7+24)+1)*AE133),) -> 20239.2002
A134: 107 | B134: 4 | C134: LDNO HV: HV Generation Non-Intermittent | D134: =[9]Input!B300 -> 0 | E134: =[9]Input!C300 -> 0 | F134: =[9]Input!D300 -> 0 | G134: =[9]Input!E300 -> 0 | J134: =[9]Input!H300 -> 0 | K134: 0 | L134: 0 | M134: 0 | N134: 0 | O134: 0 | Q134: 0 | R134: 0 | S134: 0 | T134: 0 | U134: 0 | V134: 0 | X134: 0 | Y134: 0 | Z134: 0 | AA134: 0 | AB134: 0 | AC134: 0 | AE134: 0 | AF134: 0 | AG134: 0 | AH134: 0 | AI134: 0 | AJ134: 0 | AL134: 0
A135: 108 | C135: > HV Generation Non-Intermittent no RP charge | K135: 0 | L135: 0 | M135: 0 | N135: 0 | O135: 0 | R135: 0 | S135: 0 | T135: 0 | U135: 0 | V135: 0 | Y135: 0 | Z135: 0 | AA135: 0 | AB135: 0 | AC135: 0 | AF135: 0 | AG135: 0 | AH135: 0 | AI135: 0 | AJ135: 0
A136: 109 | B136: 4 | C136: HV Generation Non-Intermittent no RP charge | D136: =[9]Input!B302 -> 0 | E136: =[9]Input!C302 -> 0 | F136: =[9]Input!D302 -> 0 | G136: =[9]Input!E302 -> 0 | K136: 0 | L136: 0 | M136: 0 | N136: 0 | O136: 0 | R136: 0 | S136: 0 | T136: 0 | U136: 0 | V136: 0 | Y136: 0 | Z136: 0 | AA136: 0 | AB136: 0 | AC136: 0 | AF136: 0 | AG136: 0 | AH136: 0 | AI136: 0 | AJ136: 0

Sheet CDCM Timebands
B2: CDCM Timebands
C4: 2019/20
C5: WD (incl. bank holidays) | D5: WE | E5: 2020/21 | F5: 2021/22 | G5: 2022/23 | H5: 2023/24
B6: Red | C6: 16:00 to 19:00 | E6: No change from 2019/20 | F6: No change from 2019/20 | G6: No change from 2019/20 | H6: No change from 2019/20
B8: Amber | C8: 09:00 to 16:00 | D8: 16:00 to 19:00
C9: 19:00 to 20:30
B11: Green | C11: 00:00 to 09:00 | D11: 00:00 to 16:00
C12: 20:30 to 24:00 | D12: 19:00 to 24:00
C14: 2019/20
C15: WD (incl. bank holidays) Nov to Feb | D15: WD (incl. bank holidays) Mar to Oct | E15: WE | F15: 2020/21 | G15: 2021/22 | H15: 2022/23 | I15: 2023/24
B16: Black | C16: 16:00 to 19:00 | F16: No change from 2019/20 | G16: No change from 2019/20 | H16: No change from 2019/20 | I16: No change from 2019/20
B18: Yellow | C18: 09:00 to 16:00 | D18: 09:00 to 20:30 | E18: 16:00 to 19:00
C19: 19:00 to 20:30
B21: Green | C21: 00:00 to 09:00 | D21: 00:00 to 09:00 | E21: 00:00 to 16:00
C22: 20:30 to 24:00 | D22: 20:30 to 24:00 | E22: 19:00 to 24:00

Sheet (Y)
A1: Input data (Y)
A4: 1000. Company, charging year, data version
B6: Company | C6: Year | D6: Version
A7: Company, charging year, data version | B7: =VLOOKUP(Vlookup!B7,'CDCM Forecast Data'!$A$14:$I$271,5,FALSE) -> Electricity North West | C7: =VLOOKUP(Vlookup!C7,'CDCM Forecast Data'!$A$14:$I$271,5,FALSE) -> 2019/20 | D7: =VLOOKUP(Vlookup!D7,'CDCM Forecast Data'!$A$14:$I$271,5,FALSE) -> Final
A9: 1010. Financial and general assumptions
A11: Sources: financial assumptions; calendar; network model.
A12: These financial assumptions determine the annuity rate applied to convert the asset values of the network model into an annual charge.
B13: Rate of return | C13: Annualisation period (years) | D13: Annuity proportion for customer-contributed assets | E13: Power factor | F13: Days in the charging period
A14: Financial and general assumptions | B14: =VLOOKUP(Vlookup!B14,'CDCM Forecast Data'!$A$14:$I$271,5,FALSE) -> 0.0402 | C14: =VLOOKUP(Vlookup!C14,'CDCM Forecast Data'!$A$14:$I$271,5,FALSE) -> 40 | E14: =VLOOKUP(Vlookup!E14,'CDCM Forecast Data'!$A$14:$I$271,5,FALSE) -> 0.95 | F14: =VLOOKUP(Vlookup!F14,'CDCM Forecast Data'!$A$14:$I$271,5,FALSE) -> 366
A16: 1017. Diversity allowance between top and bottom of network level
A18: Source: operational data analysis and/or network model.
A19: The diversity figure against GSP is the diversity between GSP Group (the whole system) and individual GSPs.
A20: The diversity figure against 132kV is the diversity between GSPs (the top of the 132kV network) and 132kV/EHV bulk supply points (the bottom of the 132kV network).
A21: The diversity figure against EHV is the diversity between 132kV/EHV bulk supply points (the top of the EHV network) and EHV/HV primary substations (the bottom of the EHV network).
A22: The diversity figure against HV is the diversity between EHV/HV primary substations (the top of the HV network) and HV/LV substations (the bottom of the HV network).
B23: Diversity allowance between top and bottom of network level
A24: GSPs | B24: =VLOOKUP(Vlookup!B24,'CDCM Forecast Data'!$A$14:$I$271,5,FALSE) -> 0.0634939014
A25: 132kV | B25: =VLOOKUP(Vlookup!B25,'CDCM Forecast Data'!$A$14:$I$271,5,FALSE) -> 0.06832793776
A26: 132kV/EHV
A27: EHV | B27: =VLOOKUP(Vlookup!B27,'CDCM Forecast Data'!$A$14:$I$271,5,FALSE) -> 0.09140024367
A28: EHV/HV
A29: HV | B29: =VLOOKUP(Vlookup!B29,'CDCM Forecast Data'!$A$14:$I$271,5,FALSE) -> 0.2390012962
A30: HV/LV
A31: LV circuits
A33: 1018. Proportion of relevant load going through 132kV/HV direct transformation
B35: 132kV/HV
A36: EHV/HV | B36: =VLOOKUP(Vlookup!B36,'CDCM Forecast Data'!$A$14:$I$271,5,FALSE) -> 0
A38: 1019. Network model GSP peak demand (MW)
B40: Network model GSP peak demand (MW)
A41: Network model GSP peak demand (MW) | B41: =VLOOKUP(Vlookup!B41,'CDCM Forecast Data'!$A$14:$I$271,5,FALSE) -> 500
A43: 1020. Gross asset cost by network level (£)
B45: Gross assets £
A46: 132kV | B46: =VLOOKUP(Vlookup!B46,'CDCM Forecast Data'!$A$14:$I$271,5,FALSE) -> 100301754.5
A47: 132kV/EHV | B47: =VLOOKUP(Vlookup!B47,'CDCM Forecast Data'!$A$14:$I$271,5,FALSE) -> 39674898.83
A48: EHV | B48: =VLOOKUP(Vlookup!B48,'CDCM Forecast Data'!$A$14:$I$271,5,FALSE) -> 100181801.9
A49: EHV/HV | B49: =VLOOKUP(Vlookup!B49,'CDCM Forecast Data'!$A$14:$I$271,5,FALSE) -> 63195020.95
A50: 132kV/HV | B50: =VLOOKUP(Vlookup!B50,'CDCM Forecast Data'!$A$14:$I$271,5,FALSE) -> 0
A51: HV | B51: =VLOOKUP(Vlookup!B51,'CDCM Forecast Data'!$A$14:$I$271,5,FALSE) -> 114729339.1
A52: HV/LV | B52: =VLOOKUP(Vlookup!B52,'CDCM Forecast Data'!$A$14:$I$271,5,FALSE) -> 104165107.7
A53: LV circuits | B53: =VLOOKUP(Vlookup!B53,'CDCM Forecast Data'!$A$14:$I$271,5,FALSE) -> 57745147.13
A55: 1022. LV service model asset cost (£)
B57: LV service model 1 | C57: LV service model 2 | D57: LV service model 3 | E57: LV service model 4 | F57: LV service model 5 | G57: LV service model 6 | H57: LV service model 7 | I57: LV service model 8
A58: LV service model asset cost (£) | B58: =VLOOKUP(Vlookup!B58,'CDCM Forecast Data'!$A$14:$I$271,5,FALSE) -> 10961.83142 | C58: =VLOOKUP(Vlookup!C58,'CDCM Forecast Data'!$A$14:$I$271,5,FALSE) -> 548.0915709 | D58: =VLOOKUP(Vlookup!D58,'CDCM Forecast Data'!$A$14:$I$271,5,FALSE) -> 2576.738925 | E58: =VLOOKUP(Vlookup!E58,'CDCM Forecast Data'!$A$14:$I$271,5,FALSE) -> 8271.638764 | F58: =VLOOKUP(Vlookup!F58,'CDCM Forecast Data'!$A$14:$I$271,5,FALSE) -> 301.2636498 | G58: =VLOOKUP(Vlookup!G58,'CDCM Forecast Data'!$A$14:$I$271,5,FALSE) -> 0 | H58: =VLOOKUP(Vlookup!H58,'CDCM Forecast Data'!$A$14:$I$271,5,FALSE) -> 0 | I58: =VLOOKUP(Vlookup!I58,'CDCM Forecast Data'!$A$14:$I$271,5,FALSE) -> 0
A60: 1023. HV service model asset cost (£)
B62: HV service model 1 | C62: HV service model 2 | D62: HV service model 3 | E62: HV service model 4 | F62: HV service model 5
A63: HV service model asset cost (£) | B63: =VLOOKUP(Vlookup!B63,'CDCM Forecast Data'!$A$14:$I$271,5,FALSE) -> 20576.13877 | C63: =VLOOKUP(Vlookup!C63,'CDCM Forecast Data'!$A$14:$I$271,5,FALSE) -> 18188.23076 | D63: =VLOOKUP(Vlookup!D63,'CDCM Forecast Data'!$A$14:$I$271,5,FALSE) -> 1224.735926 | E63: =VLOOKUP(Vlookup!E63,'CDCM Forecast Data'!$A$14:$I$271,5,FALSE) -> 0 | F63: =VLOOKUP(Vlookup!F63,'CDCM Forecast Data'!$A$14:$I$271,5,FALSE) -> 0
A65: 1025. Matrix of applicability of LV service models to tariffs with fixed charges
B66: 2 | C66: =B66+1 -> 3 | D66: 4 | E66: 5 | F66: 6 | G66: 7 | H66: 8 | I66: 9
B67: LV service model 1 | C67: LV service model 2 | D67: LV service model 3 | E67: LV service model 4 | F67: LV service model 5 | G67: LV service model 6 | H67: LV service model 7 | I67: LV service model 8
A68: Domestic Unrestricted | B68: =VLOOKUP($A68,'Mat of App'!$B$7:$AP$43,B$66,FALSE) -> 0.05 | C68: =VLOOKUP($A68,'Mat of App'!$B$7:$AP$43,C$66,FALSE) -> 0 | D68: =VLOOKUP($A68,'Mat of App'!$B$7:$AP$43,D$66,FALSE) -> 0 | E68: =VLOOKUP($A68,'Mat of App'!$B$7:$AP$43,E$66,FALSE) -> 0 | F68: =VLOOKUP($A68,'Mat of App'!$B$7:$AP$43,F$66,FALSE) -> 0 | G68: =VLOOKUP($A68,'Mat of App'!$B$7:$AP$43,G$66,FALSE) -> 0 | H68: =VLOOKUP($A68,'Mat of App'!$B$7:$AP$43,H$66,FALSE) -> 0 | I68: =VLOOKUP($A68,'Mat of App'!$B$7:$AP$43,I$66,FALSE) -> 0
A69: Domestic Two Rate | B69: =VLOOKUP($A69,'Mat of App'!$B$7:$AP$43,B$66,FALSE) -> 0.05 | C69: =VLOOKUP($A69,'Mat of App'!$B$7:$AP$43,C$66,FALSE) -> 0 | D69: =VLOOKUP($A69,'Mat of App'!$B$7:$AP$43,D$66,FALSE) -> 0 | E69: =VLOOKUP($A69,'Mat of App'!$B$7:$AP$43,E$66,FALSE) -> 0 | F69: =VLOOKUP($A69,'Mat of App'!$B$7:$AP$43,F$66,FALSE) -> 0 | G69: =VLOOKUP($A69,'Mat of App'!$B$7:$AP$43,G$66,FALSE) -> 0 | H69: =VLOOKUP($A69,'Mat of App'!$B$7:$AP$43,H$66,FALSE) -> 0 | I69: =VLOOKUP($A69,'Mat of App'!$B$7:$AP$43,I$66,FALSE) -> 0
A70: Small Non Domestic Unrestricted | B70: =VLOOKUP($A70,'Mat of App'!$B$7:$AP$43,B$66,FALSE) -> 0 | C70: =VLOOKUP($A70,'Mat of App'!$B$7:$AP$43,C$66,FALSE) -> 1 | D70: =VLOOKUP($A70,'Mat of App'!$B$7:$AP$43,D$66,FALSE) -> 0 | E70: =VLOOKUP($A70,'Mat of App'!$B$7:$AP$43,E$66,FALSE) -> 0 | F70: =VLOOKUP($A70,'Mat of App'!$B$7:$AP$43,F$66,FALSE) -> 0 | G70: =VLOOKUP($A70,'Mat of App'!$B$7:$AP$43,G$66,FALSE) -> 0 | H70: =VLOOKUP($A70,'Mat of App'!$B$7:$AP$43,H$66,FALSE) -> 0 | I70: =VLOOKUP($A70,'Mat of App'!$B$7:$AP$43,I$66,FALSE) -> 0
A71: Small Non Domestic Two Rate | B71: =VLOOKUP($A71,'Mat of App'!$B$7:$AP$43,B$66,FALSE) -> 0 | C71: =VLOOKUP($A71,'Mat of App'!$B$7:$AP$43,C$66,FALSE) -> 1 | D71: =VLOOKUP($A71,'Mat of App'!$B$7:$AP$43,D$66,FALSE) -> 0 | E71: =VLOOKUP($A71,'Mat of App'!$B$7:$AP$43,E$66,FALSE) -> 0 | F71: =VLOOKUP($A71,'Mat of App'!$B$7:$AP$43,F$66,FALSE) -> 0 | G71: =VLOOKUP($A71,'Mat of App'!$B$7:$AP$43,G$66,FALSE) -> 0 | H71: =VLOOKUP($A71,'Mat of App'!$B$7:$AP$43,H$66,FALSE) -> 0 | I71: =VLOOKUP($A71,'Mat of App'!$B$7:$AP$43,I$66,FALSE) -> 0
A72: LV Medium Non-Domestic | B72: =VLOOKUP($A72,'Mat of App'!$B$7:$AP$43,B$66,FALSE) -> 0 | C72: =VLOOKUP($A72,'Mat of App'!$B$7:$AP$43,C$66,FALSE) -> 0.2391523713 | D72: =VLOOKUP($A72,'Mat of App'!$B$7:$AP$43,D$66,FALSE) -> 0.7608476287 | E72: =VLOOKUP($A72,'Mat of App'!$B$7:$AP$43,E$66,FALSE) -> 0 | F72: =VLOOKUP($A72,'Mat of App'!$B$7:$AP$43,F$66,FALSE) -> 0 | G72: =VLOOKUP($A72,'Mat of App'!$B$7:$AP$43,G$66,FALSE) -> 0 | H72: =VLOOKUP($A72,'Mat of App'!$B$7:$AP$43,H$66,FALSE) -> 0 | I72: =VLOOKUP($A72,'Mat of App'!$B$7:$AP$43,I$66,FALSE) -> 0
A73: LV Sub Medium Non-Domestic | B73: =VLOOKUP($A73,'Mat of App'!$B$7:$AP$43,B$66,FALSE) -> 0 | C73: =VLOOKUP($A73,'Mat of App'!$B$7:$AP$43,C$66,FALSE) -> 0 | D73: =VLOOKUP($A73,'Mat of App'!$B$7:$AP$43,D$66,FALSE) -> 0 | E73: =VLOOKUP($A73,'Mat of App'!$B$7:$AP$43,E$66,FALSE) -> 1 | F73: =VLOOKUP($A73,'Mat of App'!$B$7:$AP$43,F$66,FALSE) -> 0 | G73: =VLOOKUP($A73,'Mat of App'!$B$7:$AP$43,G$66,FALSE) -> 0 | H73: =VLOOKUP($A73,'Mat of App'!$B$7:$AP$43,H$66,FALSE) -> 0 | I73: =VLOOKUP($A73,'Mat of App'!$B$7:$AP$43,I$66,FALSE) -> 0
A74: LV Network Domestic | B74: =VLOOKUP($A74,'Mat of App'!$B$7:$AP$43,B$66,FALSE) -> 0.05 | C74: =VLOOKUP($A74,'Mat of App'!$B$7:$AP$43,C$66,FALSE) -> 0 | D74: =VLOOKUP($A74,'Mat of App'!$B$7:$AP$43,D$66,FALSE) -> 0 | E74: =VLOOKUP($A74,'Mat of App'!$B$7:$AP$43,E$66,FALSE) -> 0 | F74: =VLOOKUP($A74,'Mat of App'!$B$7:$AP$43,F$66,FALSE) -> 0 | G74: =VLOOKUP($A74,'Mat of App'!$B$7:$AP$43,G$66,FALSE) -> 0 | H74: =VLOOKUP($A74,'Mat of App'!$B$7:$AP$43,H$66,FALSE) -> 0 | I74: =VLOOKUP($A74,'Mat of App'!$B$7:$AP$43,I$66,FALSE) -> 0
A75: LV Network Non-Domestic Non-CT | B75: =VLOOKUP($A75,'Mat of App'!$B$7:$AP$43,B$66,FALSE) -> 0 | C75: =VLOOKUP($A75,'Mat of App'!$B$7:$AP$43,C$66,FALSE) -> 1 | D75: =VLOOKUP($A75,'Mat of App'!$B$7:$AP$43,D$66,FALSE) -> 0 | E75: =VLOOKUP($A75,'Mat of App'!$B$7:$AP$43,E$66,FALSE) -> 0 | F75: =VLOOKUP($A75,'Mat of App'!$B$7:$AP$43,F$66,FALSE) -> 0 | G75: =VLOOKUP($A75,'Mat of App'!$B$7:$AP$43,G$66,FALSE) -> 0 | H75: =VLOOKUP($A75,'Mat of App'!$B$7:$AP$43,H$66,FALSE) -> 0 | I75: =VLOOKUP($A75,'Mat of App'!$B$7:$AP$43,I$66,FALSE) -> 0
A76: LV HH Metered | B76: =VLOOKUP($A76,'Mat of App'!$B$7:$AP$43,B$66,FALSE) -> 0 | C76: =VLOOKUP($A76,'Mat of App'!$B$7:$AP$43,C$66,FALSE) -> 0 | D76: =VLOOKUP($A76,'Mat of App'!$B$7:$AP$43,D$66,FALSE) -> 1 | E76: =VLOOKUP($A76,'Mat of App'!$B$7:$AP$43,E$66,FALSE) -> 0 | F76: =VLOOKUP($A76,'Mat of App'!$B$7:$AP$43,F$66,FALSE) -> 0 | G76: =VLOOKUP($A76,'Mat of App'!$B$7:$AP$43,G$66,FALSE) -> 0 | H76: =VLOOKUP($A76,'Mat of App'!$B$7:$AP$43,H$66,FALSE) -> 0 | I76: =VLOOKUP($A76,'Mat of App'!$B$7:$AP$43,I$66,FALSE) -> 0
A77: LV Sub HH Metered | B77: =VLOOKUP($A77,'Mat of App'!$B$7:$AP$43,B$66,FALSE) -> 0 | C77: =VLOOKUP($A77,'Mat of App'!$B$7:$AP$43,C$66,FALSE) -> 0 | D77: =VLOOKUP($A77,'Mat of App'!$B$7:$AP$43,D$66,FALSE) -> 0 | E77: =VLOOKUP($A77,'Mat of App'!$B$7:$AP$43,E$66,FALSE) -> 1 | F77: =VLOOKUP($A77,'Mat of App'!$B$7:$AP$43,F$66,FALSE) -> 0 | G77: =VLOOKUP($A77,'Mat of App'!$B$7:$AP$43,G$66,FALSE) -> 0 | H77: =VLOOKUP($A77,'Mat of App'!$B$7:$AP$43,H$66,FALSE) -> 0 | I77: =VLOOKUP($A77,'Mat of App'!$B$7:$AP$43,I$66,FALSE) -> 0
A78: LV Generation NHH or Aggregate HH | B78: =VLOOKUP($A78,'Mat of App'!$B$7:$AP$43,B$66,FALSE) -> 0 | C78: =VLOOKUP($A78,'Mat of App'!$B$7:$AP$43,C$66,FALSE) -> 0 | D78: =VLOOKUP($A78,'Mat of App'!$B$7:$AP$43,D$66,FALSE) -> 0 | E78: =VLOOKUP($A78,'Mat of App'!$B$7:$AP$43,E$66,FALSE) -> 0 | F78: =VLOOKUP($A78,'Mat of App'!$B$7:$AP$43,F$66,FALSE) -> 0 | G78: =VLOOKUP($A78,'Mat of App'!$B$7:$AP$43,G$66,FALSE) -> 0 | H78: =VLOOKUP($A78,'Mat of App'!$B$7:$AP$43,H$66,FALSE) -> 0 | I78: =VLOOKUP($A78,'Mat of App'!$B$7:$AP$43,I$66,FALSE) -> 0
A79: LV Sub Generation NHH | B79: =VLOOKUP($A79,'Mat of App'!$B$7:$AP$43,B$66,FALSE) -> 0 | C79: =VLOOKUP($A79,'Mat of App'!$B$7:$AP$43,C$66,FALSE) -> 0 | D79: =VLOOKUP($A79,'Mat of App'!$B$7:$AP$43,D$66,FALSE) -> 0 | E79: =VLOOKUP($A79,'Mat of App'!$B$7:$AP$43,E$66,FALSE) -> 0 | F79: =VLOOKUP($A79,'Mat of App'!$B$7:$AP$43,F$66,FALSE) -> 0 | G79: =VLOOKUP($A79,'Mat of App'!$B$7:$AP$43,G$66,FALSE) -> 0 | H79: =VLOOKUP($A79,'Mat of App'!$B$7:$AP$43,H$66,FALSE) -> 0 | I79: =VLOOKUP($A79,'Mat of App'!$B$7:$AP$43,I$66,FALSE) -> 0
A80: LV Generation Intermittent | B80: =VLOOKUP($A80,'Mat of App'!$B$7:$AP$43,B$66,FALSE) -> 0 | C80: =VLOOKUP($A80,'Mat of App'!$B$7:$AP$43,C$66,FALSE) -> 0 | D80: =VLOOKUP($A80,'Mat of App'!$B$7:$AP$43,D$66,FALSE) -> 0 | E80: =VLOOKUP($A80,'Mat of App'!$B$7:$AP$43,E$66,FALSE) -> 0 | F80: =VLOOKUP($A80,'Mat of App'!$B$7:$AP$43,F$66,FALSE) -> 0 | G80: =VLOOKUP($A80,'Mat of App'!$B$7:$AP$43,G$66,FALSE) -> 0 | H80: =VLOOKUP($A80,'Mat of App'!$B$7:$AP$43,H$66,FALSE) -> 0 | I80: =VLOOKUP($A80,'Mat of App'!$B$7:$AP$43,I$66,FALSE) -> 0
A81: LV Generation Intermittent no RP charge | B81: =VLOOKUP($A81,'Mat of App'!$B$7:$AP$43,B$66,FALSE) -> 0 | C81: =VLOOKUP($A81,'Mat of App'!$B$7:$AP$43,C$66,FALSE) -> 0 | D81: =VLOOKUP($A81,'Mat of App'!$B$7:$AP$43,D$66,FALSE) -> 0 | E81: =VLOOKUP($A81,'Mat of App'!$B$7:$AP$43,E$66,FALSE) -> 0 | F81: =VLOOKUP($A81,'Mat of App'!$B$7:$AP$43,F$66,FALSE) -> 0 | G81: =VLOOKUP($A81,'Mat of App'!$B$7:$AP$43,G$66,FALSE) -> 0 | H81: =VLOOKUP($A81,'Mat of App'!$B$7:$AP$43,H$66,FALSE) -> 0 | I81: =VLOOKUP($A81,'Mat of App'!$B$7:$AP$43,I$66,FALSE) -> 0
A82: LV Generation Non-Intermittent | B82: =VLOOKUP($A82,'Mat of App'!$B$7:$AP$43,B$66,FALSE) -> 0 | C82: =VLOOKUP($A82,'Mat of App'!$B$7:$AP$43,C$66,FALSE) -> 0 | D82: =VLOOKUP($A82,'Mat of App'!$B$7:$AP$43,D$66,FALSE) -> 0 | E82: =VLOOKUP($A82,'Mat of App'!$B$7:$AP$43,E$66,FALSE) -> 0 | F82: =VLOOKUP($A82,'Mat of App'!$B$7:$AP$43,F$66,FALSE) -> 0 | G82: =VLOOKUP($A82,'Mat of App'!$B$7:$AP$43,G$66,FALSE) -> 0 | H82: =VLOOKUP($A82,'Mat of App'!$B$7:$AP$43,H$66,FALSE) -> 0 | I82: =VLOOKUP($A82,'Mat of App'!$B$7:$AP$43,I$66,FALSE) -> 0
A83: LV Generation Non-Intermittent no RP charge | B83: =VLOOKUP($A83,'Mat of App'!$B$7:$AP$43,B$66,FALSE) -> 0 | C83: =VLOOKUP($A83,'Mat of App'!$B$7:$AP$43,C$66,FALSE) -> 0 | D83: =VLOOKUP($A83,'Mat of App'!$B$7:$AP$43,D$66,FALSE) -> 0 | E83: =VLOOKUP($A83,'Mat of App'!$B$7:$AP$43,E$66,FALSE) -> 0 | F83: =VLOOKUP($A83,'Mat of App'!$B$7:$AP$43,F$66,FALSE) -> 0 | G83: =VLOOKUP($A83,'Mat of App'!$B$7:$AP$43,G$66,FALSE) -> 0 | H83: =VLOOKUP($A83,'Mat of App'!$B$7:$AP$43,H$66,FALSE) -> 0 | I83: =VLOOKUP($A83,'Mat of App'!$B$7:$AP$43,I$66,FALSE) -> 0
A84: LV Sub Generation Intermittent | B84: =VLOOKUP($A84,'Mat of App'!$B$7:$AP$43,B$66,FALSE) -> 0 | C84: =VLOOKUP($A84,'Mat of App'!$B$7:$AP$43,C$66,FALSE) -> 0 | D84: =VLOOKUP($A84,'Mat of App'!$B$7:$AP$43,D$66,FALSE) -> 0 | E84: =VLOOKUP($A84,'Mat of App'!$B$7:$AP$43,E$66,FALSE) -> 0 | F84: =VLOOKUP($A84,'Mat of App'!$B$7:$AP$43,F$66,FALSE) -> 0 | G84: =VLOOKUP($A84,'Mat of App'!$B$7:$AP$43,G$66,FALSE) -> 0 | H84: =VLOOKUP($A84,'Mat of App'!$B$7:$AP$43,H$66,FALSE) -> 0 | I84: =VLOOKUP($A84,'Mat of App'!$B$7:$AP$43,I$66,FALSE) -> 0
A85: LV Sub Generation Intermittent no RP charge | B85: =VLOOKUP($A85,'Mat of App'!$B$7:$AP$43,B$66,FALSE) -> 0 | C85: =VLOOKUP($A85,'Mat of App'!$B$7:$AP$43,C$66,FALSE) -> 0 | D85: =VLOOKUP($A85,'Mat of App'!$B$7:$AP$43,D$66,FALSE) -> 0 | E85: =VLOOKUP($A85,'Mat of App'!$B$7:$AP$43,E$66,FALSE) -> 0 | F85: =VLOOKUP($A85,'Mat of App'!$B$7:$AP$43,F$66,FALSE) -> 0 | G85: =VLOOKUP($A85,'Mat of App'!$B$7:$AP$43,G$66,FALSE) -> 0 | H85: =VLOOKUP($A85,'Mat of App'!$B$7:$AP$43,H$66,FALSE) -> 0 | I85: =VLOOKUP($A85,'Mat of App'!$B$7:$AP$43,I$66,FALSE) -> 0
A86: LV Sub Generation Non-Intermittent | B86: =VLOOKUP($A86,'Mat of App'!$B$7:$AP$43,B$66,FALSE) -> 0 | C86: =VLOOKUP($A86,'Mat of App'!$B$7:$AP$43,C$66,FALSE) -> 0 | D86: =VLOOKUP($A86,'Mat of App'!$B$7:$AP$43,D$66,FALSE) -> 0 | E86: =VLOOKUP($A86,'Mat of App'!$B$7:$AP$43,E$66,FALSE) -> 0 | F86: =VLOOKUP($A86,'Mat of App'!$B$7:$AP$43,F$66,FALSE) -> 0 | G86: =VLOOKUP($A86,'Mat of App'!$B$7:$AP$43,G$66,FALSE) -> 0 | H86: =VLOOKUP($A86,'Mat of App'!$B$7:$AP$43,H$66,FALSE) -> 0 | I86: =VLOOKUP($A86,'Mat of App'!$B$7:$AP$43,I$66,FALSE) -> 0
A87: LV Sub Generation Non-Intermittent no RP charge | B87: =VLOOKUP($A87,'Mat of App'!$B$7:$AP$43,B$66,FALSE) -> 0 | C87: =VLOOKUP($A87,'Mat of App'!$B$7:$AP$43,C$66,FALSE) -> 0 | D87: =VLOOKUP($A87,'Mat of App'!$B$7:$AP$43,D$66,FALSE) -> 0 | E87: =VLOOKUP($A87,'Mat of App'!$B$7:$AP$43,E$66,FALSE) -> 0 | F87: =VLOOKUP($A87,'Mat of App'!$B$7:$AP$43,F$66,FALSE) -> 0 | G87: =VLOOKUP($A87,'Mat of App'!$B$7:$AP$43,G$66,FALSE) -> 0 | H87: =VLOOKUP($A87,'Mat of App'!$B$7:$AP$43,H$66,FALSE) -> 0 | I87: =VLOOKUP($A87,'Mat of App'!$B$7:$AP$43,I$66,FALSE) -> 0
A89: 1026. Matrix of applicability of LV service models to unmetered tariffs
A91: Source: service models
A92: Proportion of service model involved in connecting load of 1 MWh/year
B93: LV service model 1 | C93: LV service model 2 | D93: LV service model 3 | E93: LV service model 4 | F93: LV service model 5 | G93: LV service model 6 | H93: LV service model 7 | I93: LV service model 8
A94: All LV unmetered tariffs | B94: =VLOOKUP($A94,'Mat of App'!$B$7:$AP$43,B$66,FALSE) -> 0 | C94: =VLOOKUP($A94,'Mat of App'!$B$7:$AP$43,C$66,FALSE) -> 0 | D94: =VLOOKUP($A94,'Mat of App'!$B$7:$AP$43,D$66,FALSE) -> 0 | E94: =VLOOKUP($A94,'Mat of App'!$B$7:$AP$43,E$66,FALSE) -> 0 | F94: =VLOOKUP($A94,'Mat of App'!$B$7:$AP$43,F$66,FALSE) -> 2.872632768 | G94: =VLOOKUP($A94,'Mat of App'!$B$7:$AP$43,G$66,FALSE) -> 0 | H94: =VLOOKUP($A94,'Mat of App'!$B$7:$AP$43,H$66,FALSE) -> 0 | I94: =VLOOKUP($A94,'Mat of App'!$B$7:$AP$43,I$66,FALSE) -> 0
A96: 1028. Matrix of applicability of HV service models to tariffs with fixed charges
B97: 2 | C97: =B97+1 -> 3 | D97: =C97+1 -> 4 | E97: =D97+1 -> 5 | F97: =E97+1 -> 6
B98: HV service model 1 | C98: HV service model 2 | D98: HV service model 3 | E98: HV service model 4 | F98: HV service model 5
A99: HV Medium Non-Domestic | B99: =VLOOKUP($A99,'Mat of App'!$B$7:$AP$43,B$97,FALSE) -> 0 | C99: =VLOOKUP($A99,'Mat of App'!$B$7:$AP$43,C$97,FALSE) -> 1 | D99: =VLOOKUP($A99,'Mat of App'!$B$7:$AP$43,D$97,FALSE) -> 0 | E99: =VLOOKUP($A99,'Mat of App'!$B$7:$AP$43,E$97,FALSE) -> 0 | F99: =VLOOKUP($A99,'Mat of App'!$B$7:$AP$43,F$97,FALSE) -> 0
A100: HV HH Metered | B100: =VLOOKUP($A100,'Mat of App'!$B$7:$AP$43,B$97,FALSE) -> 0 | C100: =VLOOKUP($A100,'Mat of App'!$B$7:$AP$43,C$97,FALSE) -> 1 | D100: =VLOOKUP($A100,'Mat of App'!$B$7:$AP$43,D$97,FALSE) -> 0 | E100: =VLOOKUP($A100,'Mat of App'!$B$7:$AP$43,E$97,FALSE) -> 0 | F100: =VLOOKUP($A100,'Mat of App'!$B$7:$AP$43,F$97,FALSE) -> 0
A101: HV Generation Intermittent | B101: =VLOOKUP($A101,'Mat of App'!$B$7:$AP$43,B$97,FALSE) -> 0 | C101: =VLOOKUP($A101,'Mat of App'!$B$7:$AP$43,C$97,FALSE) -> 0 | D101: =VLOOKUP($A101,'Mat of App'!$B$7:$AP$43,D$97,FALSE) -> 1 | E101: =VLOOKUP($A101,'Mat of App'!$B$7:$AP$43,E$97,FALSE) -> 0 | F101: =VLOOKUP($A101,'Mat of App'!$B$7:$AP$43,F$97,FALSE) -> 0
A102: HV Generation Intermittent no RP charge | B102: =VLOOKUP($A102,'Mat of App'!$B$7:$AP$43,B$97,FALSE) -> 0 | C102: =VLOOKUP($A102,'Mat of App'!$B$7:$AP$43,C$97,FALSE) -> 0 | D102: =VLOOKUP($A102,'Mat of App'!$B$7:$AP$43,D$97,FALSE) -> 1 | E102: =VLOOKUP($A102,'Mat of App'!$B$7:$AP$43,E$97,FALSE) -> 0 | F102: =VLOOKUP($A102,'Mat of App'!$B$7:$AP$43,F$97,FALSE) -> 0
A103: HV Generation Non-Intermittent | B103: =VLOOKUP($A103,'Mat of App'!$B$7:$AP$43,B$97,FALSE) -> 0 | C103: =VLOOKUP($A103,'Mat of App'!$B$7:$AP$43,C$97,FALSE) -> 0 | D103: =VLOOKUP($A103,'Mat of App'!$B$7:$AP$43,D$97,FALSE) -> 1 | E103: =VLOOKUP($A103,'Mat of App'!$B$7:$AP$43,E$97,FALSE) -> 0 | F103: =VLOOKUP($A103,'Mat of App'!$B$7:$AP$43,F$97,FALSE) -> 0
A104: HV Generation Non-Intermittent no RP charge | B104: =VLOOKUP($A104,'Mat of App'!$B$7:$AP$43,B$97,FALSE) -> 0 | C104: =VLOOKUP($A104,'Mat of App'!$B$7:$AP$43,C$97,FALSE) -> 0 | D104: =VLOOKUP($A104,'Mat of App'!$B$7:$AP$43,D$97,FALSE) -> 1 | E104: =VLOOKUP($A104,'Mat of App'!$B$7:$AP$43,E$97,FALSE) -> 0 | F104: =VLOOKUP($A104,'Mat of App'!$B$7:$AP$43,F$97,FALSE) -> 0
A106: 1032. Loss adjustment factors to transmission
A108: Source: losses model or loss adjustment factors at time of system peak.
B109: 132kV | C109: 132kV/EHV | D109: EHV | E109: EHV/HV | F109: HV | G109: HV/LV | H109: LV circuits
A110: Loss adjustment factor | B110: =VLOOKUP(Vlookup!B69,'CDCM Forecast Data'!$A$14:$I$271,5,FALSE) -> 1.010049582 | C110: =VLOOKUP(Vlookup!C69,'CDCM Forecast Data'!$A$14:$I$271,5,FALSE) -> 1.015028715 | D110: =VLOOKUP(Vlookup!D69,'CDCM Forecast Data'!$A$14:$I$271,5,FALSE) -> 1.021423697 | E110: =VLOOKUP(Vlookup!E69,'CDCM Forecast Data'!$A$14:$I$271,5,FALSE) -> 1.026965618 | F110: =VLOOKUP(Vlookup!F69,'CDCM Forecast Data'!$A$14:$I$271,5,FALSE) -> 1.039338946 | G110: =VLOOKUP(Vlookup!G69,'CDCM Forecast Data'!$A$14:$I$271,5,FALSE) -> 1.053194046 | H110: =VLOOKUP(Vlookup!H69,'CDCM Forecast Data'!$A$14:$I$271,5,FALSE) -> 1.107559204
A112: 1037. Embedded network (LDNO) discounts
A114: Source: separate price control disaggregation model.
B115: No discount | C115: LDNO LV: LV user | D115: LDNO HV: LV user | E115: LDNO HV: LV sub user | F115: LDNO HV: HV user
A116: LDNO discount | C116: =VLOOKUP(Vlookup!C75,'CDCM Forecast Data'!$A$14:$I$271,5,FALSE) -> 0.357357871 | D116: =VLOOKUP(Vlookup!D75,'CDCM Forecast Data'!$A$14:$I$271,5,FALSE) -> 0.5734116248 | E116: =VLOOKUP(Vlookup!E75,'CDCM Forecast Data'!$A$14:$I$271,5,FALSE) -> 0.327894462 | F116: =VLOOKUP(Vlookup!F75,'CDCM Forecast Data'!$A$14:$I$271,5,FALSE) -> 0.2042455722
A118: 1041. Load profile data for demand users
A120: Source: load data analysis.
B121: Coincidence factor | C121: Load factor
A122: Domestic Unrestricted | B122: =VLOOKUP(Vlookup!B81,'CDCM Forecast Data'!$A$14:$I$271,5,FALSE) -> 0.9073751246 | C122: =VLOOKUP(Vlookup!C81,'CDCM Forecast Data'!$A$14:$I$271,5,FALSE) -> 0.4460761352
A123: Domestic Two Rate | B123: =VLOOKUP(Vlookup!B82,'CDCM Forecast Data'!$A$14:$I$271,5,FALSE) -> 0.3118076763 | C123: =VLOOKUP(Vlookup!C82,'CDCM Forecast Data'!$A$14:$I$271,5,FALSE) -> 0.2461560372
A124: Domestic Off Peak (related MPAN) | C124: =VLOOKUP(Vlookup!C83,'CDCM Forecast Data'!$A$14:$I$271,5,FALSE) -> 0.1661225671
A125: Small Non Domestic Unrestricted | B125: =VLOOKUP(Vlookup!B84,'CDCM Forecast Data'!$A$14:$I$271,5,FALSE) -> 0.6431867848 | C125: =VLOOKUP(Vlookup!C84,'CDCM Forecast Data'!$A$14:$I$271,5,FALSE) -> 0.393333355
A126: Small Non Domestic Two Rate | B126: =VLOOKUP(Vlookup!B85,'CDCM Forecast Data'!$A$14:$I$271,5,FALSE) -> 0.7753946555 | C126: =VLOOKUP(Vlookup!C85,'CDCM Forecast Data'!$A$14:$I$271,5,FALSE) -> 0.5857662777
A127: Small Non Domestic Off Peak (related MPAN) | C127: =VLOOKUP(Vlookup!C86,'CDCM Forecast Data'!$A$14:$I$271,5,FALSE) -> 0.163884803
A128: LV Medium Non-Domestic | B128: =VLOOKUP(Vlookup!B87,'CDCM Forecast Data'!$A$14:$I$271,5,FALSE) -> 0.7212047762 | C128: =VLOOKUP(Vlookup!C87,'CDCM Forecast Data'!$A$14:$I$271,5,FALSE) -> 0.511247733
A129: LV Sub Medium Non-Domestic | B129: =VLOOKUP(Vlookup!B88,'CDCM Forecast Data'!$A$14:$I$271,5,FALSE) -> 0.6982999022 | C129: =VLOOKUP(Vlookup!C88,'CDCM Forecast Data'!$A$14:$I$271,5,FALSE) -> 0.4962908256
A130: HV Medium Non-Domestic | B130: =VLOOKUP(Vlookup!B89,'CDCM Forecast Data'!$A$14:$I$271,5,FALSE) -> 0.7702073361 | C130: =VLOOKUP(Vlookup!C89,'CDCM Forecast Data'!$A$14:$I$271,5,FALSE) -> 0.5147406723
A131: LV Network Domestic | B131: =VLOOKUP(Vlookup!B90,'CDCM Forecast Data'!$A$14:$I$271,5,FALSE) -> 0.9073751246 | C131: =VLOOKUP(Vlookup!C90,'CDCM Forecast Data'!$A$14:$I$271,5,FALSE) -> 0.4460761352
A132: LV Network Non-Domestic Non-CT | B132: =VLOOKUP(Vlookup!B91,'CDCM Forecast Data'!$A$14:$I$271,5,FALSE) -> 0.6431867848 | C132: =VLOOKUP(Vlookup!C91,'CDCM Forecast Data'!$A$14:$I$271,5,FALSE) -> 0.393333355
A133: LV HH Metered | B133: =VLOOKUP(Vlookup!B92,'CDCM Forecast Data'!$A$14:$I$271,5,FALSE) -> 0.7802624104 | C133: =VLOOKUP(Vlookup!C92,'CDCM Forecast Data'!$A$14:$I$271,5,FALSE) -> 0.5367843793
A134: LV Sub HH Metered | B134: =VLOOKUP(Vlookup!B93,'CDCM Forecast Data'!$A$14:$I$271,5,FALSE) -> 0.7636309411 | C134: =VLOOKUP(Vlookup!C93,'CDCM Forecast Data'!$A$14:$I$271,5,FALSE) -> 0.5603833232
A135: HV HH Metered | B135: =VLOOKUP(Vlookup!B94,'CDCM Forecast Data'!$A$14:$I$271,5,FALSE) -> 0.835869669 | C135: =VLOOKUP(Vlookup!C94,'CDCM Forecast Data'!$A$14:$I$271,5,FALSE) -> 0.7072433891
A136: NHH UMS category A | B136: =VLOOKUP(Vlookup!B95,'CDCM Forecast Data'!$A$14:$I$271,5,FALSE) -> 1 | C136: =VLOOKUP(Vlookup!C95,'CDCM Forecast Data'!$A$14:$I$271,5,FALSE) -> 1
A137: NHH UMS category B | B137: =VLOOKUP(Vlookup!B96,'CDCM Forecast Data'!$A$14:$I$271,5,FALSE) -> 1 | C137: =VLOOKUP(Vlookup!C96,'CDCM Forecast Data'!$A$14:$I$271,5,FALSE) -> 0.4731133764
A138: NHH UMS category C | B138: =VLOOKUP(Vlookup!B97,'CDCM Forecast Data'!$A$14:$I$271,5,FALSE) -> 1 | C138: =VLOOKUP(Vlookup!C97,'CDCM Forecast Data'!$A$14:$I$271,5,FALSE) -> 0.2578169273
A139: NHH UMS category D | B139: =VLOOKUP(Vlookup!B98,'CDCM Forecast Data'!$A$14:$I$271,5,FALSE) -> 0 | C139: =VLOOKUP(Vlookup!C98,'CDCM Forecast Data'!$A$14:$I$271,5,FALSE) -> 0.5537901624
A140: LV UMS (Pseudo HH Metered) | B140: =VLOOKUP(Vlookup!B99,'CDCM Forecast Data'!$A$14:$I$271,5,FALSE) -> 0.9537595116 | C140: =VLOOKUP(Vlookup!C99,'CDCM Forecast Data'!$A$14:$I$271,5,FALSE) -> 0.4621225818
A142: 1053. Volume forecasts for the charging year
B143: 4 | C143: 5 | D143: 6 | E143: 7 | F143: 8 | G143: 9 | H143: 10
A144: Source: forecast.
A145: Please include MPAN counts for tariffs with no fixed charge (e.g. off-peak tariffs),
A146: but exclude MPANs on tariffs with a fixed charge that are not subject to a fixed charge due to a site grouping arrangement.
B147: Rate 1 units (MWh) | C147: Rate 2 units (MWh) | D147: Rate 3 units (MWh) | E147: MPANs | F147: Import capacity (kVA) | G147: Exceeded capacity (kVA) | H147: Reactive power units (MVArh)
A148: > Domestic Unrestricted | B148: =VLOOKUP(Vlookup!$B107,'CDCM Volume Forecasts'!$A$28:$AL$136,B$143,FALSE) -> 0 | C148: =VLOOKUP(Vlookup!$B107,'CDCM Volume Forecasts'!$A$28:$AL$136,C$143,FALSE) -> 0 | D148: =VLOOKUP(Vlookup!$B107,'CDCM Volume Forecasts'!$A$28:$AL$136,D$143,FALSE) -> 0 | E148: =VLOOKUP(Vlookup!$B107,'CDCM Volume Forecasts'!$A$28:$AL$136,E$143,FALSE) -> 0 | F148: =VLOOKUP(Vlookup!$B107,'CDCM Volume Forecasts'!$A$28:$AL$136,F$143,FALSE) -> 0 | H148: =VLOOKUP(Vlookup!$B107,'CDCM Volume Forecasts'!$A$28:$AL$136,G$143,FALSE) -> 0
A149: Domestic Unrestricted | B149: =VLOOKUP(Vlookup!$B108,'CDCM Volume Forecasts'!$A$28:$AL$136,B$143,FALSE) -> 6432881.847 | E149: =VLOOKUP(Vlookup!$B108,'CDCM Volume Forecasts'!$A$28:$AL$136,E$143,FALSE) -> 2027175.516
A150: LDNO LV: Domestic Unrestricted | B150: =VLOOKUP(Vlookup!$B109,'CDCM Volume Forecasts'!$A$28:$AL$136,B$143,FALSE) -> 113806.0014 | E150: =VLOOKUP(Vlookup!$B109,'CDCM Volume Forecasts'!$A$28:$AL$136,E$143,FALSE) -> 39023.01639
A151: LDNO HV: Domestic Unrestricted | B151: =VLOOKUP(Vlookup!$B110,'CDCM Volume Forecasts'!$A$28:$AL$136,B$143,FALSE) -> 92235.48541 | E151: =VLOOKUP(Vlookup!$B110,'CDCM Volume Forecasts'!$A$28:$AL$136,E$143,FALSE) -> 30193.85246
A152: > Domestic Two Rate
A153: Domestic Two Rate | B153: =VLOOKUP(Vlookup!$B112,'CDCM Volume Forecasts'!$A$28:$AL$136,B$143,FALSE) -> 468570.0779 | C153: =VLOOKUP(Vlookup!$B112,'CDCM Volume Forecasts'!$A$28:$AL$136,C$143,FALSE) -> 465777.1278 | E153: =VLOOKUP(Vlookup!$B112,'CDCM Volume Forecasts'!$A$28:$AL$136,E$143,FALSE) -> 178282
A154: LDNO LV: Domestic Two Rate | B154: =VLOOKUP(Vlookup!$B113,'CDCM Volume Forecasts'!$A$28:$AL$136,B$143,FALSE) -> 1262.552664 | C154: =VLOOKUP(Vlookup!$B113,'CDCM Volume Forecasts'!$A$28:$AL$136,C$143,FALSE) -> 466.5835729 | E154: =VLOOKUP(Vlookup!$B113,'CDCM Volume Forecasts'!$A$28:$AL$136,E$143,FALSE) -> 440.4918033
A155: LDNO HV: Domestic Two Rate | B155: =VLOOKUP(Vlookup!$B114,'CDCM Volume Forecasts'!$A$28:$AL$136,B$143,FALSE) -> 5123.491953 | C155: =VLOOKUP(Vlookup!$B114,'CDCM Volume Forecasts'!$A$28:$AL$136,C$143,FALSE) -> 2851.960297 | E155: =VLOOKUP(Vlookup!$B114,'CDCM Volume Forecasts'!$A$28:$AL$136,E$143,FALSE) -> 1559.224044
A156: > Domestic Off Peak (related MPAN)
A157: Domestic Off Peak (related MPAN) | B157: =VLOOKUP(Vlookup!$B116,'CDCM Volume Forecasts'!$A$28:$AL$136,B$143,FALSE) -> 14279.50209 | E157: =VLOOKUP(Vlookup!$B116,'CDCM Volume Forecasts'!$A$28:$AL$136,E$143,FALSE) -> 4270
A158: LDNO LV: Domestic Off Peak (related MPAN) | B158: =VLOOKUP(Vlookup!$B117,'CDCM Volume Forecasts'!$A$28:$AL$136,B$143,FALSE) -> 0 | E158: =VLOOKUP(Vlookup!$B117,'CDCM Volume Forecasts'!$A$28:$AL$136,E$143,FALSE) -> 0
A159: LDNO HV: Domestic Off Peak (related MPAN) | B159: =VLOOKUP(Vlookup!$B118,'CDCM Volume Forecasts'!$A$28:$AL$136,B$143,FALSE) -> 0 | E159: =VLOOKUP(Vlookup!$B118,'CDCM Volume Forecasts'!$A$28:$AL$136,E$143,FALSE) -> 0
A160: > Small Non Domestic Unrestricted
A161: Small Non Domestic Unrestricted | B161: =VLOOKUP(Vlookup!$B120,'CDCM Volume Forecasts'!$A$28:$AL$136,B$143,FALSE) -> 1494625.641 | E161: =VLOOKUP(Vlookup!$B120,'CDCM Volume Forecasts'!$A$28:$AL$136,E$143,FALSE) -> 121609.0109
A162: LDNO LV: Small Non Domestic Unrestricted | B162: =VLOOKUP(Vlookup!$B121,'CDCM Volume Forecasts'!$A$28:$AL$136,B$143,FALSE) -> 5111.451049 | E162: =VLOOKUP(Vlookup!$B121,'CDCM Volume Forecasts'!$A$28:$AL$136,E$143,FALSE) -> 620.4863388
A163: LDNO HV: Small Non Domestic Unrestricted | B163: =VLOOKUP(Vlookup!$B122,'CDCM Volume Forecasts'!$A$28:$AL$136,B$143,FALSE) -> 8421.969121 | E163: =VLOOKUP(Vlookup!$B122,'CDCM Volume Forecasts'!$A$28:$AL$136,E$143,FALSE) -> 630.4863388
A164: > Small Non Domestic Two Rate
A165: Small Non Domestic Two Rate | B165: =VLOOKUP(Vlookup!$B124,'CDCM Volume Forecasts'!$A$28:$AL$136,B$143,FALSE) -> 531718.6143 | C165: =VLOOKUP(Vlookup!$B124,'CDCM Volume Forecasts'!$A$28:$AL$136,C$143,FALSE) -> 195607.5639 | E165: =VLOOKUP(Vlookup!$B124,'CDCM Volume Forecasts'!$A$28:$AL$136,E$143,FALSE) -> 34183.40096
A166: LDNO LV: Small Non Domestic Two Rate | B166: =VLOOKUP(Vlookup!$B125,'CDCM Volume Forecasts'!$A$28:$AL$136,B$143,FALSE) -> 12.27657143 | C166: =VLOOKUP(Vlookup!$B125,'CDCM Volume Forecasts'!$A$28:$AL$136,C$143,FALSE) -> 8.75475 | E166: =VLOOKUP(Vlookup!$B125,'CDCM Volume Forecasts'!$A$28:$AL$136,E$143,FALSE) -> 6
A167: LDNO HV: Small Non Domestic Two Rate | B167: =VLOOKUP(Vlookup!$B126,'CDCM Volume Forecasts'!$A$28:$AL$136,B$143,FALSE) -> 517.7141845 | C167: =VLOOKUP(Vlookup!$B126,'CDCM Volume Forecasts'!$A$28:$AL$136,C$143,FALSE) -> 271.8904851 | E167: =VLOOKUP(Vlookup!$B126,'CDCM Volume Forecasts'!$A$28:$AL$136,E$143,FALSE) -> 17
A168: > Small Non Domestic Off Peak (related MPAN)
A169: Small Non Domestic Off Peak (related MPAN) | B169: =VLOOKUP(Vlookup!$B128,'CDCM Volume Forecasts'!$A$28:$AL$136,B$143,FALSE) -> 20242.62911 | E169: =VLOOKUP(Vlookup!$B128,'CDCM Volume Forecasts'!$A$28:$AL$136,E$143,FALSE) -> 3655
A170: LDNO LV: Small Non Domestic Off Peak (related MPAN) | B170: =VLOOKUP(Vlookup!$B129,'CDCM Volume Forecasts'!$A$28:$AL$136,B$143,FALSE) -> 0 | E170: =VLOOKUP(Vlookup!$B129,'CDCM Volume Forecasts'!$A$28:$AL$136,E$143,FALSE) -> 0
A171: LDNO HV: Small Non Domestic Off Peak (related MPAN) | B171: =VLOOKUP(Vlookup!$B130,'CDCM Volume Forecasts'!$A$28:$AL$136,B$143,FALSE) -> 0 | E171: =VLOOKUP(Vlookup!$B130,'CDCM Volume Forecasts'!$A$28:$AL$136,E$143,FALSE) -> 0
A172: > LV Medium Non-Domestic
A173: LV Medium Non-Domestic | B173: =VLOOKUP(Vlookup!$B132,'CDCM Volume Forecasts'!$A$28:$AL$136,B$143,FALSE) -> 0.9060389581 | C173: =VLOOKUP(Vlookup!$B132,'CDCM Volume Forecasts'!$A$28:$AL$136,C$143,FALSE) -> 0.09210488882 | E173: =VLOOKUP(Vlookup!$B132,'CDCM Volume Forecasts'!$A$28:$AL$136,E$143,FALSE) -> 0.001
A174: LDNO LV: LV Medium Non-Domestic | B174: =VLOOKUP(Vlookup!$B133,'CDCM Volume Forecasts'!$A$28:$AL$136,B$143,FALSE) -> 104.3319476 | C174: =VLOOKUP(Vlookup!$B133,'CDCM Volume Forecasts'!$A$28:$AL$136,C$143,FALSE) -> 20.734 | E174: =VLOOKUP(Vlookup!$B133,'CDCM Volume Forecasts'!$A$28:$AL$136,E$143,FALSE) -> 2
A175: LDNO HV: LV Medium Non-Domestic | B175: =VLOOKUP(Vlookup!$B134,'CDCM Volume Forecasts'!$A$28:$AL$136,B$143,FALSE) -> 0 | C175: =VLOOKUP(Vlookup!$B134,'CDCM Volume Forecasts'!$A$28:$AL$136,C$143,FALSE) -> 0 | E175: =VLOOKUP(Vlookup!$B134,'CDCM Volume Forecasts'!$A$28:$AL$136,E$143,FALSE) -> 0
A176: > LV Sub Medium Non-Domestic
A177: LV Sub Medium Non-Domestic | B177: =VLOOKUP(Vlookup!$B136,'CDCM Volume Forecasts'!$A$28:$AL$136,B$143,FALSE) -> 0.135963199 | C177: =VLOOKUP(Vlookup!$B136,'CDCM Volume Forecasts'!$A$28:$AL$136,C$143,FALSE) -> 0.2880364514 | E177: =VLOOKUP(Vlookup!$B136,'CDCM Volume Forecasts'!$A$28:$AL$136,E$143,FALSE) -> 0.001
A178: > HV Medium Non-Domestic
A179: HV Medium Non-Domestic | B179: =VLOOKUP(Vlookup!$B138,'CDCM Volume Forecasts'!$A$28:$AL$136,B$143,FALSE) -> 0.453019479 | C179: =VLOOKUP(Vlookup!$B138,'CDCM Volume Forecasts'!$A$28:$AL$136,C$143,FALSE) -> 1.153716089 | E179: =VLOOKUP(Vlookup!$B138,'CDCM Volume Forecasts'!$A$28:$AL$136,E$143,FALSE) -> 0.001
A180: > LV Network Domestic
A181: LV Network Domestic | B181: =VLOOKUP(Vlookup!$B140,'CDCM Volume Forecasts'!$A$28:$AL$136,B$143,FALSE) -> 68.86427045 | C181: =VLOOKUP(Vlookup!$B140,'CDCM Volume Forecasts'!$A$28:$AL$136,C$143,FALSE) -> 206.599709 | D181: =VLOOKUP(Vlookup!$B140,'CDCM Volume Forecasts'!$A$28:$AL$136,D$143,FALSE) -> 381.0705413 | E181: =VLOOKUP(Vlookup!$B140,'CDCM Volume Forecasts'!$A$28:$AL$136,E$143,FALSE) -> 339.8032787
A182: LDNO LV: LV Network Domestic | B182: =VLOOKUP(Vlookup!$B141,'CDCM Volume Forecasts'!$A$28:$AL$136,B$143,FALSE) -> 0 | C182: =VLOOKUP(Vlookup!$B141,'CDCM Volume Forecasts'!$A$28:$AL$136,C$143,FALSE) -> 0 | D182: =VLOOKUP(Vlookup!$B141,'CDCM Volume Forecasts'!$A$28:$AL$136,D$143,FALSE) -> 0 | E182: =VLOOKUP(Vlookup!$B141,'CDCM Volume Forecasts'!$A$28:$AL$136,E$143,FALSE) -> 0
A183: LDNO HV: LV Network Domestic | B183: =VLOOKUP(Vlookup!$B142,'CDCM Volume Forecasts'!$A$28:$AL$136,B$143,FALSE) -> 0 | C183: =VLOOKUP(Vlookup!$B142,'CDCM Volume Forecasts'!$A$28:$AL$136,C$143,FALSE) -> 0 | D183: =VLOOKUP(Vlookup!$B142,'CDCM Volume Forecasts'!$A$28:$AL$136,D$143,FALSE) -> 0 | E183: =VLOOKUP(Vlookup!$B142,'CDCM Volume Forecasts'!$A$28:$AL$136,E$143,FALSE) -> 0
A184: > LV Network Non-Domestic Non-CT
A185: LV Network Non-Domestic Non-CT | B185: =VLOOKUP(Vlookup!$B144,'CDCM Volume Forecasts'!$A$28:$AL$136,B$143,FALSE) -> 22435.96495 | C185: =VLOOKUP(Vlookup!$B144,'CDCM Volume Forecasts'!$A$28:$AL$136,C$143,FALSE) -> 80597.10447 | D185: =VLOOKUP(Vlookup!$B144,'CDCM Volume Forecasts'!$A$28:$AL$136,D$143,FALSE) -> 113029.9906 | E185: =VLOOKUP(Vlookup!$B144,'CDCM Volume Forecasts'!$A$28:$AL$136,E$143,FALSE) -> 3574
A186: LDNO LV: LV Network Non-Domestic Non-CT | B186: =VLOOKUP(Vlookup!$B145,'CDCM Volume Forecasts'!$A$28:$AL$136,B$143,FALSE) -> 0 | C186: =VLOOKUP(Vlookup!$B145,'CDCM Volume Forecasts'!$A$28:$AL$136,C$143,FALSE) -> 0 | D186: =VLOOKUP(Vlookup!$B145,'CDCM Volume Forecasts'!$A$28:$AL$136,D$143,FALSE) -> 0 | E186: =VLOOKUP(Vlookup!$B145,'CDCM Volume Forecasts'!$A$28:$AL$136,E$143,FALSE) -> 0
A187: LDNO HV: LV Network Non-Domestic Non-CT | B187: =VLOOKUP(Vlookup!$B146,'CDCM Volume Forecasts'!$A$28:$AL$136,B$143,FALSE) -> 0 | C187: =VLOOKUP(Vlookup!$B146,'CDCM Volume Forecasts'!$A$28:$AL$136,C$143,FALSE) -> 0 | D187: =VLOOKUP(Vlookup!$B146,'CDCM Volume Forecasts'!$A$28:$AL$136,D$143,FALSE) -> 0 | E187: =VLOOKUP(Vlookup!$B146,'CDCM Volume Forecasts'!$A$28:$AL$136,E$143,FALSE) -> 0
A188: > LV HH Metered
A189: LV HH Metered | B189: =VLOOKUP(Vlookup!$B148,'CDCM Volume Forecasts'!$A$28:$AL$136,B$143,FALSE) -> 259213.745 | C189: =VLOOKUP(Vlookup!$B148,'CDCM Volume Forecasts'!$A$28:$AL$136,C$143,FALSE) -> 926903.165 | D189: =VLOOKUP(Vlookup!$B148,'CDCM Volume Forecasts'!$A$28:$AL$136,D$143,FALSE) -> 1194700.314 | E189: =VLOOKUP(Vlookup!$B148,'CDCM Volume Forecasts'!$A$28:$AL$136,E$143,FALSE) -> 12971.0847 | F189: =VLOOKUP(Vlookup!$B148,'CDCM Volume Forecasts'!$A$28:$AL$136,F$143,FALSE) -> 1247153.2 | G189: =VLOOKUP(Vlookup!$B148,'CDCM Volume Forecasts'!$A$28:$AL$136,G$143,FALSE) -> 12471.532 | H189: =VLOOKUP(Vlookup!$B148,'CDCM Volume Forecasts'!$A$28:$AL$136,H$143,FALSE) -> 199567.5775
A190: LDNO LV: LV HH Metered | B190: =VLOOKUP(Vlookup!$B149,'CDCM Volume Forecasts'!$A$28:$AL$136,B$143,FALSE) -> 1902.708646 | C190: =VLOOKUP(Vlookup!$B149,'CDCM Volume Forecasts'!$A$28:$AL$136,C$143,FALSE) -> 6571.208024 | D190: =VLOOKUP(Vlookup!$B149,'CDCM Volume Forecasts'!$A$28:$AL$136,D$143,FALSE) -> 8495.436429 | E190: =VLOOKUP(Vlookup!$B149,'CDCM Volume Forecasts'!$A$28:$AL$136,E$143,FALSE) -> 109.9945355 | F190: =VLOOKUP(Vlookup!$B149,'CDCM Volume Forecasts'!$A$28:$AL$136,F$143,FALSE) -> 7680.359135 | G190: =VLOOKUP(Vlookup!$B149,'CDCM Volume Forecasts'!$A$28:$AL$136,G$143,FALSE) -> 76.80359135 | H190: =VLOOKUP(Vlookup!$B149,'CDCM Volume Forecasts'!$A$28:$AL$136,H$143,FALSE) -> 712.8484
A191: LDNO HV: LV HH Metered | B191: =VLOOKUP(Vlookup!$B150,'CDCM Volume Forecasts'!$A$28:$AL$136,B$143,FALSE) -> 13289.54065 | C191: =VLOOKUP(Vlookup!$B150,'CDCM Volume Forecasts'!$A$28:$AL$136,C$143,FALSE) -> 45417.60972 | D191: =VLOOKUP(Vlookup!$B150,'CDCM Volume Forecasts'!$A$28:$AL$136,D$143,FALSE) -> 64105.56336 | E191: =VLOOKUP(Vlookup!$B150,'CDCM Volume Forecasts'!$A$28:$AL$136,E$143,FALSE) -> 334.4863388 | F191: =VLOOKUP(Vlookup!$B150,'CDCM Volume Forecasts'!$A$28:$AL$136,F$143,FALSE) -> 57203.9097 | G191: =VLOOKUP(Vlookup!$B150,'CDCM Volume Forecasts'!$A$28:$AL$136,G$143,FALSE) -> 572.039097 | H191: =VLOOKUP(Vlookup!$B150,'CDCM Volume Forecasts'!$A$28:$AL$136,H$143,FALSE) -> 3078.89686
A192: > LV Sub HH Metered
A193: LV Sub HH Metered | B193: =VLOOKUP(Vlookup!$B152,'CDCM Volume Forecasts'!$A$28:$AL$136,B$143,FALSE) -> 126109.0749 | C193: =VLOOKUP(Vlookup!$B152,'CDCM Volume Forecasts'!$A$28:$AL$136,C$143,FALSE) -> 462200.7154 | D193: =VLOOKUP(Vlookup!$B152,'CDCM Volume Forecasts'!$A$28:$AL$136,D$143,FALSE) -> 623163.7147 | E193: =VLOOKUP(Vlookup!$B152,'CDCM Volume Forecasts'!$A$28:$AL$136,E$143,FALSE) -> 2163.489071 | F193: =VLOOKUP(Vlookup!$B152,'CDCM Volume Forecasts'!$A$28:$AL$136,F$143,FALSE) -> 650266.427 | G193: =VLOOKUP(Vlookup!$B152,'CDCM Volume Forecasts'!$A$28:$AL$136,G$143,FALSE) -> 6502.66427 | H193: =VLOOKUP(Vlookup!$B152,'CDCM Volume Forecasts'!$A$28:$AL$136,H$143,FALSE) -> 97083.8447
A194: LDNO HV: LV Sub HH Metered | B194: =VLOOKUP(Vlookup!$B153,'CDCM Volume Forecasts'!$A$28:$AL$136,B$143,FALSE) -> 1351.261253 | C194: =VLOOKUP(Vlookup!$B153,'CDCM Volume Forecasts'!$A$28:$AL$136,C$143,FALSE) -> 4492.991488 | D194: =VLOOKUP(Vlookup!$B153,'CDCM Volume Forecasts'!$A$28:$AL$136,D$143,FALSE) -> 7950.547777 | E194: =VLOOKUP(Vlookup!$B153,'CDCM Volume Forecasts'!$A$28:$AL$136,E$143,FALSE) -> 10 | F194: =VLOOKUP(Vlookup!$B153,'CDCM Volume Forecasts'!$A$28:$AL$136,F$143,FALSE) -> 6248.57096 | G194: =VLOOKUP(Vlookup!$B153,'CDCM Volume Forecasts'!$A$28:$AL$136,G$143,FALSE) -> 62.4857096 | H194: =VLOOKUP(Vlookup!$B153,'CDCM Volume Forecasts'!$A$28:$AL$136,H$143,FALSE) -> 77.417
A195: > HV HH Metered
A196: HV HH Metered | B196: =VLOOKUP(Vlookup!$B155,'CDCM Volume Forecasts'!$A$28:$AL$136,B$143,FALSE) -> 457655.8379 | C196: =VLOOKUP(Vlookup!$B155,'CDCM Volume Forecasts'!$A$28:$AL$136,C$143,FALSE) -> 1565462.317 | D196: =VLOOKUP(Vlookup!$B155,'CDCM Volume Forecasts'!$A$28:$AL$136,D$143,FALSE) -> 2576162.916 | E196: =VLOOKUP(Vlookup!$B155,'CDCM Volume Forecasts'!$A$28:$AL$136,E$143,FALSE) -> 2232.92623 | F196: =VLOOKUP(Vlookup!$B155,'CDCM Volume Forecasts'!$A$28:$AL$136,F$143,FALSE) -> 1816038.308 | G196: =VLOOKUP(Vlookup!$B155,'CDCM Volume Forecasts'!$A$28:$AL$136,G$143,FALSE) -> 18160.38308 | H196: =VLOOKUP(Vlookup!$B155,'CDCM Volume Forecasts'!$A$28:$AL$136,H$143,FALSE) -> 366046.3577
A197: LDNO HV: HV HH Metered | B197: =VLOOKUP(Vlookup!$B156,'CDCM Volume Forecasts'!$A$28:$AL$136,B$143,FALSE) -> 2580.028981 | C197: =VLOOKUP(Vlookup!$B156,'CDCM Volume Forecasts'!$A$28:$AL$136,C$143,FALSE) -> 8492.991421 | D197: =VLOOKUP(Vlookup!$B156,'CDCM Volume Forecasts'!$A$28:$AL$136,D$143,FALSE) -> 16606.32578 | E197: =VLOOKUP(Vlookup!$B156,'CDCM Volume Forecasts'!$A$28:$AL$136,E$143,FALSE) -> 13 | F197: =VLOOKUP(Vlookup!$B156,'CDCM Volume Forecasts'!$A$28:$AL$136,F$143,FALSE) -> 17946.56797 | G197: =VLOOKUP(Vlookup!$B156,'CDCM Volume Forecasts'!$A$28:$AL$136,G$143,FALSE) -> 179.4656797 | H197: =VLOOKUP(Vlookup!$B156,'CDCM Volume Forecasts'!$A$28:$AL$136,H$143,FALSE) -> 90.4662
A198: > NHH UMS category A
A199: NHH UMS category A | B199: =VLOOKUP(Vlookup!$B158,'CDCM Volume Forecasts'!$A$28:$AL$136,B$143,FALSE) -> 17466.39689 | E199: =VLOOKUP(Vlookup!$B158,'CDCM Volume Forecasts'!$A$28:$AL$136,E$143,FALSE) -> 203.5027322
A200: LDNO LV: NHH UMS category A | B200: =VLOOKUP(Vlookup!$B159,'CDCM Volume Forecasts'!$A$28:$AL$136,B$143,FALSE) -> 0 | E200: =VLOOKUP(Vlookup!$B159,'CDCM Volume Forecasts'!$A$28:$AL$136,E$143,FALSE) -> 0
A201: LDNO HV: NHH UMS category A | B201: =VLOOKUP(Vlookup!$B160,'CDCM Volume Forecasts'!$A$28:$AL$136,B$143,FALSE) -> 0 | E201: =VLOOKUP(Vlookup!$B160,'CDCM Volume Forecasts'!$A$28:$AL$136,E$143,FALSE) -> 0
A202: > NHH UMS category B
A203: NHH UMS category B | B203: =VLOOKUP(Vlookup!$B162,'CDCM Volume Forecasts'!$A$28:$AL$136,B$143,FALSE) -> 9156.631168 | E203: =VLOOKUP(Vlookup!$B162,'CDCM Volume Forecasts'!$A$28:$AL$136,E$143,FALSE) -> 326
A204: LDNO LV: NHH UMS category B | B204: =VLOOKUP(Vlookup!$B163,'CDCM Volume Forecasts'!$A$28:$AL$136,B$143,FALSE) -> 217.541384 | E204: =VLOOKUP(Vlookup!$B163,'CDCM Volume Forecasts'!$A$28:$AL$136,E$143,FALSE) -> 85
A205: LDNO HV: NHH UMS category B | B205: =VLOOKUP(Vlookup!$B164,'CDCM Volume Forecasts'!$A$28:$AL$136,B$143,FALSE) -> 60.74485714 | E205: =VLOOKUP(Vlookup!$B164,'CDCM Volume Forecasts'!$A$28:$AL$136,E$143,FALSE) -> 7
A206: > NHH UMS category C
A207: NHH UMS category C | B207: =VLOOKUP(Vlookup!$B166,'CDCM Volume Forecasts'!$A$28:$AL$136,B$143,FALSE) -> 411.2469303 | E207: =VLOOKUP(Vlookup!$B166,'CDCM Volume Forecasts'!$A$28:$AL$136,E$143,FALSE) -> 8
A208: LDNO LV: NHH UMS category C | B208: =VLOOKUP(Vlookup!$B167,'CDCM Volume Forecasts'!$A$28:$AL$136,B$143,FALSE) -> 0 | E208: =VLOOKUP(Vlookup!$B167,'CDCM Volume Forecasts'!$A$28:$AL$136,E$143,FALSE) -> 0
A209: LDNO HV: NHH UMS category C | B209: =VLOOKUP(Vlookup!$B168,'CDCM Volume Forecasts'!$A$28:$AL$136,B$143,FALSE) -> 0 | E209: =VLOOKUP(Vlookup!$B168,'CDCM Volume Forecasts'!$A$28:$AL$136,E$143,FALSE) -> 0
A210: > NHH UMS category D
A211: NHH UMS category D | B211: =VLOOKUP(Vlookup!$B170,'CDCM Volume Forecasts'!$A$28:$AL$136,B$143,FALSE) -> 0.05140586629 | E211: =VLOOKUP(Vlookup!$B170,'CDCM Volume Forecasts'!$A$28:$AL$136,E$143,FALSE) -> 0.001
A212: LDNO LV: NHH UMS category D | B212: =VLOOKUP(Vlookup!$B171,'CDCM Volume Forecasts'!$A$28:$AL$136,B$143,FALSE) -> 0 | E212: =VLOOKUP(Vlookup!$B171,'CDCM Volume Forecasts'!$A$28:$AL$136,E$143,FALSE) -> 0
A213: LDNO HV: NHH UMS category D | B213: =VLOOKUP(Vlookup!$B172,'CDCM Volume Forecasts'!$A$28:$AL$136,B$143,FALSE) -> 0 | E213: =VLOOKUP(Vlookup!$B172,'CDCM Volume Forecasts'!$A$28:$AL$136,E$143,FALSE) -> 0
A214: > LV UMS (Pseudo HH Metered)
A215: LV UMS (Pseudo HH Metered) | B215: =VLOOKUP(Vlookup!$B174,'CDCM Volume Forecasts'!$A$28:$AL$136,B$143,FALSE) -> 10560.70647 | C215: =VLOOKUP(Vlookup!$B174,'CDCM Volume Forecasts'!$A$28:$AL$136,C$143,FALSE) -> 28387.51814 | D215: =VLOOKUP(Vlookup!$B174,'CDCM Volume Forecasts'!$A$28:$AL$136,D$143,FALSE) -> 176907.0706 | E215: =VLOOKUP(Vlookup!$B174,'CDCM Volume Forecasts'!$A$28:$AL$136,E$143,FALSE) -> 25
A216: LDNO LV: LV UMS (Pseudo HH Metered) | B216: =VLOOKUP(Vlookup!$B175,'CDCM Volume Forecasts'!$A$28:$AL$136,B$143,FALSE) -> 0 | C216: =VLOOKUP(Vlookup!$B175,'CDCM Volume Forecasts'!$A$28:$AL$136,C$143,FALSE) -> 0 | D216: =VLOOKUP(Vlookup!$B175,'CDCM Volume Forecasts'!$A$28:$AL$136,D$143,FALSE) -> 0 | E216: =VLOOKUP(Vlookup!$B175,'CDCM Volume Forecasts'!$A$28:$AL$136,E$143,FALSE) -> 0
A217: LDNO HV: LV UMS (Pseudo HH Metered) | B217: =VLOOKUP(Vlookup!$B176,'CDCM Volume Forecasts'!$A$28:$AL$136,B$143,FALSE) -> 0 | C217: =VLOOKUP(Vlookup!$B176,'CDCM Volume Forecasts'!$A$28:$AL$136,C$143,FALSE) -> 0 | D217: =VLOOKUP(Vlookup!$B176,'CDCM Volume Forecasts'!$A$28:$AL$136,D$143,FALSE) -> 0 | E217: =VLOOKUP(Vlookup!$B176,'CDCM Volume Forecasts'!$A$28:$AL$136,E$143,FALSE) -> 0
A218: > LV Generation NHH or Aggregate HH
A219: LV Generation NHH or Aggregate HH | B219: =VLOOKUP(Vlookup!$B178,'CDCM Volume Forecasts'!$A$28:$AL$136,B$143,FALSE) -> 3259.869343 | E219: =VLOOKUP(Vlookup!$B178,'CDCM Volume Forecasts'!$A$28:$AL$136,E$143,FALSE) -> 270.0655738
A220: LDNO LV: LV Generation NHH or Aggregate HH | B220: =VLOOKUP(Vlookup!$B179,'CDCM Volume Forecasts'!$A$28:$AL$136,B$143,FALSE) -> 0 | E220: =VLOOKUP(Vlookup!$B179,'CDCM Volume Forecasts'!$A$28:$AL$136,E$143,FALSE) -> 0
A221: LDNO HV: LV Generation NHH or Aggregate HH | B221: =VLOOKUP(Vlookup!$B180,'CDCM Volume Forecasts'!$A$28:$AL$136,B$143,FALSE) -> 0 | E221: =VLOOKUP(Vlookup!$B180,'CDCM Volume Forecasts'!$A$28:$AL$136,E$143,FALSE) -> 0
A222: > LV Sub Generation NHH
A223: LV Sub Generation NHH | B223: =VLOOKUP(Vlookup!$B182,'CDCM Volume Forecasts'!$A$28:$AL$136,B$143,FALSE) -> 0.9598142732 | E223: =VLOOKUP(Vlookup!$B182,'CDCM Volume Forecasts'!$A$28:$AL$136,E$143,FALSE) -> 0.01
A224: LDNO HV: LV Sub Generation NHH | B224: =VLOOKUP(Vlookup!$B183,'CDCM Volume Forecasts'!$A$28:$AL$136,B$143,FALSE) -> 0 | E224: =VLOOKUP(Vlookup!$B183,'CDCM Volume Forecasts'!$A$28:$AL$136,E$143,FALSE) -> 0
A225: > LV Generation Intermittent
A226: LV Generation Intermittent | B226: =VLOOKUP(Vlookup!$B185,'CDCM Volume Forecasts'!$A$28:$AL$136,B$143,FALSE) -> 20683.73534 | E226: =VLOOKUP(Vlookup!$B185,'CDCM Volume Forecasts'!$A$28:$AL$136,E$143,FALSE) -> 215.4972678 | H226: =VLOOKUP(Vlookup!$B185,'CDCM Volume Forecasts'!$A$28:$AL$136,H$143,FALSE) -> 1784.4707
A227: LDNO LV: LV Generation Intermittent | B227: =VLOOKUP(Vlookup!$B186,'CDCM Volume Forecasts'!$A$28:$AL$136,B$143,FALSE) -> 0 | E227: =VLOOKUP(Vlookup!$B186,'CDCM Volume Forecasts'!$A$28:$AL$136,E$143,FALSE) -> 0 | H227: =VLOOKUP(Vlookup!$B186,'CDCM Volume Forecasts'!$A$28:$AL$136,H$143,FALSE) -> 0
A228: LDNO HV: LV Generation Intermittent | B228: =VLOOKUP(Vlookup!$B187,'CDCM Volume Forecasts'!$A$28:$AL$136,B$143,FALSE) -> 0 | E228: =VLOOKUP(Vlookup!$B187,'CDCM Volume Forecasts'!$A$28:$AL$136,E$143,FALSE) -> 0 | H228: =VLOOKUP(Vlookup!$B187,'CDCM Volume Forecasts'!$A$28:$AL$136,H$143,FALSE) -> 0
... 99 more rows

Sheet (Y+1)
A1: Input data (Y+1)
A4: 1000. Company, charging year, data version
B6: Company | C6: Year | D6: Version
A7: Company, charging year, data version | B7: =VLOOKUP(Vlookup!B7,'CDCM Forecast Data'!$A$14:$I$271,6,FALSE) -> Electricity North West | C7: =VLOOKUP(Vlookup!C7,'CDCM Forecast Data'!$A$14:$I$271,6,FALSE) -> 2020/21 | D7: =VLOOKUP(Vlookup!D7,'CDCM Forecast Data'!$A$14:$I$271,6,FALSE) -> Forecast
A9: 1010. Financial and general assumptions
A11: Sources: financial assumptions; calendar; network model.
A12: These financial assumptions determine the annuity rate applied to convert the asset values of the network model into an annual charge.
B13: Rate of return | C13: Annualisation period (years) | D13: Annuity proportion for customer-contributed assets | E13: Power factor | F13: Days in the charging period
A14: Financial and general assumptions | B14: =VLOOKUP(Vlookup!B14,'CDCM Forecast Data'!$A$14:$I$271,6,FALSE) -> 0.0402 | C14: =VLOOKUP(Vlookup!C14,'CDCM Forecast Data'!$A$14:$I$271,6,FALSE) -> 40 | E14: =VLOOKUP(Vlookup!E14,'CDCM Forecast Data'!$A$14:$I$271,6,FALSE) -> 0.95 | F14: =VLOOKUP(Vlookup!F14,'CDCM Forecast Data'!$A$14:$I$271,6,FALSE) -> 365
A16: 1017. Diversity allowance between top and bottom of network level
A18: Source: operational data analysis and/or network model.
A19: The diversity figure against GSP is the diversity between GSP Group (the whole system) and individual GSPs.
A20: The diversity figure against 132kV is the diversity between GSPs (the top of the 132kV network) and 132kV/EHV bulk supply points (the bottom of the 132kV network).
A21: The diversity figure against EHV is the diversity between 132kV/EHV bulk supply points (the top of the EHV network) and EHV/HV primary substations (the bottom of the EHV network).
A22: The diversity figure against HV is the diversity between EHV/HV primary substations (the top of the HV network) and HV/LV substations (the bottom of the HV network).
B23: Diversity allowance between top and bottom of network level
A24: GSPs | B24: =VLOOKUP(Vlookup!B24,'CDCM Forecast Data'!$A$14:$I$271,6,FALSE) -> 0.0634939014
A25: 132kV | B25: =VLOOKUP(Vlookup!B25,'CDCM Forecast Data'!$A$14:$I$271,6,FALSE) -> 0.06832793776
A26: 132kV/EHV
A27: EHV | B27: =VLOOKUP(Vlookup!B27,'CDCM Forecast Data'!$A$14:$I$271,6,FALSE) -> 0.09140024367
A28: EHV/HV
A29: HV | B29: =VLOOKUP(Vlookup!B29,'CDCM Forecast Data'!$A$14:$I$271,6,FALSE) -> 0.2390012962
A30: HV/LV
A31: LV circuits
A33: 1018. Proportion of relevant load going through 132kV/HV direct transformation
B35: 132kV/HV
A36: EHV/HV | B36: =VLOOKUP(Vlookup!B36,'CDCM Forecast Data'!$A$14:$I$271,6,FALSE) -> 0
A38: 1019. Network model GSP peak demand (MW)
B40: Network model GSP peak demand (MW)
A41: Network model GSP peak demand (MW) | B41: =VLOOKUP(Vlookup!B41,'CDCM Forecast Data'!$A$14:$I$271,6,FALSE) -> 500
A43: 1020. Gross asset cost by network level (£)
B45: Gross assets £
A46: 132kV | B46: =VLOOKUP(Vlookup!B46,'CDCM Forecast Data'!$A$14:$I$271,6,FALSE) -> 100301754.5
A47: 132kV/EHV | B47: =VLOOKUP(Vlookup!B47,'CDCM Forecast Data'!$A$14:$I$271,6,FALSE) -> 39674898.83
A48: EHV | B48: =VLOOKUP(Vlookup!B48,'CDCM Forecast Data'!$A$14:$I$271,6,FALSE) -> 100181801.9
A49: EHV/HV | B49: =VLOOKUP(Vlookup!B49,'CDCM Forecast Data'!$A$14:$I$271,6,FALSE) -> 63195020.95
A50: 132kV/HV | B50: =VLOOKUP(Vlookup!B50,'CDCM Forecast Data'!$A$14:$I$271,6,FALSE) -> 0
A51: HV | B51: =VLOOKUP(Vlookup!B51,'CDCM Forecast Data'!$A$14:$I$271,6,FALSE) -> 114729339.1
A52: HV/LV | B52: =VLOOKUP(Vlookup!B52,'CDCM Forecast Data'!$A$14:$I$271,6,FALSE) -> 104165107.7
A53: LV circuits | B53: =VLOOKUP(Vlookup!B53,'CDCM Forecast Data'!$A$14:$I$271,6,FALSE) -> 57745147.13
A55: 1022. LV service model asset cost (£)
B57: LV service model 1 | C57: LV service model 2 | D57: LV service model 3 | E57: LV service model 4 | F57: LV service model 5 | G57: LV service model 6 | H57: LV service model 7 | I57: LV service model 8
A58: LV service model asset cost (£) | B58: =VLOOKUP(Vlookup!B58,'CDCM Forecast Data'!$A$14:$I$271,6,FALSE) -> 10961.83142 | C58: =VLOOKUP(Vlookup!C58,'CDCM Forecast Data'!$A$14:$I$271,6,FALSE) -> 548.0915709 | D58: =VLOOKUP(Vlookup!D58,'CDCM Forecast Data'!$A$14:$I$271,6,FALSE) -> 2576.738925 | E58: =VLOOKUP(Vlookup!E58,'CDCM Forecast Data'!$A$14:$I$271,6,FALSE) -> 8271.638764 | F58: =VLOOKUP(Vlookup!F58,'CDCM Forecast Data'!$A$14:$I$271,6,FALSE) -> 301.2636498 | G58: =VLOOKUP(Vlookup!G58,'CDCM Forecast Data'!$A$14:$I$271,6,FALSE) -> 0 | H58: =VLOOKUP(Vlookup!H58,'CDCM Forecast Data'!$A$14:$I$271,6,FALSE) -> 0 | I58: =VLOOKUP(Vlookup!I58,'CDCM Forecast Data'!$A$14:$I$271,6,FALSE) -> 0
A60: 1023. HV service model asset cost (£)
B62: HV service model 1 | C62: HV service model 2 | D62: HV service model 3 | E62: HV service model 4 | F62: HV service model 5
A63: HV service model asset cost (£) | B63: =VLOOKUP(Vlookup!B63,'CDCM Forecast Data'!$A$14:$I$271,6,FALSE) -> 20576.13877 | C63: =VLOOKUP(Vlookup!C63,'CDCM Forecast Data'!$A$14:$I$271,6,FALSE) -> 18188.23076 | D63: =VLOOKUP(Vlookup!D63,'CDCM Forecast Data'!$A$14:$I$271,6,FALSE) -> 1224.735926 | E63: =VLOOKUP(Vlookup!E63,'CDCM Forecast Data'!$A$14:$I$271,6,FALSE) -> 0 | F63: =VLOOKUP(Vlookup!F63,'CDCM Forecast Data'!$A$14:$I$271,6,FALSE) -> 0
A65: 1025. Matrix of applicability of LV service models to tariffs with fixed charges
B66: 10 | C66: =B66+1 -> 11 | D66: 12 | E66: 13 | F66: 14 | G66: 15 | H66: 16 | I66: 17
B67: LV service model 1 | C67: LV service model 2 | D67: LV service model 3 | E67: LV service model 4 | F67: LV service model 5 | G67: LV service model 6 | H67: LV service model 7 | I67: LV service model 8
A68: Domestic Unrestricted | B68: =VLOOKUP($A68,'Mat of App'!$B$7:$AP$43,B$66,FALSE) -> 0.05 | C68: =VLOOKUP($A68,'Mat of App'!$B$7:$AP$43,C$66,FALSE) -> 0 | D68: =VLOOKUP($A68,'Mat of App'!$B$7:$AP$43,D$66,FALSE) -> 0 | E68: =VLOOKUP($A68,'Mat of App'!$B$7:$AP$43,E$66,FALSE) -> 0 | F68: =VLOOKUP($A68,'Mat of App'!$B$7:$AP$43,F$66,FALSE) -> 0 | G68: =VLOOKUP($A68,'Mat of App'!$B$7:$AP$43,G$66,FALSE) -> 0 | H68: =VLOOKUP($A68,'Mat of App'!$B$7:$AP$43,H$66,FALSE) -> 0 | I68: =VLOOKUP($A68,'Mat of App'!$B$7:$AP$43,I$66,FALSE) -> 0
A69: Domestic Two Rate | B69: =VLOOKUP($A69,'Mat of App'!$B$7:$AP$43,B$66,FALSE) -> 0.05 | C69: =VLOOKUP($A69,'Mat of App'!$B$7:$AP$43,C$66,FALSE) -> 0 | D69: =VLOOKUP($A69,'Mat of App'!$B$7:$AP$43,D$66,FALSE) -> 0 | E69: =VLOOKUP($A69,'Mat of App'!$B$7:$AP$43,E$66,FALSE) -> 0 | F69: =VLOOKUP($A69,'Mat of App'!$B$7:$AP$43,F$66,FALSE) -> 0 | G69: =VLOOKUP($A69,'Mat of App'!$B$7:$AP$43,G$66,FALSE) -> 0 | H69: =VLOOKUP($A69,'Mat of App'!$B$7:$AP$43,H$66,FALSE) -> 0 | I69: =VLOOKUP($A69,'Mat of App'!$B$7:$AP$43,I$66,FALSE) -> 0
A70: Small Non Domestic Unrestricted | B70: =VLOOKUP($A70,'Mat of App'!$B$7:$AP$43,B$66,FALSE) -> 0 | C70: =VLOOKUP($A70,'Mat of App'!$B$7:$AP$43,C$66,FALSE) -> 1 | D70: =VLOOKUP($A70,'Mat of App'!$B$7:$AP$43,D$66,FALSE) -> 0 | E70: =VLOOKUP($A70,'Mat of App'!$B$7:$AP$43,E$66,FALSE) -> 0 | F70: =VLOOKUP($A70,'Mat of App'!$B$7:$AP$43,F$66,FALSE) -> 0 | G70: =VLOOKUP($A70,'Mat of App'!$B$7:$AP$43,G$66,FALSE) -> 0 | H70: =VLOOKUP($A70,'Mat of App'!$B$7:$AP$43,H$66,FALSE) -> 0 | I70: =VLOOKUP($A70,'Mat of App'!$B$7:$AP$43,I$66,FALSE) -> 0
A71: Small Non Domestic Two Rate | B71: =VLOOKUP($A71,'Mat of App'!$B$7:$AP$43,B$66,FALSE) -> 0 | C71: =VLOOKUP($A71,'Mat of App'!$B$7:$AP$43,C$66,FALSE) -> 1 | D71: =VLOOKUP($A71,'Mat of App'!$B$7:$AP$43,D$66,FALSE) -> 0 | E71: =VLOOKUP($A71,'Mat of App'!$B$7:$AP$43,E$66,FALSE) -> 0 | F71: =VLOOKUP($A71,'Mat of App'!$B$7:$AP$43,F$66,FALSE) -> 0 | G71: =VLOOKUP($A71,'Mat of App'!$B$7:$AP$43,G$66,FALSE) -> 0 | H71: =VLOOKUP($A71,'Mat of App'!$B$7:$AP$43,H$66,FALSE) -> 0 | I71: =VLOOKUP($A71,'Mat of App'!$B$7:$AP$43,I$66,FALSE) -> 0
A72: LV Medium Non-Domestic | B72: =VLOOKUP($A72,'Mat of App'!$B$7:$AP$43,B$66,FALSE) -> 0 | C72: =VLOOKUP($A72,'Mat of App'!$B$7:$AP$43,C$66,FALSE) -> 0.2391523713 | D72: =VLOOKUP($A72,'Mat of App'!$B$7:$AP$43,D$66,FALSE) -> 0.7608476287 | E72: =VLOOKUP($A72,'Mat of App'!$B$7:$AP$43,E$66,FALSE) -> 0 | F72: =VLOOKUP($A72,'Mat of App'!$B$7:$AP$43,F$66,FALSE) -> 0 | G72: =VLOOKUP($A72,'Mat of App'!$B$7:$AP$43,G$66,FALSE) -> 0 | H72: =VLOOKUP($A72,'Mat of App'!$B$7:$AP$43,H$66,FALSE) -> 0 | I72: =VLOOKUP($A72,'Mat of App'!$B$7:$AP$43,I$66,FALSE) -> 0
A73: LV Sub Medium Non-Domestic | B73: =VLOOKUP($A73,'Mat of App'!$B$7:$AP$43,B$66,FALSE) -> 0 | C73: =VLOOKUP($A73,'Mat of App'!$B$7:$AP$43,C$66,FALSE) -> 0 | D73: =VLOOKUP($A73,'Mat of App'!$B$7:$AP$43,D$66,FALSE) -> 0 | E73: =VLOOKUP($A73,'Mat of App'!$B$7:$AP$43,E$66,FALSE) -> 1 | F73: =VLOOKUP($A73,'Mat of App'!$B$7:$AP$43,F$66,FALSE) -> 0 | G73: =VLOOKUP($A73,'Mat of App'!$B$7:$AP$43,G$66,FALSE) -> 0 | H73: =VLOOKUP($A73,'Mat of App'!$B$7:$AP$43,H$66,FALSE) -> 0 | I73: =VLOOKUP($A73,'Mat of App'!$B$7:$AP$43,I$66,FALSE) -> 0
A74: LV Network Domestic | B74: =VLOOKUP($A74,'Mat of App'!$B$7:$AP$43,B$66,FALSE) -> 0.05 | C74: =VLOOKUP($A74,'Mat of App'!$B$7:$AP$43,C$66,FALSE) -> 0 | D74: =VLOOKUP($A74,'Mat of App'!$B$7:$AP$43,D$66,FALSE) -> 0 | E74: =VLOOKUP($A74,'Mat of App'!$B$7:$AP$43,E$66,FALSE) -> 0 | F74: =VLOOKUP($A74,'Mat of App'!$B$7:$AP$43,F$66,FALSE) -> 0 | G74: =VLOOKUP($A74,'Mat of App'!$B$7:$AP$43,G$66,FALSE) -> 0 | H74: =VLOOKUP($A74,'Mat of App'!$B$7:$AP$43,H$66,FALSE) -> 0 | I74: =VLOOKUP($A74,'Mat of App'!$B$7:$AP$43,I$66,FALSE) -> 0
A75: LV Network Non-Domestic Non-CT | B75: =VLOOKUP($A75,'Mat of App'!$B$7:$AP$43,B$66,FALSE) -> 0 | C75: =VLOOKUP($A75,'Mat of App'!$B$7:$AP$43,C$66,FALSE) -> 1 | D75: =VLOOKUP($A75,'Mat of App'!$B$7:$AP$43,D$66,FALSE) -> 0 | E75: =VLOOKUP($A75,'Mat of App'!$B$7:$AP$43,E$66,FALSE) -> 0 | F75: =VLOOKUP($A75,'Mat of App'!$B$7:$AP$43,F$66,FALSE) -> 0 | G75: =VLOOKUP($A75,'Mat of App'!$B$7:$AP$43,G$66,FALSE) -> 0 | H75: =VLOOKUP($A75,'Mat of App'!$B$7:$AP$43,H$66,FALSE) -> 0 | I75: =VLOOKUP($A75,'Mat of App'!$B$7:$AP$43,I$66,FALSE) -> 0
A76: LV HH Metered | B76: =VLOOKUP($A76,'Mat of App'!$B$7:$AP$43,B$66,FALSE) -> 0 | C76: =VLOOKUP($A76,'Mat of App'!$B$7:$AP$43,C$66,FALSE) -> 0 | D76: =VLOOKUP($A76,'Mat of App'!$B$7:$AP$43,D$66,FALSE) -> 1 | E76: =VLOOKUP($A76,'Mat of App'!$B$7:$AP$43,E$66,FALSE) -> 0 | F76: =VLOOKUP($A76,'Mat of App'!$B$7:$AP$43,F$66,FALSE) -> 0 | G76: =VLOOKUP($A76,'Mat of App'!$B$7:$AP$43,G$66,FALSE) -> 0 | H76: =VLOOKUP($A76,'Mat of App'!$B$7:$AP$43,H$66,FALSE) -> 0 | I76: =VLOOKUP($A76,'Mat of App'!$B$7:$AP$43,I$66,FALSE) -> 0
A77: LV Sub HH Metered | B77: =VLOOKUP($A77,'Mat of App'!$B$7:$AP$43,B$66,FALSE) -> 0 | C77: =VLOOKUP($A77,'Mat of App'!$B$7:$AP$43,C$66,FALSE) -> 0 | D77: =VLOOKUP($A77,'Mat of App'!$B$7:$AP$43,D$66,FALSE) -> 0 | E77: =VLOOKUP($A77,'Mat of App'!$B$7:$AP$43,E$66,FALSE) -> 1 | F77: =VLOOKUP($A77,'Mat of App'!$B$7:$AP$43,F$66,FALSE) -> 0 | G77: =VLOOKUP($A77,'Mat of App'!$B$7:$AP$43,G$66,FALSE) -> 0 | H77: =VLOOKUP($A77,'Mat of App'!$B$7:$AP$43,H$66,FALSE) -> 0 | I77: =VLOOKUP($A77,'Mat of App'!$B$7:$AP$43,I$66,FALSE) -> 0
A78: LV Generation NHH or Aggregate HH | B78: =VLOOKUP($A78,'Mat of App'!$B$7:$AP$43,B$66,FALSE) -> 0 | C78: =VLOOKUP($A78,'Mat of App'!$B$7:$AP$43,C$66,FALSE) -> 0 | D78: =VLOOKUP($A78,'Mat of App'!$B$7:$AP$43,D$66,FALSE) -> 0 | E78: =VLOOKUP($A78,'Mat of App'!$B$7:$AP$43,E$66,FALSE) -> 0 | F78: =VLOOKUP($A78,'Mat of App'!$B$7:$AP$43,F$66,FALSE) -> 0 | G78: =VLOOKUP($A78,'Mat of App'!$B$7:$AP$43,G$66,FALSE) -> 0 | H78: =VLOOKUP($A78,'Mat of App'!$B$7:$AP$43,H$66,FALSE) -> 0 | I78: =VLOOKUP($A78,'Mat of App'!$B$7:$AP$43,I$66,FALSE) -> 0
A79: LV Sub Generation NHH | B79: =VLOOKUP($A79,'Mat of App'!$B$7:$AP$43,B$66,FALSE) -> 0 | C79: =VLOOKUP($A79,'Mat of App'!$B$7:$AP$43,C$66,FALSE) -> 0 | D79: =VLOOKUP($A79,'Mat of App'!$B$7:$AP$43,D$66,FALSE) -> 0 | E79: =VLOOKUP($A79,'Mat of App'!$B$7:$AP$43,E$66,FALSE) -> 0 | F79: =VLOOKUP($A79,'Mat of App'!$B$7:$AP$43,F$66,FALSE) -> 0 | G79: =VLOOKUP($A79,'Mat of App'!$B$7:$AP$43,G$66,FALSE) -> 0 | H79: =VLOOKUP($A79,'Mat of App'!$B$7:$AP$43,H$66,FALSE) -> 0 | I79: =VLOOKUP($A79,'Mat of App'!$B$7:$AP$43,I$66,FALSE) -> 0
A80: LV Generation Intermittent | B80: =VLOOKUP($A80,'Mat of App'!$B$7:$AP$43,B$66,FALSE) -> 0 | C80: =VLOOKUP($A80,'Mat of App'!$B$7:$AP$43,C$66,FALSE) -> 0 | D80: =VLOOKUP($A80,'Mat of App'!$B$7:$AP$43,D$66,FALSE) -> 0 | E80: =VLOOKUP($A80,'Mat of App'!$B$7:$AP$43,E$66,FALSE) -> 0 | F80: =VLOOKUP($A80,'Mat of App'!$B$7:$AP$43,F$66,FALSE) -> 0 | G80: =VLOOKUP($A80,'Mat of App'!$B$7:$AP$43,G$66,FALSE) -> 0 | H80: =VLOOKUP($A80,'Mat of App'!$B$7:$AP$43,H$66,FALSE) -> 0 | I80: =VLOOKUP($A80,'Mat of App'!$B$7:$AP$43,I$66,FALSE) -> 0
A81: LV Generation Intermittent no RP charge | B81: =VLOOKUP($A81,'Mat of App'!$B$7:$AP$43,B$66,FALSE) -> 0 | C81: =VLOOKUP($A81,'Mat of App'!$B$7:$AP$43,C$66,FALSE) -> 0 | D81: =VLOOKUP($A81,'Mat of App'!$B$7:$AP$43,D$66,FALSE) -> 0 | E81: =VLOOKUP($A81,'Mat of App'!$B$7:$AP$43,E$66,FALSE) -> 0 | F81: =VLOOKUP($A81,'Mat of App'!$B$7:$AP$43,F$66,FALSE) -> 0 | G81: =VLOOKUP($A81,'Mat of App'!$B$7:$AP$43,G$66,FALSE) -> 0 | H81: =VLOOKUP($A81,'Mat of App'!$B$7:$AP$43,H$66,FALSE) -> 0 | I81: =VLOOKUP($A81,'Mat of App'!$B$7:$AP$43,I$66,FALSE) -> 0
A82: LV Generation Non-Intermittent | B82: =VLOOKUP($A82,'Mat of App'!$B$7:$AP$43,B$66,FALSE) -> 0 | C82: =VLOOKUP($A82,'Mat of App'!$B$7:$AP$43,C$66,FALSE) -> 0 | D82: =VLOOKUP($A82,'Mat of App'!$B$7:$AP$43,D$66,FALSE) -> 0 | E82: =VLOOKUP($A82,'Mat of App'!$B$7:$AP$43,E$66,FALSE) -> 0 | F82: =VLOOKUP($A82,'Mat of App'!$B$7:$AP$43,F$66,FALSE) -> 0 | G82: =VLOOKUP($A82,'Mat of App'!$B$7:$AP$43,G$66,FALSE) -> 0 | H82: =VLOOKUP($A82,'Mat of App'!$B$7:$AP$43,H$66,FALSE) -> 0 | I82: =VLOOKUP($A82,'Mat of App'!$B$7:$AP$43,I$66,FALSE) -> 0
A83: LV Generation Non-Intermittent no RP charge | B83: =VLOOKUP($A83,'Mat of App'!$B$7:$AP$43,B$66,FALSE) -> 0 | C83: =VLOOKUP($A83,'Mat of App'!$B$7:$AP$43,C$66,FALSE) -> 0 | D83: =VLOOKUP($A83,'Mat of App'!$B$7:$AP$43,D$66,FALSE) -> 0 | E83: =VLOOKUP($A83,'Mat of App'!$B$7:$AP$43,E$66,FALSE) -> 0 | F83: =VLOOKUP($A83,'Mat of App'!$B$7:$AP$43,F$66,FALSE) -> 0 | G83: =VLOOKUP($A83,'Mat of App'!$B$7:$AP$43,G$66,FALSE) -> 0 | H83: =VLOOKUP($A83,'Mat of App'!$B$7:$AP$43,H$66,FALSE) -> 0 | I83: =VLOOKUP($A83,'Mat of App'!$B$7:$AP$43,I$66,FALSE) -> 0
A84: LV Sub Generation Intermittent | B84: =VLOOKUP($A84,'Mat of App'!$B$7:$AP$43,B$66,FALSE) -> 0 | C84: =VLOOKUP($A84,'Mat of App'!$B$7:$AP$43,C$66,FALSE) -> 0 | D84: =VLOOKUP($A84,'Mat of App'!$B$7:$AP$43,D$66,FALSE) -> 0 | E84: =VLOOKUP($A84,'Mat of App'!$B$7:$AP$43,E$66,FALSE) -> 0 | F84: =VLOOKUP($A84,'Mat of App'!$B$7:$AP$43,F$66,FALSE) -> 0 | G84: =VLOOKUP($A84,'Mat of App'!$B$7:$AP$43,G$66,FALSE) -> 0 | H84: =VLOOKUP($A84,'Mat of App'!$B$7:$AP$43,H$66,FALSE) -> 0 | I84: =VLOOKUP($A84,'Mat of App'!$B$7:$AP$43,I$66,FALSE) -> 0
A85: LV Sub Generation Intermittent no RP charge | B85: =VLOOKUP($A85,'Mat of App'!$B$7:$AP$43,B$66,FALSE) -> 0 | C85: =VLOOKUP($A85,'Mat of App'!$B$7:$AP$43,C$66,FALSE) -> 0 | D85: =VLOOKUP($A85,'Mat of App'!$B$7:$AP$43,D$66,FALSE) -> 0 | E85: =VLOOKUP($A85,'Mat of App'!$B$7:$AP$43,E$66,FALSE) -> 0 | F85: =VLOOKUP($A85,'Mat of App'!$B$7:$AP$43,F$66,FALSE) -> 0 | G85: =VLOOKUP($A85,'Mat of App'!$B$7:$AP$43,G$66,FALSE) -> 0 | H85: =VLOOKUP($A85,'Mat of App'!$B$7:$AP$43,H$66,FALSE) -> 0 | I85: =VLOOKUP($A85,'Mat of App'!$B$7:$AP$43,I$66,FALSE) -> 0
A86: LV Sub Generation Non-Intermittent | B86: =VLOOKUP($A86,'Mat of App'!$B$7:$AP$43,B$66,FALSE) -> 0 | C86: =VLOOKUP($A86,'Mat of App'!$B$7:$AP$43,C$66,FALSE) -> 0 | D86: =VLOOKUP($A86,'Mat of App'!$B$7:$AP$43,D$66,FALSE) -> 0 | E86: =VLOOKUP($A86,'Mat of App'!$B$7:$AP$43,E$66,FALSE) -> 0 | F86: =VLOOKUP($A86,'Mat of App'!$B$7:$AP$43,F$66,FALSE) -> 0 | G86: =VLOOKUP($A86,'Mat of App'!$B$7:$AP$43,G$66,FALSE) -> 0 | H86: =VLOOKUP($A86,'Mat of App'!$B$7:$AP$43,H$66,FALSE) -> 0 | I86: =VLOOKUP($A86,'Mat of App'!$B$7:$AP$43,I$66,FALSE) -> 0
A87: LV Sub Generation Non-Intermittent no RP charge | B87: =VLOOKUP($A87,'Mat of App'!$B$7:$AP$43,B$66,FALSE) -> 0 | C87: =VLOOKUP($A87,'Mat of App'!$B$7:$AP$43,C$66,FALSE) -> 0 | D87: =VLOOKUP($A87,'Mat of App'!$B$7:$AP$43,D$66,FALSE) -> 0 | E87: =VLOOKUP($A87,'Mat of App'!$B$7:$AP$43,E$66,FALSE) -> 0 | F87: =VLOOKUP($A87,'Mat of App'!$B$7:$AP$43,F$66,FALSE) -> 0 | G87: =VLOOKUP($A87,'Mat of App'!$B$7:$AP$43,G$66,FALSE) -> 0 | H87: =VLOOKUP($A87,'Mat of App'!$B$7:$AP$43,H$66,FALSE) -> 0 | I87: =VLOOKUP($A87,'Mat of App'!$B$7:$AP$43,I$66,FALSE) -> 0
A89: 1026. Matrix of applicability of LV service models to unmetered tariffs
A91: Source: service models
A92: Proportion of service model involved in connecting load of 1 MWh/year
B93: LV service model 1 | C93: LV service model 2 | D93: LV service model 3 | E93: LV service model 4 | F93: LV service model 5 | G93: LV service model 6 | H93: LV service model 7 | I93: LV service model 8
A94: All LV unmetered tariffs | B94: =VLOOKUP($A94,'Mat of App'!$B$7:$AP$43,B$66,FALSE) -> 0 | C94: =VLOOKUP($A94,'Mat of App'!$B$7:$AP$43,C$66,FALSE) -> 0 | D94: =VLOOKUP($A94,'Mat of App'!$B$7:$AP$43,D$66,FALSE) -> 0 | E94: =VLOOKUP($A94,'Mat of App'!$B$7:$AP$43,E$66,FALSE) -> 0 | F94: =VLOOKUP($A94,'Mat of App'!$B$7:$AP$43,F$66,FALSE) -> 2.872632768 | G94: =VLOOKUP($A94,'Mat of App'!$B$7:$AP$43,G$66,FALSE) -> 0 | H94: =VLOOKUP($A94,'Mat of App'!$B$7:$AP$43,H$66,FALSE) -> 0 | I94: =VLOOKUP($A94,'Mat of App'!$B$7:$AP$43,I$66,FALSE) -> 0
A96: 1028. Matrix of applicability of HV service models to tariffs with fixed charges
B97: 7 | C97: =B97+1 -> 8 | D97: =C97+1 -> 9 | E97: =D97+1 -> 10 | F97: =E97+1 -> 11
B98: HV service model 1 | C98: HV service model 2 | D98: HV service model 3 | E98: HV service model 4 | F98: HV service model 5
A99: HV Medium Non-Domestic | B99: =VLOOKUP($A99,'Mat of App'!$B$7:$AP$43,B$97,FALSE) -> 0 | C99: =VLOOKUP($A99,'Mat of App'!$B$7:$AP$43,C$97,FALSE) -> 1 | D99: =VLOOKUP($A99,'Mat of App'!$B$7:$AP$43,D$97,FALSE) -> 0 | E99: =VLOOKUP($A99,'Mat of App'!$B$7:$AP$43,E$97,FALSE) -> 0 | F99: =VLOOKUP($A99,'Mat of App'!$B$7:$AP$43,F$97,FALSE) -> 0
A100: HV HH Metered | B100: =VLOOKUP($A100,'Mat of App'!$B$7:$AP$43,B$97,FALSE) -> 0 | C100: =VLOOKUP($A100,'Mat of App'!$B$7:$AP$43,C$97,FALSE) -> 1 | D100: =VLOOKUP($A100,'Mat of App'!$B$7:$AP$43,D$97,FALSE) -> 0 | E100: =VLOOKUP($A100,'Mat of App'!$B$7:$AP$43,E$97,FALSE) -> 0 | F100: =VLOOKUP($A100,'Mat of App'!$B$7:$AP$43,F$97,FALSE) -> 0
A101: HV Generation Intermittent | B101: =VLOOKUP($A101,'Mat of App'!$B$7:$AP$43,B$97,FALSE) -> 0 | C101: =VLOOKUP($A101,'Mat of App'!$B$7:$AP$43,C$97,FALSE) -> 0 | D101: =VLOOKUP($A101,'Mat of App'!$B$7:$AP$43,D$97,FALSE) -> 1 | E101: =VLOOKUP($A101,'Mat of App'!$B$7:$AP$43,E$97,FALSE) -> 0 | F101: =VLOOKUP($A101,'Mat of App'!$B$7:$AP$43,F$97,FALSE) -> 0
A102: HV Generation Intermittent no RP charge | B102: =VLOOKUP($A102,'Mat of App'!$B$7:$AP$43,B$97,FALSE) -> 0 | C102: =VLOOKUP($A102,'Mat of App'!$B$7:$AP$43,C$97,FALSE) -> 0 | D102: =VLOOKUP($A102,'Mat of App'!$B$7:$AP$43,D$97,FALSE) -> 1 | E102: =VLOOKUP($A102,'Mat of App'!$B$7:$AP$43,E$97,FALSE) -> 0 | F102: =VLOOKUP($A102,'Mat of App'!$B$7:$AP$43,F$97,FALSE) -> 0
A103: HV Generation Non-Intermittent | B103: =VLOOKUP($A103,'Mat of App'!$B$7:$AP$43,B$97,FALSE) -> 0 | C103: =VLOOKUP($A103,'Mat of App'!$B$7:$AP$43,C$97,FALSE) -> 0 | D103: =VLOOKUP($A103,'Mat of App'!$B$7:$AP$43,D$97,FALSE) -> 1 | E103: =VLOOKUP($A103,'Mat of App'!$B$7:$AP$43,E$97,FALSE) -> 0 | F103: =VLOOKUP($A103,'Mat of App'!$B$7:$AP$43,F$97,FALSE) -> 0
A104: HV Generation Non-Intermittent no RP charge | B104: =VLOOKUP($A104,'Mat of App'!$B$7:$AP$43,B$97,FALSE) -> 0 | C104: =VLOOKUP($A104,'Mat of App'!$B$7:$AP$43,C$97,FALSE) -> 0 | D104: =VLOOKUP($A104,'Mat of App'!$B$7:$AP$43,D$97,FALSE) -> 1 | E104: =VLOOKUP($A104,'Mat of App'!$B$7:$AP$43,E$97,FALSE) -> 0 | F104: =VLOOKUP($A104,'Mat of App'!$B$7:$AP$43,F$97,FALSE) -> 0
A106: 1032. Loss adjustment factors to transmission
A108: Source: losses model or loss adjustment factors at time of system peak.
B109: 132kV | C109: 132kV/EHV | D109: EHV | E109: EHV/HV | F109: HV | G109: HV/LV | H109: LV circuits
A110: Loss adjustment factor | B110: =VLOOKUP(Vlookup!B69,'CDCM Forecast Data'!$A$14:$I$271,6,FALSE) -> 1.010049582 | C110: =VLOOKUP(Vlookup!C69,'CDCM Forecast Data'!$A$14:$I$271,6,FALSE) -> 1.015028715 | D110: =VLOOKUP(Vlookup!D69,'CDCM Forecast Data'!$A$14:$I$271,6,FALSE) -> 1.021423697 | E110: =VLOOKUP(Vlookup!E69,'CDCM Forecast Data'!$A$14:$I$271,6,FALSE) -> 1.026965618 | F110: =VLOOKUP(Vlookup!F69,'CDCM Forecast Data'!$A$14:$I$271,6,FALSE) -> 1.039338946 | G110: =VLOOKUP(Vlookup!G69,'CDCM Forecast Data'!$A$14:$I$271,6,FALSE) -> 1.053194046 | H110: =VLOOKUP(Vlookup!H69,'CDCM Forecast Data'!$A$14:$I$271,6,FALSE) -> 1.107559204
A112: 1037. Embedded network (LDNO) discounts
A114: Source: separate price control disaggregation model.
B115: No discount | C115: LDNO LV: LV user | D115: LDNO HV: LV user | E115: LDNO HV: LV sub user | F115: LDNO HV: HV user
A116: LDNO discount | C116: =VLOOKUP(Vlookup!C75,'CDCM Forecast Data'!$A$14:$I$271,6,FALSE) -> 0.357357871 | D116: =VLOOKUP(Vlookup!D75,'CDCM Forecast Data'!$A$14:$I$271,6,FALSE) -> 0.5734116248 | E116: =VLOOKUP(Vlookup!E75,'CDCM Forecast Data'!$A$14:$I$271,6,FALSE) -> 0.327894462 | F116: =VLOOKUP(Vlookup!F75,'CDCM Forecast Data'!$A$14:$I$271,6,FALSE) -> 0.2042455722
A118: 1041. Load profile data for demand users
A120: Source: load data analysis.
B121: Coincidence factor | C121: Load factor
A122: Domestic Unrestricted | B122: =VLOOKUP(Vlookup!B81,'CDCM Forecast Data'!$A$14:$I$271,6,FALSE) -> 0.9073751246 | C122: =VLOOKUP(Vlookup!C81,'CDCM Forecast Data'!$A$14:$I$271,6,FALSE) -> 0.4460761352
A123: Domestic Two Rate | B123: =VLOOKUP(Vlookup!B82,'CDCM Forecast Data'!$A$14:$I$271,6,FALSE) -> 0.3118076763 | C123: =VLOOKUP(Vlookup!C82,'CDCM Forecast Data'!$A$14:$I$271,6,FALSE) -> 0.2461560372
A124: Domestic Off Peak (related MPAN) | C124: =VLOOKUP(Vlookup!C83,'CDCM Forecast Data'!$A$14:$I$271,6,FALSE) -> 0.1661225671
A125: Small Non Domestic Unrestricted | B125: =VLOOKUP(Vlookup!B84,'CDCM Forecast Data'!$A$14:$I$271,6,FALSE) -> 0.6431867848 | C125: =VLOOKUP(Vlookup!C84,'CDCM Forecast Data'!$A$14:$I$271,6,FALSE) -> 0.393333355
A126: Small Non Domestic Two Rate | B126: =VLOOKUP(Vlookup!B85,'CDCM Forecast Data'!$A$14:$I$271,6,FALSE) -> 0.7753946555 | C126: =VLOOKUP(Vlookup!C85,'CDCM Forecast Data'!$A$14:$I$271,6,FALSE) -> 0.5857662777
A127: Small Non Domestic Off Peak (related MPAN) | C127: =VLOOKUP(Vlookup!C86,'CDCM Forecast Data'!$A$14:$I$271,6,FALSE) -> 0.163884803
A128: LV Medium Non-Domestic | B128: =VLOOKUP(Vlookup!B87,'CDCM Forecast Data'!$A$14:$I$271,6,FALSE) -> 0.7212047762 | C128: =VLOOKUP(Vlookup!C87,'CDCM Forecast Data'!$A$14:$I$271,6,FALSE) -> 0.511247733
A129: LV Sub Medium Non-Domestic | B129: =VLOOKUP(Vlookup!B88,'CDCM Forecast Data'!$A$14:$I$271,6,FALSE) -> 0.6982999022 | C129: =VLOOKUP(Vlookup!C88,'CDCM Forecast Data'!$A$14:$I$271,6,FALSE) -> 0.4962908256
A130: HV Medium Non-Domestic | B130: =VLOOKUP(Vlookup!B89,'CDCM Forecast Data'!$A$14:$I$271,6,FALSE) -> 0.7702073361 | C130: =VLOOKUP(Vlookup!C89,'CDCM Forecast Data'!$A$14:$I$271,6,FALSE) -> 0.5147406723
A131: LV Network Domestic | B131: =VLOOKUP(Vlookup!B90,'CDCM Forecast Data'!$A$14:$I$271,6,FALSE) -> 0.9073751246 | C131: =VLOOKUP(Vlookup!C90,'CDCM Forecast Data'!$A$14:$I$271,6,FALSE) -> 0.4460761352
A132: LV Network Non-Domestic Non-CT | B132: =VLOOKUP(Vlookup!B91,'CDCM Forecast Data'!$A$14:$I$271,6,FALSE) -> 0.6431867848 | C132: =VLOOKUP(Vlookup!C91,'CDCM Forecast Data'!$A$14:$I$271,6,FALSE) -> 0.393333355
A133: LV HH Metered | B133: =VLOOKUP(Vlookup!B92,'CDCM Forecast Data'!$A$14:$I$271,6,FALSE) -> 0.7802624104 | C133: =VLOOKUP(Vlookup!C92,'CDCM Forecast Data'!$A$14:$I$271,6,FALSE) -> 0.5367843793
A134: LV Sub HH Metered | B134: =VLOOKUP(Vlookup!B93,'CDCM Forecast Data'!$A$14:$I$271,6,FALSE) -> 0.7636309411 | C134: =VLOOKUP(Vlookup!C93,'CDCM Forecast Data'!$A$14:$I$271,6,FALSE) -> 0.5603833232
A135: HV HH Metered | B135: =VLOOKUP(Vlookup!B94,'CDCM Forecast Data'!$A$14:$I$271,6,FALSE) -> 0.835869669 | C135: =VLOOKUP(Vlookup!C94,'CDCM Forecast Data'!$A$14:$I$271,6,FALSE) -> 0.7072433891
A136: NHH UMS category A | B136: =VLOOKUP(Vlookup!B95,'CDCM Forecast Data'!$A$14:$I$271,6,FALSE) -> 1 | C136: =VLOOKUP(Vlookup!C95,'CDCM Forecast Data'!$A$14:$I$271,6,FALSE) -> 1
A137: NHH UMS category B | B137: =VLOOKUP(Vlookup!B96,'CDCM Forecast Data'!$A$14:$I$271,6,FALSE) -> 1 | C137: =VLOOKUP(Vlookup!C96,'CDCM Forecast Data'!$A$14:$I$271,6,FALSE) -> 0.4731133764
A138: NHH UMS category C | B138: =VLOOKUP(Vlookup!B97,'CDCM Forecast Data'!$A$14:$I$271,6,FALSE) -> 1 | C138: =VLOOKUP(Vlookup!C97,'CDCM Forecast Data'!$A$14:$I$271,6,FALSE) -> 0.2578169273
A139: NHH UMS category D | B139: =VLOOKUP(Vlookup!B98,'CDCM Forecast Data'!$A$14:$I$271,6,FALSE) -> 0 | C139: =VLOOKUP(Vlookup!C98,'CDCM Forecast Data'!$A$14:$I$271,6,FALSE) -> 0.5537901624
A140: LV UMS (Pseudo HH Metered) | B140: =VLOOKUP(Vlookup!B99,'CDCM Forecast Data'!$A$14:$I$271,6,FALSE) -> 0.9537595116 | C140: =VLOOKUP(Vlookup!C99,'CDCM Forecast Data'!$A$14:$I$271,6,FALSE) -> 0.4621225818
A142: 1053. Volume forecasts for the charging year
B143: 11 | C143: 12 | D143: 13 | E143: 14 | F143: 15 | G143: 16 | H143: 17
A144: Source: forecast.
A145: Please include MPAN counts for tariffs with no fixed charge (e.g. off-peak tariffs),
A146: but exclude MPANs on tariffs with a fixed charge that are not subject to a fixed charge due to a site grouping arrangement.
B147: Rate 1 units (MWh) | C147: Rate 2 units (MWh) | D147: Rate 3 units (MWh) | E147: MPANs | F147: Import capacity (kVA) | G147: Exceeded capacity (kVA) | H147: Reactive power units (MVArh)
A148: > Domestic Unrestricted | B148: =VLOOKUP(Vlookup!$B107,'CDCM Volume Forecasts'!$A$28:$AL$136,B$143,FALSE) -> 0 | C148: =VLOOKUP(Vlookup!$B107,'CDCM Volume Forecasts'!$A$28:$AL$136,C$143,FALSE) -> 0 | D148: =VLOOKUP(Vlookup!$B107,'CDCM Volume Forecasts'!$A$28:$AL$136,D$143,FALSE) -> 0 | E148: =VLOOKUP(Vlookup!$B107,'CDCM Volume Forecasts'!$A$28:$AL$136,E$143,FALSE) -> 0 | F148: =VLOOKUP(Vlookup!$B107,'CDCM Volume Forecasts'!$A$28:$AL$136,F$143,FALSE) -> 0 | H148: =VLOOKUP(Vlookup!$B107,'CDCM Volume Forecasts'!$A$28:$AL$136,G$143,FALSE) -> 0
A149: Domestic Unrestricted | B149: =VLOOKUP(Vlookup!$B108,'CDCM Volume Forecasts'!$A$28:$AL$136,B$143,FALSE) -> 6432881.847 | E149: =VLOOKUP(Vlookup!$B108,'CDCM Volume Forecasts'!$A$28:$AL$136,E$143,FALSE) -> 2027175.516
A150: LDNO LV: Domestic Unrestricted | B150: =VLOOKUP(Vlookup!$B109,'CDCM Volume Forecasts'!$A$28:$AL$136,B$143,FALSE) -> 113806.0014 | E150: =VLOOKUP(Vlookup!$B109,'CDCM Volume Forecasts'!$A$28:$AL$136,E$143,FALSE) -> 39023.01639
A151: LDNO HV: Domestic Unrestricted | B151: =VLOOKUP(Vlookup!$B110,'CDCM Volume Forecasts'!$A$28:$AL$136,B$143,FALSE) -> 92235.48541 | E151: =VLOOKUP(Vlookup!$B110,'CDCM Volume Forecasts'!$A$28:$AL$136,E$143,FALSE) -> 30193.85246
A152: > Domestic Two Rate
A153: Domestic Two Rate | B153: =VLOOKUP(Vlookup!$B112,'CDCM Volume Forecasts'!$A$28:$AL$136,B$143,FALSE) -> 468570.0779 | C153: =VLOOKUP(Vlookup!$B112,'CDCM Volume Forecasts'!$A$28:$AL$136,C$143,FALSE) -> 465777.1278 | E153: =VLOOKUP(Vlookup!$B112,'CDCM Volume Forecasts'!$A$28:$AL$136,E$143,FALSE) -> 178282
A154: LDNO LV: Domestic Two Rate | B154: =VLOOKUP(Vlookup!$B113,'CDCM Volume Forecasts'!$A$28:$AL$136,B$143,FALSE) -> 1262.552664 | C154: =VLOOKUP(Vlookup!$B113,'CDCM Volume Forecasts'!$A$28:$AL$136,C$143,FALSE) -> 466.5835729 | E154: =VLOOKUP(Vlookup!$B113,'CDCM Volume Forecasts'!$A$28:$AL$136,E$143,FALSE) -> 440.4918033
A155: LDNO HV: Domestic Two Rate | B155: =VLOOKUP(Vlookup!$B114,'CDCM Volume Forecasts'!$A$28:$AL$136,B$143,FALSE) -> 5123.491953 | C155: =VLOOKUP(Vlookup!$B114,'CDCM Volume Forecasts'!$A$28:$AL$136,C$143,FALSE) -> 2851.960297 | E155: =VLOOKUP(Vlookup!$B114,'CDCM Volume Forecasts'!$A$28:$AL$136,E$143,FALSE) -> 1559.224044
A156: > Domestic Off Peak (related MPAN)
A157: Domestic Off Peak (related MPAN) | B157: =VLOOKUP(Vlookup!$B116,'CDCM Volume Forecasts'!$A$28:$AL$136,B$143,FALSE) -> 14279.50209 | E157: =VLOOKUP(Vlookup!$B116,'CDCM Volume Forecasts'!$A$28:$AL$136,E$143,FALSE) -> 4270
A158: LDNO LV: Domestic Off Peak (related MPAN) | B158: =VLOOKUP(Vlookup!$B117,'CDCM Volume Forecasts'!$A$28:$AL$136,B$143,FALSE) -> 0 | E158: =VLOOKUP(Vlookup!$B117,'CDCM Volume Forecasts'!$A$28:$AL$136,E$143,FALSE) -> 0
A159: LDNO HV: Domestic Off Peak (related MPAN) | B159: =VLOOKUP(Vlookup!$B118,'CDCM Volume Forecasts'!$A$28:$AL$136,B$143,FALSE) -> 0 | E159: =VLOOKUP(Vlookup!$B118,'CDCM Volume Forecasts'!$A$28:$AL$136,E$143,FALSE) -> 0
A160: > Small Non Domestic Unrestricted
A161: Small Non Domestic Unrestricted | B161: =VLOOKUP(Vlookup!$B120,'CDCM Volume Forecasts'!$A$28:$AL$136,B$143,FALSE) -> 1494625.641 | E161: =VLOOKUP(Vlookup!$B120,'CDCM Volume Forecasts'!$A$28:$AL$136,E$143,FALSE) -> 121609.0109
A162: LDNO LV: Small Non Domestic Unrestricted | B162: =VLOOKUP(Vlookup!$B121,'CDCM Volume Forecasts'!$A$28:$AL$136,B$143,FALSE) -> 5111.451049 | E162: =VLOOKUP(Vlookup!$B121,'CDCM Volume Forecasts'!$A$28:$AL$136,E$143,FALSE) -> 620.4863388
A163: LDNO HV: Small Non Domestic Unrestricted | B163: =VLOOKUP(Vlookup!$B122,'CDCM Volume Forecasts'!$A$28:$AL$136,B$143,FALSE) -> 8421.969121 | E163: =VLOOKUP(Vlookup!$B122,'CDCM Volume Forecasts'!$A$28:$AL$136,E$143,FALSE) -> 630.4863388
A164: > Small Non Domestic Two Rate
A165: Small Non Domestic Two Rate | B165: =VLOOKUP(Vlookup!$B124,'CDCM Volume Forecasts'!$A$28:$AL$136,B$143,FALSE) -> 531718.6143 | C165: =VLOOKUP(Vlookup!$B124,'CDCM Volume Forecasts'!$A$28:$AL$136,C$143,FALSE) -> 195607.5639 | E165: =VLOOKUP(Vlookup!$B124,'CDCM Volume Forecasts'!$A$28:$AL$136,E$143,FALSE) -> 34183.40096
A166: LDNO LV: Small Non Domestic Two Rate | B166: =VLOOKUP(Vlookup!$B125,'CDCM Volume Forecasts'!$A$28:$AL$136,B$143,FALSE) -> 12.27657143 | C166: =VLOOKUP(Vlookup!$B125,'CDCM Volume Forecasts'!$A$28:$AL$136,C$143,FALSE) -> 8.75475 | E166: =VLOOKUP(Vlookup!$B125,'CDCM Volume Forecasts'!$A$28:$AL$136,E$143,FALSE) -> 6
A167: LDNO HV: Small Non Domestic Two Rate | B167: =VLOOKUP(Vlookup!$B126,'CDCM Volume Forecasts'!$A$28:$AL$136,B$143,FALSE) -> 517.7141845 | C167: =VLOOKUP(Vlookup!$B126,'CDCM Volume Forecasts'!$A$28:$AL$136,C$143,FALSE) -> 271.8904851 | E167: =VLOOKUP(Vlookup!$B126,'CDCM Volume Forecasts'!$A$28:$AL$136,E$143,FALSE) -> 17
A168: > Small Non Domestic Off Peak (related MPAN)
A169: Small Non Domestic Off Peak (related MPAN) | B169: =VLOOKUP(Vlookup!$B128,'CDCM Volume Forecasts'!$A$28:$AL$136,B$143,FALSE) -> 20242.62911 | E169: =VLOOKUP(Vlookup!$B128,'CDCM Volume Forecasts'!$A$28:$AL$136,E$143,FALSE) -> 3655
A170: LDNO LV: Small Non Domestic Off Peak (related MPAN) | B170: =VLOOKUP(Vlookup!$B129,'CDCM Volume Forecasts'!$A$28:$AL$136,B$143,FALSE) -> 0 | E170: =VLOOKUP(Vlookup!$B129,'CDCM Volume Forecasts'!$A$28:$AL$136,E$143,FALSE) -> 0
A171: LDNO HV: Small Non Domestic Off Peak (related MPAN) | B171: =VLOOKUP(Vlookup!$B130,'CDCM Volume Forecasts'!$A$28:$AL$136,B$143,FALSE) -> 0 | E171: =VLOOKUP(Vlookup!$B130,'CDCM Volume Forecasts'!$A$28:$AL$136,E$143,FALSE) -> 0
A172: > LV Medium Non-Domestic
A173: LV Medium Non-Domestic | B173: =VLOOKUP(Vlookup!$B132,'CDCM Volume Forecasts'!$A$28:$AL$136,B$143,FALSE) -> 0.9060389581 | C173: =VLOOKUP(Vlookup!$B132,'CDCM Volume Forecasts'!$A$28:$AL$136,C$143,FALSE) -> 0.09210488882 | E173: =VLOOKUP(Vlookup!$B132,'CDCM Volume Forecasts'!$A$28:$AL$136,E$143,FALSE) -> 0.001
A174: LDNO LV: LV Medium Non-Domestic | B174: =VLOOKUP(Vlookup!$B133,'CDCM Volume Forecasts'!$A$28:$AL$136,B$143,FALSE) -> 104.3319476 | C174: =VLOOKUP(Vlookup!$B133,'CDCM Volume Forecasts'!$A$28:$AL$136,C$143,FALSE) -> 20.734 | E174: =VLOOKUP(Vlookup!$B133,'CDCM Volume Forecasts'!$A$28:$AL$136,E$143,FALSE) -> 2
A175: LDNO HV: LV Medium Non-Domestic | B175: =VLOOKUP(Vlookup!$B134,'CDCM Volume Forecasts'!$A$28:$AL$136,B$143,FALSE) -> 0 | C175: =VLOOKUP(Vlookup!$B134,'CDCM Volume Forecasts'!$A$28:$AL$136,C$143,FALSE) -> 0 | E175: =VLOOKUP(Vlookup!$B134,'CDCM Volume Forecasts'!$A$28:$AL$136,E$143,FALSE) -> 0
A176: > LV Sub Medium Non-Domestic
A177: LV Sub Medium Non-Domestic | B177: =VLOOKUP(Vlookup!$B136,'CDCM Volume Forecasts'!$A$28:$AL$136,B$143,FALSE) -> 0.135963199 | C177: =VLOOKUP(Vlookup!$B136,'CDCM Volume Forecasts'!$A$28:$AL$136,C$143,FALSE) -> 0.2880364514 | E177: =VLOOKUP(Vlookup!$B136,'CDCM Volume Forecasts'!$A$28:$AL$136,E$143,FALSE) -> 0.001
A178: > HV Medium Non-Domestic
A179: HV Medium Non-Domestic | B179: =VLOOKUP(Vlookup!$B138,'CDCM Volume Forecasts'!$A$28:$AL$136,B$143,FALSE) -> 0.453019479 | C179: =VLOOKUP(Vlookup!$B138,'CDCM Volume Forecasts'!$A$28:$AL$136,C$143,FALSE) -> 1.153716089 | E179: =VLOOKUP(Vlookup!$B138,'CDCM Volume Forecasts'!$A$28:$AL$136,E$143,FALSE) -> 0.001
A180: > LV Network Domestic
A181: LV Network Domestic | B181: =VLOOKUP(Vlookup!$B140,'CDCM Volume Forecasts'!$A$28:$AL$136,B$143,FALSE) -> 68.86427045 | C181: =VLOOKUP(Vlookup!$B140,'CDCM Volume Forecasts'!$A$28:$AL$136,C$143,FALSE) -> 206.599709 | D181: =VLOOKUP(Vlookup!$B140,'CDCM Volume Forecasts'!$A$28:$AL$136,D$143,FALSE) -> 381.0705413 | E181: =VLOOKUP(Vlookup!$B140,'CDCM Volume Forecasts'!$A$28:$AL$136,E$143,FALSE) -> 339.8032787
A182: LDNO LV: LV Network Domestic | B182: =VLOOKUP(Vlookup!$B141,'CDCM Volume Forecasts'!$A$28:$AL$136,B$143,FALSE) -> 0 | C182: =VLOOKUP(Vlookup!$B141,'CDCM Volume Forecasts'!$A$28:$AL$136,C$143,FALSE) -> 0 | D182: =VLOOKUP(Vlookup!$B141,'CDCM Volume Forecasts'!$A$28:$AL$136,D$143,FALSE) -> 0 | E182: =VLOOKUP(Vlookup!$B141,'CDCM Volume Forecasts'!$A$28:$AL$136,E$143,FALSE) -> 0
A183: LDNO HV: LV Network Domestic | B183: =VLOOKUP(Vlookup!$B142,'CDCM Volume Forecasts'!$A$28:$AL$136,B$143,FALSE) -> 0 | C183: =VLOOKUP(Vlookup!$B142,'CDCM Volume Forecasts'!$A$28:$AL$136,C$143,FALSE) -> 0 | D183: =VLOOKUP(Vlookup!$B142,'CDCM Volume Forecasts'!$A$28:$AL$136,D$143,FALSE) -> 0 | E183: =VLOOKUP(Vlookup!$B142,'CDCM Volume Forecasts'!$A$28:$AL$136,E$143,FALSE) -> 0
A184: > LV Network Non-Domestic Non-CT
A185: LV Network Non-Domestic Non-CT | B185: =VLOOKUP(Vlookup!$B144,'CDCM Volume Forecasts'!$A$28:$AL$136,B$143,FALSE) -> 22435.96495 | C185: =VLOOKUP(Vlookup!$B144,'CDCM Volume Forecasts'!$A$28:$AL$136,C$143,FALSE) -> 80597.10447 | D185: =VLOOKUP(Vlookup!$B144,'CDCM Volume Forecasts'!$A$28:$AL$136,D$143,FALSE) -> 113029.9906 | E185: =VLOOKUP(Vlookup!$B144,'CDCM Volume Forecasts'!$A$28:$AL$136,E$143,FALSE) -> 3574
A186: LDNO LV: LV Network Non-Domestic Non-CT | B186: =VLOOKUP(Vlookup!$B145,'CDCM Volume Forecasts'!$A$28:$AL$136,B$143,FALSE) -> 0 | C186: =VLOOKUP(Vlookup!$B145,'CDCM Volume Forecasts'!$A$28:$AL$136,C$143,FALSE) -> 0 | D186: =VLOOKUP(Vlookup!$B145,'CDCM Volume Forecasts'!$A$28:$AL$136,D$143,FALSE) -> 0 | E186: =VLOOKUP(Vlookup!$B145,'CDCM Volume Forecasts'!$A$28:$AL$136,E$143,FALSE) -> 0
A187: LDNO HV: LV Network Non-Domestic Non-CT | B187: =VLOOKUP(Vlookup!$B146,'CDCM Volume Forecasts'!$A$28:$AL$136,B$143,FALSE) -> 0 | C187: =VLOOKUP(Vlookup!$B146,'CDCM Volume Forecasts'!$A$28:$AL$136,C$143,FALSE) -> 0 | D187: =VLOOKUP(Vlookup!$B146,'CDCM Volume Forecasts'!$A$28:$AL$136,D$143,FALSE) -> 0 | E187: =VLOOKUP(Vlookup!$B146,'CDCM Volume Forecasts'!$A$28:$AL$136,E$143,FALSE) -> 0
A188: > LV HH Metered
A189: LV HH Metered | B189: =VLOOKUP(Vlookup!$B148,'CDCM Volume Forecasts'!$A$28:$AL$136,B$143,FALSE) -> 259213.745 | C189: =VLOOKUP(Vlookup!$B148,'CDCM Volume Forecasts'!$A$28:$AL$136,C$143,FALSE) -> 926903.165 | D189: =VLOOKUP(Vlookup!$B148,'CDCM Volume Forecasts'!$A$28:$AL$136,D$143,FALSE) -> 1194700.314 | E189: =VLOOKUP(Vlookup!$B148,'CDCM Volume Forecasts'!$A$28:$AL$136,E$143,FALSE) -> 12971.0847 | F189: =VLOOKUP(Vlookup!$B148,'CDCM Volume Forecasts'!$A$28:$AL$136,F$143,FALSE) -> 1247153.2 | G189: =VLOOKUP(Vlookup!$B148,'CDCM Volume Forecasts'!$A$28:$AL$136,G$143,FALSE) -> 12471.532 | H189: =VLOOKUP(Vlookup!$B148,'CDCM Volume Forecasts'!$A$28:$AL$136,H$143,FALSE) -> 199567.5775
A190: LDNO LV: LV HH Metered | B190: =VLOOKUP(Vlookup!$B149,'CDCM Volume Forecasts'!$A$28:$AL$136,B$143,FALSE) -> 1902.708646 | C190: =VLOOKUP(Vlookup!$B149,'CDCM Volume Forecasts'!$A$28:$AL$136,C$143,FALSE) -> 6571.208024 | D190: =VLOOKUP(Vlookup!$B149,'CDCM Volume Forecasts'!$A$28:$AL$136,D$143,FALSE) -> 8495.436429 | E190: =VLOOKUP(Vlookup!$B149,'CDCM Volume Forecasts'!$A$28:$AL$136,E$143,FALSE) -> 109.9945355 | F190: =VLOOKUP(Vlookup!$B149,'CDCM Volume Forecasts'!$A$28:$AL$136,F$143,FALSE) -> 7680.359135 | G190: =VLOOKUP(Vlookup!$B149,'CDCM Volume Forecasts'!$A$28:$AL$136,G$143,FALSE) -> 76.80359135 | H190: =VLOOKUP(Vlookup!$B149,'CDCM Volume Forecasts'!$A$28:$AL$136,H$143,FALSE) -> 712.8484
A191: LDNO HV: LV HH Metered | B191: =VLOOKUP(Vlookup!$B150,'CDCM Volume Forecasts'!$A$28:$AL$136,B$143,FALSE) -> 13289.54065 | C191: =VLOOKUP(Vlookup!$B150,'CDCM Volume Forecasts'!$A$28:$AL$136,C$143,FALSE) -> 45417.60972 | D191: =VLOOKUP(Vlookup!$B150,'CDCM Volume Forecasts'!$A$28:$AL$136,D$143,FALSE) -> 64105.56336 | E191: =VLOOKUP(Vlookup!$B150,'CDCM Volume Forecasts'!$A$28:$AL$136,E$143,FALSE) -> 334.4863388 | F191: =VLOOKUP(Vlookup!$B150,'CDCM Volume Forecasts'!$A$28:$AL$136,F$143,FALSE) -> 57203.9097 | G191: =VLOOKUP(Vlookup!$B150,'CDCM Volume Forecasts'!$A$28:$AL$136,G$143,FALSE) -> 572.039097 | H191: =VLOOKUP(Vlookup!$B150,'CDCM Volume Forecasts'!$A$28:$AL$136,H$143,FALSE) -> 3078.89686
A192: > LV Sub HH Metered
A193: LV Sub HH Metered | B193: =VLOOKUP(Vlookup!$B152,'CDCM Volume Forecasts'!$A$28:$AL$136,B$143,FALSE) -> 126109.0749 | C193: =VLOOKUP(Vlookup!$B152,'CDCM Volume Forecasts'!$A$28:$AL$136,C$143,FALSE) -> 462200.7154 | D193: =VLOOKUP(Vlookup!$B152,'CDCM Volume Forecasts'!$A$28:$AL$136,D$143,FALSE) -> 623163.7147 | E193: =VLOOKUP(Vlookup!$B152,'CDCM Volume Forecasts'!$A$28:$AL$136,E$143,FALSE) -> 2163.489071 | F193: =VLOOKUP(Vlookup!$B152,'CDCM Volume Forecasts'!$A$28:$AL$136,F$143,FALSE) -> 650266.427 | G193: =VLOOKUP(Vlookup!$B152,'CDCM Volume Forecasts'!$A$28:$AL$136,G$143,FALSE) -> 6502.66427 | H193: =VLOOKUP(Vlookup!$B152,'CDCM Volume Forecasts'!$A$28:$AL$136,H$143,FALSE) -> 97083.8447
A194: LDNO HV: LV Sub HH Metered | B194: =VLOOKUP(Vlookup!$B153,'CDCM Volume Forecasts'!$A$28:$AL$136,B$143,FALSE) -> 1351.261253 | C194: =VLOOKUP(Vlookup!$B153,'CDCM Volume Forecasts'!$A$28:$AL$136,C$143,FALSE) -> 4492.991488 | D194: =VLOOKUP(Vlookup!$B153,'CDCM Volume Forecasts'!$A$28:$AL$136,D$143,FALSE) -> 7950.547777 | E194: =VLOOKUP(Vlookup!$B153,'CDCM Volume Forecasts'!$A$28:$AL$136,E$143,FALSE) -> 10 | F194: =VLOOKUP(Vlookup!$B153,'CDCM Volume Forecasts'!$A$28:$AL$136,F$143,FALSE) -> 6248.57096 | G194: =VLOOKUP(Vlookup!$B153,'CDCM Volume Forecasts'!$A$28:$AL$136,G$143,FALSE) -> 62.4857096 | H194: =VLOOKUP(Vlookup!$B153,'CDCM Volume Forecasts'!$A$28:$AL$136,H$143,FALSE) -> 77.417
A195: > HV HH Metered
A196: HV HH Metered | B196: =VLOOKUP(Vlookup!$B155,'CDCM Volume Forecasts'!$A$28:$AL$136,B$143,FALSE) -> 457655.8379 | C196: =VLOOKUP(Vlookup!$B155,'CDCM Volume Forecasts'!$A$28:$AL$136,C$143,FALSE) -> 1565462.317 | D196: =VLOOKUP(Vlookup!$B155,'CDCM Volume Forecasts'!$A$28:$AL$136,D$143,FALSE) -> 2576162.916 | E196: =VLOOKUP(Vlookup!$B155,'CDCM Volume Forecasts'!$A$28:$AL$136,E$143,FALSE) -> 2232.92623 | F196: =VLOOKUP(Vlookup!$B155,'CDCM Volume Forecasts'!$A$28:$AL$136,F$143,FALSE) -> 1816038.308 | G196: =VLOOKUP(Vlookup!$B155,'CDCM Volume Forecasts'!$A$28:$AL$136,G$143,FALSE) -> 18160.38308 | H196: =VLOOKUP(Vlookup!$B155,'CDCM Volume Forecasts'!$A$28:$AL$136,H$143,FALSE) -> 366046.3577
A197: LDNO HV: HV HH Metered | B197: =VLOOKUP(Vlookup!$B156,'CDCM Volume Forecasts'!$A$28:$AL$136,B$143,FALSE) -> 2580.028981 | C197: =VLOOKUP(Vlookup!$B156,'CDCM Volume Forecasts'!$A$28:$AL$136,C$143,FALSE) -> 8492.991421 | D197: =VLOOKUP(Vlookup!$B156,'CDCM Volume Forecasts'!$A$28:$AL$136,D$143,FALSE) -> 16606.32578 | E197: =VLOOKUP(Vlookup!$B156,'CDCM Volume Forecasts'!$A$28:$AL$136,E$143,FALSE) -> 13 | F197: =VLOOKUP(Vlookup!$B156,'CDCM Volume Forecasts'!$A$28:$AL$136,F$143,FALSE) -> 17946.56797 | G197: =VLOOKUP(Vlookup!$B156,'CDCM Volume Forecasts'!$A$28:$AL$136,G$143,FALSE) -> 179.4656797 | H197: =VLOOKUP(Vlookup!$B156,'CDCM Volume Forecasts'!$A$28:$AL$136,H$143,FALSE) -> 90.4662
A198: > NHH UMS category A
A199: NHH UMS category A | B199: =VLOOKUP(Vlookup!$B158,'CDCM Volume Forecasts'!$A$28:$AL$136,B$143,FALSE) -> 17466.39689 | E199: =VLOOKUP(Vlookup!$B158,'CDCM Volume Forecasts'!$A$28:$AL$136,E$143,FALSE) -> 203.5027322
A200: LDNO LV: NHH UMS category A | B200: =VLOOKUP(Vlookup!$B159,'CDCM Volume Forecasts'!$A$28:$AL$136,B$143,FALSE) -> 0 | E200: =VLOOKUP(Vlookup!$B159,'CDCM Volume Forecasts'!$A$28:$AL$136,E$143,FALSE) -> 0
A201: LDNO HV: NHH UMS category A | B201: =VLOOKUP(Vlookup!$B160,'CDCM Volume Forecasts'!$A$28:$AL$136,B$143,FALSE) -> 0 | E201: =VLOOKUP(Vlookup!$B160,'CDCM Volume Forecasts'!$A$28:$AL$136,E$143,FALSE) -> 0
A202: > NHH UMS category B
A203: NHH UMS category B | B203: =VLOOKUP(Vlookup!$B162,'CDCM Volume Forecasts'!$A$28:$AL$136,B$143,FALSE) -> 9156.631168 | E203: =VLOOKUP(Vlookup!$B162,'CDCM Volume Forecasts'!$A$28:$AL$136,E$143,FALSE) -> 326
A204: LDNO LV: NHH UMS category B | B204: =VLOOKUP(Vlookup!$B163,'CDCM Volume Forecasts'!$A$28:$AL$136,B$143,FALSE) -> 217.541384 | E204: =VLOOKUP(Vlookup!$B163,'CDCM Volume Forecasts'!$A$28:$AL$136,E$143,FALSE) -> 85
A205: LDNO HV: NHH UMS category B | B205: =VLOOKUP(Vlookup!$B164,'CDCM Volume Forecasts'!$A$28:$AL$136,B$143,FALSE) -> 60.74485714 | E205: =VLOOKUP(Vlookup!$B164,'CDCM Volume Forecasts'!$A$28:$AL$136,E$143,FALSE) -> 7
A206: > NHH UMS category C
A207: NHH UMS category C | B207: =VLOOKUP(Vlookup!$B166,'CDCM Volume Forecasts'!$A$28:$AL$136,B$143,FALSE) -> 411.2469303 | E207: =VLOOKUP(Vlookup!$B166,'CDCM Volume Forecasts'!$A$28:$AL$136,E$143,FALSE) -> 8
A208: LDNO LV: NHH UMS category C | B208: =VLOOKUP(Vlookup!$B167,'CDCM Volume Forecasts'!$A$28:$AL$136,B$143,FALSE) -> 0 | E208: =VLOOKUP(Vlookup!$B167,'CDCM Volume Forecasts'!$A$28:$AL$136,E$143,FALSE) -> 0
A209: LDNO HV: NHH UMS category C | B209: =VLOOKUP(Vlookup!$B168,'CDCM Volume Forecasts'!$A$28:$AL$136,B$143,FALSE) -> 0 | E209: =VLOOKUP(Vlookup!$B168,'CDCM Volume Forecasts'!$A$28:$AL$136,E$143,FALSE) -> 0
A210: > NHH UMS category D
A211: NHH UMS category D | B211: =VLOOKUP(Vlookup!$B170,'CDCM Volume Forecasts'!$A$28:$AL$136,B$143,FALSE) -> 0.05140586629 | E211: =VLOOKUP(Vlookup!$B170,'CDCM Volume Forecasts'!$A$28:$AL$136,E$143,FALSE) -> 0.001
A212: LDNO LV: NHH UMS category D | B212: =VLOOKUP(Vlookup!$B171,'CDCM Volume Forecasts'!$A$28:$AL$136,B$143,FALSE) -> 0 | E212: =VLOOKUP(Vlookup!$B171,'CDCM Volume Forecasts'!$A$28:$AL$136,E$143,FALSE) -> 0
A213: LDNO HV: NHH UMS category D | B213: =VLOOKUP(Vlookup!$B172,'CDCM Volume Forecasts'!$A$28:$AL$136,B$143,FALSE) -> 0 | E213: =VLOOKUP(Vlookup!$B172,'CDCM Volume Forecasts'!$A$28:$AL$136,E$143,FALSE) -> 0
A214: > LV UMS (Pseudo HH Metered)
A215: LV UMS (Pseudo HH Metered) | B215: =VLOOKUP(Vlookup!$B174,'CDCM Volume Forecasts'!$A$28:$AL$136,B$143,FALSE) -> 10560.70647 | C215: =VLOOKUP(Vlookup!$B174,'CDCM Volume Forecasts'!$A$28:$AL$136,C$143,FALSE) -> 28387.51814 | D215: =VLOOKUP(Vlookup!$B174,'CDCM Volume Forecasts'!$A$28:$AL$136,D$143,FALSE) -> 176907.0706 | E215: =VLOOKUP(Vlookup!$B174,'CDCM Volume Forecasts'!$A$28:$AL$136,E$143,FALSE) -> 25
A216: LDNO LV: LV UMS (Pseudo HH Metered) | B216: =VLOOKUP(Vlookup!$B175,'CDCM Volume Forecasts'!$A$28:$AL$136,B$143,FALSE) -> 0 | C216: =VLOOKUP(Vlookup!$B175,'CDCM Volume Forecasts'!$A$28:$AL$136,C$143,FALSE) -> 0 | D216: =VLOOKUP(Vlookup!$B175,'CDCM Volume Forecasts'!$A$28:$AL$136,D$143,FALSE) -> 0 | E216: =VLOOKUP(Vlookup!$B175,'CDCM Volume Forecasts'!$A$28:$AL$136,E$143,FALSE) -> 0
A217: LDNO HV: LV UMS (Pseudo HH Metered) | B217: =VLOOKUP(Vlookup!$B176,'CDCM Volume Forecasts'!$A$28:$AL$136,B$143,FALSE) -> 0 | C217: =VLOOKUP(Vlookup!$B176,'CDCM Volume Forecasts'!$A$28:$AL$136,C$143,FALSE) -> 0 | D217: =VLOOKUP(Vlookup!$B176,'CDCM Volume Forecasts'!$A$28:$AL$136,D$143,FALSE) -> 0 | E217: =VLOOKUP(Vlookup!$B176,'CDCM Volume Forecasts'!$A$28:$AL$136,E$143,FALSE) -> 0
A218: > LV Generation NHH or Aggregate HH
A219: LV Generation NHH or Aggregate HH | B219: =VLOOKUP(Vlookup!$B178,'CDCM Volume Forecasts'!$A$28:$AL$136,B$143,FALSE) -> 3259.869343 | E219: =VLOOKUP(Vlookup!$B178,'CDCM Volume Forecasts'!$A$28:$AL$136,E$143,FALSE) -> 270.0655738
A220: LDNO LV: LV Generation NHH or Aggregate HH | B220: =VLOOKUP(Vlookup!$B179,'CDCM Volume Forecasts'!$A$28:$AL$136,B$143,FALSE) -> 0 | E220: =VLOOKUP(Vlookup!$B179,'CDCM Volume Forecasts'!$A$28:$AL$136,E$143,FALSE) -> 0
A221: LDNO HV: LV Generation NHH or Aggregate HH | B221: =VLOOKUP(Vlookup!$B180,'CDCM Volume Forecasts'!$A$28:$AL$136,B$143,FALSE) -> 0 | E221: =VLOOKUP(Vlookup!$B180,'CDCM Volume Forecasts'!$A$28:$AL$136,E$143,FALSE) -> 0
A222: > LV Sub Generation NHH
A223: LV Sub Generation NHH | B223: =VLOOKUP(Vlookup!$B182,'CDCM Volume Forecasts'!$A$28:$AL$136,B$143,FALSE) -> 0.9598142732 | E223: =VLOOKUP(Vlookup!$B182,'CDCM Volume Forecasts'!$A$28:$AL$136,E$143,FALSE) -> 0.01
A224: LDNO HV: LV Sub Generation NHH | B224: =VLOOKUP(Vlookup!$B183,'CDCM Volume Forecasts'!$A$28:$AL$136,B$143,FALSE) -> 0 | E224: =VLOOKUP(Vlookup!$B183,'CDCM Volume Forecasts'!$A$28:$AL$136,E$143,FALSE) -> 0
A225: > LV Generation Intermittent
A226: LV Generation Intermittent | B226: =VLOOKUP(Vlookup!$B185,'CDCM Volume Forecasts'!$A$28:$AL$136,B$143,FALSE) -> 20683.73534 | E226: =VLOOKUP(Vlookup!$B185,'CDCM Volume Forecasts'!$A$28:$AL$136,E$143,FALSE) -> 215.4972678 | H226: =VLOOKUP(Vlookup!$B185,'CDCM Volume Forecasts'!$A$28:$AL$136,H$143,FALSE) -> 1784.4707
A227: LDNO LV: LV Generation Intermittent | B227: =VLOOKUP(Vlookup!$B186,'CDCM Volume Forecasts'!$A$28:$AL$136,B$143,FALSE) -> 0 | E227: =VLOOKUP(Vlookup!$B186,'CDCM Volume Forecasts'!$A$28:$AL$136,E$143,FALSE) -> 0 | H227: =VLOOKUP(Vlookup!$B186,'CDCM Volume Forecasts'!$A$28:$AL$136,H$143,FALSE) -> 0
A228: LDNO HV: LV Generation Intermittent | B228: =VLOOKUP(Vlookup!$B187,'CDCM Volume Forecasts'!$A$28:$AL$136,B$143,FALSE) -> 0 | E228: =VLOOKUP(Vlookup!$B187,'CDCM Volume Forecasts'!$A$28:$AL$136,E$143,FALSE) -> 0 | H228: =VLOOKUP(Vlookup!$B187,'CDCM Volume Forecasts'!$A$28:$AL$136,H$143,FALSE) -> 0
... 99 more rows

Sheet (Y+2)
A1: Input data (Y+2)
A4: 1000. Company, charging year, data version
B6: Company | C6: Year | D6: Version
A7: Company, charging year, data version | B7: =VLOOKUP(Vlookup!B7,'CDCM Forecast Data'!$A$14:$I$271,7,FALSE) -> Electricity North West | C7: =VLOOKUP(Vlookup!C7,'CDCM Forecast Data'!$A$14:$I$271,7,FALSE) -> 2021/22 | D7: =VLOOKUP(Vlookup!D7,'CDCM Forecast Data'!$A$14:$I$271,7,FALSE) -> Forecast
A9: 1010. Financial and general assumptions
A11: Sources: financial assumptions; calendar; network model.
A12: These financial assumptions determine the annuity rate applied to convert the asset values of the network model into an annual charge.
B13: Rate of return | C13: Annualisation period (years) | D13: Annuity proportion for customer-contributed assets | E13: Power factor | F13: Days in the charging period
A14: Financial and general assumptions | B14: =VLOOKUP(Vlookup!B14,'CDCM Forecast Data'!$A$14:$I$271,7,FALSE) -> 0.0402 | C14: =VLOOKUP(Vlookup!C14,'CDCM Forecast Data'!$A$14:$I$271,7,FALSE) -> 40 | E14: =VLOOKUP(Vlookup!E14,'CDCM Forecast Data'!$A$14:$I$271,7,FALSE) -> 0.95 | F14: =VLOOKUP(Vlookup!F14,'CDCM Forecast Data'!$A$14:$I$271,7,FALSE) -> 365
A16: 1017. Diversity allowance between top and bottom of network level
A18: Source: operational data analysis and/or network model.
A19: The diversity figure against GSP is the diversity between GSP Group (the whole system) and individual GSPs.
A20: The diversity figure against 132kV is the diversity between GSPs (the top of the 132kV network) and 132kV/EHV bulk supply points (the bottom of the 132kV network).
A21: The diversity figure against EHV is the diversity between 132kV/EHV bulk supply points (the top of the EHV network) and EHV/HV primary substations (the bottom of the EHV network).
A22: The diversity figure against HV is the diversity between EHV/HV primary substations (the top of the HV network) and HV/LV substations (the bottom of the HV network).
B23: Diversity allowance between top and bottom of network level
A24: GSPs | B24: =VLOOKUP(Vlookup!B24,'CDCM Forecast Data'!$A$14:$I$271,7,FALSE) -> 0.0634939014
A25: 132kV | B25: =VLOOKUP(Vlookup!B25,'CDCM Forecast Data'!$A$14:$I$271,7,FALSE) -> 0.06832793776
A26: 132kV/EHV
A27: EHV | B27: =VLOOKUP(Vlookup!B27,'CDCM Forecast Data'!$A$14:$I$271,7,FALSE) -> 0.09140024367
A28: EHV/HV
A29: HV | B29: =VLOOKUP(Vlookup!B29,'CDCM Forecast Data'!$A$14:$I$271,7,FALSE) -> 0.2390012962
A30: HV/LV
A31: LV circuits
A33: 1018. Proportion of relevant load going through 132kV/HV direct transformation
B35: 132kV/HV
A36: EHV/HV | B36: =VLOOKUP(Vlookup!B36,'CDCM Forecast Data'!$A$14:$I$271,7,FALSE) -> 0
A38: 1019. Network model GSP peak demand (MW)
B40: Network model GSP peak demand (MW)
A41: Network model GSP peak demand (MW) | B41: =VLOOKUP(Vlookup!B41,'CDCM Forecast Data'!$A$14:$I$271,7,FALSE) -> 500
A43: 1020. Gross asset cost by network level (£)
B45: Gross assets £
A46: 132kV | B46: =VLOOKUP(Vlookup!B46,'CDCM Forecast Data'!$A$14:$I$271,7,FALSE) -> 100301754.5
A47: 132kV/EHV | B47: =VLOOKUP(Vlookup!B47,'CDCM Forecast Data'!$A$14:$I$271,7,FALSE) -> 39674898.83
A48: EHV | B48: =VLOOKUP(Vlookup!B48,'CDCM Forecast Data'!$A$14:$I$271,7,FALSE) -> 100181801.9
A49: EHV/HV | B49: =VLOOKUP(Vlookup!B49,'CDCM Forecast Data'!$A$14:$I$271,7,FALSE) -> 63195020.95
A50: 132kV/HV | B50: =VLOOKUP(Vlookup!B50,'CDCM Forecast Data'!$A$14:$I$271,7,FALSE) -> 0
A51: HV | B51: =VLOOKUP(Vlookup!B51,'CDCM Forecast Data'!$A$14:$I$271,7,FALSE) -> 114729339.1
A52: HV/LV | B52: =VLOOKUP(Vlookup!B52,'CDCM Forecast Data'!$A$14:$I$271,7,FALSE) -> 104165107.7
A53: LV circuits | B53: =VLOOKUP(Vlookup!B53,'CDCM Forecast Data'!$A$14:$I$271,7,FALSE) -> 57745147.13
A55: 1022. LV service model asset cost (£)
B57: LV service model 1 | C57: LV service model 2 | D57: LV service model 3 | E57: LV service model 4 | F57: LV service model 5 | G57: LV service model 6 | H57: LV service model 7 | I57: LV service model 8
A58: LV service model asset cost (£) | B58: =VLOOKUP(Vlookup!B58,'CDCM Forecast Data'!$A$14:$I$271,7,FALSE) -> 10961.83142 | C58: =VLOOKUP(Vlookup!C58,'CDCM Forecast Data'!$A$14:$I$271,7,FALSE) -> 548.0915709 | D58: =VLOOKUP(Vlookup!D58,'CDCM Forecast Data'!$A$14:$I$271,7,FALSE) -> 2576.738925 | E58: =VLOOKUP(Vlookup!E58,'CDCM Forecast Data'!$A$14:$I$271,7,FALSE) -> 8271.638764 | F58: =VLOOKUP(Vlookup!F58,'CDCM Forecast Data'!$A$14:$I$271,7,FALSE) -> 301.2636498 | G58: =VLOOKUP(Vlookup!G58,'CDCM Forecast Data'!$A$14:$I$271,7,FALSE) -> 0 | H58: =VLOOKUP(Vlookup!H58,'CDCM Forecast Data'!$A$14:$I$271,7,FALSE) -> 0 | I58: =VLOOKUP(Vlookup!I58,'CDCM Forecast Data'!$A$14:$I$271,7,FALSE) -> 0
A60: 1023. HV service model asset cost (£)
B62: HV service model 1 | C62: HV service model 2 | D62: HV service model 3 | E62: HV service model 4 | F62: HV service model 5
A63: HV service model asset cost (£) | B63: =VLOOKUP(Vlookup!B63,'CDCM Forecast Data'!$A$14:$I$271,7,FALSE) -> 20576.13877 | C63: =VLOOKUP(Vlookup!C63,'CDCM Forecast Data'!$A$14:$I$271,7,FALSE) -> 18188.23076 | D63: =VLOOKUP(Vlookup!D63,'CDCM Forecast Data'!$A$14:$I$271,7,FALSE) -> 1224.735926 | E63: =VLOOKUP(Vlookup!E63,'CDCM Forecast Data'!$A$14:$I$271,7,FALSE) -> 0 | F63: =VLOOKUP(Vlookup!F63,'CDCM Forecast Data'!$A$14:$I$271,7,FALSE) -> 0
A65: 1025. Matrix of applicability of LV service models to tariffs with fixed charges
B66: 18 | C66: =B66+1 -> 19 | D66: 20 | E66: 21 | F66: 22 | G66: 23 | H66: 24 | I66: 25
B67: LV service model 1 | C67: LV service model 2 | D67: LV service model 3 | E67: LV service model 4 | F67: LV service model 5 | G67: LV service model 6 | H67: LV service model 7 | I67: LV service model 8
A68: Domestic Unrestricted | B68: =VLOOKUP($A68,'Mat of App'!$B$7:$AP$43,B$66,FALSE) -> 0.05 | C68: =VLOOKUP($A68,'Mat of App'!$B$7:$AP$43,C$66,FALSE) -> 0 | D68: =VLOOKUP($A68,'Mat of App'!$B$7:$AP$43,D$66,FALSE) -> 0 | E68: =VLOOKUP($A68,'Mat of App'!$B$7:$AP$43,E$66,FALSE) -> 0 | F68: =VLOOKUP($A68,'Mat of App'!$B$7:$AP$43,F$66,FALSE) -> 0 | G68: =VLOOKUP($A68,'Mat of App'!$B$7:$AP$43,G$66,FALSE) -> 0 | H68: =VLOOKUP($A68,'Mat of App'!$B$7:$AP$43,H$66,FALSE) -> 0 | I68: =VLOOKUP($A68,'Mat of App'!$B$7:$AP$43,I$66,FALSE) -> 0
A69: Domestic Two Rate | B69: =VLOOKUP($A69,'Mat of App'!$B$7:$AP$43,B$66,FALSE) -> 0.05 | C69: =VLOOKUP($A69,'Mat of App'!$B$7:$AP$43,C$66,FALSE) -> 0 | D69: =VLOOKUP($A69,'Mat of App'!$B$7:$AP$43,D$66,FALSE) -> 0 | E69: =VLOOKUP($A69,'Mat of App'!$B$7:$AP$43,E$66,FALSE) -> 0 | F69: =VLOOKUP($A69,'Mat of App'!$B$7:$AP$43,F$66,FALSE) -> 0 | G69: =VLOOKUP($A69,'Mat of App'!$B$7:$AP$43,G$66,FALSE) -> 0 | H69: =VLOOKUP($A69,'Mat of App'!$B$7:$AP$43,H$66,FALSE) -> 0 | I69: =VLOOKUP($A69,'Mat of App'!$B$7:$AP$43,I$66,FALSE) -> 0
A70: Small Non Domestic Unrestricted | B70: =VLOOKUP($A70,'Mat of App'!$B$7:$AP$43,B$66,FALSE) -> 0 | C70: =VLOOKUP($A70,'Mat of App'!$B$7:$AP$43,C$66,FALSE) -> 1 | D70: =VLOOKUP($A70,'Mat of App'!$B$7:$AP$43,D$66,FALSE) -> 0 | E70: =VLOOKUP($A70,'Mat of App'!$B$7:$AP$43,E$66,FALSE) -> 0 | F70: =VLOOKUP($A70,'Mat of App'!$B$7:$AP$43,F$66,FALSE) -> 0 | G70: =VLOOKUP($A70,'Mat of App'!$B$7:$AP$43,G$66,FALSE) -> 0 | H70: =VLOOKUP($A70,'Mat of App'!$B$7:$AP$43,H$66,FALSE) -> 0 | I70: =VLOOKUP($A70,'Mat of App'!$B$7:$AP$43,I$66,FALSE) -> 0
A71: Small Non Domestic Two Rate | B71: =VLOOKUP($A71,'Mat of App'!$B$7:$AP$43,B$66,FALSE) -> 0 | C71: =VLOOKUP($A71,'Mat of App'!$B$7:$AP$43,C$66,FALSE) -> 1 | D71: =VLOOKUP($A71,'Mat of App'!$B$7:$AP$43,D$66,FALSE) -> 0 | E71: =VLOOKUP($A71,'Mat of App'!$B$7:$AP$43,E$66,FALSE) -> 0 | F71: =VLOOKUP($A71,'Mat of App'!$B$7:$AP$43,F$66,FALSE) -> 0 | G71: =VLOOKUP($A71,'Mat of App'!$B$7:$AP$43,G$66,FALSE) -> 0 | H71: =VLOOKUP($A71,'Mat of App'!$B$7:$AP$43,H$66,FALSE) -> 0 | I71: =VLOOKUP($A71,'Mat of App'!$B$7:$AP$43,I$66,FALSE) -> 0
A72: LV Medium Non-Domestic | B72: =VLOOKUP($A72,'Mat of App'!$B$7:$AP$43,B$66,FALSE) -> 0 | C72: =VLOOKUP($A72,'Mat of App'!$B$7:$AP$43,C$66,FALSE) -> 0.2391523713 | D72: =VLOOKUP($A72,'Mat of App'!$B$7:$AP$43,D$66,FALSE) -> 0.7608476287 | E72: =VLOOKUP($A72,'Mat of App'!$B$7:$AP$43,E$66,FALSE) -> 0 | F72: =VLOOKUP($A72,'Mat of App'!$B$7:$AP$43,F$66,FALSE) -> 0 | G72: =VLOOKUP($A72,'Mat of App'!$B$7:$AP$43,G$66,FALSE) -> 0 | H72: =VLOOKUP($A72,'Mat of App'!$B$7:$AP$43,H$66,FALSE) -> 0 | I72: =VLOOKUP($A72,'Mat of App'!$B$7:$AP$43,I$66,FALSE) -> 0
A73: LV Sub Medium Non-Domestic | B73: =VLOOKUP($A73,'Mat of App'!$B$7:$AP$43,B$66,FALSE) -> 0 | C73: =VLOOKUP($A73,'Mat of App'!$B$7:$AP$43,C$66,FALSE) -> 0 | D73: =VLOOKUP($A73,'Mat of App'!$B$7:$AP$43,D$66,FALSE) -> 0 | E73: =VLOOKUP($A73,'Mat of App'!$B$7:$AP$43,E$66,FALSE) -> 1 | F73: =VLOOKUP($A73,'Mat of App'!$B$7:$AP$43,F$66,FALSE) -> 0 | G73: =VLOOKUP($A73,'Mat of App'!$B$7:$AP$43,G$66,FALSE) -> 0 | H73: =VLOOKUP($A73,'Mat of App'!$B$7:$AP$43,H$66,FALSE) -> 0 | I73: =VLOOKUP($A73,'Mat of App'!$B$7:$AP$43,I$66,FALSE) -> 0
A74: LV Network Domestic | B74: =VLOOKUP($A74,'Mat of App'!$B$7:$AP$43,B$66,FALSE) -> 0.05 | C74: =VLOOKUP($A74,'Mat of App'!$B$7:$AP$43,C$66,FALSE) -> 0 | D74: =VLOOKUP($A74,'Mat of App'!$B$7:$AP$43,D$66,FALSE) -> 0 | E74: =VLOOKUP($A74,'Mat of App'!$B$7:$AP$43,E$66,FALSE) -> 0 | F74: =VLOOKUP($A74,'Mat of App'!$B$7:$AP$43,F$66,FALSE) -> 0 | G74: =VLOOKUP($A74,'Mat of App'!$B$7:$AP$43,G$66,FALSE) -> 0 | H74: =VLOOKUP($A74,'Mat of App'!$B$7:$AP$43,H$66,FALSE) -> 0 | I74: =VLOOKUP($A74,'Mat of App'!$B$7:$AP$43,I$66,FALSE) -> 0
A75: LV Network Non-Domestic Non-CT | B75: =VLOOKUP($A75,'Mat of App'!$B$7:$AP$43,B$66,FALSE) -> 0 | C75: =VLOOKUP($A75,'Mat of App'!$B$7:$AP$43,C$66,FALSE) -> 1 | D75: =VLOOKUP($A75,'Mat of App'!$B$7:$AP$43,D$66,FALSE) -> 0 | E75: =VLOOKUP($A75,'Mat of App'!$B$7:$AP$43,E$66,FALSE) -> 0 | F75: =VLOOKUP($A75,'Mat of App'!$B$7:$AP$43,F$66,FALSE) -> 0 | G75: =VLOOKUP($A75,'Mat of App'!$B$7:$AP$43,G$66,FALSE) -> 0 | H75: =VLOOKUP($A75,'Mat of App'!$B$7:$AP$43,H$66,FALSE) -> 0 | I75: =VLOOKUP($A75,'Mat of App'!$B$7:$AP$43,I$66,FALSE) -> 0
A76: LV HH Metered | B76: =VLOOKUP($A76,'Mat of App'!$B$7:$AP$43,B$66,FALSE) -> 0 | C76: =VLOOKUP($A76,'Mat of App'!$B$7:$AP$43,C$66,FALSE) -> 0 | D76: =VLOOKUP($A76,'Mat of App'!$B$7:$AP$43,D$66,FALSE) -> 1 | E76: =VLOOKUP($A76,'Mat of App'!$B$7:$AP$43,E$66,FALSE) -> 0 | F76: =VLOOKUP($A76,'Mat of App'!$B$7:$AP$43,F$66,FALSE) -> 0 | G76: =VLOOKUP($A76,'Mat of App'!$B$7:$AP$43,G$66,FALSE) -> 0 | H76: =VLOOKUP($A76,'Mat of App'!$B$7:$AP$43,H$66,FALSE) -> 0 | I76: =VLOOKUP($A76,'Mat of App'!$B$7:$AP$43,I$66,FALSE) -> 0
A77: LV Sub HH Metered | B77: =VLOOKUP($A77,'Mat of App'!$B$7:$AP$43,B$66,FALSE) -> 0 | C77: =VLOOKUP($A77,'Mat of App'!$B$7:$AP$43,C$66,FALSE) -> 0 | D77: =VLOOKUP($A77,'Mat of App'!$B$7:$AP$43,D$66,FALSE) -> 0 | E77: =VLOOKUP($A77,'Mat of App'!$B$7:$AP$43,E$66,FALSE) -> 1 | F77: =VLOOKUP($A77,'Mat of App'!$B$7:$AP$43,F$66,FALSE) -> 0 | G77: =VLOOKUP($A77,'Mat of App'!$B$7:$AP$43,G$66,FALSE) -> 0 | H77: =VLOOKUP($A77,'Mat of App'!$B$7:$AP$43,H$66,FALSE) -> 0 | I77: =VLOOKUP($A77,'Mat of App'!$B$7:$AP$43,I$66,FALSE) -> 0
A78: LV Generation NHH or Aggregate HH | B78: =VLOOKUP($A78,'Mat of App'!$B$7:$AP$43,B$66,FALSE) -> 0 | C78: =VLOOKUP($A78,'Mat of App'!$B$7:$AP$43,C$66,FALSE) -> 0 | D78: =VLOOKUP($A78,'Mat of App'!$B$7:$AP$43,D$66,FALSE) -> 0 | E78: =VLOOKUP($A78,'Mat of App'!$B$7:$AP$43,E$66,FALSE) -> 0 | F78: =VLOOKUP($A78,'Mat of App'!$B$7:$AP$43,F$66,FALSE) -> 0 | G78: =VLOOKUP($A78,'Mat of App'!$B$7:$AP$43,G$66,FALSE) -> 0 | H78: =VLOOKUP($A78,'Mat of App'!$B$7:$AP$43,H$66,FALSE) -> 0 | I78: =VLOOKUP($A78,'Mat of App'!$B$7:$AP$43,I$66,FALSE) -> 0
A79: LV Sub Generation NHH | B79: =VLOOKUP($A79,'Mat of App'!$B$7:$AP$43,B$66,FALSE) -> 0 | C79: =VLOOKUP($A79,'Mat of App'!$B$7:$AP$43,C$66,FALSE) -> 0 | D79: =VLOOKUP($A79,'Mat of App'!$B$7:$AP$43,D$66,FALSE) -> 0 | E79: =VLOOKUP($A79,'Mat of App'!$B$7:$AP$43,E$66,FALSE) -> 0 | F79: =VLOOKUP($A79,'Mat of App'!$B$7:$AP$43,F$66,FALSE) -> 0 | G79: =VLOOKUP($A79,'Mat of App'!$B$7:$AP$43,G$66,FALSE) -> 0 | H79: =VLOOKUP($A79,'Mat of App'!$B$7:$AP$43,H$66,FALSE) -> 0 | I79: =VLOOKUP($A79,'Mat of App'!$B$7:$AP$43,I$66,FALSE) -> 0
A80: LV Generation Intermittent | B80: =VLOOKUP($A80,'Mat of App'!$B$7:$AP$43,B$66,FALSE) -> 0 | C80: =VLOOKUP($A80,'Mat of App'!$B$7:$AP$43,C$66,FALSE) -> 0 | D80: =VLOOKUP($A80,'Mat of App'!$B$7:$AP$43,D$66,FALSE) -> 0 | E80: =VLOOKUP($A80,'Mat of App'!$B$7:$AP$43,E$66,FALSE) -> 0 | F80: =VLOOKUP($A80,'Mat of App'!$B$7:$AP$43,F$66,FALSE) -> 0 | G80: =VLOOKUP($A80,'Mat of App'!$B$7:$AP$43,G$66,FALSE) -> 0 | H80: =VLOOKUP($A80,'Mat of App'!$B$7:$AP$43,H$66,FALSE) -> 0 | I80: =VLOOKUP($A80,'Mat of App'!$B$7:$AP$43,I$66,FALSE) -> 0
A81: LV Generation Intermittent no RP charge | B81: =VLOOKUP($A81,'Mat of App'!$B$7:$AP$43,B$66,FALSE) -> 0 | C81: =VLOOKUP($A81,'Mat of App'!$B$7:$AP$43,C$66,FALSE) -> 0 | D81: =VLOOKUP($A81,'Mat of App'!$B$7:$AP$43,D$66,FALSE) -> 0 | E81: =VLOOKUP($A81,'Mat of App'!$B$7:$AP$43,E$66,FALSE) -> 0 | F81: =VLOOKUP($A81,'Mat of App'!$B$7:$AP$43,F$66,FALSE) -> 0 | G81: =VLOOKUP($A81,'Mat of App'!$B$7:$AP$43,G$66,FALSE) -> 0 | H81: =VLOOKUP($A81,'Mat of App'!$B$7:$AP$43,H$66,FALSE) -> 0 | I81: =VLOOKUP($A81,'Mat of App'!$B$7:$AP$43,I$66,FALSE) -> 0
A82: LV Generation Non-Intermittent | B82: =VLOOKUP($A82,'Mat of App'!$B$7:$AP$43,B$66,FALSE) -> 0 | C82: =VLOOKUP($A82,'Mat of App'!$B$7:$AP$43,C$66,FALSE) -> 0 | D82: =VLOOKUP($A82,'Mat of App'!$B$7:$AP$43,D$66,FALSE) -> 0 | E82: =VLOOKUP($A82,'Mat of App'!$B$7:$AP$43,E$66,FALSE) -> 0 | F82: =VLOOKUP($A82,'Mat of App'!$B$7:$AP$43,F$66,FALSE) -> 0 | G82: =VLOOKUP($A82,'Mat of App'!$B$7:$AP$43,G$66,FALSE) -> 0 | H82: =VLOOKUP($A82,'Mat of App'!$B$7:$AP$43,H$66,FALSE) -> 0 | I82: =VLOOKUP($A82,'Mat of App'!$B$7:$AP$43,I$66,FALSE) -> 0
A83: LV Generation Non-Intermittent no RP charge | B83: =VLOOKUP($A83,'Mat of App'!$B$7:$AP$43,B$66,FALSE) -> 0 | C83: =VLOOKUP($A83,'Mat of App'!$B$7:$AP$43,C$66,FALSE) -> 0 | D83: =VLOOKUP($A83,'Mat of App'!$B$7:$AP$43,D$66,FALSE) -> 0 | E83: =VLOOKUP($A83,'Mat of App'!$B$7:$AP$43,E$66,FALSE) -> 0 | F83: =VLOOKUP($A83,'Mat of App'!$B$7:$AP$43,F$66,FALSE) -> 0 | G83: =VLOOKUP($A83,'Mat of App'!$B$7:$AP$43,G$66,FALSE) -> 0 | H83: =VLOOKUP($A83,'Mat of App'!$B$7:$AP$43,H$66,FALSE) -> 0 | I83: =VLOOKUP($A83,'Mat of App'!$B$7:$AP$43,I$66,FALSE) -> 0
A84: LV Sub Generation Intermittent | B84: =VLOOKUP($A84,'Mat of App'!$B$7:$AP$43,B$66,FALSE) -> 0 | C84: =VLOOKUP($A84,'Mat of App'!$B$7:$AP$43,C$66,FALSE) -> 0 | D84: =VLOOKUP($A84,'Mat of App'!$B$7:$AP$43,D$66,FALSE) -> 0 | E84: =VLOOKUP($A84,'Mat of App'!$B$7:$AP$43,E$66,FALSE) -> 0 | F84: =VLOOKUP($A84,'Mat of App'!$B$7:$AP$43,F$66,FALSE) -> 0 | G84: =VLOOKUP($A84,'Mat of App'!$B$7:$AP$43,G$66,FALSE) -> 0 | H84: =VLOOKUP($A84,'Mat of App'!$B$7:$AP$43,H$66,FALSE) -> 0 | I84: =VLOOKUP($A84,'Mat of App'!$B$7:$AP$43,I$66,FALSE) -> 0
A85: LV Sub Generation Intermittent no RP charge | B85: =VLOOKUP($A85,'Mat of App'!$B$7:$AP$43,B$66,FALSE) -> 0 | C85: =VLOOKUP($A85,'Mat of App'!$B$7:$AP$43,C$66,FALSE) -> 0 | D85: =VLOOKUP($A85,'Mat of App'!$B$7:$AP$43,D$66,FALSE) -> 0 | E85: =VLOOKUP($A85,'Mat of App'!$B$7:$AP$43,E$66,FALSE) -> 0 | F85: =VLOOKUP($A85,'Mat of App'!$B$7:$AP$43,F$66,FALSE) -> 0 | G85: =VLOOKUP($A85,'Mat of App'!$B$7:$AP$43,G$66,FALSE) -> 0 | H85: =VLOOKUP($A85,'Mat of App'!$B$7:$AP$43,H$66,FALSE) -> 0 | I85: =VLOOKUP($A85,'Mat of App'!$B$7:$AP$43,I$66,FALSE) -> 0
A86: LV Sub Generation Non-Intermittent | B86: =VLOOKUP($A86,'Mat of App'!$B$7:$AP$43,B$66,FALSE) -> 0 | C86: =VLOOKUP($A86,'Mat of App'!$B$7:$AP$43,C$66,FALSE) -> 0 | D86: =VLOOKUP($A86,'Mat of App'!$B$7:$AP$43,D$66,FALSE) -> 0 | E86: =VLOOKUP($A86,'Mat of App'!$B$7:$AP$43,E$66,FALSE) -> 0 | F86: =VLOOKUP($A86,'Mat of App'!$B$7:$AP$43,F$66,FALSE) -> 0 | G86: =VLOOKUP($A86,'Mat of App'!$B$7:$AP$43,G$66,FALSE) -> 0 | H86: =VLOOKUP($A86,'Mat of App'!$B$7:$AP$43,H$66,FALSE) -> 0 | I86: =VLOOKUP($A86,'Mat of App'!$B$7:$AP$43,I$66,FALSE) -> 0
A87: LV Sub Generation Non-Intermittent no RP charge | B87: =VLOOKUP($A87,'Mat of App'!$B$7:$AP$43,B$66,FALSE) -> 0 | C87: =VLOOKUP($A87,'Mat of App'!$B$7:$AP$43,C$66,FALSE) -> 0 | D87: =VLOOKUP($A87,'Mat of App'!$B$7:$AP$43,D$66,FALSE) -> 0 | E87: =VLOOKUP($A87,'Mat of App'!$B$7:$AP$43,E$66,FALSE) -> 0 | F87: =VLOOKUP($A87,'Mat of App'!$B$7:$AP$43,F$66,FALSE) -> 0 | G87: =VLOOKUP($A87,'Mat of App'!$B$7:$AP$43,G$66,FALSE) -> 0 | H87: =VLOOKUP($A87,'Mat of App'!$B$7:$AP$43,H$66,FALSE) -> 0 | I87: =VLOOKUP($A87,'Mat of App'!$B$7:$AP$43,I$66,FALSE) -> 0
A89: 1026. Matrix of applicability of LV service models to unmetered tariffs
A91: Source: service models
A92: Proportion of service model involved in connecting load of 1 MWh/year
B93: LV service model 1 | C93: LV service model 2 | D93: LV service model 3 | E93: LV service model 4 | F93: LV service model 5 | G93: LV service model 6 | H93: LV service model 7 | I93: LV service model 8
A94: All LV unmetered tariffs | B94: =VLOOKUP($A94,'Mat of App'!$B$7:$AP$43,B$66,FALSE) -> 0 | C94: =VLOOKUP($A94,'Mat of App'!$B$7:$AP$43,C$66,FALSE) -> 0 | D94: =VLOOKUP($A94,'Mat of App'!$B$7:$AP$43,D$66,FALSE) -> 0 | E94: =VLOOKUP($A94,'Mat of App'!$B$7:$AP$43,E$66,FALSE) -> 0 | F94: =VLOOKUP($A94,'Mat of App'!$B$7:$AP$43,F$66,FALSE) -> 2.872632768 | G94: =VLOOKUP($A94,'Mat of App'!$B$7:$AP$43,G$66,FALSE) -> 0 | H94: =VLOOKUP($A94,'Mat of App'!$B$7:$AP$43,H$66,FALSE) -> 0 | I94: =VLOOKUP($A94,'Mat of App'!$B$7:$AP$43,I$66,FALSE) -> 0
A96: 1028. Matrix of applicability of HV service models to tariffs with fixed charges
B97: 12 | C97: =B97+1 -> 13 | D97: =C97+1 -> 14 | E97: =D97+1 -> 15 | F97: =E97+1 -> 16
B98: HV service model 1 | C98: HV service model 2 | D98: HV service model 3 | E98: HV service model 4 | F98: HV service model 5
A99: HV Medium Non-Domestic | B99: =VLOOKUP($A99,'Mat of App'!$B$7:$AP$43,B$97,FALSE) -> 0 | C99: =VLOOKUP($A99,'Mat of App'!$B$7:$AP$43,C$97,FALSE) -> 1 | D99: =VLOOKUP($A99,'Mat of App'!$B$7:$AP$43,D$97,FALSE) -> 0 | E99: =VLOOKUP($A99,'Mat of App'!$B$7:$AP$43,E$97,FALSE) -> 0 | F99: =VLOOKUP($A99,'Mat of App'!$B$7:$AP$43,F$97,FALSE) -> 0
A100: HV HH Metered | B100: =VLOOKUP($A100,'Mat of App'!$B$7:$AP$43,B$97,FALSE) -> 0 | C100: =VLOOKUP($A100,'Mat of App'!$B$7:$AP$43,C$97,FALSE) -> 1 | D100: =VLOOKUP($A100,'Mat of App'!$B$7:$AP$43,D$97,FALSE) -> 0 | E100: =VLOOKUP($A100,'Mat of App'!$B$7:$AP$43,E$97,FALSE) -> 0 | F100: =VLOOKUP($A100,'Mat of App'!$B$7:$AP$43,F$97,FALSE) -> 0
A101: HV Generation Intermittent | B101: =VLOOKUP($A101,'Mat of App'!$B$7:$AP$43,B$97,FALSE) -> 0 | C101: =VLOOKUP($A101,'Mat of App'!$B$7:$AP$43,C$97,FALSE) -> 0 | D101: =VLOOKUP($A101,'Mat of App'!$B$7:$AP$43,D$97,FALSE) -> 1 | E101: =VLOOKUP($A101,'Mat of App'!$B$7:$AP$43,E$97,FALSE) -> 0 | F101: =VLOOKUP($A101,'Mat of App'!$B$7:$AP$43,F$97,FALSE) -> 0
A102: HV Generation Intermittent no RP charge | B102: =VLOOKUP($A102,'Mat of App'!$B$7:$AP$43,B$97,FALSE) -> 0 | C102: =VLOOKUP($A102,'Mat of App'!$B$7:$AP$43,C$97,FALSE) -> 0 | D102: =VLOOKUP($A102,'Mat of App'!$B$7:$AP$43,D$97,FALSE) -> 1 | E102: =VLOOKUP($A102,'Mat of App'!$B$7:$AP$43,E$97,FALSE) -> 0 | F102: =VLOOKUP($A102,'Mat of App'!$B$7:$AP$43,F$97,FALSE) -> 0
A103: HV Generation Non-Intermittent | B103: =VLOOKUP($A103,'Mat of App'!$B$7:$AP$43,B$97,FALSE) -> 0 | C103: =VLOOKUP($A103,'Mat of App'!$B$7:$AP$43,C$97,FALSE) -> 0 | D103: =VLOOKUP($A103,'Mat of App'!$B$7:$AP$43,D$97,FALSE) -> 1 | E103: =VLOOKUP($A103,'Mat of App'!$B$7:$AP$43,E$97,FALSE) -> 0 | F103: =VLOOKUP($A103,'Mat of App'!$B$7:$AP$43,F$97,FALSE) -> 0
A104: HV Generation Non-Intermittent no RP charge | B104: =VLOOKUP($A104,'Mat of App'!$B$7:$AP$43,B$97,FALSE) -> 0 | C104: =VLOOKUP($A104,'Mat of App'!$B$7:$AP$43,C$97,FALSE) -> 0 | D104: =VLOOKUP($A104,'Mat of App'!$B$7:$AP$43,D$97,FALSE) -> 1 | E104: =VLOOKUP($A104,'Mat of App'!$B$7:$AP$43,E$97,FALSE) -> 0 | F104: =VLOOKUP($A104,'Mat of App'!$B$7:$AP$43,F$97,FALSE) -> 0
A106: 1032. Loss adjustment factors to transmission
A108: Source: losses model or loss adjustment factors at time of system peak.
B109: 132kV | C109: 132kV/EHV | D109: EHV | E109: EHV/HV | F109: HV | G109: HV/LV | H109: LV circuits
A110: Loss adjustment factor | B110: =VLOOKUP(Vlookup!B69,'CDCM Forecast Data'!$A$14:$I$271,7,FALSE) -> 1.010049582 | C110: =VLOOKUP(Vlookup!C69,'CDCM Forecast Data'!$A$14:$I$271,7,FALSE) -> 1.015028715 | D110: =VLOOKUP(Vlookup!D69,'CDCM Forecast Data'!$A$14:$I$271,7,FALSE) -> 1.021423697 | E110: =VLOOKUP(Vlookup!E69,'CDCM Forecast Data'!$A$14:$I$271,7,FALSE) -> 1.026965618 | F110: =VLOOKUP(Vlookup!F69,'CDCM Forecast Data'!$A$14:$I$271,7,FALSE) -> 1.039338946 | G110: =VLOOKUP(Vlookup!G69,'CDCM Forecast Data'!$A$14:$I$271,7,FALSE) -> 1.053194046 | H110: =VLOOKUP(Vlookup!H69,'CDCM Forecast Data'!$A$14:$I$271,7,FALSE) -> 1.107559204
A112: 1037. Embedded network (LDNO) discounts
A114: Source: separate price control disaggregation model.
B115: No discount | C115: LDNO LV: LV user | D115: LDNO HV: LV user | E115: LDNO HV: LV sub user | F115: LDNO HV: HV user
A116: LDNO discount | C116: =VLOOKUP(Vlookup!C75,'CDCM Forecast Data'!$A$14:$I$271,7,FALSE) -> 0.357357871 | D116: =VLOOKUP(Vlookup!D75,'CDCM Forecast Data'!$A$14:$I$271,7,FALSE) -> 0.5734116248 | E116: =VLOOKUP(Vlookup!E75,'CDCM Forecast Data'!$A$14:$I$271,7,FALSE) -> 0.327894462 | F116: =VLOOKUP(Vlookup!F75,'CDCM Forecast Data'!$A$14:$I$271,7,FALSE) -> 0.2042455722
A118: 1041. Load profile data for demand users
A120: Source: load data analysis.
B121: Coincidence factor | C121: Load factor
A122: Domestic Unrestricted | B122: =VLOOKUP(Vlookup!B81,'CDCM Forecast Data'!$A$14:$I$271,7,FALSE) -> 0.9073751246 | C122: =VLOOKUP(Vlookup!C81,'CDCM Forecast Data'!$A$14:$I$271,7,FALSE) -> 0.4460761352
A123: Domestic Two Rate | B123: =VLOOKUP(Vlookup!B82,'CDCM Forecast Data'!$A$14:$I$271,7,FALSE) -> 0.3118076763 | C123: =VLOOKUP(Vlookup!C82,'CDCM Forecast Data'!$A$14:$I$271,7,FALSE) -> 0.2461560372
A124: Domestic Off Peak (related MPAN) | C124: =VLOOKUP(Vlookup!C83,'CDCM Forecast Data'!$A$14:$I$271,7,FALSE) -> 0.1661225671
A125: Small Non Domestic Unrestricted | B125: =VLOOKUP(Vlookup!B84,'CDCM Forecast Data'!$A$14:$I$271,7,FALSE) -> 0.6431867848 | C125: =VLOOKUP(Vlookup!C84,'CDCM Forecast Data'!$A$14:$I$271,7,FALSE) -> 0.393333355
A126: Small Non Domestic Two Rate | B126: =VLOOKUP(Vlookup!B85,'CDCM Forecast Data'!$A$14:$I$271,7,FALSE) -> 0.7753946555 | C126: =VLOOKUP(Vlookup!C85,'CDCM Forecast Data'!$A$14:$I$271,7,FALSE) -> 0.5857662777
A127: Small Non Domestic Off Peak (related MPAN) | C127: =VLOOKUP(Vlookup!C86,'CDCM Forecast Data'!$A$14:$I$271,7,FALSE) -> 0.163884803
A128: LV Medium Non-Domestic | B128: =VLOOKUP(Vlookup!B87,'CDCM Forecast Data'!$A$14:$I$271,7,FALSE) -> 0.7212047762 | C128: =VLOOKUP(Vlookup!C87,'CDCM Forecast Data'!$A$14:$I$271,7,FALSE) -> 0.511247733
A129: LV Sub Medium Non-Domestic | B129: =VLOOKUP(Vlookup!B88,'CDCM Forecast Data'!$A$14:$I$271,7,FALSE) -> 0.6982999022 | C129: =VLOOKUP(Vlookup!C88,'CDCM Forecast Data'!$A$14:$I$271,7,FALSE) -> 0.4962908256
A130: HV Medium Non-Domestic | B130: =VLOOKUP(Vlookup!B89,'CDCM Forecast Data'!$A$14:$I$271,7,FALSE) -> 0.7702073361 | C130: =VLOOKUP(Vlookup!C89,'CDCM Forecast Data'!$A$14:$I$271,7,FALSE) -> 0.5147406723
A131: LV Network Domestic | B131: =VLOOKUP(Vlookup!B90,'CDCM Forecast Data'!$A$14:$I$271,7,FALSE) -> 0.9073751246 | C131: =VLOOKUP(Vlookup!C90,'CDCM Forecast Data'!$A$14:$I$271,7,FALSE) -> 0.4460761352
A132: LV Network Non-Domestic Non-CT | B132: =VLOOKUP(Vlookup!B91,'CDCM Forecast Data'!$A$14:$I$271,7,FALSE) -> 0.6431867848 | C132: =VLOOKUP(Vlookup!C91,'CDCM Forecast Data'!$A$14:$I$271,7,FALSE) -> 0.393333355
A133: LV HH Metered | B133: =VLOOKUP(Vlookup!B92,'CDCM Forecast Data'!$A$14:$I$271,7,FALSE) -> 0.7802624104 | C133: =VLOOKUP(Vlookup!C92,'CDCM Forecast Data'!$A$14:$I$271,7,FALSE) -> 0.5367843793
A134: LV Sub HH Metered | B134: =VLOOKUP(Vlookup!B93,'CDCM Forecast Data'!$A$14:$I$271,7,FALSE) -> 0.7636309411 | C134: =VLOOKUP(Vlookup!C93,'CDCM Forecast Data'!$A$14:$I$271,7,FALSE) -> 0.5603833232
A135: HV HH Metered | B135: =VLOOKUP(Vlookup!B94,'CDCM Forecast Data'!$A$14:$I$271,7,FALSE) -> 0.835869669 | C135: =VLOOKUP(Vlookup!C94,'CDCM Forecast Data'!$A$14:$I$271,7,FALSE) -> 0.7072433891
A136: NHH UMS category A | B136: =VLOOKUP(Vlookup!B95,'CDCM Forecast Data'!$A$14:$I$271,7,FALSE) -> 1 | C136: =VLOOKUP(Vlookup!C95,'CDCM Forecast Data'!$A$14:$I$271,7,FALSE) -> 1
A137: NHH UMS category B | B137: =VLOOKUP(Vlookup!B96,'CDCM Forecast Data'!$A$14:$I$271,7,FALSE) -> 1 | C137: =VLOOKUP(Vlookup!C96,'CDCM Forecast Data'!$A$14:$I$271,7,FALSE) -> 0.4731133764
A138: NHH UMS category C | B138: =VLOOKUP(Vlookup!B97,'CDCM Forecast Data'!$A$14:$I$271,7,FALSE) -> 1 | C138: =VLOOKUP(Vlookup!C97,'CDCM Forecast Data'!$A$14:$I$271,7,FALSE) -> 0.2578169273
A139: NHH UMS category D | B139: =VLOOKUP(Vlookup!B98,'CDCM Forecast Data'!$A$14:$I$271,7,FALSE) -> 0 | C139: =VLOOKUP(Vlookup!C98,'CDCM Forecast Data'!$A$14:$I$271,7,FALSE) -> 0.5537901624
A140: LV UMS (Pseudo HH Metered) | B140: =VLOOKUP(Vlookup!B99,'CDCM Forecast Data'!$A$14:$I$271,7,FALSE) -> 0.9537595116 | C140: =VLOOKUP(Vlookup!C99,'CDCM Forecast Data'!$A$14:$I$271,7,FALSE) -> 0.4621225818
A142: 1053. Volume forecasts for the charging year
B143: 18 | C143: 19 | D143: 20 | E143: 21 | F143: 22 | G143: 23 | H143: 24
A144: Source: forecast.
A145: Please include MPAN counts for tariffs with no fixed charge (e.g. off-peak tariffs),
A146: but exclude MPANs on tariffs with a fixed charge that are not subject to a fixed charge due to a site grouping arrangement.
B147: Rate 1 units (MWh) | C147: Rate 2 units (MWh) | D147: Rate 3 units (MWh) | E147: MPANs | F147: Import capacity (kVA) | G147: Exceeded capacity (kVA) | H147: Reactive power units (MVArh)
A148: > Domestic Unrestricted | B148: =VLOOKUP(Vlookup!$B107,'CDCM Volume Forecasts'!$A$28:$AL$136,B$143,FALSE) -> 0 | C148: =VLOOKUP(Vlookup!$B107,'CDCM Volume Forecasts'!$A$28:$AL$136,C$143,FALSE) -> 0 | D148: =VLOOKUP(Vlookup!$B107,'CDCM Volume Forecasts'!$A$28:$AL$136,D$143,FALSE) -> 0 | E148: =VLOOKUP(Vlookup!$B107,'CDCM Volume Forecasts'!$A$28:$AL$136,E$143,FALSE) -> 0 | F148: =VLOOKUP(Vlookup!$B107,'CDCM Volume Forecasts'!$A$28:$AL$136,F$143,FALSE) -> 0 | H148: =VLOOKUP(Vlookup!$B107,'CDCM Volume Forecasts'!$A$28:$AL$136,G$143,FALSE) -> 0
A149: Domestic Unrestricted | B149: =VLOOKUP(Vlookup!$B108,'CDCM Volume Forecasts'!$A$28:$AL$136,B$143,FALSE) -> 6432881.847 | E149: =VLOOKUP(Vlookup!$B108,'CDCM Volume Forecasts'!$A$28:$AL$136,E$143,FALSE) -> 2027175.516
A150: LDNO LV: Domestic Unrestricted | B150: =VLOOKUP(Vlookup!$B109,'CDCM Volume Forecasts'!$A$28:$AL$136,B$143,FALSE) -> 113806.0014 | E150: =VLOOKUP(Vlookup!$B109,'CDCM Volume Forecasts'!$A$28:$AL$136,E$143,FALSE) -> 39023.01639
A151: LDNO HV: Domestic Unrestricted | B151: =VLOOKUP(Vlookup!$B110,'CDCM Volume Forecasts'!$A$28:$AL$136,B$143,FALSE) -> 92235.48541 | E151: =VLOOKUP(Vlookup!$B110,'CDCM Volume Forecasts'!$A$28:$AL$136,E$143,FALSE) -> 30193.85246
A152: > Domestic Two Rate
A153: Domestic Two Rate | B153: =VLOOKUP(Vlookup!$B112,'CDCM Volume Forecasts'!$A$28:$AL$136,B$143,FALSE) -> 468570.0779 | C153: =VLOOKUP(Vlookup!$B112,'CDCM Volume Forecasts'!$A$28:$AL$136,C$143,FALSE) -> 465777.1278 | E153: =VLOOKUP(Vlookup!$B112,'CDCM Volume Forecasts'!$A$28:$AL$136,E$143,FALSE) -> 178282
A154: LDNO LV: Domestic Two Rate | B154: =VLOOKUP(Vlookup!$B113,'CDCM Volume Forecasts'!$A$28:$AL$136,B$143,FALSE) -> 1262.552664 | C154: =VLOOKUP(Vlookup!$B113,'CDCM Volume Forecasts'!$A$28:$AL$136,C$143,FALSE) -> 466.5835729 | E154: =VLOOKUP(Vlookup!$B113,'CDCM Volume Forecasts'!$A$28:$AL$136,E$143,FALSE) -> 440.4918033
A155: LDNO HV: Domestic Two Rate | B155: =VLOOKUP(Vlookup!$B114,'CDCM Volume Forecasts'!$A$28:$AL$136,B$143,FALSE) -> 5123.491953 | C155: =VLOOKUP(Vlookup!$B114,'CDCM Volume Forecasts'!$A$28:$AL$136,C$143,FALSE) -> 2851.960297 | E155: =VLOOKUP(Vlookup!$B114,'CDCM Volume Forecasts'!$A$28:$AL$136,E$143,FALSE) -> 1559.224044
A156: > Domestic Off Peak (related MPAN)
A157: Domestic Off Peak (related MPAN) | B157: =VLOOKUP(Vlookup!$B116,'CDCM Volume Forecasts'!$A$28:$AL$136,B$143,FALSE) -> 14279.50209 | E157: =VLOOKUP(Vlookup!$B116,'CDCM Volume Forecasts'!$A$28:$AL$136,E$143,FALSE) -> 4270
A158: LDNO LV: Domestic Off Peak (related MPAN) | B158: =VLOOKUP(Vlookup!$B117,'CDCM Volume Forecasts'!$A$28:$AL$136,B$143,FALSE) -> 0 | E158: =VLOOKUP(Vlookup!$B117,'CDCM Volume Forecasts'!$A$28:$AL$136,E$143,FALSE) -> 0
A159: LDNO HV: Domestic Off Peak (related MPAN) | B159: =VLOOKUP(Vlookup!$B118,'CDCM Volume Forecasts'!$A$28:$AL$136,B$143,FALSE) -> 0 | E159: =VLOOKUP(Vlookup!$B118,'CDCM Volume Forecasts'!$A$28:$AL$136,E$143,FALSE) -> 0
A160: > Small Non Domestic Unrestricted
A161: Small Non Domestic Unrestricted | B161: =VLOOKUP(Vlookup!$B120,'CDCM Volume Forecasts'!$A$28:$AL$136,B$143,FALSE) -> 1494625.641 | E161: =VLOOKUP(Vlookup!$B120,'CDCM Volume Forecasts'!$A$28:$AL$136,E$143,FALSE) -> 121609.0109
A162: LDNO LV: Small Non Domestic Unrestricted | B162: =VLOOKUP(Vlookup!$B121,'CDCM Volume Forecasts'!$A$28:$AL$136,B$143,FALSE) -> 5111.451049 | E162: =VLOOKUP(Vlookup!$B121,'CDCM Volume Forecasts'!$A$28:$AL$136,E$143,FALSE) -> 620.4863388
A163: LDNO HV: Small Non Domestic Unrestricted | B163: =VLOOKUP(Vlookup!$B122,'CDCM Volume Forecasts'!$A$28:$AL$136,B$143,FALSE) -> 8421.969121 | E163: =VLOOKUP(Vlookup!$B122,'CDCM Volume Forecasts'!$A$28:$AL$136,E$143,FALSE) -> 630.4863388
A164: > Small Non Domestic Two Rate
A165: Small Non Domestic Two Rate | B165: =VLOOKUP(Vlookup!$B124,'CDCM Volume Forecasts'!$A$28:$AL$136,B$143,FALSE) -> 531718.6143 | C165: =VLOOKUP(Vlookup!$B124,'CDCM Volume Forecasts'!$A$28:$AL$136,C$143,FALSE) -> 195607.5639 | E165: =VLOOKUP(Vlookup!$B124,'CDCM Volume Forecasts'!$A$28:$AL$136,E$143,FALSE) -> 34183.40096
A166: LDNO LV: Small Non Domestic Two Rate | B166: =VLOOKUP(Vlookup!$B125,'CDCM Volume Forecasts'!$A$28:$AL$136,B$143,FALSE) -> 12.27657143 | C166: =VLOOKUP(Vlookup!$B125,'CDCM Volume Forecasts'!$A$28:$AL$136,C$143,FALSE) -> 8.75475 | E166: =VLOOKUP(Vlookup!$B125,'CDCM Volume Forecasts'!$A$28:$AL$136,E$143,FALSE) -> 6
A167: LDNO HV: Small Non Domestic Two Rate | B167: =VLOOKUP(Vlookup!$B126,'CDCM Volume Forecasts'!$A$28:$AL$136,B$143,FALSE) -> 517.7141845 | C167: =VLOOKUP(Vlookup!$B126,'CDCM Volume Forecasts'!$A$28:$AL$136,C$143,FALSE) -> 271.8904851 | E167: =VLOOKUP(Vlookup!$B126,'CDCM Volume Forecasts'!$A$28:$AL$136,E$143,FALSE) -> 17
A168: > Small Non Domestic Off Peak (related MPAN)
A169: Small Non Domestic Off Peak (related MPAN) | B169: =VLOOKUP(Vlookup!$B128,'CDCM Volume Forecasts'!$A$28:$AL$136,B$143,FALSE) -> 20242.62911 | E169: =VLOOKUP(Vlookup!$B128,'CDCM Volume Forecasts'!$A$28:$AL$136,E$143,FALSE) -> 3655
A170: LDNO LV: Small Non Domestic Off Peak (related MPAN) | B170: =VLOOKUP(Vlookup!$B129,'CDCM Volume Forecasts'!$A$28:$AL$136,B$143,FALSE) -> 0 | E170: =VLOOKUP(Vlookup!$B129,'CDCM Volume Forecasts'!$A$28:$AL$136,E$143,FALSE) -> 0
A171: LDNO HV: Small Non Domestic Off Peak (related MPAN) | B171: =VLOOKUP(Vlookup!$B130,'CDCM Volume Forecasts'!$A$28:$AL$136,B$143,FALSE) -> 0 | E171: =VLOOKUP(Vlookup!$B130,'CDCM Volume Forecasts'!$A$28:$AL$136,E$143,FALSE) -> 0
A172: > LV Medium Non-Domestic
A173: LV Medium Non-Domestic | B173: =VLOOKUP(Vlookup!$B132,'CDCM Volume Forecasts'!$A$28:$AL$136,B$143,FALSE) -> 0.9060389581 | C173: =VLOOKUP(Vlookup!$B132,'CDCM Volume Forecasts'!$A$28:$AL$136,C$143,FALSE) -> 0.09210488882 | E173: =VLOOKUP(Vlookup!$B132,'CDCM Volume Forecasts'!$A$28:$AL$136,E$143,FALSE) -> 0.001
A174: LDNO LV: LV Medium Non-Domestic | B174: =VLOOKUP(Vlookup!$B133,'CDCM Volume Forecasts'!$A$28:$AL$136,B$143,FALSE) -> 104.3319476 | C174: =VLOOKUP(Vlookup!$B133,'CDCM Volume Forecasts'!$A$28:$AL$136,C$143,FALSE) -> 20.734 | E174: =VLOOKUP(Vlookup!$B133,'CDCM Volume Forecasts'!$A$28:$AL$136,E$143,FALSE) -> 2
A175: LDNO HV: LV Medium Non-Domestic | B175: =VLOOKUP(Vlookup!$B134,'CDCM Volume Forecasts'!$A$28:$AL$136,B$143,FALSE) -> 0 | C175: =VLOOKUP(Vlookup!$B134,'CDCM Volume Forecasts'!$A$28:$AL$136,C$143,FALSE) -> 0 | E175: =VLOOKUP(Vlookup!$B134,'CDCM Volume Forecasts'!$A$28:$AL$136,E$143,FALSE) -> 0
A176: > LV Sub Medium Non-Domestic
A177: LV Sub Medium Non-Domestic | B177: =VLOOKUP(Vlookup!$B136,'CDCM Volume Forecasts'!$A$28:$AL$136,B$143,FALSE) -> 0.135963199 | C177: =VLOOKUP(Vlookup!$B136,'CDCM Volume Forecasts'!$A$28:$AL$136,C$143,FALSE) -> 0.2880364514 | E177: =VLOOKUP(Vlookup!$B136,'CDCM Volume Forecasts'!$A$28:$AL$136,E$143,FALSE) -> 0.001
A178: > HV Medium Non-Domestic
A179: HV Medium Non-Domestic | B179: =VLOOKUP(Vlookup!$B138,'CDCM Volume Forecasts'!$A$28:$AL$136,B$143,FALSE) -> 0.453019479 | C179: =VLOOKUP(Vlookup!$B138,'CDCM Volume Forecasts'!$A$28:$AL$136,C$143,FALSE) -> 1.153716089 | E179: =VLOOKUP(Vlookup!$B138,'CDCM Volume Forecasts'!$A$28:$AL$136,E$143,FALSE) -> 0.001
A180: > LV Network Domestic
A181: LV Network Domestic | B181: =VLOOKUP(Vlookup!$B140,'CDCM Volume Forecasts'!$A$28:$AL$136,B$143,FALSE) -> 68.86427045 | C181: =VLOOKUP(Vlookup!$B140,'CDCM Volume Forecasts'!$A$28:$AL$136,C$143,FALSE) -> 206.599709 | D181: =VLOOKUP(Vlookup!$B140,'CDCM Volume Forecasts'!$A$28:$AL$136,D$143,FALSE) -> 381.0705413 | E181: =VLOOKUP(Vlookup!$B140,'CDCM Volume Forecasts'!$A$28:$AL$136,E$143,FALSE) -> 339.8032787
A182: LDNO LV: LV Network Domestic | B182: =VLOOKUP(Vlookup!$B141,'CDCM Volume Forecasts'!$A$28:$AL$136,B$143,FALSE) -> 0 | C182: =VLOOKUP(Vlookup!$B141,'CDCM Volume Forecasts'!$A$28:$AL$136,C$143,FALSE) -> 0 | D182: =VLOOKUP(Vlookup!$B141,'CDCM Volume Forecasts'!$A$28:$AL$136,D$143,FALSE) -> 0 | E182: =VLOOKUP(Vlookup!$B141,'CDCM Volume Forecasts'!$A$28:$AL$136,E$143,FALSE) -> 0
A183: LDNO HV: LV Network Domestic | B183: =VLOOKUP(Vlookup!$B142,'CDCM Volume Forecasts'!$A$28:$AL$136,B$143,FALSE) -> 0 | C183: =VLOOKUP(Vlookup!$B142,'CDCM Volume Forecasts'!$A$28:$AL$136,C$143,FALSE) -> 0 | D183: =VLOOKUP(Vlookup!$B142,'CDCM Volume Forecasts'!$A$28:$AL$136,D$143,FALSE) -> 0 | E183: =VLOOKUP(Vlookup!$B142,'CDCM Volume Forecasts'!$A$28:$AL$136,E$143,FALSE) -> 0
A184: > LV Network Non-Domestic Non-CT
A185: LV Network Non-Domestic Non-CT | B185: =VLOOKUP(Vlookup!$B144,'CDCM Volume Forecasts'!$A$28:$AL$136,B$143,FALSE) -> 22435.96495 | C185: =VLOOKUP(Vlookup!$B144,'CDCM Volume Forecasts'!$A$28:$AL$136,C$143,FALSE) -> 80597.10447 | D185: =VLOOKUP(Vlookup!$B144,'CDCM Volume Forecasts'!$A$28:$AL$136,D$143,FALSE) -> 113029.9906 | E185: =VLOOKUP(Vlookup!$B144,'CDCM Volume Forecasts'!$A$28:$AL$136,E$143,FALSE) -> 3574
A186: LDNO LV: LV Network Non-Domestic Non-CT | B186: =VLOOKUP(Vlookup!$B145,'CDCM Volume Forecasts'!$A$28:$AL$136,B$143,FALSE) -> 0 | C186: =VLOOKUP(Vlookup!$B145,'CDCM Volume Forecasts'!$A$28:$AL$136,C$143,FALSE) -> 0 | D186: =VLOOKUP(Vlookup!$B145,'CDCM Volume Forecasts'!$A$28:$AL$136,D$143,FALSE) -> 0 | E186: =VLOOKUP(Vlookup!$B145,'CDCM Volume Forecasts'!$A$28:$AL$136,E$143,FALSE) -> 0
A187: LDNO HV: LV Network Non-Domestic Non-CT | B187: =VLOOKUP(Vlookup!$B146,'CDCM Volume Forecasts'!$A$28:$AL$136,B$143,FALSE) -> 0 | C187: =VLOOKUP(Vlookup!$B146,'CDCM Volume Forecasts'!$A$28:$AL$136,C$143,FALSE) -> 0 | D187: =VLOOKUP(Vlookup!$B146,'CDCM Volume Forecasts'!$A$28:$AL$136,D$143,FALSE) -> 0 | E187: =VLOOKUP(Vlookup!$B146,'CDCM Volume Forecasts'!$A$28:$AL$136,E$143,FALSE) -> 0
A188: > LV HH Metered
A189: LV HH Metered | B189: =VLOOKUP(Vlookup!$B148,'CDCM Volume Forecasts'!$A$28:$AL$136,B$143,FALSE) -> 259213.745 | C189: =VLOOKUP(Vlookup!$B148,'CDCM Volume Forecasts'!$A$28:$AL$136,C$143,FALSE) -> 926903.165 | D189: =VLOOKUP(Vlookup!$B148,'CDCM Volume Forecasts'!$A$28:$AL$136,D$143,FALSE) -> 1194700.314 | E189: =VLOOKUP(Vlookup!$B148,'CDCM Volume Forecasts'!$A$28:$AL$136,E$143,FALSE) -> 12971.0847 | F189: =VLOOKUP(Vlookup!$B148,'CDCM Volume Forecasts'!$A$28:$AL$136,F$143,FALSE) -> 1247153.2 | G189: =VLOOKUP(Vlookup!$B148,'CDCM Volume Forecasts'!$A$28:$AL$136,G$143,FALSE) -> 12471.532 | H189: =VLOOKUP(Vlookup!$B148,'CDCM Volume Forecasts'!$A$28:$AL$136,H$143,FALSE) -> 199567.5775
A190: LDNO LV: LV HH Metered | B190: =VLOOKUP(Vlookup!$B149,'CDCM Volume Forecasts'!$A$28:$AL$136,B$143,FALSE) -> 1902.708646 | C190: =VLOOKUP(Vlookup!$B149,'CDCM Volume Forecasts'!$A$28:$AL$136,C$143,FALSE) -> 6571.208024 | D190: =VLOOKUP(Vlookup!$B149,'CDCM Volume Forecasts'!$A$28:$AL$136,D$143,FALSE) -> 8495.436429 | E190: =VLOOKUP(Vlookup!$B149,'CDCM Volume Forecasts'!$A$28:$AL$136,E$143,FALSE) -> 109.9945355 | F190: =VLOOKUP(Vlookup!$B149,'CDCM Volume Forecasts'!$A$28:$AL$136,F$143,FALSE) -> 7680.359135 | G190: =VLOOKUP(Vlookup!$B149,'CDCM Volume Forecasts'!$A$28:$AL$136,G$143,FALSE) -> 76.80359135 | H190: =VLOOKUP(Vlookup!$B149,'CDCM Volume Forecasts'!$A$28:$AL$136,H$143,FALSE) -> 712.8484
A191: LDNO HV: LV HH Metered | B191: =VLOOKUP(Vlookup!$B150,'CDCM Volume Forecasts'!$A$28:$AL$136,B$143,FALSE) -> 13289.54065 | C191: =VLOOKUP(Vlookup!$B150,'CDCM Volume Forecasts'!$A$28:$AL$136,C$143,FALSE) -> 45417.60972 | D191: =VLOOKUP(Vlookup!$B150,'CDCM Volume Forecasts'!$A$28:$AL$136,D$143,FALSE) -> 64105.56336 | E191: =VLOOKUP(Vlookup!$B150,'CDCM Volume Forecasts'!$A$28:$AL$136,E$143,FALSE) -> 334.4863388 | F191: =VLOOKUP(Vlookup!$B150,'CDCM Volume Forecasts'!$A$28:$AL$136,F$143,FALSE) -> 57203.9097 | G191: =VLOOKUP(Vlookup!$B150,'CDCM Volume Forecasts'!$A$28:$AL$136,G$143,FALSE) -> 572.039097 | H191: =VLOOKUP(Vlookup!$B150,'CDCM Volume Forecasts'!$A$28:$AL$136,H$143,FALSE) -> 3078.89686
A192: > LV Sub HH Metered
A193: LV Sub HH Metered | B193: =VLOOKUP(Vlookup!$B152,'CDCM Volume Forecasts'!$A$28:$AL$136,B$143,FALSE) -> 126109.0749 | C193: =VLOOKUP(Vlookup!$B152,'CDCM Volume Forecasts'!$A$28:$AL$136,C$143,FALSE) -> 462200.7154 | D193: =VLOOKUP(Vlookup!$B152,'CDCM Volume Forecasts'!$A$28:$AL$136,D$143,FALSE) -> 623163.7147 | E193: =VLOOKUP(Vlookup!$B152,'CDCM Volume Forecasts'!$A$28:$AL$136,E$143,FALSE) -> 2163.489071 | F193: =VLOOKUP(Vlookup!$B152,'CDCM Volume Forecasts'!$A$28:$AL$136,F$143,FALSE) -> 650266.427 | G193: =VLOOKUP(Vlookup!$B152,'CDCM Volume Forecasts'!$A$28:$AL$136,G$143,FALSE) -> 6502.66427 | H193: =VLOOKUP(Vlookup!$B152,'CDCM Volume Forecasts'!$A$28:$AL$136,H$143,FALSE) -> 97083.8447
A194: LDNO HV: LV Sub HH Metered | B194: =VLOOKUP(Vlookup!$B153,'CDCM Volume Forecasts'!$A$28:$AL$136,B$143,FALSE) -> 1351.261253 | C194: =VLOOKUP(Vlookup!$B153,'CDCM Volume Forecasts'!$A$28:$AL$136,C$143,FALSE) -> 4492.991488 | D194: =VLOOKUP(Vlookup!$B153,'CDCM Volume Forecasts'!$A$28:$AL$136,D$143,FALSE) -> 7950.547777 | E194: =VLOOKUP(Vlookup!$B153,'CDCM Volume Forecasts'!$A$28:$AL$136,E$143,FALSE) -> 10 | F194: =VLOOKUP(Vlookup!$B153,'CDCM Volume Forecasts'!$A$28:$AL$136,F$143,FALSE) -> 6248.57096 | G194: =VLOOKUP(Vlookup!$B153,'CDCM Volume Forecasts'!$A$28:$AL$136,G$143,FALSE) -> 62.4857096 | H194: =VLOOKUP(Vlookup!$B153,'CDCM Volume Forecasts'!$A$28:$AL$136,H$143,FALSE) -> 77.417
A195: > HV HH Metered
A196: HV HH Metered | B196: =VLOOKUP(Vlookup!$B155,'CDCM Volume Forecasts'!$A$28:$AL$136,B$143,FALSE) -> 457655.8379 | C196: =VLOOKUP(Vlookup!$B155,'CDCM Volume Forecasts'!$A$28:$AL$136,C$143,FALSE) -> 1565462.317 | D196: =VLOOKUP(Vlookup!$B155,'CDCM Volume Forecasts'!$A$28:$AL$136,D$143,FALSE) -> 2576162.916 | E196: =VLOOKUP(Vlookup!$B155,'CDCM Volume Forecasts'!$A$28:$AL$136,E$143,FALSE) -> 2232.92623 | F196: =VLOOKUP(Vlookup!$B155,'CDCM Volume Forecasts'!$A$28:$AL$136,F$143,FALSE) -> 1816038.308 | G196: =VLOOKUP(Vlookup!$B155,'CDCM Volume Forecasts'!$A$28:$AL$136,G$143,FALSE) -> 18160.38308 | H196: =VLOOKUP(Vlookup!$B155,'CDCM Volume Forecasts'!$A$28:$AL$136,H$143,FALSE) -> 366046.3577
A197: LDNO HV: HV HH Metered | B197: =VLOOKUP(Vlookup!$B156,'CDCM Volume Forecasts'!$A$28:$AL$136,B$143,FALSE) -> 2580.028981 | C197: =VLOOKUP(Vlookup!$B156,'CDCM Volume Forecasts'!$A$28:$AL$136,C$143,FALSE) -> 8492.991421 | D197: =VLOOKUP(Vlookup!$B156,'CDCM Volume Forecasts'!$A$28:$AL$136,D$143,FALSE) -> 16606.32578 | E197: =VLOOKUP(Vlookup!$B156,'CDCM Volume Forecasts'!$A$28:$AL$136,E$143,FALSE) -> 13 | F197: =VLOOKUP(Vlookup!$B156,'CDCM Volume Forecasts'!$A$28:$AL$136,F$143,FALSE) -> 17946.56797 | G197: =VLOOKUP(Vlookup!$B156,'CDCM Volume Forecasts'!$A$28:$AL$136,G$143,FALSE) -> 179.4656797 | H197: =VLOOKUP(Vlookup!$B156,'CDCM Volume Forecasts'!$A$28:$AL$136,H$143,FALSE) -> 90.4662
A198: > NHH UMS category A
A199: NHH UMS category A | B199: =VLOOKUP(Vlookup!$B158,'CDCM Volume Forecasts'!$A$28:$AL$136,B$143,FALSE) -> 17466.39689 | E199: =VLOOKUP(Vlookup!$B158,'CDCM Volume Forecasts'!$A$28:$AL$136,E$143,FALSE) -> 203.5027322
A200: LDNO LV: NHH UMS category A | B200: =VLOOKUP(Vlookup!$B159,'CDCM Volume Forecasts'!$A$28:$AL$136,B$143,FALSE) -> 0 | E200: =VLOOKUP(Vlookup!$B159,'CDCM Volume Forecasts'!$A$28:$AL$136,E$143,FALSE) -> 0
A201: LDNO HV: NHH UMS category A | B201: =VLOOKUP(Vlookup!$B160,'CDCM Volume Forecasts'!$A$28:$AL$136,B$143,FALSE) -> 0 | E201: =VLOOKUP(Vlookup!$B160,'CDCM Volume Forecasts'!$A$28:$AL$136,E$143,FALSE) -> 0
A202: > NHH UMS category B
A203: NHH UMS category B | B203: =VLOOKUP(Vlookup!$B162,'CDCM Volume Forecasts'!$A$28:$AL$136,B$143,FALSE) -> 9156.631168 | E203: =VLOOKUP(Vlookup!$B162,'CDCM Volume Forecasts'!$A$28:$AL$136,E$143,FALSE) -> 326
A204: LDNO LV: NHH UMS category B | B204: =VLOOKUP(Vlookup!$B163,'CDCM Volume Forecasts'!$A$28:$AL$136,B$143,FALSE) -> 217.541384 | E204: =VLOOKUP(Vlookup!$B163,'CDCM Volume Forecasts'!$A$28:$AL$136,E$143,FALSE) -> 85
A205: LDNO HV: NHH UMS category B | B205: =VLOOKUP(Vlookup!$B164,'CDCM Volume Forecasts'!$A$28:$AL$136,B$143,FALSE) -> 60.74485714 | E205: =VLOOKUP(Vlookup!$B164,'CDCM Volume Forecasts'!$A$28:$AL$136,E$143,FALSE) -> 7
A206: > NHH UMS category C
A207: NHH UMS category C | B207: =VLOOKUP(Vlookup!$B166,'CDCM Volume Forecasts'!$A$28:$AL$136,B$143,FALSE) -> 411.2469303 | E207: =VLOOKUP(Vlookup!$B166,'CDCM Volume Forecasts'!$A$28:$AL$136,E$143,FALSE) -> 8
A208: LDNO LV: NHH UMS category C | B208: =VLOOKUP(Vlookup!$B167,'CDCM Volume Forecasts'!$A$28:$AL$136,B$143,FALSE) -> 0 | E208: =VLOOKUP(Vlookup!$B167,'CDCM Volume Forecasts'!$A$28:$AL$136,E$143,FALSE) -> 0
A209: LDNO HV: NHH UMS category C | B209: =VLOOKUP(Vlookup!$B168,'CDCM Volume Forecasts'!$A$28:$AL$136,B$143,FALSE) -> 0 | E209: =VLOOKUP(Vlookup!$B168,'CDCM Volume Forecasts'!$A$28:$AL$136,E$143,FALSE) -> 0
A210: > NHH UMS category D
A211: NHH UMS category D | B211: =VLOOKUP(Vlookup!$B170,'CDCM Volume Forecasts'!$A$28:$AL$136,B$143,FALSE) -> 0.05140586629 | E211: =VLOOKUP(Vlookup!$B170,'CDCM Volume Forecasts'!$A$28:$AL$136,E$143,FALSE) -> 0.001
A212: LDNO LV: NHH UMS category D | B212: =VLOOKUP(Vlookup!$B171,'CDCM Volume Forecasts'!$A$28:$AL$136,B$143,FALSE) -> 0 | E212: =VLOOKUP(Vlookup!$B171,'CDCM Volume Forecasts'!$A$28:$AL$136,E$143,FALSE) -> 0
A213: LDNO HV: NHH UMS category D | B213: =VLOOKUP(Vlookup!$B172,'CDCM Volume Forecasts'!$A$28:$AL$136,B$143,FALSE) -> 0 | E213: =VLOOKUP(Vlookup!$B172,'CDCM Volume Forecasts'!$A$28:$AL$136,E$143,FALSE) -> 0
A214: > LV UMS (Pseudo HH Metered)
A215: LV UMS (Pseudo HH Metered) | B215: =VLOOKUP(Vlookup!$B174,'CDCM Volume Forecasts'!$A$28:$AL$136,B$143,FALSE) -> 10560.70647 | C215: =VLOOKUP(Vlookup!$B174,'CDCM Volume Forecasts'!$A$28:$AL$136,C$143,FALSE) -> 28387.51814 | D215: =VLOOKUP(Vlookup!$B174,'CDCM Volume Forecasts'!$A$28:$AL$136,D$143,FALSE) -> 176907.0706 | E215: =VLOOKUP(Vlookup!$B174,'CDCM Volume Forecasts'!$A$28:$AL$136,E$143,FALSE) -> 25
A216: LDNO LV: LV UMS (Pseudo HH Metered) | B216: =VLOOKUP(Vlookup!$B175,'CDCM Volume Forecasts'!$A$28:$AL$136,B$143,FALSE) -> 0 | C216: =VLOOKUP(Vlookup!$B175,'CDCM Volume Forecasts'!$A$28:$AL$136,C$143,FALSE) -> 0 | D216: =VLOOKUP(Vlookup!$B175,'CDCM Volume Forecasts'!$A$28:$AL$136,D$143,FALSE) -> 0 | E216: =VLOOKUP(Vlookup!$B175,'CDCM Volume Forecasts'!$A$28:$AL$136,E$143,FALSE) -> 0
A217: LDNO HV: LV UMS (Pseudo HH Metered) | B217: =VLOOKUP(Vlookup!$B176,'CDCM Volume Forecasts'!$A$28:$AL$136,B$143,FALSE) -> 0 | C217: =VLOOKUP(Vlookup!$B176,'CDCM Volume Forecasts'!$A$28:$AL$136,C$143,FALSE) -> 0 | D217: =VLOOKUP(Vlookup!$B176,'CDCM Volume Forecasts'!$A$28:$AL$136,D$143,FALSE) -> 0 | E217: =VLOOKUP(Vlookup!$B176,'CDCM Volume Forecasts'!$A$28:$AL$136,E$143,FALSE) -> 0
A218: > LV Generation NHH or Aggregate HH
A219: LV Generation NHH or Aggregate HH | B219: =VLOOKUP(Vlookup!$B178,'CDCM Volume Forecasts'!$A$28:$AL$136,B$143,FALSE) -> 3259.869343 | E219: =VLOOKUP(Vlookup!$B178,'CDCM Volume Forecasts'!$A$28:$AL$136,E$143,FALSE) -> 270.0655738
A220: LDNO LV: LV Generation NHH or Aggregate HH | B220: =VLOOKUP(Vlookup!$B179,'CDCM Volume Forecasts'!$A$28:$AL$136,B$143,FALSE) -> 0 | E220: =VLOOKUP(Vlookup!$B179,'CDCM Volume Forecasts'!$A$28:$AL$136,E$143,FALSE) -> 0
A221: LDNO HV: LV Generation NHH or Aggregate HH | B221: =VLOOKUP(Vlookup!$B180,'CDCM Volume Forecasts'!$A$28:$AL$136,B$143,FALSE) -> 0 | E221: =VLOOKUP(Vlookup!$B180,'CDCM Volume Forecasts'!$A$28:$AL$136,E$143,FALSE) -> 0
A222: > LV Sub Generation NHH
A223: LV Sub Generation NHH | B223: =VLOOKUP(Vlookup!$B182,'CDCM Volume Forecasts'!$A$28:$AL$136,B$143,FALSE) -> 0.9598142732 | E223: =VLOOKUP(Vlookup!$B182,'CDCM Volume Forecasts'!$A$28:$AL$136,E$143,FALSE) -> 0.01
A224: LDNO HV: LV Sub Generation NHH | B224: =VLOOKUP(Vlookup!$B183,'CDCM Volume Forecasts'!$A$28:$AL$136,B$143,FALSE) -> 0 | E224: =VLOOKUP(Vlookup!$B183,'CDCM Volume Forecasts'!$A$28:$AL$136,E$143,FALSE) -> 0
A225: > LV Generation Intermittent
A226: LV Generation Intermittent | B226: =VLOOKUP(Vlookup!$B185,'CDCM Volume Forecasts'!$A$28:$AL$136,B$143,FALSE) -> 20683.73534 | E226: =VLOOKUP(Vlookup!$B185,'CDCM Volume Forecasts'!$A$28:$AL$136,E$143,FALSE) -> 215.4972678 | H226: =VLOOKUP(Vlookup!$B185,'CDCM Volume Forecasts'!$A$28:$AL$136,H$143,FALSE) -> 1784.4707
A227: LDNO LV: LV Generation Intermittent | B227: =VLOOKUP(Vlookup!$B186,'CDCM Volume Forecasts'!$A$28:$AL$136,B$143,FALSE) -> 0 | E227: =VLOOKUP(Vlookup!$B186,'CDCM Volume Forecasts'!$A$28:$AL$136,E$143,FALSE) -> 0 | H227: =VLOOKUP(Vlookup!$B186,'CDCM Volume Forecasts'!$A$28:$AL$136,H$143,FALSE) -> 0
A228: LDNO HV: LV Generation Intermittent | B228: =VLOOKUP(Vlookup!$B187,'CDCM Volume Forecasts'!$A$28:$AL$136,B$143,FALSE) -> 0 | E228: =VLOOKUP(Vlookup!$B187,'CDCM Volume Forecasts'!$A$28:$AL$136,E$143,FALSE) -> 0 | H228: =VLOOKUP(Vlookup!$B187,'CDCM Volume Forecasts'!$A$28:$AL$136,H$143,FALSE) -> 0
... 99 more rows

Sheet (Y+3)
A1: Input data (Y+3)
A4: 1000. Company, charging year, data version
B6: Company | C6: Year | D6: Version
A7: Company, charging year, data version | B7: =VLOOKUP(Vlookup!B7,'CDCM Forecast Data'!$A$14:$I$271,8,FALSE) -> Electricity North West | C7: =VLOOKUP(Vlookup!C7,'CDCM Forecast Data'!$A$14:$I$271,8,FALSE) -> 2022/23 | D7: =VLOOKUP(Vlookup!D7,'CDCM Forecast Data'!$A$14:$I$271,8,FALSE) -> Forecast
A9: 1010. Financial and general assumptions
A11: Sources: financial assumptions; calendar; network model.
A12: These financial assumptions determine the annuity rate applied to convert the asset values of the network model into an annual charge.
B13: Rate of return | C13: Annualisation period (years) | D13: Annuity proportion for customer-contributed assets | E13: Power factor | F13: Days in the charging period
A14: Financial and general assumptions | B14: =VLOOKUP(Vlookup!B14,'CDCM Forecast Data'!$A$14:$I$271,8,FALSE) -> 0.0402 | C14: =VLOOKUP(Vlookup!C14,'CDCM Forecast Data'!$A$14:$I$271,8,FALSE) -> 40 | E14: =VLOOKUP(Vlookup!E14,'CDCM Forecast Data'!$A$14:$I$271,8,FALSE) -> 0.95 | F14: =VLOOKUP(Vlookup!F14,'CDCM Forecast Data'!$A$14:$I$271,8,FALSE) -> 365
A16: 1017. Diversity allowance between top and bottom of network level
A18: Source: operational data analysis and/or network model.
A19: The diversity figure against GSP is the diversity between GSP Group (the whole system) and individual GSPs.
A20: The diversity figure against 132kV is the diversity between GSPs (the top of the 132kV network) and 132kV/EHV bulk supply points (the bottom of the 132kV network).
A21: The diversity figure against EHV is the diversity between 132kV/EHV bulk supply points (the top of the EHV network) and EHV/HV primary substations (the bottom of the EHV network).
A22: The diversity figure against HV is the diversity between EHV/HV primary substations (the top of the HV network) and HV/LV substations (the bottom of the HV network).
B23: Diversity allowance between top and bottom of network level
A24: GSPs | B24: =VLOOKUP(Vlookup!B24,'CDCM Forecast Data'!$A$14:$I$271,8,FALSE) -> 0.0634939014
A25: 132kV | B25: =VLOOKUP(Vlookup!B25,'CDCM Forecast Data'!$A$14:$I$271,8,FALSE) -> 0.06832793776
A26: 132kV/EHV
A27: EHV | B27: =VLOOKUP(Vlookup!B27,'CDCM Forecast Data'!$A$14:$I$271,8,FALSE) -> 0.09140024367
A28: EHV/HV
A29: HV | B29: =VLOOKUP(Vlookup!B29,'CDCM Forecast Data'!$A$14:$I$271,8,FALSE) -> 0.2390012962
A30: HV/LV
A31: LV circuits
A33: 1018. Proportion of relevant load going through 132kV/HV direct transformation
B35: 132kV/HV
A36: EHV/HV | B36: =VLOOKUP(Vlookup!B36,'CDCM Forecast Data'!$A$14:$I$271,8,FALSE) -> 0
A38: 1019. Network model GSP peak demand (MW)
B40: Network model GSP peak demand (MW)
A41: Network model GSP peak demand (MW) | B41: =VLOOKUP(Vlookup!B41,'CDCM Forecast Data'!$A$14:$I$271,8,FALSE) -> 500
A43: 1020. Gross asset cost by network level (£)
B45: Gross assets £
A46: 132kV | B46: =VLOOKUP(Vlookup!B46,'CDCM Forecast Data'!$A$14:$I$271,8,FALSE) -> 100301754.5
A47: 132kV/EHV | B47: =VLOOKUP(Vlookup!B47,'CDCM Forecast Data'!$A$14:$I$271,8,FALSE) -> 39674898.83
A48: EHV | B48: =VLOOKUP(Vlookup!B48,'CDCM Forecast Data'!$A$14:$I$271,8,FALSE) -> 100181801.9
A49: EHV/HV | B49: =VLOOKUP(Vlookup!B49,'CDCM Forecast Data'!$A$14:$I$271,8,FALSE) -> 63195020.95
A50: 132kV/HV | B50: =VLOOKUP(Vlookup!B50,'CDCM Forecast Data'!$A$14:$I$271,8,FALSE) -> 0
A51: HV | B51: =VLOOKUP(Vlookup!B51,'CDCM Forecast Data'!$A$14:$I$271,8,FALSE) -> 114729339.1
A52: HV/LV | B52: =VLOOKUP(Vlookup!B52,'CDCM Forecast Data'!$A$14:$I$271,8,FALSE) -> 104165107.7
A53: LV circuits | B53: =VLOOKUP(Vlookup!B53,'CDCM Forecast Data'!$A$14:$I$271,8,FALSE) -> 57745147.13
A55: 1022. LV service model asset cost (£)
B57: LV service model 1 | C57: LV service model 2 | D57: LV service model 3 | E57: LV service model 4 | F57: LV service model 5 | G57: LV service model 6 | H57: LV service model 7 | I57: LV service model 8
A58: LV service model asset cost (£) | B58: =VLOOKUP(Vlookup!B58,'CDCM Forecast Data'!$A$14:$I$271,8,FALSE) -> 10961.83142 | C58: =VLOOKUP(Vlookup!C58,'CDCM Forecast Data'!$A$14:$I$271,8,FALSE) -> 548.0915709 | D58: =VLOOKUP(Vlookup!D58,'CDCM Forecast Data'!$A$14:$I$271,8,FALSE) -> 2576.738925 | E58: =VLOOKUP(Vlookup!E58,'CDCM Forecast Data'!$A$14:$I$271,8,FALSE) -> 8271.638764 | F58: =VLOOKUP(Vlookup!F58,'CDCM Forecast Data'!$A$14:$I$271,8,FALSE) -> 301.2636498 | G58: =VLOOKUP(Vlookup!G58,'CDCM Forecast Data'!$A$14:$I$271,8,FALSE) -> 0 | H58: =VLOOKUP(Vlookup!H58,'CDCM Forecast Data'!$A$14:$I$271,8,FALSE) -> 0 | I58: =VLOOKUP(Vlookup!I58,'CDCM Forecast Data'!$A$14:$I$271,8,FALSE) -> 0
A60: 1023. HV service model asset cost (£)
B62: HV service model 1 | C62: HV service model 2 | D62: HV service model 3 | E62: HV service model 4 | F62: HV service model 5
A63: HV service model asset cost (£) | B63: =VLOOKUP(Vlookup!B63,'CDCM Forecast Data'!$A$14:$I$271,8,FALSE) -> 20576.13877 | C63: =VLOOKUP(Vlookup!C63,'CDCM Forecast Data'!$A$14:$I$271,8,FALSE) -> 18188.23076 | D63: =VLOOKUP(Vlookup!D63,'CDCM Forecast Data'!$A$14:$I$271,8,FALSE) -> 1224.735926 | E63: =VLOOKUP(Vlookup!E63,'CDCM Forecast Data'!$A$14:$I$271,8,FALSE) -> 0 | F63: =VLOOKUP(Vlookup!F63,'CDCM Forecast Data'!$A$14:$I$271,8,FALSE) -> 0
A65: 1025. Matrix of applicability of LV service models to tariffs with fixed charges
B66: 26 | C66: =B66+1 -> 27 | D66: 28 | E66: 29 | F66: 30 | G66: 31 | H66: 32 | I66: 33
B67: LV service model 1 | C67: LV service model 2 | D67: LV service model 3 | E67: LV service model 4 | F67: LV service model 5 | G67: LV service model 6 | H67: LV service model 7 | I67: LV service model 8
A68: Domestic Unrestricted | B68: =VLOOKUP($A68,'Mat of App'!$B$7:$AP$43,B$66,FALSE) -> 0.05 | C68: =VLOOKUP($A68,'Mat of App'!$B$7:$AP$43,C$66,FALSE) -> 0 | D68: =VLOOKUP($A68,'Mat of App'!$B$7:$AP$43,D$66,FALSE) -> 0 | E68: =VLOOKUP($A68,'Mat of App'!$B$7:$AP$43,E$66,FALSE) -> 0 | F68: =VLOOKUP($A68,'Mat of App'!$B$7:$AP$43,F$66,FALSE) -> 0 | G68: =VLOOKUP($A68,'Mat of App'!$B$7:$AP$43,G$66,FALSE) -> 0 | H68: =VLOOKUP($A68,'Mat of App'!$B$7:$AP$43,H$66,FALSE) -> 0 | I68: =VLOOKUP($A68,'Mat of App'!$B$7:$AP$43,I$66,FALSE) -> 0
A69: Domestic Two Rate | B69: =VLOOKUP($A69,'Mat of App'!$B$7:$AP$43,B$66,FALSE) -> 0.05 | C69: =VLOOKUP($A69,'Mat of App'!$B$7:$AP$43,C$66,FALSE) -> 0 | D69: =VLOOKUP($A69,'Mat of App'!$B$7:$AP$43,D$66,FALSE) -> 0 | E69: =VLOOKUP($A69,'Mat of App'!$B$7:$AP$43,E$66,FALSE) -> 0 | F69: =VLOOKUP($A69,'Mat of App'!$B$7:$AP$43,F$66,FALSE) -> 0 | G69: =VLOOKUP($A69,'Mat of App'!$B$7:$AP$43,G$66,FALSE) -> 0 | H69: =VLOOKUP($A69,'Mat of App'!$B$7:$AP$43,H$66,FALSE) -> 0 | I69: =VLOOKUP($A69,'Mat of App'!$B$7:$AP$43,I$66,FALSE) -> 0
A70: Small Non Domestic Unrestricted | B70: =VLOOKUP($A70,'Mat of App'!$B$7:$AP$43,B$66,FALSE) -> 0 | C70: =VLOOKUP($A70,'Mat of App'!$B$7:$AP$43,C$66,FALSE) -> 1 | D70: =VLOOKUP($A70,'Mat of App'!$B$7:$AP$43,D$66,FALSE) -> 0 | E70: =VLOOKUP($A70,'Mat of App'!$B$7:$AP$43,E$66,FALSE) -> 0 | F70: =VLOOKUP($A70,'Mat of App'!$B$7:$AP$43,F$66,FALSE) -> 0 | G70: =VLOOKUP($A70,'Mat of App'!$B$7:$AP$43,G$66,FALSE) -> 0 | H70: =VLOOKUP($A70,'Mat of App'!$B$7:$AP$43,H$66,FALSE) -> 0 | I70: =VLOOKUP($A70,'Mat of App'!$B$7:$AP$43,I$66,FALSE) -> 0
A71: Small Non Domestic Two Rate | B71: =VLOOKUP($A71,'Mat of App'!$B$7:$AP$43,B$66,FALSE) -> 0 | C71: =VLOOKUP($A71,'Mat of App'!$B$7:$AP$43,C$66,FALSE) -> 1 | D71: =VLOOKUP($A71,'Mat of App'!$B$7:$AP$43,D$66,FALSE) -> 0 | E71: =VLOOKUP($A71,'Mat of App'!$B$7:$AP$43,E$66,FALSE) -> 0 | F71: =VLOOKUP($A71,'Mat of App'!$B$7:$AP$43,F$66,FALSE) -> 0 | G71: =VLOOKUP($A71,'Mat of App'!$B$7:$AP$43,G$66,FALSE) -> 0 | H71: =VLOOKUP($A71,'Mat of App'!$B$7:$AP$43,H$66,FALSE) -> 0 | I71: =VLOOKUP($A71,'Mat of App'!$B$7:$AP$43,I$66,FALSE) -> 0
A72: LV Medium Non-Domestic | B72: =VLOOKUP($A72,'Mat of App'!$B$7:$AP$43,B$66,FALSE) -> 0 | C72: =VLOOKUP($A72,'Mat of App'!$B$7:$AP$43,C$66,FALSE) -> 0.2391523713 | D72: =VLOOKUP($A72,'Mat of App'!$B$7:$AP$43,D$66,FALSE) -> 0.7608476287 | E72: =VLOOKUP($A72,'Mat of App'!$B$7:$AP$43,E$66,FALSE) -> 0 | F72: =VLOOKUP($A72,'Mat of App'!$B$7:$AP$43,F$66,FALSE) -> 0 | G72: =VLOOKUP($A72,'Mat of App'!$B$7:$AP$43,G$66,FALSE) -> 0 | H72: =VLOOKUP($A72,'Mat of App'!$B$7:$AP$43,H$66,FALSE) -> 0 | I72: =VLOOKUP($A72,'Mat of App'!$B$7:$AP$43,I$66,FALSE) -> 0
A73: LV Sub Medium Non-Domestic | B73: =VLOOKUP($A73,'Mat of App'!$B$7:$AP$43,B$66,FALSE) -> 0 | C73: =VLOOKUP($A73,'Mat of App'!$B$7:$AP$43,C$66,FALSE) -> 0 | D73: =VLOOKUP($A73,'Mat of App'!$B$7:$AP$43,D$66,FALSE) -> 0 | E73: =VLOOKUP($A73,'Mat of App'!$B$7:$AP$43,E$66,FALSE) -> 1 | F73: =VLOOKUP($A73,'Mat of App'!$B$7:$AP$43,F$66,FALSE) -> 0 | G73: =VLOOKUP($A73,'Mat of App'!$B$7:$AP$43,G$66,FALSE) -> 0 | H73: =VLOOKUP($A73,'Mat of App'!$B$7:$AP$43,H$66,FALSE) -> 0 | I73: =VLOOKUP($A73,'Mat of App'!$B$7:$AP$43,I$66,FALSE) -> 0
A74: LV Network Domestic | B74: =VLOOKUP($A74,'Mat of App'!$B$7:$AP$43,B$66,FALSE) -> 0.05 | C74: =VLOOKUP($A74,'Mat of App'!$B$7:$AP$43,C$66,FALSE) -> 0 | D74: =VLOOKUP($A74,'Mat of App'!$B$7:$AP$43,D$66,FALSE) -> 0 | E74: =VLOOKUP($A74,'Mat of App'!$B$7:$AP$43,E$66,FALSE) -> 0 | F74: =VLOOKUP($A74,'Mat of App'!$B$7:$AP$43,F$66,FALSE) -> 0 | G74: =VLOOKUP($A74,'Mat of App'!$B$7:$AP$43,G$66,FALSE) -> 0 | H74: =VLOOKUP($A74,'Mat of App'!$B$7:$AP$43,H$66,FALSE) -> 0 | I74: =VLOOKUP($A74,'Mat of App'!$B$7:$AP$43,I$66,FALSE) -> 0
A75: LV Network Non-Domestic Non-CT | B75: =VLOOKUP($A75,'Mat of App'!$B$7:$AP$43,B$66,FALSE) -> 0 | C75: =VLOOKUP($A75,'Mat of App'!$B$7:$AP$43,C$66,FALSE) -> 1 | D75: =VLOOKUP($A75,'Mat of App'!$B$7:$AP$43,D$66,FALSE) -> 0 | E75: =VLOOKUP($A75,'Mat of App'!$B$7:$AP$43,E$66,FALSE) -> 0 | F75: =VLOOKUP($A75,'Mat of App'!$B$7:$AP$43,F$66,FALSE) -> 0 | G75: =VLOOKUP($A75,'Mat of App'!$B$7:$AP$43,G$66,FALSE) -> 0 | H75: =VLOOKUP($A75,'Mat of App'!$B$7:$AP$43,H$66,FALSE) -> 0 | I75: =VLOOKUP($A75,'Mat of App'!$B$7:$AP$43,I$66,FALSE) -> 0
A76: LV HH Metered | B76: =VLOOKUP($A76,'Mat of App'!$B$7:$AP$43,B$66,FALSE) -> 0 | C76: =VLOOKUP($A76,'Mat of App'!$B$7:$AP$43,C$66,FALSE) -> 0 | D76: =VLOOKUP($A76,'Mat of App'!$B$7:$AP$43,D$66,FALSE) -> 1 | E76: =VLOOKUP($A76,'Mat of App'!$B$7:$AP$43,E$66,FALSE) -> 0 | F76: =VLOOKUP($A76,'Mat of App'!$B$7:$AP$43,F$66,FALSE) -> 0 | G76: =VLOOKUP($A76,'Mat of App'!$B$7:$AP$43,G$66,FALSE) -> 0 | H76: =VLOOKUP($A76,'Mat of App'!$B$7:$AP$43,H$66,FALSE) -> 0 | I76: =VLOOKUP($A76,'Mat of App'!$B$7:$AP$43,I$66,FALSE) -> 0
A77: LV Sub HH Metered | B77: =VLOOKUP($A77,'Mat of App'!$B$7:$AP$43,B$66,FALSE) -> 0 | C77: =VLOOKUP($A77,'Mat of App'!$B$7:$AP$43,C$66,FALSE) -> 0 | D77: =VLOOKUP($A77,'Mat of App'!$B$7:$AP$43,D$66,FALSE) -> 0 | E77: =VLOOKUP($A77,'Mat of App'!$B$7:$AP$43,E$66,FALSE) -> 1 | F77: =VLOOKUP($A77,'Mat of App'!$B$7:$AP$43,F$66,FALSE) -> 0 | G77: =VLOOKUP($A77,'Mat of App'!$B$7:$AP$43,G$66,FALSE) -> 0 | H77: =VLOOKUP($A77,'Mat of App'!$B$7:$AP$43,H$66,FALSE) -> 0 | I77: =VLOOKUP($A77,'Mat of App'!$B$7:$AP$43,I$66,FALSE) -> 0
A78: LV Generation NHH or Aggregate HH | B78: =VLOOKUP($A78,'Mat of App'!$B$7:$AP$43,B$66,FALSE) -> 0 | C78: =VLOOKUP($A78,'Mat of App'!$B$7:$AP$43,C$66,FALSE) -> 0 | D78: =VLOOKUP($A78,'Mat of App'!$B$7:$AP$43,D$66,FALSE) -> 0 | E78: =VLOOKUP($A78,'Mat of App'!$B$7:$AP$43,E$66,FALSE) -> 0 | F78: =VLOOKUP($A78,'Mat of App'!$B$7:$AP$43,F$66,FALSE) -> 0 | G78: =VLOOKUP($A78,'Mat of App'!$B$7:$AP$43,G$66,FALSE) -> 0 | H78: =VLOOKUP($A78,'Mat of App'!$B$7:$AP$43,H$66,FALSE) -> 0 | I78: =VLOOKUP($A78,'Mat of App'!$B$7:$AP$43,I$66,FALSE) -> 0
A79: LV Sub Generation NHH | B79: =VLOOKUP($A79,'Mat of App'!$B$7:$AP$43,B$66,FALSE) -> 0 | C79: =VLOOKUP($A79,'Mat of App'!$B$7:$AP$43,C$66,FALSE) -> 0 | D79: =VLOOKUP($A79,'Mat of App'!$B$7:$AP$43,D$66,FALSE) -> 0 | E79: =VLOOKUP($A79,'Mat of App'!$B$7:$AP$43,E$66,FALSE) -> 0 | F79: =VLOOKUP($A79,'Mat of App'!$B$7:$AP$43,F$66,FALSE) -> 0 | G79: =VLOOKUP($A79,'Mat of App'!$B$7:$AP$43,G$66,FALSE) -> 0 | H79: =VLOOKUP($A79,'Mat of App'!$B$7:$AP$43,H$66,FALSE) -> 0 | I79: =VLOOKUP($A79,'Mat of App'!$B$7:$AP$43,I$66,FALSE) -> 0
A80: LV Generation Intermittent | B80: =VLOOKUP($A80,'Mat of App'!$B$7:$AP$43,B$66,FALSE) -> 0 | C80: =VLOOKUP($A80,'Mat of App'!$B$7:$AP$43,C$66,FALSE) -> 0 | D80: =VLOOKUP($A80,'Mat of App'!$B$7:$AP$43,D$66,FALSE) -> 0 | E80: =VLOOKUP($A80,'Mat of App'!$B$7:$AP$43,E$66,FALSE) -> 0 | F80: =VLOOKUP($A80,'Mat of App'!$B$7:$AP$43,F$66,FALSE) -> 0 | G80: =VLOOKUP($A80,'Mat of App'!$B$7:$AP$43,G$66,FALSE) -> 0 | H80: =VLOOKUP($A80,'Mat of App'!$B$7:$AP$43,H$66,FALSE) -> 0 | I80: =VLOOKUP($A80,'Mat of App'!$B$7:$AP$43,I$66,FALSE) -> 0
